Workbook

Sheet ProjectData
B3: TOUGH Support Savings Calculator
E7: Project Name: | F7: CDK
B9: Project Charateristics:
B12: Skilled Labor Rates | E12: Structural Support Selection | H12: Logistics Selection
B13: Discipline | C13: Rates (USD/HR) | E13: Double Strut (12G) | H13: 40ft Flat Bed
B14: Cable Tray Installer | C14: 75 | H14: LTL is not Available for Items Over 10ft Length
B15: Structural Erector | C15: 75
B16: Design Engineer | C16: 75 | E16: Structural Support Finish | H16: Cover Selection
B17: Input Estimated Project Labor Rates | E17: Stainless | H17: Not Required
B19: Straight Sections:
B22: 10ft or 12ft Straight Section | E22: 20ft Straight Section
B23: Tray Width (in) | C23: Quantity (Piece) | E23: Tray Width (in) | F23: Quantity (Piece)
B24: 6 | E24: 6
B25: 9 | E25: 9
B26: 12 | E26: 12 | F26: 30
B27: 18 | E27: 18
B28: 24 | E28: 24
B29: 30 | E29: 30
B30: 36 | E30: 36 | F30: 15
B32: Fitting Sections:
B36: HB Width (in) | C36: HB Radius (in) | D36: QTY (Pieces) | E36: VI Width (in) | F36: VI Radius (in) | G36: QTY (Pieces) | H36: VO Width (in) | I36: VO Radius (in) | J36: QTY (Pieces)
B37: 6 | C37: 12 | E37: 6 | F37: 12 | H37: 6 | I37: 12
C38: 24 | F38: 24 | I38: 24
C39: 36 | F39: 36 | I39: 36
B40: 9 | C40: 12 | E40: 9 | F40: 12 | H40: 9 | I40: 12
C41: 24 | F41: 24 | I41: 24
C42: 36 | F42: 36 | I42: 36
B43: 12 | C43: 12 | D43: 3 | E43: 12 | F43: 12 | G43: 4 | H43: 12 | I43: 12 | J43: 4
C44: 24 | F44: 24 | I44: 24
C45: 36 | F45: 36 | I45: 36
B46: 18 | C46: 12 | E46: 18 | F46: 12 | H46: 18 | I46: 12
C47: 24 | F47: 24 | I47: 24
C48: 36 | F48: 36 | I48: 36
B49: 24 | C49: 12 | E49: 24 | F49: 12 | H49: 24 | I49: 12
C50: 24 | F50: 24 | I50: 24
C51: 36 | F51: 36 | I51: 36
B52: 30 | C52: 12 | E52: 30 | F52: 12 | H52: 30 | I52: 12
C53: 24 | F53: 24 | I53: 24
C54: 36 | F54: 36 | I54: 36
B55: 36 | C55: 12 | D55: 1 | E55: 36 | F55: 12 | G55: 2 | H55: 36 | I55: 12
C56: 24 | F56: 24 | I56: 24
C57: 36 | F57: 36 | I57: 36 | J57: 2
B60: HT Width (in) | C60: HT Radius (in) | D60: QTY (Pieces) | E60: HX Width (in) | F60: HX Radius (in) | G60: QTY (Pieces)
B61: 6 | C61: 12 | E61: 6 | F61: 12
C62: 24 | F62: 24
C63: 36 | F63: 36
B64: 9 | C64: 12 | E64: 9 | F64: 12
C65: 24 | F65: 24
C66: 36 | F66: 36
B67: 12 | C67: 12 | D67: 1 | E67: 12 | F67: 12
C68: 24 | F68: 24
C69: 36 | F69: 36
B70: 18 | C70: 12 | E70: 18 | F70: 12
C71: 24 | F71: 24
C72: 36 | F72: 36
B73: 24 | C73: 12 | E73: 24 | F73: 12
C74: 24 | F74: 24
C75: 36 | F75: 36
B76: 30 | C76: 12 | E76: 30 | F76: 12
C77: 24 | F77: 24
C78: 36 | F78: 36
B79: 36 | C79: 12 | D79: 1 | E79: 36 | F79: 12
C80: 24 | F80: 24
C81: 36 | F81: 36
B83: Adjustable Sections:
B87: Type | C87: Height (in) | D87: QTY | E87: Type | F87: Height (in) | G87: QTY | H87: Type | I87: Height (in) | J87: QTY
B88: Vertical Adjustable | C88: 4in | E88: Horizontal Adjustable | F88: 4in | H88: Straight / Offset Reducing | I88: 4in
C89: 6in | F89: 6in | I89: 6in
D90: 2

Sheet Summary
K1: =TODAY() -> 2024-04-01
L5: Tray Length | M5: =IF(SUM(ProjectData!C24:C30)>0,"12ft",IF(SUM(ProjectData!F24:F30)>0,"20ft","Both")) -> 20ft
L6: Support Type | M6: =ProjectData!E13 -> Double Strut (12G)
L7: Support Finish | M7: =ProjectData!E17 -> Stainless
L8: Linear FT of Tray | M8: =SUM(ProjectData!F24:F30*20)+SUM(ProjectData!C24:C30*12) -> 900
L9: QTY of Fittings | M9: =SUM(ProjectData!D37:D57,ProjectData!G37:G57,ProjectData!J37:J57,ProjectData!D61:D81,ProjectData!G61:G81) -> 18
L10: Straight Cost: $/ft | M10: =IF(M5="20ft",19,15) -> 19
L11: Fitting Cost: Piece | M11: 200
L12: Discount Required NEMA Offset | M12: =1-(M26-M17)/(M15+M16) -> 0.5549998853
M13: =M10*(1-M12) -> 8.45500218
M14: =M11*(1-M12) -> 89.00002295
L15: Tray Cost | M15: =M10*M8 -> 17100
L16: Fitting Cost | M16: =M11*M9 -> 3600
L17: Installation Costs: NEMA | M17: =L77 -> 15536.21513
L18: Total Project Cost | M18: =SUM(M15:M17) -> 36236.21513
L19: Tray Cost | M19: =M15 -> 17100
L20: Fitting Cost | M20: =M16 -> 3600
L21: Installation Costs: SSS | M21: =L78 -> 7526.932625
L22: Total Project Cost | M22: =SUM(M19:M21) -> 28226.93263
L23: Tray Cost | M23: =M15 -> 17100 | N23: =M23/M8 -> 19 | O23: =N23*LEFT(M5,2) -> 380
L24: Fitting Cost | M24: =M16 -> 3600 | N24: =M24/M9 -> 200
L25: Installation Costs: TSS | M25: =L76 -> 4047.7175
L26: Total Project Cost | M26: =SUM(M23:M25) -> 24747.7175
L27: % Saved: Same Price (NEMA) | M27: =1-(M26/M18) -> 0.3170446357
L28: $ Saved: Same Price (NEMA) | M28: =M18-M26 -> 11488.49763
L29: % Saved: Same Price (SSS) | M29: =1-(M26/M22) -> 0.1232587037
L30: $ Saved: Same Price (SSS) | M30: =M22-M26 -> 3479.215125
L32: Discount Required: NEMA | M32: =M12 -> 0.5549998853
L33: Discounted Tray Total | M33: =(M15)*(1-M32) -> 7609.501962 | N33: =M33/M8 -> 8.45500218 | O33: =N33*LEFT(M5,2) -> 169.1000436
L34: Fitting Cost | M34: =(M16)*(1-M32) -> 1602.000413 | N34: =M34/M9 -> 89.00002295
L35: Installation Costs: NEMA | M35: =L77 -> 15536.21513
L36: Total Project Cost: Check | M36: =SUM(M33:M35) -> 24747.7175
L37: Discount Required: SSS | M37: =1-(M26-M40)/(M15+M16) -> 0.1680780254
L38: Discounted Tray Total | M38: =(M23)*(1-M37) -> 14225.86577 | N38: =M38/M8 -> 15.80651752 | O38: =N38*LEFT(M5,2) -> 316.1303504
L39: Fitting Cost | M39: =(M24)*(1-M37) -> 2994.919109 | N39: =M39/M9 -> 166.3843949
L40: Installation Costs: SSS | M40: =L78 -> 7526.932625
L41: Total Project Cost: Check | M41: =SUM(M38:M40) -> 24747.7175
K54: Project Schedule | L54: Vs NEMA Saved Hours | M54: Vs SSS Saved Hours
K55: =L99+L109+L119 -> 34.58610833 | L55: =L57-L56 -> 34.58610833 | M55: =L58-L56 -> 11.58610833
L56: =L97+L107+L117 -> 34.17916667 | M56: TSS Install Hours
L57: =L98+L108+L118 -> 68.765275 | M57: NEMA Install Hours
L58: =L97+L107+L118 -> 45.765275 | M58: SSS Install Hours
K63: Total Pieces
K64: =L144+L154+L173 -> 2229.989
K74: Total $ Savings | L74: K | M74: M
K75: =IF(L75>999999,M75,L75) -> 11488.49762 | L75: =M99+M129+M119+M109+M144+M154+M163+M173 -> 11488.49762 | M75: =M99+M129+M119+M109+M144+M154+M163+M173 -> 11488.49762
L76: =M97+M127+M117+M107+M142+M152+M161+M171 -> 4047.7175 | M76: TSS Install Cost
L77: =M98+M128+M118+M108+M143+M153+M162+M172 -> 15536.21513 | M77: NEMA Install Cost
L78: =(M97*1.2)+(M107*1.2)+(M127*1.5)+M143+M153+M162+M118 -> 7526.932625 | M78: SSS Install Cost
K96: Structural Design | L96: (Hours) | M96: ($ USD)
K97: TSS: | L97: =IF(ProjectData!E13="Single Strut (12G)",Tables!O32,IF(ProjectData!E13="Double Strut (12G)",Tables!O32,Tables!O23)) -> 14.0625 | M97: =IF(ProjectData!E13="Single Strut (12G)",Tables!U32,IF(ProjectData!E13="Double Strut (12G)",Tables!U32,Tables!U23)) -> 1054.6875
K98: NEMA: | L98: =IF(ProjectData!E13="Single Strut (12G)",Tables!N32,IF(ProjectData!E13="Double Strut (12G)",Tables!N32,Tables!N23)) -> 25.0625 | M98: =IF(ProjectData!E13="Single Strut (12G)",Tables!T32,IF(ProjectData!E13="Double Strut (12G)",Tables!T32,Tables!T23)) -> 1879.6875
K99: Delta | L99: =L98-L97 -> 11 | M99: =M98-M97 -> 825
K100: Notes: | L100: Calculated Hours Saved | M100: Calculated Dollars Saved
L101: Ref. Chart 1A | M101: Ref. Chart 1B
K106: Structure Installation | L106: (Hours) | M106: ($ USD)
K107: TSS: | L107: =IF(ProjectData!E13="Single Strut (12G)",Tables!Q32,IF(ProjectData!E13="Double Strut (12G)",Tables!Q32,Tables!Q23)) -> 17.75 | M107: =IF(ProjectData!E13="Single Strut (12G)",Tables!W32,IF(ProjectData!E13="Double Strut (12G)",Tables!W32,Tables!W23)) -> 1331.25
K108: NEMA: | L108: =IF(ProjectData!E13="Single Strut (12G)",Tables!P32,IF(ProjectData!E13="Double Strut (12G)",Tables!P32,Tables!P23)) -> 29.75 | M108: =IF(ProjectData!E13="Single Strut (12G)",Tables!V32,IF(ProjectData!E13="Double Strut (12G)",Tables!V32,Tables!V23)) -> 2231.25
K109: Delta | L109: =L108-L107 -> 12 | M109: =M108-M107 -> 900
K110: Notes: | L110: Calculated Hours Saved | M110: Calculated Dollars Saved
L111: Ref. Chart 2A | M111: Ref. Chart 2B
K116: Tray Installation | L116: (Hours) | M116: ($ USD)
K117: TSS: | L117: =IF(ProjectData!E13="Single Strut (12G)",Tables!S32+Tables!BV23,IF(ProjectData!E13="Double Strut (12G)",Tables!S32+Tables!BV23,Tables!S23+Tables!BV23)) -> 2.366666667 | M117: =IF(ProjectData!E13="Single Strut (12G)",Tables!Y32+Tables!BX23,IF(ProjectData!E13="Double Strut (12G)",Tables!Y32+Tables!BX23,Tables!Y23+Tables!BX23)) -> 177.5
K118: NEMA: | L118: =IF(ProjectData!E13="Single Strut (12G)",Tables!R32+Tables!BU23,IF(ProjectData!E13="Double Strut (12G)",Tables!R32+Tables!BU23,Tables!R23+Tables!BU23)) -> 13.952775 | M118: =IF(ProjectData!E13="Single Strut (12G)",Tables!X32+Tables!BW23,IF(ProjectData!E13="Double Strut (12G)",Tables!X32+Tables!BW23,Tables!X23+Tables!BW23)) -> 1046.458125
K119: Delta | L119: =L118-L117 -> 11.58610833 | M119: =M118-M117 -> 868.958125
K120: Notes: | L120: Calculated Hours Saved | M120: Calculated Dollars Saved
L121: Ref. Chart 3A | M121: Ref. Chart 3B
K126: Structure Materials | L126: Physical Weight | M126: ($ USD)
K127: TSS: | L127: =IF(ProjectData!E13="Single Strut (12G)",Tables!H32,IF(ProjectData!E13="Double Strut (12G)",Tables!H32,Tables!H23)) -> 37.275 | M127: =IF(ProjectData!E13="Single Strut (12G)",Tables!J32,IF(ProjectData!E13="Double Strut (12G)",Tables!J32,Tables!J23)) -> 447.3
K128: NEMA: | L128: =IF(ProjectData!E13="Single Strut (12G)",Tables!G32,IF(ProjectData!E13="Double Strut (12G)",Tables!G32,Tables!G23)) -> 1288.58 | M128: =IF(ProjectData!E13="Single Strut (12G)",Tables!I32,IF(ProjectData!E13="Double Strut (12G)",Tables!I32,Tables!I23)) -> 7093.32
K129: Delta | L129: =L128-L127 -> 1251.305 | M129: =M128-M127 -> 6646.02
K130: Notes: | L130: Calculated lbs. Saved | M130: Calculated Dollars Saved
L131: Ref. Chart 4A | M131: Ref. Chart 4B
K141: Tray Hardware | L141: (QTY) | M141: ($ USD)
K142: TSS: | L142: =IF(ProjectData!E13="Single Strut (12G)",Tables!AH32+Tables!BT23,IF(ProjectData!E13="Double Strut (12G)",Tables!AH32+Tables!BT23,Tables!AH23+Tables!BT23)) -> 240 | M142: =IF(ProjectData!E13="Single Strut (12G)",Tables!AP32,IF(ProjectData!E13="Double Strut (12G)",Tables!AP32,Tables!AP23)) -> 630
K143: NEMA: | L143: =IF(ProjectData!E13="Single Strut (12G)",Tables!AG32+Tables!BS23,IF(ProjectData!E13="Double Strut (12G)",Tables!AG32+Tables!BS23,Tables!AG23+Tables!BS23)) -> 2071.994 | M143: =IF(ProjectData!E13="Single Strut (12G)",Tables!AO32,IF(ProjectData!E13="Double Strut (12G)",Tables!AO32,Tables!AO23)) -> 1805.9925
K144: Delta | L144: =L143-L142 -> 1831.994 | M144: =M143-M142 -> 1175.9925
K145: Notes: | L145: Calculated Pieces Saved | M145: Calculated Dollars Saved
L146: Ref. Chart 5A | M146: Ref. Chart 5B
K151: Tray Accessories | L151: (QTY) | M151: ($ USD)
K152: TSS: | L152: =IF(ProjectData!E13="Single Strut (12G)",Tables!AB32+Tables!AD32+Tables!AF32+Tables!BR23,IF(ProjectData!E13="Double Strut (12G)",Tables!AB32+Tables!AD32+Tables!AF32+Tables!BR23,Tables!AB23+Tables!AD23+Tables!AF23+Tables!BR23)) -> 15 | M152: =IF(ProjectData!E13="Single Strut (12G)",Tables!AJ32+Tables!AL32+Tables!BR23,IF(ProjectData!E13="Double Strut (12G)",Tables!AJ32+Tables!AL32+Tables!BR23,Tables!AJ23+Tables!AL23+Tables!BR24)) -> 0
K153: NEMA: | L153: =IF(ProjectData!E13="Single Strut (12G)",Tables!AA32+Tables!AC32+Tables!AE32+Tables!BQ23,IF(ProjectData!E13="Double Strut (12G)",Tables!AA32+Tables!AC32+Tables!AE32+Tables!BQ23,Tables!AA23+Tables!AC23+Tables!AE23+Tables!BQ23)) -> 222.995 | M153: =IF(ProjectData!E13="Single Strut (12G)",Tables!AI32+Tables!AK32+Tables!BQ24,IF(ProjectData!E13="Double Strut (12G)",Tables!AI32+Tables!AK32+Tables!BQ24,Tables!AI23+Tables!AK23+Tables!BQ24)) -> 624.975
K154: Delta | L154: =L153-L152 -> 207.995 | M154: =M153-M152 -> 624.975
K155: Notes: | L155: Calculated Pieces Saved | M155: Calculated Dollars Saved
L156: Ref. Chart 6A | M156: Ref. Chart 6B
K160: Structure Logistics | L160: (Truck QTY) | M160: ($ USD)
K161: TSS: | L161: =Tables!EJ22 -> 0.030685 | M161: =Tables!EJ24 -> 245.48
K162: NEMA: | L162: =Tables!EJ21 -> 0.064429 | M162: =Tables!EJ23 -> 515.432
K163: Delta | L163: =L162-L161 -> 0.033744 | M163: =M162-M161 -> 269.952
K164: Notes: | L164: Calculated Truck Volume Saved | M164: Calculated Dollars Saved
L165: Ref. Chart 7A | M165: Ref. Chart 7B
K170: Support Optimization | L170: (QTY) | M170: (Linear FT)
K171: TSS: | L171: =IF(ProjectData!E13="Single Strut (12G)",Tables!F32,IF(ProjectData!E13="Double Strut (12G)",Tables!F32,Tables!F23)) -> 71 | M171: =IF(ProjectData!E13="Single Strut (12G)",Tables!L32,IF(ProjectData!L13="Double Strut (12G)",Tables!L32,Tables!L23)) -> 161.5
K172: NEMA: | L172: =IF(ProjectData!E13="Single Strut (12G)",Tables!E32,IF(ProjectData!E13="Double Strut (12G)",Tables!E32,Tables!E23)) -> 119 | M172: =IF(ProjectData!E13="Single Strut (12G)",Tables!K32,IF(ProjectData!K13="Double Strut (12G)",Tables!K32,Tables!K23)) -> 339.1
K173: Delta | L173: =L172-L171*-1 -> 190 | M173: =M172-M171 -> 177.6
K174: Notes: | L174: Calculated Supports Saved | M174: Calculated Linear FT Saved
L175: Ref. Chart 8A | M175: Ref. Chart 8B
L270: Highlight Accessory Components | M270: side by sid with light red X over NEMA
L271: NEMA | M271: TSS
K272: Splice Plate | L272: Splice Plate + Hardware | M272: Pre Installed
K273: Expansion | L273: Expansion: Extra Cost | M273: Expansion Ready
K274: Flexability: Cable Drop | L274: Modify Tray (Not UL) | M274: Move Rung
K275: Site Modify | L275: Can't | M275: Rungs / Fittings = no hot work
K276: Conectivity | L276: Can't | M276: Continious Strut Connections
K277: Fitting Strength | L277: None - often fails | M277: Reinforced Midpoints & Ends
K278: Prefabrication | L278: Heavy Skilled Labor Required | M278: Designed to easily expedite Prefab
K279: Modular Design | L279: Static NEMA VE2 Offering | M279: Modular Splice designed for strength & forgiveness
K280: Covers | L280: Expesive clamps that often Sag | M280: Inexpensive 316 screws that hold tight and install quickly
K281: Reducers | L281: Expensive Fixed Fittings | M281: Inexpensive Plates that lock firm and install quickly
K282: Rung Safety | L282: Optimized for manfacturer Cost savings (200lbs) | M282: Optimized for customer savings (350lbs)
K283: Tray Safety | L283: Optimized for manfacturer Cost savings (250lbs pull out) | M283: Optimized for customer savings (1100lb pull out)
L316: =IFERROR("Maximize project returns by eliminating structure, increasing installation efficiency, and removing complexitity. By applying TSS advantages, your next project could yeild $"&TEXT(K75,"#,###")&" or more in project savings. Bonus: Savings do not account for Civil Piling","Please enter values for all of the inputs to view the completed analysis.") -> Maximize project returns by eliminating structure, increasing installation efficiency, and removing complexitity. By applying TSS advantages, your next project could yeild $11,488 or more in project savings. Bonus: Savings do not account for Civil Piling
L320: =IFERROR("Exceed project schedules by decreasing critical path & skilled labor hours. With intuitive design and simplicstic fixing methods, more than "&TEXT(K55,"#,###0.0")&" hours can be eliminated.","Please enter values for all of the inputs to view the completed analysis.") -> Exceed project schedules by decreasing critical path & skilled labor hours. With intuitive design and simplicstic fixing methods, more than 34.6 hours can be eliminated.
L324: =IFERROR("Errors and unwanted expenses often stem from jobsite complexities. CTI's TOUGHTray system can eliminate as much as "&TEXT(K64,"#,###")&" pieces of hardware and accessores from this project.","Please enter values for all of the inputs to view the completed analysis.") -> Errors and unwanted expenses often stem from jobsite complexities. CTI's TOUGHTray system can eliminate as much as 2,230 pieces of hardware and accessores from this project.
L328: With modularity and site adaptivity on full display making it ideal for prefabrication and tight schedules
L331: =IFERROR("A typical NEMA installation of this size would require a "&TEXT(M32,"#,##0.0%")&" reduction in material prices to meet the $ value of TSS while still requiring an extra "&TEXT(K55,"#,##0.0")&" hours of additional labor.","Please enter values for all of the inputs to view the completed analysis.") -> A typical NEMA installation of this size would require a 55.5% reduction in material prices to meet the $ value of TSS while still requiring an extra 34.6 hours of additional labor.
L335: ="TOUGH Support Savings: (The ability to minimize project expenses and maximize project ROI):" -> TOUGH Support Savings: (The ability to minimize project expenses and maximize project ROI):
L339: ="1. Support Optimization - Eliminate Unnecessary Tray Supports 2. Field Adaptability - Simplify & Speed Up Tray Installation 3. Modular Assembly - Reduce Complexity with Interchangeable Components" -> 1. Support Optimization - Eliminate Unnecessary Tray Supports 2. Field Adaptability - Simplify & Speed Up Tray Installation 3. Modular Assembly - Reduce Complexity with Interchangeable Components
L344: ="Material savings based on conservative industry rates: Stuctural Raw Material $"&TEXT('CTI Input Sheet'!B28,"#,###.00")&"/hr Material Fabrication: $" &TEXT('CTI Input Sheet'!B28,"#,###.00")&"/hr " -> Material savings based on conservative industry rates: Stuctural Raw Material $1.50/hr Material Fabrication: $1.50/hr
L348: =IFERROR("Labor savings based on customer Inputs: Tray Installer: $"&TEXT(ProjectData!C14,"#,###")&"/hr Structural Erector $" &TEXT(ProjectData!C15,"#,###")&"/hr Design Engineer $" &TEXT(ProjectData!C16,"#,###")&"/hr","Please enter values for all of the inputs to view the completed analysis.") -> Labor savings based on customer Inputs: Tray Installer: $75/hr Structural Erector $75/hr Design Engineer $75/hr

Sheet DropDowns (hidden)
A1: Cable Tray Support Structural Sections | B1: Cable Tray Accessory Costs (USD) | C1: Handling | D1: Cover Selection | E1: Project Stage | F1: Finish
A2: Single Strut (12G) | B2: Hold Down Clamps (PR) | C2: 30ft Hot Shot | D2: Not Required | E2: FEED | F2: Pre-Galv
A3: Double Strut (12G) | B3: Clamp Hardware (PR) | C3: 40ft Flat Bed | D3: Required | E3: Project Bid | F3: HotDip Galv
A4: C-Channel (C6x13) | B4: Expansion Guides (PR) | C4: 40ft Container | E4: Installation | F4: Stainless
A5: I-Beam (S8x23) | B5: Guide Hardware (PR) | F5: Painted
A6: I-Beam (S12x50) | B6: 4" Expansion Splice Plate (PR)
B7: 6" Expansion Splice Plate (PR)
B8: 4" Expansion Cartridge (PR)
B9: 6" Expansion Cartridge (PR)

Sheet Tables (hidden)
AQ1: TRAY ACCESSORY INSTALLATION TIME (HRS) | CE1: Chart or special Note (index match based on input selection) Summary Sheet | CZ1: Chart or special Note (index match based on input selection) Summary Sheet
B2: CABLE TRAY BOM | E2: STRUCTURE | N2: SKILLED LABOR | AA2: TRAY ACCESSORY QUANTITY | AQ2: Clamp Installation Time (HRS) | AS2: Guide Installation Time (HRS) | AU2: Splice/Link Installation Time (HRS) | BG2: TOTAL TRAY INSTALLATION TIME (HRS) | BJ2: TOTAL TRAY INSTALLATION COST (USD) | BM2: COVERS & COVER CLAMPS | CO2: STRUT TRAPEZE SUPPORT : SUPPORT QUANTITIES - WEIGHT - TIME - COSTS | DJ2: STRUT TRAPEZE SUPPORT : TRAY CLAMPS & GUIDES
B3: Tray Item Type | C3: Total Quantity | E3: Support Quantity (PCS) | G3: Support Weight (LBS) | I3: Support Cost (USD) | K3: Support Linear Length (FT) | N3: Structural Engineer Time | P3: Steel Erector Time | R3: Tray Installer Time | T3: Structural Design Cost | V3: Structure Cost | X3: Tray Installer Cost | AA3: Clamp Quantity | AC3: Guide Quantity | AE3: Splice Quantity | AG3: Hardware Quantity | AQ3: NEMA | AR3: TSS | AS3: NEMA | AT3: TSS | AU3: NEMA | AV3: TSS | BG3: All Tray Accessory Items | BJ3: All Tray Accessory Items | BM3: COVER WEIGHT (lbs) | BO3: COVER CLAMP WEIGHT (lbs) | BQ3: COVER CLAMP QTY (ea) | BS3: HARDWARE QTY (pcs) | BU3: INSTALLATION TIME (hrs) | BW3: INSTALLATION COST (usd) | CO3: STRUT QUANTITY (FT) | CQ3: ATR QUANTITY (FT) | CS3: FITTINGS QUANTITY (PCS) | CU3: HDWR QUANTITY (PCS) | CW3: STRUT WEIGHT (LBS) | CY3: ATR WEIGHT (LBS) | DA3: STRUT COST (USD) | DC3: ATR COST (USD) | DE3: INSTALLATION TIME (HRS) | DG3: INSTALLATION COST (USD) | DJ3: CLAMP QUANTITY (PRS) | DL3: GUIDE QUANTITY (PRS) | DN3: HDWR QUANTITY (PCS) | DP3: INSTALLATION TIME (HRS) | DR3: INSTALLATION COST (USD)
E4: NEMA | F4: TSS | G4: NEMA | H4: TSS | I4: NEMA | J4: TSS | K4: NEMA | L4: TSS | M4: Tray Item Type | N4: NEMA | O4: TSS | P4: NEMA | Q4: TSS | R4: NEMA | S4: TSS | T4: NEMA | U4: TSS | V4: NEMA | W4: TSS | X4: NEMA | Y4: TSS | AA4: NEMA | AB4: TSS | AC4: NEMA | AD4: TSS | AE4: NEMA | AF4: TSS | AG4: NEMA | AH4: TSS | BG4: NEMA | BH4: TSS | BJ4: NEMA | BK4: TSS | BM4: NEMA | BN4: TSS | BO4: NEMA | BP4: TSS | BQ4: NEMA | BR4: TSS | BS4: NEMA | BT4: TSS | BU4: NEMA | BV4: TSS | BW4: NEMA | BX4: TSS | CO4: NEMA | CP4: TSS | CQ4: NEMA | CR4: TSS | CS4: NEMA | CT4: TSS | CU4: NEMA | CV4: TSS | CW4: NEMA | CX4: TSS | CY4: NEMA | CZ4: TSS | DA4: NEMA | DB4: TSS | DC4: NEMA | DD4: TSS | DE4: NEMA | DF4: TSS | DG4: NEMA | DH4: TSS | DJ4: NEMA | DK4: TSS | DL4: NEMA | DM4: TSS | DN4: NEMA | DO4: TSS | DP4: NEMA | DQ4: TSS | DR4: NEMA | DS4: TSS
AQ5: ='VE2'!AL24 -> 0 | AR5: =TSS!AL24 -> 0 | AS5: ='VE2'!AM24 -> 0 | AT5: =TSS!AM24 -> 0 | AU5: ='VE2'!AK24 -> 0 | AV5: =TSS!AK24 -> 0
B6: 12ft Straight Sections | C6: ='VE2'!B24 -> 0 | E6: ='VE2'!T24 -> 0 | F6: =TSS!T24 -> 0 | G6: ='VE2'!U24 -> 0 | H6: =TSS!U24 -> 0 | I6: ='VE2'!V24 -> 0 | J6: =TSS!V24 -> 0 | K6: ='VE2'!G24 -> 0 | L6: =TSS!G24 -> 0 | M6: 12ft Straight Sections | N6: ='VE2'!W24 -> 0 | O6: =TSS!W24 -> 0 | P6: ='VE2'!X24 -> 0 | Q6: =TSS!X24 -> 0 | R6: ='VE2'!AN24 -> 0 | S6: =TSS!AN24 -> 0 | T6: =N6*ProjectData!$C$16 -> 0 | U6: =O6*ProjectData!$C$16 -> 0 | V6: =P6*ProjectData!$C$15 -> 0 | W6: =Q6*ProjectData!$C$15 -> 0 | X6: =R6*ProjectData!$C$14 -> 0 | Y6: =S6*ProjectData!$C$14 -> 0 | AA6: ='VE2'!AB24 -> 0 | AB6: =TSS!AB24 -> 0 | AC6: ='VE2'!AD24 -> 0 | AD6: =TSS!AD24 -> 0 | AE6: ='VE2'!Z24 -> 0 | AF6: =TSS!Z24 -> 0 | AG6: ='VE2'!G262 -> 0 | AH6: =TSS!G262 -> 0 | AQ6: ='VE2'!AL35 -> 0.49995 | AR6: =TSS!AL35 -> 0.5333333333 | AS6: ='VE2'!AM35 -> 1.16655 | AT6: =TSS!AM35 -> 1.2 | AU6: ='VE2'!AK35 -> 3.75 | AV6: =TSS!AK35 -> 0.75 | BG6: ='VE2'!H262 -> 0 | BH6: =TSS!H262 -> 0 | BJ6: ='VE2'!I262 -> 0 | BK6: =TSS!I262 -> 0 | BM6: ='VE2'!O262 -> 0 | BN6: =TSS!O262 -> 0 | BO6: ='VE2'!P262 -> 0 | BP6: =TSS!P262 -> 0 | BQ6: ='VE2'!M262 -> 0 | BR6: =TSS!M262 -> 0 | BS6: ='VE2'!N262 -> 0 | BT6: =TSS!N262 -> 0 | BU6: ='VE2'!R262 -> 0 | BV6: =TSS!R262 -> 0 | BW6: ='VE2'!T262 -> 0 | BX6: =TSS!T262 -> 0 | CO6: ='VE2'!D281 -> 0 | CP6: =TSS!D281 -> 0 | CQ6: ='VE2'!E281 -> 0 | CR6: =TSS!E281 -> 0 | CS6: ='VE2'!F281 -> 0 | CT6: =TSS!F281 -> 0 | CU6: ='VE2'!G281 -> 0 | CV6: =TSS!G281 -> 0 | CW6: ='VE2'!D300 -> 0 | CX6: =TSS!D300 -> 0 | CY6: ='VE2'!F300 -> 0 | CZ6: =TSS!F300 -> 0 | DA6: ='VE2'!H300 -> 0 | DB6: =TSS!H300 -> 0 | DC6: ='VE2'!I300 -> 0 | DD6: =TSS!I300 -> 0 | DE6: ='VE2'!H281 -> 0 | DF6: =TSS!H281 -> 0 | DG6: ='VE2'!I281 -> 0 | DH6: =TSS!I281 -> 0 | DJ6: ='VE2'!D319 -> 0 | DK6: =TSS!D319 -> 0 | DL6: ='VE2'!E319 -> 0 | DM6: =TSS!E319 -> 0 | DN6: ='VE2'!F319 -> 0 | DO6: =TSS!F319 -> 0 | DP6: ='VE2'!G319 -> 0 | DQ6: =TSS!G319 -> 0 | DR6: ='VE2'!H319 -> 0 | DS6: =TSS!H319 -> 0
B7: 20ft Straight Sections | C7: ='VE2'!B35 -> 45 | E7: ='VE2'!T35 -> 45 | F7: =TSS!T35 -> 45 | G7: ='VE2'!U35 -> 370.5 | H7: =TSS!U35 -> 370.5 | I7: ='VE2'!V35 -> 2871.375 | J7: =TSS!V35 -> 2871.375 | K7: ='VE2'!G35 -> 97.5 | L7: =TSS!G35 -> 97.5 | M7: 20ft Straight Sections | N7: ='VE2'!W35 -> 11.25 | O7: =TSS!W35 -> 11.25 | P7: ='VE2'!X35 -> 11.25 | Q7: =TSS!X35 -> 11.25 | R7: ='VE2'!AN35 -> 5.4165 | S7: =TSS!AN35 -> 2.483333333 | T7: =N7*ProjectData!$C$16 -> 843.75 | U7: =O7*ProjectData!$C$16 -> 843.75 | V7: =P7*ProjectData!$C$15 -> 843.75 | W7: =Q7*ProjectData!$C$15 -> 843.75 | X7: =R7*ProjectData!$C$14 -> 406.2375 | Y7: =S7*ProjectData!$C$14 -> 186.25 | AA7: ='VE2'!AB35 -> 14.9985 | AB7: =TSS!AB35 -> 16 | AC7: ='VE2'!AD35 -> 34.9965 | AD7: =TSS!AD35 -> 36 | AE7: ='VE2'!Z35 -> 45 | AF7: =TSS!Z35 -> 0 | AG7: ='VE2'!G263 -> 923.994 | AH7: =TSS!G263 -> 568 | AQ7: ='VE2'!AL60 -> 0.4 | AR7: =TSS!AL60 -> 0.2666666667 | AS7: ='VE2'!AM60 -> 0 | AT7: =TSS!AM60 -> 0 | AU7: ='VE2'!AK60 -> 0.6666666667 | AV7: =TSS!AK60 -> 0.1333333333 | BG7: ='VE2'!H263 -> 5.4165 | BH7: =TSS!H263 -> 2.483333333 | BJ7: ='VE2'!I263 -> 406.2375 | BK7: =TSS!I263 -> 186.25 | BM7: ='VE2'!O263 -> 0 | BN7: =TSS!O263 -> 0 | BO7: ='VE2'!P263 -> 0 | BP7: =TSS!P263 -> 0 | BQ7: ='VE2'!M263 -> 0 | BR7: =TSS!M263 -> 0 | BS7: ='VE2'!N263 -> 0 | BT7: =TSS!N263 -> 0 | BU7: ='VE2'!R263 -> 0 | BV7: =TSS!R263 -> 0 | BW7: ='VE2'!T263 -> 0 | BX7: =TSS!T263 -> 0 | CO7: ='VE2'!D282 -> 97.5 | CP7: =TSS!D282 -> 0 | CQ7: ='VE2'!E282 -> 180 | CR7: =TSS!E282 -> 112.5 | CS7: ='VE2'!F282 -> 180 | CT7: =TSS!F282 -> 90 | CU7: ='VE2'!G282 -> 180 | CV7: =TSS!G282 -> 360 | CW7: ='VE2'!D301 -> 370.5 | CX7: =TSS!D301 -> 0 | CY7: ='VE2'!F301 -> 37.8 | CZ7: =TSS!F301 -> 23.625 | DA7: ='VE2'!H301 -> 2223 | DB7: =TSS!H301 -> 0 | DC7: ='VE2'!I301 -> 453.6 | DD7: =TSS!I301 -> 283.5 | DE7: ='VE2'!H282 -> 5.25 | DF7: =TSS!H282 -> 1.5 | DG7: ='VE2'!I282 -> 393.75 | DH7: =TSS!I282 -> 112.5 | DJ7: ='VE2'!D320 -> 14.9985 | DK7: =TSS!D320 -> 0 | DL7: ='VE2'!E320 -> 34.9965 | DM7: =TSS!E320 -> 0 | DN7: ='VE2'!F320 -> 203.994 | DO7: =TSS!F320 -> 0 | DP7: ='VE2'!G320 -> 0.027775 | DQ7: =TSS!G320 -> 0 | DR7: ='VE2'!H320 -> 2.083125 | DS7: =TSS!H320 -> 0
B8: Horizontal Elbow | C8: ='VE2'!B60 -> 4 | E8: ='VE2'!T60 -> 12 | F8: =TSS!T60 -> 8 | G8: ='VE2'!U60 -> 129.2 | H8: =TSS!U60 -> 76 | I8: ='VE2'!V60 -> 1001.3 | J8: =TSS!V60 -> 589 | K8: ='VE2'!J60 -> 34 | L8: =TSS!J60 -> 20 | M8: Horizontal Elbow | N8: ='VE2'!W60 -> 18 | O8: =TSS!W60 -> 12 | P8: ='VE2'!X60 -> 3 | Q8: =TSS!X60 -> 2 | R8: ='VE2'!AN60 -> 1.066666667 | S8: =TSS!AN60 -> 0.4 | T8: =N8*ProjectData!$C$16 -> 1350 | U8: =O8*ProjectData!$C$16 -> 900 | V8: =P8*ProjectData!$C$15 -> 225 | W8: =Q8*ProjectData!$C$15 -> 150 | X8: =R8*ProjectData!$C$14 -> 80 | Y8: =S8*ProjectData!$C$14 -> 30 | AA8: ='VE2'!AB60 -> 12 | AB8: =TSS!AB60 -> 8 | AC8: ='VE2'!AD60 -> 0 | AD8: =TSS!AD60 -> 0 | AE8: ='VE2'!Z60 -> 8 | AF8: =TSS!Z60 -> 0 | AG8: ='VE2'!G264 -> 176 | AH8: =TSS!G264 -> 32 | AQ8: ='VE2'!AL85 -> 0.3 | AR8: =TSS!AL85 -> 0.2 | AS8: ='VE2'!AM85 -> 0 | AT8: =TSS!AM85 -> 0 | AU8: ='VE2'!AK85 -> 0.5 | AV8: =TSS!AK85 -> 0.1 | BG8: ='VE2'!H264 -> 1.066666667 | BH8: =TSS!H264 -> 0.4 | BJ8: ='VE2'!I264 -> 80 | BK8: =TSS!I264 -> 30 | BM8: ='VE2'!O264 -> 0 | BN8: =TSS!O264 -> 0 | BO8: ='VE2'!P264 -> 0 | BP8: =TSS!P264 -> 0 | BQ8: ='VE2'!M264 -> 0 | BR8: =TSS!M264 -> 0 | BS8: ='VE2'!N264 -> 0 | BT8: =TSS!N264 -> 0 | BU8: ='VE2'!R264 -> 0 | BV8: =TSS!R264 -> 0 | BW8: ='VE2'!T264 -> 0 | BX8: =TSS!T264 -> 0 | CO8: ='VE2'!D283 -> 24 | CP8: =TSS!D283 -> 0 | CQ8: ='VE2'!E283 -> 48 | CR8: =TSS!E283 -> 20 | CS8: ='VE2'!F283 -> 48 | CT8: =TSS!F283 -> 16 | CU8: ='VE2'!G283 -> 48 | CV8: =TSS!G283 -> 64 | CW8: ='VE2'!D302 -> 91.2 | CX8: =TSS!D302 -> 0 | CY8: ='VE2'!F302 -> 10.08 | CZ8: =TSS!F302 -> 4.2 | DA8: ='VE2'!H302 -> 547.2 | DB8: =TSS!H302 -> 0 | DC8: ='VE2'!I302 -> 120.96 | DD8: =TSS!I302 -> 50.4 | DE8: ='VE2'!H283 -> 1.4 | DF8: =TSS!H283 -> 0.2666666667 | DG8: ='VE2'!I283 -> 105 | DH8: =TSS!I283 -> 20 | DJ8: ='VE2'!D321 -> 12 | DK8: =TSS!D321 -> 0 | DL8: ='VE2'!E321 -> 0 | DM8: =TSS!E321 -> 0 | DN8: ='VE2'!F321 -> 48 | DO8: =TSS!F321 -> 0 | DP8: ='VE2'!G321 -> 0.006666666667 | DQ8: =TSS!G321 -> 0 | DR8: ='VE2'!H321 -> 0.5 | DS8: =TSS!H321 -> 0
B9: Horizontal Tee | C9: ='VE2'!B85 -> 2 | E9: ='VE2'!T85 -> 8 | F9: =TSS!T85 -> 6 | G9: ='VE2'!U85 -> 110.2 | H9: =TSS!U85 -> 68.4 | I9: ='VE2'!V85 -> 854.05 | J9: =TSS!V85 -> 530.1 | K9: ='VE2'!K85 -> 29 | L9: =TSS!K85 -> 18 | M9: Horizontal Tee | N9: ='VE2'!W85 -> 20 | O9: =TSS!W85 -> 15 | P9: ='VE2'!X85 -> 2 | Q9: =TSS!X85 -> 1.5 | R9: ='VE2'!AN85 -> 0.8 | S9: =TSS!AN85 -> 0.3 | T9: =N9*ProjectData!$C$16 -> 1500 | U9: =O9*ProjectData!$C$16 -> 1125 | V9: =P9*ProjectData!$C$15 -> 150 | W9: =Q9*ProjectData!$C$15 -> 112.5 | X9: =R9*ProjectData!$C$14 -> 60 | Y9: =S9*ProjectData!$C$14 -> 22.5 | AA9: ='VE2'!AB85 -> 9 | AB9: =TSS!AB85 -> 6 | AC9: ='VE2'!AD85 -> 0 | AD9: =TSS!AD85 -> 0 | AE9: ='VE2'!Z85 -> 6 | AF9: =TSS!Z85 -> 0 | AG9: ='VE2'!G265 -> 132 | AH9: =TSS!G265 -> 24 | AQ9: ='VE2'!AL110 -> 0 | AR9: =TSS!AL110 -> 0 | AS9: ='VE2'!AM110 -> 0 | AT9: =TSS!AM110 -> 0 | AU9: ='VE2'!AK110 -> 0 | AV9: =TSS!AK110 -> 0 | BG9: ='VE2'!H265 -> 0.8 | BH9: =TSS!H265 -> 0.3 | BJ9: ='VE2'!I265 -> 60 | BK9: =TSS!I265 -> 22.5 | BM9: ='VE2'!O265 -> 0 | BN9: =TSS!O265 -> 0 | BO9: ='VE2'!P265 -> 0 | BP9: =TSS!P265 -> 0 | BQ9: ='VE2'!M265 -> 0 | BR9: =TSS!M265 -> 0 | BS9: ='VE2'!N265 -> 0 | BT9: =TSS!N265 -> 0 | BU9: ='VE2'!R265 -> 0 | BV9: =TSS!R265 -> 0 | BW9: ='VE2'!T265 -> 0 | BX9: =TSS!T265 -> 0 | BZ9: Chart | CO9: ='VE2'!D284 -> 20 | CP9: =TSS!D284 -> 0 | CQ9: ='VE2'!E284 -> 32 | CR9: =TSS!E284 -> 15 | CS9: ='VE2'!F284 -> 32 | CT9: =TSS!F284 -> 12 | CU9: ='VE2'!G284 -> 32 | CV9: =TSS!G284 -> 48 | CW9: ='VE2'!D303 -> 76 | CX9: =TSS!D303 -> 0 | CY9: ='VE2'!F303 -> 6.72 | CZ9: =TSS!F303 -> 3.15 | DA9: ='VE2'!H303 -> 456 | DB9: =TSS!H303 -> 0 | DC9: ='VE2'!I303 -> 80.64 | DD9: =TSS!I303 -> 37.8 | DE9: ='VE2'!H284 -> 0.9333333333 | DF9: =TSS!H284 -> 0.2 | DG9: ='VE2'!I284 -> 70 | DH9: =TSS!I284 -> 15 | DJ9: ='VE2'!D322 -> 9 | DK9: =TSS!D322 -> 0 | DL9: ='VE2'!E322 -> 0 | DM9: =TSS!E322 -> 0 | DN9: ='VE2'!F322 -> 36 | DO9: =TSS!F322 -> 0 | DP9: ='VE2'!G322 -> 0.005 | DQ9: =TSS!G322 -> 0 | DR9: ='VE2'!H322 -> 0.375 | DS9: =TSS!H322 -> 0
B10: Horizontal Cross | C10: ='VE2'!B110 -> 0 | E10: ='VE2'!T110 -> 0 | F10: =TSS!T110 -> 0 | G10: ='VE2'!U110 -> 0 | H10: =TSS!U110 -> 0 | I10: ='VE2'!V110 -> 0 | J10: =TSS!V110 -> 0 | K10: ='VE2'!L110 -> 0 | L10: =TSS!L110 -> 0 | M10: Horizontal Cross | N10: ='VE2'!W110 -> 0 | O10: =TSS!W110 -> 0 | P10: ='VE2'!X110 -> 0 | Q10: =TSS!X110 -> 0 | R10: ='VE2'!AN110 -> 0 | S10: =TSS!AN110 -> 0 | T10: =N10*ProjectData!$C$16 -> 0 | U10: =O10*ProjectData!$C$16 -> 0 | V10: =P10*ProjectData!$C$15 -> 0 | W10: =Q10*ProjectData!$C$15 -> 0 | X10: =R10*ProjectData!$C$14 -> 0 | Y10: =S10*ProjectData!$C$14 -> 0 | AA10: ='VE2'!AB110 -> 0 | AB10: =TSS!AB110 -> 0 | AC10: ='VE2'!AD110 -> 0 | AD10: =TSS!AD110 -> 0 | AE10: ='VE2'!Z110 -> 0 | AF10: =TSS!Z110 -> 0 | AG10: ='VE2'!G266 -> 0 | AH10: =TSS!G266 -> 0 | AQ10: ='VE2'!AL135 -> 0.4 | AR10: =TSS!AL135 -> 0.2 | AS10: ='VE2'!AM135 -> 0 | AT10: =TSS!AM135 -> 0 | AU10: ='VE2'!AK135 -> 1 | AV10: =TSS!AK135 -> 0.2 | BG10: ='VE2'!H266 -> 0 | BH10: =TSS!H266 -> 0 | BJ10: ='VE2'!I266 -> 0 | BK10: =TSS!I266 -> 0 | BM10: ='VE2'!O266 -> 0 | BN10: =TSS!O266 -> 0 | BO10: ='VE2'!P266 -> 0 | BP10: =TSS!P266 -> 0 | BQ10: ='VE2'!M266 -> 0 | BR10: =TSS!M266 -> 0 | BS10: ='VE2'!N266 -> 0 | BT10: =TSS!N266 -> 0 | BU10: ='VE2'!R266 -> 0 | BV10: =TSS!R266 -> 0 | BW10: ='VE2'!T266 -> 0 | BX10: =TSS!T266 -> 0 | BZ10: HADJ & VADJ ADJUSTABLE SPLICES | CO10: ='VE2'!D285 -> 0 | CP10: =TSS!D285 -> 0 | CQ10: ='VE2'!E285 -> 0 | CR10: =TSS!E285 -> 0 | CS10: ='VE2'!F285 -> 0 | CT10: =TSS!F285 -> 0 | CU10: ='VE2'!G285 -> 0 | CV10: =TSS!G285 -> 0 | CW10: ='VE2'!D304 -> 0 | CX10: =TSS!D304 -> 0 | CY10: ='VE2'!F304 -> 0 | CZ10: =TSS!F304 -> 0 | DA10: ='VE2'!H304 -> 0 | DB10: =TSS!H304 -> 0 | DC10: ='VE2'!I304 -> 0 | DD10: =TSS!I304 -> 0 | DE10: ='VE2'!H285 -> 0 | DF10: =TSS!H285 -> 0 | DG10: ='VE2'!I285 -> 0 | DH10: =TSS!I285 -> 0 | DJ10: ='VE2'!D323 -> 0 | DK10: =TSS!D323 -> 0 | DL10: ='VE2'!E323 -> 0 | DM10: =TSS!E323 -> 0 | DN10: ='VE2'!F323 -> 0 | DO10: =TSS!F323 -> 0 | DP10: ='VE2'!G323 -> 0 | DQ10: =TSS!G323 -> 0 | DR10: ='VE2'!H323 -> 0 | DS10: =TSS!H323 -> 0
B11: Vertical Inside Elbow | C11: ='VE2'!B135 -> 6 | E11: ='VE2'!T135 -> 12 | F11: =TSS!T135 -> 6 | G11: ='VE2'!U135 -> 144.4 | H11: =TSS!U135 -> 49.4 | I11: ='VE2'!V135 -> 252.7 | J11: =TSS!V135 -> 86.45 | K11: ='VE2'!I135 -> 38 | L11: =TSS!I135 -> 13 | M11: Vertical Inside Elbow | N11: ='VE2'!W135 -> 18 | O11: =TSS!W135 -> 9 | P11: ='VE2'!X135 -> 3 | Q11: =TSS!X135 -> 1.5 | R11: ='VE2'!AN135 -> 1.4 | S11: =TSS!AN135 -> 0.4 | T11: =N11*ProjectData!$C$16 -> 1350 | U11: =O11*ProjectData!$C$16 -> 675 | V11: =P11*ProjectData!$C$15 -> 225 | W11: =Q11*ProjectData!$C$15 -> 112.5 | X11: =R11*ProjectData!$C$14 -> 105 | Y11: =S11*ProjectData!$C$14 -> 30 | AA11: ='VE2'!AB135 -> 12 | AB11: =TSS!AB135 -> 6 | AC11: ='VE2'!AD135 -> 0 | AD11: =TSS!AD135 -> 0 | AE11: ='VE2'!Z135 -> 12 | AF11: =TSS!Z135 -> 0 | AG11: ='VE2'!G267 -> 240 | AH11: =TSS!G267 -> 24 | AQ11: ='VE2'!AL160 -> 0.4 | AR11: =TSS!AL160 -> 0.2 | AS11: ='VE2'!AM160 -> 0 | AT11: =TSS!AM160 -> 0 | AU11: ='VE2'!AK160 -> 1 | AV11: =TSS!AK160 -> 0.2 | BG11: ='VE2'!H267 -> 1.4 | BH11: =TSS!H267 -> 0.4 | BJ11: ='VE2'!I267 -> 105 | BK11: =TSS!I267 -> 30 | BM11: ='VE2'!O267 -> 0 | BN11: =TSS!O267 -> 0 | BO11: ='VE2'!P267 -> 0 | BP11: =TSS!P267 -> 0 | BQ11: ='VE2'!M267 -> 0 | BR11: =TSS!M267 -> 0 | BS11: ='VE2'!N267 -> 0 | BT11: =TSS!N267 -> 0 | BU11: ='VE2'!R267 -> 0 | BV11: =TSS!R267 -> 0 | BW11: ='VE2'!T267 -> 0 | BX11: =TSS!T267 -> 0 | BZ11: SUPPORT QTY (ea) | CB11: SUPPORT WEIGHT (lbs) | CD11: SUPPORT COST (usd) | CF11: CLAMP QTY (prs) | CH11: HARDWARE (pcs) | CJ11: INSTALLATION TIME (hrs) | CL11: INSTALLATION COST (usd) | CO11: ='VE2'!D286 -> 26 | CP11: =TSS!D286 -> 0 | CQ11: ='VE2'!E286 -> 48 | CR11: =TSS!E286 -> 15 | CS11: ='VE2'!F286 -> 48 | CT11: =TSS!F286 -> 12 | CU11: ='VE2'!G286 -> 48 | CV11: =TSS!G286 -> 48 | CW11: ='VE2'!D305 -> 98.8 | CX11: =TSS!D305 -> 0 | CY11: ='VE2'!F305 -> 10.08 | CZ11: =TSS!F305 -> 3.15 | DA11: ='VE2'!H305 -> 592.8 | DB11: =TSS!H305 -> 0 | DC11: ='VE2'!I305 -> 120.96 | DD11: =TSS!I305 -> 37.8 | DE11: ='VE2'!H286 -> 1.4 | DF11: =TSS!H286 -> 0.2 | DG11: ='VE2'!I286 -> 105 | DH11: =TSS!I286 -> 15 | DJ11: ='VE2'!D324 -> 12 | DK11: =TSS!D324 -> 0 | DL11: ='VE2'!E324 -> 0 | DM11: =TSS!E324 -> 0 | DN11: ='VE2'!F324 -> 48 | DO11: =TSS!F324 -> 0 | DP11: ='VE2'!G324 -> 0.006666666667 | DQ11: =TSS!G324 -> 0 | DR11: ='VE2'!H324 -> 0.5 | DS11: =TSS!H324 -> 0
B12: Vertical Outside Elbow | C12: ='VE2'!B160 -> 6 | E12: ='VE2'!T160 -> 12 | F12: =TSS!T160 -> 6 | G12: ='VE2'!U160 -> 173.28 | H12: =TSS!U160 -> 49.4 | I12: ='VE2'!V160 -> 303.24 | J12: =TSS!V160 -> 86.45 | K12: ='VE2'!I160 -> 45.6 | L12: =TSS!I160 -> 13 | M12: Vertical Outside Elbow | N12: ='VE2'!W160 -> 18 | O12: =TSS!W160 -> 9 | P12: ='VE2'!X160 -> 3 | Q12: =TSS!X160 -> 1.5 | R12: ='VE2'!AN160 -> 1.4 | S12: =TSS!AN160 -> 0.4 | T12: =N12*ProjectData!$C$16 -> 1350 | U12: =O12*ProjectData!$C$16 -> 675 | V12: =P12*ProjectData!$C$15 -> 225 | W12: =Q12*ProjectData!$C$15 -> 112.5 | X12: =R12*ProjectData!$C$14 -> 105 | Y12: =S12*ProjectData!$C$14 -> 30 | AA12: ='VE2'!AB160 -> 12 | AB12: =TSS!AB160 -> 6 | AC12: ='VE2'!AD160 -> 0 | AD12: =TSS!AD160 -> 0 | AE12: ='VE2'!Z160 -> 12 | AF12: =TSS!Z160 -> 0 | AG12: ='VE2'!G268 -> 240 | AH12: =TSS!G268 -> 24 | AQ12: ='VE2'!AL171 -> 0 | AR12: =TSS!AL171 -> 0 | AS12: ='VE2'!AM171 -> 0 | AT12: =TSS!AM171 -> 0 | AU12: ='VE2'!AK171 -> 0 | AV12: =TSS!AK171 -> 0 | BG12: ='VE2'!H268 -> 1.4 | BH12: =TSS!H268 -> 0.4 | BJ12: ='VE2'!I268 -> 105 | BK12: =TSS!I268 -> 30 | BM12: ='VE2'!O268 -> 0 | BN12: =TSS!O268 -> 0 | BO12: ='VE2'!P268 -> 0 | BP12: =TSS!P268 -> 0 | BQ12: ='VE2'!M268 -> 0 | BR12: =TSS!M268 -> 0 | BS12: ='VE2'!N268 -> 0 | BT12: =TSS!N268 -> 0 | BU12: ='VE2'!R268 -> 0 | BV12: =TSS!R268 -> 0 | BW12: ='VE2'!T268 -> 0 | BX12: =TSS!T268 -> 0 | BZ12: NEMA | CA12: TSS | CB12: NEMA | CC12: TSS | CD12: NEMA | CE12: TSS | CF12: NEMA | CG12: TSS | CH12: NEMA | CI12: TSS | CJ12: NEMA | CK12: TSS | CL12: NEMA | CM12: TSS | CO12: ='VE2'!D287 -> 26 | CP12: =TSS!D287 -> 0 | CQ12: ='VE2'!E287 -> 48 | CR12: =TSS!E287 -> 15 | CS12: ='VE2'!F287 -> 48 | CT12: =TSS!F287 -> 12 | CU12: ='VE2'!G287 -> 48 | CV12: =TSS!G287 -> 48 | CW12: ='VE2'!D306 -> 98.8 | CX12: =TSS!D306 -> 0 | CY12: ='VE2'!F306 -> 10.08 | CZ12: =TSS!F306 -> 3.15 | DA12: ='VE2'!H306 -> 592.8 | DB12: =TSS!H306 -> 0 | DC12: ='VE2'!I306 -> 120.96 | DD12: =TSS!I306 -> 37.8 | DE12: ='VE2'!H287 -> 1.4 | DF12: =TSS!H287 -> 0.2 | DG12: ='VE2'!I287 -> 105 | DH12: =TSS!I287 -> 15 | DJ12: ='VE2'!D325 -> 12 | DK12: =TSS!D325 -> 0 | DL12: ='VE2'!E325 -> 0 | DM12: =TSS!E325 -> 0 | DN12: ='VE2'!F325 -> 48 | DO12: =TSS!F325 -> 0 | DP12: ='VE2'!G325 -> 0.006666666667 | DQ12: =TSS!G325 -> 0 | DR12: ='VE2'!H325 -> 0.5 | DS12: =TSS!H325 -> 0
B13: 4" Expansion Joint | C13: ='VE2'!B171 -> 0 | E13: ='VE2'!T171 -> 0 | F13: =TSS!T171 -> 0 | G13: ='VE2'!U171 -> 0 | H13: =TSS!U171 -> 0 | I13: ='VE2'!V171 -> 0 | J13: =TSS!V171 -> 0 | K13: ='VE2'!I171 -> 0 | L13: =TSS!I171 -> 0 | M13: 4" Expansion Joint | N13: ='VE2'!W171 -> 0 | O13: =TSS!W171 -> 0 | P13: ='VE2'!X171 -> 0 | Q13: =TSS!X171 -> 0 | R13: ='VE2'!AN171 -> 0 | S13: =TSS!AN171 -> 0 | T13: =N13*ProjectData!$C$16 -> 0 | U13: =O13*ProjectData!$C$16 -> 0 | V13: =P13*ProjectData!$C$15 -> 0 | W13: =Q13*ProjectData!$C$15 -> 0 | X13: =R13*ProjectData!$C$14 -> 0 | Y13: =S13*ProjectData!$C$14 -> 0 | AA13: ='VE2'!AB171 -> 0 | AB13: =TSS!AB171 -> 0 | AC13: ='VE2'!AD171 -> 0 | AD13: =TSS!AD171 -> 0 | AE13: ='VE2'!Z171 -> 0 | AF13: =TSS!Z171 -> 0 | AG13: ='VE2'!G269 -> 0 | AH13: =TSS!G269 -> 0 | AQ13: ='VE2'!AL182 -> 0 | AR13: =TSS!AL182 -> 0 | AS13: ='VE2'!AM182 -> 1 | AT13: =TSS!AM182 -> 0 | AU13: ='VE2'!AK182 -> 1.5 | AV13: =TSS!AK182 -> 0.2666666667 | BG13: ='VE2'!H269 -> 0 | BH13: =TSS!H269 -> 0 | BJ13: ='VE2'!I269 -> 0 | BK13: =TSS!I269 -> 0 | BM13: ='VE2'!O269 -> 0 | BN13: =TSS!O269 -> 0 | BO13: ='VE2'!P269 -> 0 | BP13: =TSS!P269 -> 0 | BQ13: ='VE2'!M269 -> 0 | BR13: =TSS!M269 -> 0 | BS13: ='VE2'!N269 -> 0 | BT13: =TSS!N269 -> 0 | BU13: ='VE2'!R269 -> 0 | BV13: =TSS!R269 -> 0 | BW13: ='VE2'!T269 -> 0 | BX13: =TSS!T269 -> 0 | BZ13: ='VE2'!L289 -> 0 | CA13: =TSS!L289 -> 0 | CB13: ='VE2'!M289 -> 0 | CC13: =TSS!M289 -> 0 | CD13: ='VE2'!P289 -> 0 | CE13: =TSS!P289 -> 0 | CF13: ='VE2'!Q289 -> 0 | CG13: =TSS!Q289 -> 0 | CH13: ='VE2'!R289 -> 0 | CI13: =TSS!R289 -> 0 | CJ13: ='VE2'!T289 -> 0 | CK13: =TSS!T289 -> 0 | CL13: ='VE2'!U289 -> 0 | CM13: =TSS!U289 -> 0 | CO13: ='VE2'!D288 -> 0 | CP13: =TSS!D288 -> 0 | CQ13: ='VE2'!E288 -> 0 | CR13: =TSS!E288 -> 0 | CS13: ='VE2'!F288 -> 0 | CT13: =TSS!F288 -> 0 | CU13: ='VE2'!G288 -> 0 | CV13: =TSS!G288 -> 0 | CW13: ='VE2'!D307 -> 0 | CX13: =TSS!D307 -> 0 | CY13: ='VE2'!F307 -> 0 | CZ13: =TSS!F307 -> 0 | DA13: ='VE2'!H307 -> 0 | DB13: =TSS!H307 -> 0 | DC13: ='VE2'!I307 -> 0 | DD13: =TSS!I307 -> 0 | DE13: ='VE2'!H288 -> 0 | DF13: =TSS!H288 -> 0 | DG13: ='VE2'!I288 -> 0 | DH13: =TSS!I288 -> 0 | DJ13: ='VE2'!D326 -> 0 | DK13: =TSS!D326 -> 0 | DL13: ='VE2'!E326 -> 0 | DM13: =TSS!E326 -> 0 | DN13: ='VE2'!F326 -> 0 | DO13: =TSS!F326 -> 0 | DP13: ='VE2'!G326 -> 0 | DQ13: =TSS!G326 -> 0 | DR13: ='VE2'!H326 -> 0 | DS13: =TSS!H326 -> 0
B14: 6" Expansion Joint | C14: ='VE2'!B182 -> 15 | E14: ='VE2'!T182 -> 30 | F14: =TSS!T182 -> 0 | G14: ='VE2'!U182 -> 361 | H14: =TSS!U182 -> 0 | I14: ='VE2'!V182 -> 2797.75 | J14: =TSS!V182 -> 0 | K14: ='VE2'!I182 -> 95 | L14: =TSS!I182 -> 0 | M14: 6" Expansion Joint | N14: ='VE2'!W182 -> 15 | O14: =TSS!W182 -> 0 | P14: ='VE2'!X182 -> 7.5 | Q14: =TSS!X182 -> 0 | R14: ='VE2'!AN182 -> 2.5 | S14: =TSS!AN182 -> 0.2666666667 | T14: =N14*ProjectData!$C$16 -> 1125 | U14: =O14*ProjectData!$C$16 -> 0 | V14: =P14*ProjectData!$C$15 -> 562.5 | W14: =Q14*ProjectData!$C$15 -> 0 | X14: =R14*ProjectData!$C$14 -> 187.5 | Y14: =S14*ProjectData!$C$14 -> 20 | AA14: ='VE2'!AB182 -> 0 | AB14: =TSS!AB182 -> 0 | AC14: ='VE2'!AD182 -> 30 | AD14: =TSS!AD182 -> 0 | AE14: ='VE2'!Z182 -> 15 | AF14: =TSS!Z182 -> 15 | AG14: ='VE2'!G270 -> 360 | AH14: =TSS!G270 -> 60 | AQ14: ='VE2'!AL187 -> 0 | AR14: =TSS!AL187 -> 0 | AS14: ='VE2'!AM187 -> 0 | AT14: =TSS!AM187 -> 0 | AU14: ='VE2'!AK187 -> 0 | AV14: =TSS!AK187 -> 0 | BG14: ='VE2'!H270 -> 2.5 | BH14: =TSS!H270 -> 0.2666666667 | BJ14: ='VE2'!I270 -> 187.5 | BK14: =TSS!I270 -> 20 | BM14: ='VE2'!O270 -> 0 | BN14: =TSS!O270 -> 0 | BO14: ='VE2'!P270 -> 0 | BP14: =TSS!P270 -> 0 | BQ14: ='VE2'!M270 -> 0 | BR14: =TSS!M270 -> 0 | BS14: ='VE2'!N270 -> 0 | BT14: =TSS!N270 -> 0 | BU14: ='VE2'!R270 -> 0 | BV14: =TSS!R270 -> 0 | BW14: ='VE2'!T270 -> 0 | BX14: =TSS!T270 -> 0 | CO14: ='VE2'!D289 -> 65 | CP14: =TSS!D289 -> 0 | CQ14: ='VE2'!E289 -> 120 | CR14: =TSS!E289 -> 0 | CS14: ='VE2'!F289 -> 120 | CT14: =TSS!F289 -> 0 | CU14: ='VE2'!G289 -> 120 | CV14: =TSS!G289 -> 0 | CW14: ='VE2'!D308 -> 247 | CX14: =TSS!D308 -> 0 | CY14: ='VE2'!F308 -> 25.2 | CZ14: =TSS!F308 -> 0 | DA14: ='VE2'!H308 -> 1482 | DB14: =TSS!H308 -> 0 | DC14: ='VE2'!I308 -> 302.4 | DD14: =TSS!I308 -> 0 | DE14: ='VE2'!H289 -> 3.5 | DF14: =TSS!H289 -> 0 | DG14: ='VE2'!I289 -> 262.5 | DH14: =TSS!I289 -> 0 | DJ14: ='VE2'!D327 -> 0 | DK14: =TSS!D327 -> 0 | DL14: ='VE2'!E327 -> 30 | DM14: =TSS!E327 -> 0 | DN14: ='VE2'!F327 -> 120 | DO14: =TSS!F327 -> 0 | DP14: ='VE2'!G327 -> 0.01666666667 | DQ14: =TSS!G327 -> 0 | DR14: ='VE2'!H327 -> 1.25 | DS14: =TSS!H327 -> 0
B15: HADJ Adjustable Splice | C15: ='VE2'!B187 -> 0 | E15: ='VE2'!T187 -> 0 | F15: =TSS!T187 -> 0 | G15: ='VE2'!U187 -> 0 | H15: =TSS!U187 -> 0 | I15: ='VE2'!V187 -> 0 | J15: =TSS!V187 -> 0 | K15: ='VE2'!J187 -> 0 | L15: =TSS!J187 -> 0 | M15: HADJ Adjustable Splice | N15: ='VE2'!W187 -> 0 | O15: =TSS!W187 -> 0 | P15: ='VE2'!X187 -> 0 | Q15: =TSS!X187 -> 0 | R15: ='VE2'!AN187 -> 0 | S15: =TSS!AN187 -> 0 | T15: =N15*ProjectData!$C$16 -> 0 | U15: =O15*ProjectData!$C$16 -> 0 | V15: =P15*ProjectData!$C$15 -> 0 | W15: =Q15*ProjectData!$C$15 -> 0 | X15: =R15*ProjectData!$C$14 -> 0 | Y15: =S15*ProjectData!$C$14 -> 0 | AA15: ='VE2'!AB187 -> 0 | AB15: =TSS!AB187 -> 0 | AC15: ='VE2'!AD187 -> 0 | AD15: =TSS!AD187 -> 0 | AE15: ='VE2'!Z187 -> 0 | AF15: =TSS!Z187 -> 0 | AG15: ='VE2'!G271 -> 0 | AH15: =TSS!G271 -> 0 | AQ15: ='VE2'!AL192 -> 0 | AR15: =TSS!AL192 -> 0 | AS15: ='VE2'!AM192 -> 0 | AT15: =TSS!AM192 -> 0 | AU15: ='VE2'!AK192 -> 0 | AV15: =TSS!AK192 -> 0 | BG15: ='VE2'!H271 -> 0 | BH15: =TSS!H271 -> 0 | BJ15: ='VE2'!I271 -> 0 | BK15: =TSS!I271 -> 0 | BM15: ='VE2'!O271 -> 0 | BN15: =TSS!O271 -> 0 | BO15: ='VE2'!P271 -> 0 | BP15: =TSS!P271 -> 0 | BQ15: ='VE2'!M271 -> 0 | BR15: =TSS!M271 -> 0 | BS15: ='VE2'!N271 -> 0 | BT15: =TSS!N271 -> 0 | BU15: ='VE2'!R271 -> 0 | BV15: =TSS!R271 -> 0 | BW15: ='VE2'!T271 -> 0 | BX15: =TSS!T271 -> 0 | CA15: =TSS!O250 -> No QTY | CC15: =TSS!O251 -> No QTY | CE15: =TSS!O252 -> No QTY | CG15: =TSS!O253 -> No QTY | CI15: =TSS!O254 -> No QTY | CK15: =TSS!O255 -> No QTY | CM15: =TSS!O256 -> No QTY | CO15: ='VE2'!D290 -> 0 | CP15: =TSS!D290 -> 0 | CQ15: ='VE2'!E290 -> 0 | CR15: =TSS!E290 -> 0 | CS15: ='VE2'!F290 -> 0 | CT15: =TSS!F290 -> 0 | CU15: ='VE2'!G290 -> 0 | CV15: =TSS!G290 -> 0 | CW15: ='VE2'!D309 -> 0 | CX15: =TSS!D309 -> 0 | CY15: ='VE2'!F309 -> 0 | CZ15: =TSS!F309 -> 0 | DA15: ='VE2'!H309 -> 0 | DB15: =TSS!H309 -> 0 | DC15: ='VE2'!I309 -> 0 | DD15: =TSS!I309 -> 0 | DE15: ='VE2'!H290 -> 0 | DF15: =TSS!H290 -> 0 | DG15: ='VE2'!I290 -> 0 | DH15: =TSS!I290 -> 0 | DJ15: ='VE2'!D328 -> 0 | DK15: =TSS!D328 -> 0 | DL15: ='VE2'!E328 -> 0 | DM15: =TSS!E328 -> 0 | DN15: ='VE2'!F328 -> 0 | DO15: =TSS!F328 -> 0 | DP15: ='VE2'!G328 -> 0 | DQ15: =TSS!G328 -> 0 | DR15: ='VE2'!H328 -> 0 | DS15: =TSS!H328 -> 0
B16: VADJ Adjustable Splice | C16: ='VE2'!B192 -> 0 | E16: ='VE2'!T192 -> 0 | F16: =TSS!T192 -> 0 | G16: ='VE2'!U192 -> 0 | H16: =TSS!U192 -> 0 | I16: ='VE2'!V192 -> 0 | J16: =TSS!V192 -> 0 | K16: ='VE2'!J192 -> 0 | L16: =TSS!J192 -> 0 | M16: VADJ Adjustable Splice | N16: ='VE2'!W192 -> 0 | O16: =TSS!W192 -> 0 | P16: ='VE2'!X192 -> 0 | Q16: =TSS!X192 -> 0 | R16: ='VE2'!AN192 -> 0 | S16: =TSS!AN192 -> 0 | T16: =N16*ProjectData!$C$16 -> 0 | U16: =O16*ProjectData!$C$16 -> 0 | V16: =P16*ProjectData!$C$15 -> 0 | W16: =Q16*ProjectData!$C$15 -> 0 | X16: =R16*ProjectData!$C$14 -> 0 | Y16: =S16*ProjectData!$C$14 -> 0 | AA16: ='VE2'!AB192 -> 0 | AB16: =TSS!AB192 -> 0 | AC16: ='VE2'!AD192 -> 0 | AD16: =TSS!AD192 -> 0 | AE16: ='VE2'!Z192 -> 0 | AF16: =TSS!Z192 -> 0 | AG16: ='VE2'!G272 -> 0 | AH16: =TSS!G272 -> 0 | AQ16: ='VE2'!AL197 -> 0 | AR16: =TSS!AL197 -> 0 | AS16: ='VE2'!AM197 -> 0 | AT16: =TSS!AM197 -> 0 | AU16: ='VE2'!AK197 -> 0 | AV16: =TSS!AK197 -> 0 | BG16: ='VE2'!H272 -> 0 | BH16: =TSS!H272 -> 0 | BJ16: ='VE2'!I272 -> 0 | BK16: =TSS!I272 -> 0 | BM16: ='VE2'!O272 -> 0 | BN16: =TSS!O272 -> 0 | BO16: ='VE2'!P272 -> 0 | BP16: =TSS!P272 -> 0 | BQ16: ='VE2'!M272 -> 0 | BR16: =TSS!M272 -> 0 | BS16: ='VE2'!N272 -> 0 | BT16: =TSS!N272 -> 0 | BU16: ='VE2'!R272 -> 0 | BV16: =TSS!R272 -> 0 | BW16: ='VE2'!T272 -> 0 | BX16: =TSS!T272 -> 0 | CO16: ='VE2'!D291 -> 0 | CP16: =TSS!D291 -> 0 | CQ16: ='VE2'!E291 -> 0 | CR16: =TSS!E291 -> 0 | CS16: ='VE2'!F291 -> 0 | CT16: =TSS!F291 -> 0 | CU16: ='VE2'!G291 -> 0 | CV16: =TSS!G291 -> 0 | CW16: ='VE2'!D310 -> 0 | CX16: =TSS!D310 -> 0 | CY16: ='VE2'!F310 -> 0 | CZ16: =TSS!F310 -> 0 | DA16: ='VE2'!H310 -> 0 | DB16: =TSS!H310 -> 0 | DC16: ='VE2'!I310 -> 0 | DD16: =TSS!I310 -> 0 | DE16: ='VE2'!H291 -> 0 | DF16: =TSS!H291 -> 0 | DG16: ='VE2'!I291 -> 0 | DH16: =TSS!I291 -> 0 | DJ16: ='VE2'!D329 -> 0 | DK16: =TSS!D329 -> 0 | DL16: ='VE2'!E329 -> 0 | DM16: =TSS!E329 -> 0 | DN16: ='VE2'!F329 -> 0 | DO16: =TSS!F329 -> 0 | DP16: ='VE2'!G329 -> 0 | DQ16: =TSS!G329 -> 0 | DR16: ='VE2'!H329 -> 0 | DS16: =TSS!H329 -> 0
B17: Reducers | C17: ='VE2'!B197 -> 0 | E17: ='VE2'!T197 -> 0 | F17: =TSS!T197 -> 0 | G17: ='VE2'!U197 -> 0 | H17: =TSS!U197 -> 0 | I17: ='VE2'!V197 -> 0 | J17: =TSS!V197 -> 0 | K17: ='VE2'!J197 -> 0 | L17: =TSS!J197 -> 0 | M17: Reducers | N17: ='VE2'!W197 -> 0 | O17: =TSS!W197 -> 0 | P17: ='VE2'!X197 -> 0 | Q17: =TSS!X197 -> 0 | R17: ='VE2'!AN197 -> 0 | S17: =TSS!AN197 -> 0 | T17: =N17*ProjectData!$C$16 -> 0 | U17: =O17*ProjectData!$C$16 -> 0 | V17: =P17*ProjectData!$C$15 -> 0 | W17: =Q17*ProjectData!$C$15 -> 0 | X17: =R17*ProjectData!$C$14 -> 0 | Y17: =S17*ProjectData!$C$14 -> 0 | AA17: ='VE2'!AB197 -> 0 | AB17: =TSS!AB197 -> 0 | AC17: ='VE2'!AD197 -> 0 | AD17: =TSS!AD197 -> 0 | AE17: ='VE2'!Z197 -> 0 | AF17: =TSS!Z197 -> 0 | AG17: ='VE2'!G273 -> 0 | AH17: =TSS!G273 -> 0 | BG17: ='VE2'!H273 -> 0 | BH17: =TSS!H273 -> 0 | BJ17: ='VE2'!I273 -> 0 | BK17: =TSS!I273 -> 0 | BM17: ='VE2'!O273 -> 0 | BN17: =TSS!O273 -> 0 | BO17: ='VE2'!P273 -> 0 | BP17: =TSS!P273 -> 0 | BQ17: ='VE2'!M273 -> 0 | BR17: =TSS!M273 -> 0 | BS17: ='VE2'!N273 -> 0 | BT17: =TSS!N273 -> 0 | BU17: ='VE2'!R273 -> 0 | BV17: =TSS!R273 -> 0 | BW17: ='VE2'!T273 -> 0 | BX17: =TSS!T273 -> 0 | CO17: ='VE2'!D292 -> 0 | CP17: =TSS!D292 -> 0 | CQ17: ='VE2'!E292 -> 0 | CR17: =TSS!E292 -> 0 | CS17: ='VE2'!F292 -> 0 | CT17: =TSS!F292 -> 0 | CU17: ='VE2'!G292 -> 0 | CV17: =TSS!G292 -> 0 | CW17: ='VE2'!D311 -> 0 | CX17: =TSS!D311 -> 0 | CY17: ='VE2'!F311 -> 0 | CZ17: =TSS!F311 -> 0 | DA17: ='VE2'!H311 -> 0 | DB17: =TSS!H311 -> 0 | DC17: ='VE2'!I311 -> 0 | DD17: =TSS!I311 -> 0 | DE17: ='VE2'!H292 -> 0 | DF17: =TSS!H292 -> 0 | DG17: ='VE2'!I292 -> 0 | DH17: =TSS!I292 -> 0 | DJ17: ='VE2'!D330 -> 0 | DK17: =TSS!D330 -> 0 | DL17: ='VE2'!E330 -> 0 | DM17: =TSS!E330 -> 0 | DN17: ='VE2'!F330 -> 0 | DO17: =TSS!F330 -> 0 | DP17: ='VE2'!G330 -> 0 | DQ17: =TSS!G330 -> 0 | DR17: ='VE2'!H330 -> 0 | DS17: =TSS!H330 -> 0
G19: Structure lbs | I19: Structure Cost | K19: Structure Linear Feet | N19: Structural Design | P19: Structural Installation | R19: Tray Installation | T19: Structural Design | V19: Structural Installation | X19: Tray Installation | AA19: Tray Accessories | AG19: Hardware | AI19: Tray Accessories | AO19: Hardware | AQ19: Tray Accessories | AR19: Chart | BG19: Chart | BJ19: Chart | BQ19: ACC | BS19: Hardware | BU19: Tray Installation | BW19: Tray Install Cost | BZ19: Chart | DJ19: Chart or special Note (index match based on input selection) Summary Sheet | EI19: Logistics
B20: Everything Else | C20: TOTALS: | E20: STRUCTURE | N20: SKILLED LABOR Hours | T20: SKILLED LABOR Cost | AA20: TRAY ACCESSORY QUANTITY | AI20: TRAY ACCESSORY Cost | AQ20: TRAY ACCESSORY INSTALLATION TIME (HRS) | BG20: TOTAL TRAY INSTALLATION TIME (HRS) | BJ20: TOTAL TRAY INSTALLATION COST (USD) | BM20: COVERS & COVER CLAMPS | BZ20: REDUCERS | CO20: STRUT TRAPEZE SUPPORT COSTS & INSTALLATION TIME | DJ20: STRUT TRAPEZE SUPPORT : TRAY CLAMPS & GUIDES | DU20: MATERIAL HANDLING QUANTITY | EB20: MATERIAL HANDLING COST (USD) | EI20: Name | EJ20: =ProjectData!H13 -> 40ft Flat Bed
E21: Support Quantity (PCS) | G21: Support Weight (LBS) | I21: Support Cost (USD) | K21: Support Linear Length (FT) | N21: Structural Engineer (HRS) | P21: Steel Erector (HRS) | R21: Tray Installer (HRS) | T21: Structural Engineer (HRS) | V21: Steel Erector (HRS) | X21: Tray Installer (HRS) | AA21: Clamp Quantity | AC21: Guide Quantity | AE21: Splice Quantity | AG21: Hardware Quantity | AI21: Clamp Cost | AK21: Guide Cost | AM21: Splice Cost | AO21: Hardware Cost | AQ21: Clamp Installation Time (HRS) | AS21: Guide Installation Time (HRS) | AU21: Splice/Link Installation Time (HRS) | BG21: All Tray Accessory Items | BJ21: All Tray Accessory Items | BM21: COVER WEIGHT (lbs) | BO21: COVER CLAMP WEIGHT (lbs) | BQ21: COVER CLAMP QTY (ea) | BS21: HARDWARE QTY (pcs) | BU21: INSTALLATION TIME (hrs) | BW21: INSTALLATION COST (usd) | BZ21: SUPPORT QTY (ea) | CB21: SUPPORT WEIGHT (lbs) | CD21: SUPPORT COST (usd) | CF21: CLAMP QTY (prs) | CH21: HARDWARE (pcs) | CJ21: INSTALLATION TIME (hrs) | CL21: INSTALLATION COST (usd) | CO21: STRUT QUANTITY (FT) | CQ21: ATR QUANTITY (FT) | CS21: FITTINGS QUANTITY (PCS) | CU21: HDWR QUANTITY (PCS) | CW21: STRUT WEIGHT (LBS) | CY21: ATR WEIGHT (LBS) | DA21: STRUT COST (USD) | DC21: ATR COST (USD) | DE21: INSTALLATION TIME (HRS) | DG21: INSTALLATION COST (USD) | DJ21: CLAMP QUANTITY (PRS) | DL21: GUIDE QUANTITY (PRS) | DN21: HDWR QUANTITY (PCS) | DP21: INSTALLATION TIME (HRS) | DR21: INSTALLATION COST (USD) | DU21: 30' Hot Shot Qty | DW21: 40' Flat Bed Qty | DY21: 40' Container Qty | EB21: 30' Hot Shot Cost | ED21: 40' Flat Bed Cost | EF21: 40' Container Cost | EI21: NEMA QTY | EJ21: =IF(EJ20="30ft Hot Shot",DU23,IF(EJ20="40ft Flat Bed",DW23,IF(EJ20="40ft Container",DY23,"N/A"))) -> 0.064429 | EK21: total amount of truck required for structure
E22: NEMA | F22: TSS | G22: NEMA | H22: TSS | I22: NEMA | J22: TSS | K22: NEMA | L22: TSS | N22: NEMA | O22: TSS | P22: NEMA | Q22: TSS | R22: NEMA | S22: TSS | T22: NEMA | U22: TSS | V22: NEMA | W22: TSS | X22: NEMA | Y22: TSS | AA22: NEMA | AB22: TSS | AC22: NEMA | AD22: TSS | AE22: NEMA | AF22: TSS | AG22: NEMA | AH22: TSS | AI22: NEMA | AJ22: TSS | AK22: NEMA | AL22: TSS | AM22: NEMA | AN22: TSS | AO22: NEMA | AP22: TSS | AQ22: NEMA | AR22: TSS | AS22: NEMA | AT22: TSS | AU22: NEMA | AV22: TSS | BG22: NEMA | BH22: TSS | BJ22: NEMA | BK22: TSS | BM22: NEMA | BN22: TSS | BO22: NEMA | BP22: TSS | BQ22: NEMA | BR22: TSS | BS22: NEMA | BT22: TSS | BU22: NEMA | BV22: TSS | BW22: NEMA | BX22: TSS | BZ22: NEMA | CA22: TSS | CB22: NEMA | CC22: TSS | CD22: NEMA | CE22: TSS | CF22: NEMA | CG22: TSS | CH22: NEMA | CI22: TSS | CJ22: NEMA | CK22: TSS | CL22: NEMA | CM22: TSS | CO22: NEMA | CP22: TSS | CQ22: NEMA | CR22: TSS | CS22: NEMA | CT22: TSS | CU22: NEMA | CV22: TSS | CW22: NEMA | CX22: TSS | CY22: NEMA | CZ22: TSS | DA22: NEMA | DB22: TSS | DC22: NEMA | DD22: TSS | DE22: NEMA | DF22: TSS | DG22: NEMA | DH22: TSS | DJ22: NEMA | DK22: TSS | DL22: NEMA | DM22: TSS | DN22: NEMA | DO22: TSS | DP22: NEMA | DQ22: TSS | DR22: NEMA | DS22: TSS | DU22: NEMA | DV22: TSS | DW22: NEMA | DX22: TSS | DY22: NEMA | DZ22: TSS | EB22: NEMA | EC22: TSS | ED22: NEMA | EE22: TSS | EF22: NEMA | EG22: TSS | EI22: TSS QTY | EJ22: =IF(EJ20="30ft Hot Shot",DV23,IF(EJ20="40ft Flat Bed",DX23,IF(EJ20="40ft Container",DZ23,"N/A"))) -> 0.030685
E23: ='VE2'!E210 -> 119 | F23: =TSS!E210 -> 71 | G23: ='VE2'!E212 -> 1288.58 | H23: =TSS!E212 -> 613.7 | I23: ='VE2'!E214 -> 8080.415 | J23: =TSS!E214 -> 4163.375 | K23: ='VE2'!E213 -> 339.1 | L23: =TSS!E213 -> 161.5 | N23: ='VE2'!E216 -> 100.25 | O23: =TSS!E216 -> 56.25 | P23: ='VE2'!E220 -> 29.75 | Q23: =TSS!E220 -> 17.75 | R23: ='VE2'!E242 -> 12.58316667 | S23: =TSS!E242 -> 4.25 | T23: ='VE2'!E218 -> 7518.75 | U23: =TSS!E218 -> 4218.75 | V23: ='VE2'!E221 -> 2231.25 | W23: =TSS!E221 -> 1331.25 | X23: ='VE2'!E244 -> 943.7375 | Y23: =TSS!E244 -> 318.75 | AA23: ='VE2'!E228 -> 59.9985 | AB23: =TSS!E228 -> 42 | AC23: ='VE2'!E234 -> 64.9965 | AD23: =TSS!E234 -> 36 | AE23: ='VE2'!E222 -> 98 | AF23: =TSS!E222 -> 15 | AG23: ='VE2'!E240 -> 2071.994 | AH23: =TSS!E240 -> 552 | AI23: ='VE2'!E229 -> 299.9925 | AJ23: =TSS!E229 -> 252 | AK23: ='VE2'!E235 -> 324.9825 | AL23: =TSS!E235 -> 216 | AO23: ='VE2'!E241 -> 1805.9925 | AP23: =TSS!E241 -> 1020 | AQ23: ='VE2'!E232 -> 1.99995 | AR23: =TSS!E232 -> 1.4 | AS23: ='VE2'!E238 -> 2.16655 | AT23: =TSS!E238 -> 1.2 | AU23: ='VE2'!E226 -> 8.416666667 | AV23: =TSS!E226 -> 1.65 | BG23: ='VE2'!E242 -> 12.58316667 | BH23: =TSS!E242 -> 4.25 | BJ23: ='VE2'!E244 -> 943.7375 | BK23: =TSS!E244 -> 318.75 | BM23: ='VE2'!O275 -> 0 | BN23: =TSS!O275 -> 0 | BO23: ='VE2'!P275 -> 0 | BP23: =TSS!P275 -> 0 | BQ23: ='VE2'!M275 -> 0 | BR23: =TSS!M275 -> 0 | BS23: ='VE2'!N275 -> 0 | BT23: =TSS!N275 -> 0 | BU23: ='VE2'!R275 -> 0 | BV23: =TSS!R275 -> 0 | BW23: ='VE2'!T275 -> 0 | BX23: =TSS!T275 -> 0 | BZ23: ='VE2'!L293 -> 0 | CA23: =TSS!L293 -> 0 | CB23: ='VE2'!M293 -> 0 | CC23: =TSS!M293 -> 0 | CD23: ='VE2'!P293 -> 0 | CE23: =TSS!P293 -> 0 | CF23: ='VE2'!Q293 -> 0 | CG23: =TSS!Q293 -> 0 | CH23: ='VE2'!R293 -> 0 | CI23: =TSS!R293 -> 0 | CJ23: ='VE2'!T293 -> 0 | CK23: =TSS!T293 -> 0 | CL23: ='VE2'!U293 -> 0 | CM23: =TSS!U293 -> 0 | CO23: ='VE2'!D294 -> 258.5 | CP23: =TSS!D294 -> 0 | CQ23: ='VE2'!E294 -> 476 | CR23: =TSS!E294 -> 177.5 | CS23: ='VE2'!F294 -> 476 | CT23: =TSS!F294 -> 142 | CU23: ='VE2'!G294 -> 476 | CV23: =TSS!G294 -> 568 | CW23: ='VE2'!D313 -> 982.3 | CX23: =TSS!D313 -> 0 | CY23: ='VE2'!F313 -> 99.96 | CZ23: =TSS!F313 -> 37.275 | DA23: ='VE2'!H313 -> 5893.8 | DB23: =TSS!H313 -> 0 | DC23: ='VE2'!I313 -> 1199.52 | DD23: =TSS!I313 -> 447.3 | DE23: ='VE2'!H294 -> 13.88333333 | DF23: =TSS!H294 -> 2.366666667 | DG23: ='VE2'!I294 -> 1041.25 | DH23: =TSS!I294 -> 177.5 | DJ23: ='VE2'!D332 -> 59.9985 | DK23: =TSS!D332 -> 0 | DL23: ='VE2'!E332 -> 64.9965 | DM23: =TSS!E332 -> 0 | DN23: ='VE2'!F332 -> 503.994 | DO23: =TSS!F332 -> 0 | DP23: ='VE2'!G332 -> 0.06944166667 | DQ23: =TSS!G332 -> 0 | DR23: ='VE2'!H332 -> 5.208125 | DS23: =TSS!H332 -> 0 | DU23: ='VE2'!E250 -> 0.1030864 | DV23: =TSS!E250 -> 0.0028125 | DW23: ='VE2'!E246 -> 0.064429 | DX23: =TSS!E246 -> 0.030685 | DY23: ='VE2'!E254 -> 0.08590533333 | DZ23: =TSS!E254 -> 0.0008875 | EB23: ='VE2'!E252 -> 566.9752 | EC23: =TSS!E252 -> 15.46875 | ED23: ='VE2'!E248 -> 515.432 | EE23: =TSS!E248 -> 245.48 | EF23: ='VE2'!E256 -> 859.0533333 | EG23: =TSS!E256 -> 8.875 | EI23: NEMA Cost | EJ23: =IF(EJ20="30ft Hot Shot",EB23,IF(EJ20="40ft Flat Bed",ED23,IF(EJ20="40ft Container",EF23,"N/A"))) -> 515.432
I24: =I23/E23 -> 67.90264706 | J24: =J23/F23 -> 58.63908451 | BQ24: =TSS!P218 -> 0 | BR24: 0 | EI24: TSS Cost | EJ24: =IF(EJ20="30ft Hot Shot",EC23,IF(EJ20="40ft Flat Bed",EE23,IF(EJ20="40ft Container",EG23,"N/A"))) -> 245.48
C25: TSS SAVINGS: | F25: =TSS!K210 -> 0.676056338 | H25: =TSS!K212 -> 1.099690402 | J25: =TSS!K214 -> 0.940832858 | L25: =TSS!K213 -> 1.099690402 | O25: =IFERROR((N23/O23-1),"Infinite") -> 0.7822222222 | Q25: =IFERROR((P23/Q23-1),"Infinite") -> 0.676056338 | S25: =IFERROR((R23/S23-1),"Infinite") -> 1.960745098 | U25: =IFERROR((T23/U23-1),"Infinite") -> 0.7822222222 | W25: =IFERROR((V23/W23-1),"Infinite") -> 0.676056338 | Y25: =IFERROR((X23/Y23-1),"Infinite") -> 1.960745098 | AB25: =IFERROR((AA23/AB23-1),"Infinite") -> 0.4285357143 | AD25: =IFERROR((AC23/AD23-1),"Infinite") -> 0.8054583333 | AF25: =IFERROR((AE23/AF23-1),"Infinite") -> 5.533333333 | AH25: =IFERROR((AG23/AH23-1),"Infinite") -> 2.753612319 | AJ25: =IFERROR((AI23/AJ23-1),"Infinite") -> 0.1904464286 | AL25: =IFERROR((AK23/AL23-1),"Infinite") -> 0.5045486111 | AN25: =IFERROR((AM23/AN23-1),"Infinite") -> Infinite | AP25: =IFERROR((AO23/AP23-1),"Infinite") -> 0.7705808824 | AR25: =IFERROR((AQ23/AR23-1),"Infinite") -> 0.4285357143 | AT25: =IFERROR((AS23/AT23-1),"Infinite") -> 0.8054583333 | AV25: =IFERROR((AU23/AV23-1),"Infinite") -> 4.101010101 | BH25: =TSS!K242 -> 1.960745098 | BK25: =TSS!K244 -> 1.960745098 | BN25: =TSS!O210 -> 0 | BP25: =TSS!O212 -> 0 | BR25: =TSS!O214 -> 0 | BT25: =TSS!O216 -> 0 | BV25: =TSS!O222 -> 0 | BX25: =TSS!O220 -> 0 | CA25: =TSS!T250 -> No QTY | CC25: =TSS!T251 -> No QTY | CE25: =TSS!T252 -> No QTY | CG25: =TSS!T253 -> No QTY | CI25: =TSS!T254 -> No QTY | CK25: =TSS!T255 -> No QTY | CM25: =TSS!T256 -> No QTY | CP25: =TSS!O227 -> Infinite | CR25: =TSS!O231 -> 1.681690141 | CT25: =TSS!O235 -> 2.352112676 | CV25: =TSS!O237 -> -0.161971831 | CX25: =TSS!O228 -> Infinite | CZ25: =TSS!O232 -> 1.681690141 | DB25: =TSS!O229 -> Infinite | DD25: =TSS!O233 -> 1.681690141 | DF25: =TSS!O239 -> 4.866197183 | DH25: =TSS!O240 -> 4.866197183 | DK25: =TSS!D334 -> 1 | DM25: =TSS!E334 -> 1 | DO25: =TSS!F334 -> 1 | DQ25: =TSS!G334 -> 1 | DS25: =TSS!H334 -> 1 | DV25: =TSS!K250 -> 35.65294222 | DX25: =TSS!K246 -> 1.099690402 | DZ25: =TSS!K254 -> 95.79474178 | EC25: =TSS!K252 -> 35.65294222 | EE25: =TSS!K248 -> 1.099690402 | EG25: =TSS!K256 -> 95.79474178
F26: =TSS!L210 -> 48 | H26: =TSS!L212 -> 674.88 | J26: =TSS!L214 -> 3917.04 | L26: =TSS!L213 -> 177.6 | O26: =N23-O23 -> 44 | Q26: =P23-Q23 -> 12 | S26: =R23-S23 -> 8.333166667 | U26: =T23-U23 -> 3300 | W26: =V23-W23 -> 900 | Y26: =X23-Y23 -> 624.9875 | AB26: =AA23-AB23 -> 17.9985 | AD26: =AC23-AD23 -> 28.9965 | AF26: =AE23-AF23 -> 83 | AH26: =AG23-AH23 -> 1519.994 | AJ26: =AI23-AJ23 -> 47.9925 | AL26: =AK23-AL23 -> 108.9825 | AN26: =AM23-AN23 -> 0 | AP26: =AO23-AP23 -> 785.9925 | AR26: =AQ23-AR23 -> 0.59995 | AT26: =AS23-AT23 -> 0.96655 | AV26: =AU23-AV23 -> 6.766666667 | BH26: =TSS!L242 -> 8.333166667 | BK26: =TSS!L244 -> 624.9875 | BN26: =TSS!P210 -> 0 | BP26: =TSS!P212 -> 0 | BR26: =TSS!P214 -> 0 | BT26: =TSS!P216 -> 0 | BV26: =TSS!P222 -> 0 | BX26: =TSS!P220 -> 0 | CP26: =TSS!P227 -> 3452.25 | CR26: =TSS!P231 -> 3816 | CT26: =TSS!P235 -> 4464 | CV26: =TSS!P237 -> -3312 | CX26: =TSS!P228 -> 6559.275 | CZ26: =TSS!P232 -> 801.36 | DB26: =TSS!P229 -> 9838.9125 | DD26: =TSS!P233 -> 9616.32 | DF26: =TSS!P239 -> 93 | DH26: =TSS!P240 -> 3060 | DK26: =TSS!P241 -> 778.7991 | DM26: =TSS!P242 -> 1130.6979 | DO26: =TSS!P243 -> 7699.894 | DQ26: =TSS!P244 -> 1.060831667 | DS26: =TSS!P245 -> 26.52079167 | DV26: =TSS!L250 -> 0.1002739 | DX26: =TSS!L246 -> 0.033744 | DZ26: =TSS!L254 -> 0.08501783333 | EC26: =TSS!L252 -> 551.50645 | EE26: =TSS!L248 -> 269.952 | EG26: =TSS!L256 -> 850.1783333
BM28: Cover Clamps
B29: Strut | C29: TOTALS: | E29: Structure (Strut Model) | N29: SKILLED LABOR Hours (Strut Model) | T29: SKILLED LABOR Cost (Strut Model) | AA29: TRAY ACCESSORY QUANTITY (Strut Model) | AI29: TRAY ACCESSORY Cost (STRUT Model) | AQ29: TRAY ACCESSORY INSTALLATION TIME (HRS) (Strut Model) | BM29: Weights
E30: Support Quantity (PCS) | G30: Support Weight (LBS) | I30: Support Cost (USD) | K30: Support Linear Length (FT) | N30: Structural Engineer (HRS) | P30: Steel Erector (HRS) | R30: Tray Installer (HRS) | T30: Structural Engineer (HRS) | V30: Steel Erector (HRS) | X30: Tray Installer (HRS) | AA30: Clamp Quantity | AC30: Guide Quantity | AE30: Splice Quantity | AG30: Hardware Quantity | AI30: Clamp Cost | AK30: Guide Cost | AM30: Splice Cost | AO30: Hardware Cost | AQ30: Clamp Installation Time (HRS) | AS30: Guide Installation Time (HRS) | AU30: Splice/Link Installation Time (HRS)
E31: NEMA | F31: TSS | G31: NEMA | H31: TSS | I31: NEMA | J31: TSS | K31: NEMA | L31: TSS | N31: NEMA | O31: TSS | P31: NEMA | Q31: TSS | R31: NEMA | S31: TSS | T31: NEMA | U31: TSS | V31: NEMA | W31: TSS | X31: NEMA | Y31: TSS | AA31: NEMA | AB31: TSS | AC31: NEMA | AD31: TSS | AE31: NEMA | AF31: TSS | AG31: NEMA | AH31: TSS | AI31: NEMA | AJ31: TSS | AK31: NEMA | AL31: TSS | AM31: NEMA | AN31: TSS | AO31: NEMA | AP31: TSS | AQ31: NEMA | AR31: TSS | AS31: NEMA | AT31: TSS | AU31: NEMA | AV31: TSS
E32: =E23 -> 119 | F32: =F23 -> 71 | G32: =G23 -> 1288.58 | H32: =CX23+CZ23 -> 37.275 | I32: =DA23+DC23 -> 7093.32 | J32: =DB23+DD23 -> 447.3 | K32: =CO23 -> 258.5 | L32: =0 -> 0 | N32: =N23*0.25 -> 25.0625 | O32: =O23*0.25 -> 14.0625 | P32: =P23 -> 29.75 | Q32: =Q23 -> 17.75 | R32: =DE23+DP23 -> 13.952775 | S32: =DF23+DQ23 -> 2.366666667 | T32: =IFERROR(N32*ProjectData!C16,"N/A") -> 1879.6875 | U32: =IFERROR(O32*ProjectData!C16,"N/A") -> 1054.6875 | V32: =V23 -> 2231.25 | W32: =W23 -> 1331.25 | X32: =DG23+DR23 -> 1046.458125 | Y32: =DH23+DS23 -> 177.5 | AA32: =AA23 -> 59.9985 | AB32: 0 | AC32: =AC23 -> 64.9965 | AD32: 0 | AE32: =AE23 -> 98 | AF32: =AF23 -> 15 | AG32: =AG23 -> 2071.994 | AH32: =DK23+DM23+DO23+TSS!E224 -> 240 | AI32: =AI23 -> 299.9925 | AJ32: 0 | AK32: =AK23 -> 324.9825 | AL32: 0 | AO32: =AO23 -> 1805.9925 | AP32: =TSS!E225 -> 630 | AQ32: =AQ23 -> 1.99995 | AR32: 0 | AS32: =AS23 -> 2.16655 | AT32: =TSS!E247 -> 0 | AU32: =AU23 -> 8.416666667 | AV32: =AV23 -> 1.65
I33: =I32/E32 -> 59.60773109
C34: TSS SAVINGS: | F34: =IFERROR((E32/F32-1),"Infinite") -> 0.676056338 | H34: =IFERROR((G32/H32-1),"Infinite") -> 33.56955064 | J34: =IFERROR((I32/J32-1),"Infinite") -> 14.85808182 | L34: =IFERROR((K32/L32-1),"Infinite") -> Infinite | O34: =IFERROR((N32/O32-1),"Infinite") -> 0.7822222222 | Q34: =IFERROR((P32/Q32-1),"Infinite") -> 0.676056338 | S34: =IFERROR((R32/S32-1),"Infinite") -> 4.895538732 | U34: =IFERROR((T32/U32-1),"Infinite") -> 0.7822222222 | W34: =IFERROR((V32/W32-1),"Infinite") -> 0.676056338 | Y34: =IFERROR((X32/Y32-1),"Infinite") -> 4.895538732 | AB34: =IFERROR((AA32/AB32-1),"Infinite") -> Infinite | AD34: =IFERROR((AC32/AD32-1),"Infinite") -> Infinite | AF34: =IFERROR((AE32/AF32-1),"Infinite") -> 5.533333333 | AH34: =IFERROR((AG32/AH32-1),"Infinite") -> 7.633308333 | AJ34: =IFERROR((AI32/AJ32-1),"Infinite") -> Infinite | AL34: =IFERROR((AK32/AL32-1),"Infinite") -> Infinite | AN34: =IFERROR((AM32/AN32-1),"Infinite") -> Infinite | AP34: =IFERROR((AO32/AP32-1),"Infinite") -> 1.866654762 | AR34: =IFERROR((AQ32/AR32-1),"Infinite") -> Infinite | AT34: =IFERROR((AS32/AT32-1),"Infinite") -> Infinite | AV34: =IFERROR((AU32/AV32-1),"Infinite") -> 4.101010101
F35: =E32-F32 -> 48 | H35: =G32-H32 -> 1251.305 | J35: =I32-J32 -> 6646.02 | L35: =K32-L32 -> 258.5 | O35: =N32-O32 -> 11 | Q35: =P32-Q32 -> 12 | S35: =R32-S32 -> 11.58610833 | U35: =T32-U32 -> 825 | W35: =V32-W32 -> 900 | Y35: =X32-Y32 -> 868.958125 | AB35: =AA32-AB32 -> 59.9985 | AD35: =AC32-AD32 -> 64.9965 | AF35: =AE32-AF32 -> 83 | AH35: =AG32-AH32 -> 1831.994 | AJ35: =AI32-AJ32 -> 299.9925 | AL35: =AK32-AL32 -> 324.9825 | AN35: =AM32-AN32 -> 0 | AP35: =AO32-AP32 -> 1175.9925 | AR35: =AQ32-AR32 -> 1.99995 | AT35: =AS32-AT32 -> 2.16655 | AV35: =AU32-AV32 -> 6.766666667
B36: Span Optimization
B37: OPTIMIZED SPANS | E37: 12FT STRAIGHT SECTIONS NEMA 12C | AD37: SUMMARY GRAND TOTALS
B38: STRAIGHT SECTION | C38: SPAN | E38: Support Quantity (PCS) | G38: Support Weight (LBS) | I38: Support Cost (USD) | M38: Support Instal Time (HRS) | O38: Splice Quantity (PRS) | Q38: Clamp Quantity (PRS) | S38: Guide Quantity (PRS) | U38: Hardware Quantity (PCS) | W38: Tray Installation Time (HRS) | Y38: Tray Installation Cost (USD) | AA38: OPTIMIZATION FACTOR | AD38: TOTAL COST (USD) | AF38: TOTAL TIME (HRS)
E39: NEMA | F39: TSS | G39: NEMA | H39: TSS | I39: NEMA | J39: TSS | M39: NEMA | N39: TSS | O39: NEMA | P39: TSS | Q39: NEMA | R39: TSS | S39: NEMA | T39: TSS | U39: NEMA | V39: TSS | W39: NEMA | X39: TSS | Y39: NEMA | Z39: TSS | AD39: NEMA | AE39: TSS | AF39: NEMA | AG39: TSS
B40: 12-FEET | C40: 5ft | E40: ='VE2'!L310 -> 0 | F40: =TSS!L310 -> 0 | G40: ='VE2'!M310 -> 0 | H40: =TSS!M310 -> 0 | I40: ='VE2'!N310 -> 0 | J40: =TSS!N310 -> 0 | M40: ='VE2'!O310 -> 0 | N40: =TSS!O310 -> 0 | O40: ='VE2'!P310 -> 0 | P40: =TSS!P310 -> 0 | Q40: ='VE2'!Q310 -> 0 | R40: =TSS!Q310 -> 0 | S40: ='VE2'!R310 -> 0 | T40: =TSS!R310 -> 0 | U40: ='VE2'!T310 -> 0 | V40: =TSS!T310 -> 0 | W40: ='VE2'!U310 -> 0 | X40: =TSS!U310 -> 0 | Y40: ='VE2'!V310 -> 0 | Z40: =TSS!V310 -> 0 | AA40: (−) 58% | AD40: 121308.1191 | AE40: 76076.74167 | AF40: 1881.583233 | AG40: 1236.766667
C41: 6ft | E41: ='VE2'!L311 -> 0 | F41: =TSS!L311 -> 0 | G41: ='VE2'!M311 -> 0 | H41: =TSS!M311 -> 0 | I41: ='VE2'!N311 -> 0 | J41: =TSS!N311 -> 0 | M41: ='VE2'!O311 -> 0 | N41: =TSS!O311 -> 0 | O41: ='VE2'!P311 -> 0 | P41: =TSS!P311 -> 0 | Q41: ='VE2'!Q311 -> 0 | R41: =TSS!Q311 -> 0 | S41: ='VE2'!R311 -> 0 | T41: =TSS!R311 -> 0 | U41: ='VE2'!T311 -> 0 | V41: =TSS!T311 -> 0 | W41: ='VE2'!U311 -> 0 | X41: =TSS!U311 -> 0 | Y41: ='VE2'!V311 -> 0 | Z41: =TSS!V311 -> 0 | AA41: (−) 50% | AD41: TSS SAVING: | AE41: 45231.37742 | AF41: TSS SAVING: | AG41: 644.8165667
C42: 7ft | E42: ='VE2'!L312 -> 0 | F42: =TSS!L312 -> 0 | G42: ='VE2'!M312 -> 0 | H42: =TSS!M312 -> 0 | I42: ='VE2'!N312 -> 0 | J42: =TSS!N312 -> 0 | M42: ='VE2'!O312 -> 0 | N42: =TSS!O312 -> 0 | O42: ='VE2'!P312 -> 0 | P42: =TSS!P312 -> 0 | Q42: ='VE2'!Q312 -> 0 | R42: =TSS!Q312 -> 0 | S42: ='VE2'!R312 -> 0 | T42: =TSS!R312 -> 0 | U42: ='VE2'!T312 -> 0 | V42: =TSS!T312 -> 0 | W42: ='VE2'!U312 -> 0 | X42: =TSS!U312 -> 0 | Y42: ='VE2'!V312 -> 0 | Z42: =TSS!V312 -> 0 | AA42: (−) 41%
C43: 8ft | E43: ='VE2'!L313 -> 0 | F43: =TSS!L313 -> 0 | G43: ='VE2'!M313 -> 0 | H43: =TSS!M313 -> 0 | I43: ='VE2'!N313 -> 0 | J43: =TSS!N313 -> 0 | M43: ='VE2'!O313 -> 0 | N43: =TSS!O313 -> 0 | O43: ='VE2'!P313 -> 0 | P43: =TSS!P313 -> 0 | Q43: ='VE2'!Q313 -> 0 | R43: =TSS!Q313 -> 0 | S43: ='VE2'!R313 -> 0 | T43: =TSS!R313 -> 0 | U43: ='VE2'!T313 -> 0 | V43: =TSS!T313 -> 0 | W43: ='VE2'!U313 -> 0 | X43: =TSS!U313 -> 0 | Y43: ='VE2'!V313 -> 0 | Z43: =TSS!V313 -> 0 | AA43: (−) 33%
C44: 10ft | E44: ='VE2'!L314 -> 0 | F44: =TSS!L314 -> 0 | G44: ='VE2'!M314 -> 0 | H44: =TSS!M314 -> 0 | I44: ='VE2'!N314 -> 0 | J44: =TSS!N314 -> 0 | M44: ='VE2'!O314 -> 0 | N44: =TSS!O314 -> 0 | O44: ='VE2'!P314 -> 0 | P44: =TSS!P314 -> 0 | Q44: ='VE2'!Q314 -> 0 | R44: =TSS!Q314 -> 0 | S44: ='VE2'!R314 -> 0 | T44: =TSS!R314 -> 0 | U44: ='VE2'!T314 -> 0 | V44: =TSS!T314 -> 0 | W44: ='VE2'!U314 -> 0 | X44: =TSS!U314 -> 0 | Y44: ='VE2'!V314 -> 0 | Z44: =TSS!V314 -> 0 | AA44: (−) 16%
C45: 12ft | E45: ='VE2'!L315 -> 0 | F45: =TSS!L315 -> 0 | G45: ='VE2'!M315 -> 0 | H45: =TSS!M315 -> 0 | I45: ='VE2'!N315 -> 0 | J45: =TSS!N315 -> 0 | M45: ='VE2'!O315 -> 0 | N45: =TSS!O315 -> 0 | O45: ='VE2'!P315 -> 0 | P45: =TSS!P315 -> 0 | Q45: ='VE2'!Q315 -> 0 | R45: =TSS!Q315 -> 0 | S45: ='VE2'!R315 -> 0 | T45: =TSS!R315 -> 0 | U45: ='VE2'!T315 -> 0 | V45: =TSS!T315 -> 0 | W45: ='VE2'!U315 -> 0 | X45: =TSS!U315 -> 0 | Y45: ='VE2'!V315 -> 0 | Z45: =TSS!V315 -> 0 | AA45: (+) 100%
B47: Span Optimization
B48: OPTIMIZED SPANS | E48: 20FT STRAIGHT SECTIONS NEMA 20C | AR48: Total Project Pie Chart (Hours) | AS48: Design | AT48: Structure Installation | AU48: Tray Installation | AV48: Total | AW48: Delta
B49: STRAIGHT SECTION | C49: SPAN | E49: Support Quantity (PCS) | G49: Support Weight (LBS) | I49: Support Cost (USD) | M49: Support Instal Time (HRS) | O49: Splice Quantity (PRS) | Q49: Clamp Quantity (PRS) | S49: Guide Quantity (PRS) | U49: Hardware Quantity (PCS) | W49: Tray Installation Time (HRS) | Y49: Tray Installation Cost (USD) | AA49: OPTIMIZATION FACTOR | AR49: NEMA | AS49: =Summary!L98 -> 25.0625 | AT49: =Summary!L108 -> 29.75 | AU49: =Summary!L118 -> 13.952775 | AV49: =SUM(AS49:AU49) -> 68.765275 | AW49: =AV49-AV50 -> 34.58610833
E50: NEMA | F50: TSS | G50: NEMA | H50: TSS | I50: NEMA | J50: TSS | M50: NEMA | N50: TSS | O50: NEMA | P50: TSS | Q50: NEMA | R50: TSS | S50: NEMA | T50: TSS | U50: NEMA | V50: TSS | W50: NEMA | X50: TSS | Y50: NEMA | Z50: TSS | AR50: TSS | AS50: =Summary!L97 -> 14.0625 | AT50: =Summary!L107 -> 17.75 | AU50: =Summary!L117 -> 2.366666667 | AV50: =SUM(AS50:AU50) -> 34.17916667
B51: 20-FEET | C51: 10ft | E51: ='VE2'!L299 -> 195 | F51: =TSS!L299 -> 195 | G51: ='VE2'!M299 -> 741 | H51: =TSS!M299 -> 741 | I51: ='VE2'!N299 -> 5742.75 | J51: =TSS!N299 -> 5742.75 | M51: ='VE2'!O299 -> 22.5 | N51: =TSS!O299 -> 22.5 | O51: ='VE2'!P299 -> 45 | P51: =TSS!P299 -> 0 | Q51: ='VE2'!Q299 -> 29.997 | R51: =TSS!Q299 -> 32 | S51: ='VE2'!R299 -> 69.993 | T51: =TSS!R299 -> 72 | U51: ='VE2'!T299 -> 1127.988 | V51: =TSS!T299 -> 776 | W51: ='VE2'!U299 -> 0.18055 | X51: =TSS!U299 -> 0.08277777778 | Y51: ='VE2'!V299 -> 13.54125 | Z51: =TSS!V299 -> 6.208333333 | AA51: (−) 50% | AR51: % Saved | AS51: =IFERROR(AV49/AV50-1,"NA") -> 1.011906132 | AT51: =IFERROR(AT49/AT50-1,"NA") -> 0.676056338 | AU51: =IFERROR(AU49/AU50-1,"NA") -> 4.895538732 | AV51: =IFERROR(#REF!/#REF!-1,"NA") -> NA
C52: 12ft | E52: ='VE2'!L300 -> 175.5 | F52: =TSS!L300 -> 156 | G52: ='VE2'!M300 -> 666.9 | H52: =TSS!M300 -> 592.8 | I52: ='VE2'!N300 -> 5168.475 | J52: =TSS!N300 -> 4594.2 | M52: ='VE2'!O300 -> 20.25 | N52: =TSS!O300 -> 18 | O52: ='VE2'!P300 -> 45 | P52: =TSS!P300 -> 0 | Q52: ='VE2'!Q300 -> 26.9973 | R52: =TSS!Q300 -> 25.6 | S52: ='VE2'!R300 -> 62.9937 | T52: =TSS!R300 -> 57.6 | U52: ='VE2'!T300 -> 1087.1892 | V52: =TSS!T300 -> 692.8 | W52: ='VE2'!U300 -> 0.162495 | X52: =TSS!U300 -> 0.06622222222 | Y52: ='VE2'!V300 -> 12.187125 | Z52: =TSS!V300 -> 4.966666667 | AA52: (−) 37%
C53: 14ft | E53: ='VE2'!L301 -> 156 | F53: =TSS!L301 -> 136.5 | G53: ='VE2'!M301 -> 592.8 | H53: =TSS!M301 -> 518.7 | I53: ='VE2'!N301 -> 4594.2 | J53: =TSS!N301 -> 4019.925 | M53: ='VE2'!O301 -> 18 | N53: =TSS!O301 -> 15.75 | O53: ='VE2'!P301 -> 45 | P53: =TSS!P301 -> 0 | Q53: ='VE2'!Q301 -> 23.9976 | R53: =TSS!Q301 -> 22.4 | S53: ='VE2'!R301 -> 55.9944 | T53: =TSS!R301 -> 50.4 | U53: ='VE2'!T301 -> 1046.3904 | V53: =TSS!T301 -> 651.2 | W53: ='VE2'!U301 -> 0.14444 | X53: =TSS!U301 -> 0.05794444444 | Y53: ='VE2'!V301 -> 10.833 | Z53: =TSS!V301 -> 4.345833333 | AA53: (−) 28% | AR53: Total Project Pie Chart (Cost) | AS53: Design Cost | AT53: Structure Costs | AU53: Tray Install Costs | AV53: Total | AW53: Delta
C54: 16ft | E54: ='VE2'!L302 -> 136.5 | F54: =TSS!L302 -> 121.875 | G54: ='VE2'!M302 -> 518.7 | H54: =TSS!M302 -> 463.125 | I54: ='VE2'!N302 -> 4019.925 | J54: =TSS!N302 -> 3589.21875 | M54: ='VE2'!O302 -> 15.75 | N54: =TSS!O302 -> 14.0625 | O54: ='VE2'!P302 -> 45 | P54: =TSS!P302 -> 0 | Q54: ='VE2'!Q302 -> 20.9979 | R54: =TSS!Q302 -> 20 | S54: ='VE2'!R302 -> 48.9951 | T54: =TSS!R302 -> 45 | U54: ='VE2'!T302 -> 1005.5916 | V54: =TSS!T302 -> 620 | W54: ='VE2'!U302 -> 0.126385 | X54: =TSS!U302 -> 0.05173611111 | Y54: ='VE2'!V302 -> 9.478875 | Z54: =TSS!V302 -> 3.880208333 | AA54: (−) 20% | AR54: NEMA | AS54: =Summary!M98 -> 1879.6875 | AT54: =Summary!M108+Summary!M128 -> 9324.57 | AU54: =Summary!M118+Summary!M143+Summary!M153 -> 3477.425625 | AV54: =SUM(AS54:AU54) -> 14681.68312 | AW54: =AV54-AV55 -> 11040.94563
C55: 18ft | E55: ='VE2'!L303 -> 117 | F55: =TSS!L303 -> 107.25 | G55: ='VE2'!M303 -> 444.6 | H55: =TSS!M303 -> 407.55 | I55: ='VE2'!N303 -> 3445.65 | J55: =TSS!N303 -> 3158.5125 | M55: ='VE2'!O303 -> 13.5 | N55: =TSS!O303 -> 12.375 | O55: ='VE2'!P303 -> 45 | P55: =TSS!P303 -> 0 | Q55: ='VE2'!Q303 -> 17.9982 | R55: =TSS!Q303 -> 17.6 | S55: ='VE2'!R303 -> 41.9958 | T55: =TSS!R303 -> 39.6 | U55: ='VE2'!T303 -> 964.7928 | V55: =TSS!T303 -> 588.8 | W55: ='VE2'!U303 -> 0.10833 | X55: =TSS!U303 -> 0.04552777778 | Y55: ='VE2'!V303 -> 8.12475 | Z55: =TSS!V303 -> 3.414583333 | AA55: (−) 9% | AR55: TSS | AS55: =Summary!M97 -> 1054.6875 | AT55: =Summary!M107+Summary!M127 -> 1778.55 | AU55: =Summary!M117+Summary!M142+Summary!M152 -> 807.5 | AV55: =SUM(AS55:AU55) -> 3640.7375
C56: 20ft | E56: ='VE2'!L304 -> 97.5 | F56: =TSS!L304 -> 97.5 | G56: ='VE2'!M304 -> 370.5 | H56: =TSS!M304 -> 370.5 | I56: ='VE2'!N304 -> 2871.375 | J56: =TSS!N304 -> 2871.375 | M56: ='VE2'!O304 -> 11.25 | N56: =TSS!O304 -> 11.25 | O56: ='VE2'!P304 -> 45 | P56: =TSS!P304 -> 0 | Q56: ='VE2'!Q304 -> 14.9985 | R56: =TSS!Q304 -> 16 | S56: ='VE2'!R304 -> 34.9965 | T56: =TSS!R304 -> 36 | U56: ='VE2'!T304 -> 923.994 | V56: =TSS!T304 -> 568 | W56: ='VE2'!U304 -> 0.090275 | X56: =TSS!U304 -> 0.04138888889 | Y56: ='VE2'!V304 -> 6.770625 | Z56: =TSS!V304 -> 3.104166667 | AA56: (+) 100% | AR56: % Saved | AS56: =IFERROR(AV54/AV55-1,"NA") -> 3.032612383 | AT56: =IFERROR(AT54/AT55-1,"NA") -> 4.242793287 | AU56: =IFERROR(AU54/AU55-1,"NA") -> 3.306409443 | AV56: =IFERROR(#REF!/#REF!-1,"NA") -> NA
AR58: Installation Pieces | AS58: Clamps | AT58: Guides | AU58: Splices | AV58: Hardware | AW58: Delta
AR59: NEMA | AS59: =IF(ProjectData!$E$13="Single Strut (12G)",Tables!AA32,IF(ProjectData!$E$13="Double Strut (12G)",Tables!AA32,Tables!AA23)) -> 59.9985 | AT59: =IF(ProjectData!$E$13="Single Strut (12G)",Tables!AC32,IF(ProjectData!$E$13="Double Strut (12G)",Tables!AC32,Tables!AC23)) -> 64.9965 | AU59: =IF(ProjectData!$E$13="Single Strut (12G)",Tables!AE32,IF(ProjectData!$E$13="Double Strut (12G)",Tables!AE32,Tables!AE23)) -> 98 | AV59: =IF(ProjectData!$E$13="Single Strut (12G)",Tables!AG32,IF(ProjectData!$E$13="Double Strut (12G)",Tables!AG32,Tables!AG23)) -> 2071.994 | AW59: =AV59-AV60 -> 1831.994
AR60: TSS | AS60: =IF(ProjectData!$E$13="Single Strut (12G)",Tables!AB32,IF(ProjectData!$E$13="Double Strut (12G)",Tables!AB32,Tables!AB23)) -> 0 | AT60: =IF(ProjectData!$E$13="Single Strut (12G)",Tables!AD32,IF(ProjectData!$E$13="Double Strut (12G)",Tables!AD32,Tables!AD23)) -> 0 | AU60: =IF(ProjectData!$E$13="Single Strut (12G)",Tables!AF32,IF(ProjectData!$E$13="Double Strut (12G)",Tables!AF32,Tables!AF23)) -> 15 | AV60: =IF(ProjectData!$E$13="Single Strut (12G)",Tables!AH32,IF(ProjectData!$E$13="Double Strut (12G)",Tables!AH32,Tables!AH23)) -> 240
AR61: Pieces Saved | AS61: =AS59-AS60 -> 59.9985 | AT61: =AT59-AT60 -> 64.9965 | AU61: =AU59-AU60 -> 83 | AV61: =AV59-AV60 -> 1831.994
AR63: Accessory Installation Hours | AS63: Clamps | AT63: Guides | AU63: Splices | AV63: Hardware | AW63: Delta
AR64: NEMA | AS64: =IF(ProjectData!$E$13="Single Strut (12G)",Tables!AQ32,IF(ProjectData!$E$13="Double Strut (12G)",Tables!AQ32,Tables!AQ23)) -> 1.99995 | AT64: =IF(ProjectData!$E$13="Single Strut (12G)",Tables!AS32,IF(ProjectData!$E$13="Double Strut (12G)",Tables!AS32,Tables!AS23)) -> 2.16655 | AU64: =IF(ProjectData!$E$13="Single Strut (12G)",Tables!AU32,IF(ProjectData!$E$13="Double Strut (12G)",Tables!AU32,Tables!AU23)) -> 8.416666667 | AV64: =(AV59*10)/60/60 -> 5.755538889 | AW64: =SUM(AS64:AV64) -> 18.33870556
AR65: TSS | AS65: =IF(ProjectData!$E$13="Single Strut (12G)",Tables!AR32,IF(ProjectData!$E$13="Double Strut (12G)",Tables!AR32,Tables!AR23)) -> 0 | AT65: =IF(ProjectData!$E$13="Single Strut (12G)",Tables!AT32,IF(ProjectData!$E$13="Double Strut (12G)",Tables!AT32,Tables!AT23)) -> 0 | AU65: =IF(ProjectData!$E$13="Single Strut (12G)",Tables!AV32,IF(ProjectData!$E$13="Double Strut (12G)",Tables!AV32,Tables!AV23)) -> 1.65 | AV65: =(AV60*10)/60/60 -> 0.6666666667 | AW65: =SUM(AS65:AV65) -> 2.316666667
AR66: % Saved | AS66: =IFERROR(AS64/AS65-1,1000%) -> 10 | AT66: =IFERROR(AT64/AT65-1,1000%) -> 10 | AU66: =IFERROR(AU64/AU65-1,1000%) -> 4.101010101 | AV66: =IFERROR(AV64/AV65-1,1000%) -> 7.633308333 | AW66: =IFERROR(AW64/AW65-1,1000%) -> 6.91598801
AR67: Hours Saved | AS67: =AS64-AS65 -> 1.99995 | AT67: =AT64-AT65 -> 2.16655 | AU67: =AU64-AU65 -> 6.766666667 | AV67: =AV64-AV65 -> 5.088872222 | AW67: =AW64-AW65 -> 16.02203889
AR69: Covers | AS69: Hardware | AT69: Cover Clamps | AU69: Clamp Cost
AR70: NEMA | AS70: =IF(BS23=0,"N/A",BS23) -> N/A | AT70: =IF(BQ23=0,"N/A",BT23) -> N/A | AU70: =IF(BQ24=0,"N/A",BQ24) -> N/A
AR71: TSS | AS71: =IF(BT23=0,"N/A",BT23) -> N/A | AT71: =IF(AT70="N/A","N/A",BR23) -> N/A | AU71: =IF(AU70="N/A","N/A",BR24) -> N/A
AR72: % Saved | AS72: =IFERROR(IF(AS70="N/A","N/A",(AS70/AS71-1)),1000%) -> N/A | AT72: =IFERROR(IF(AT70="N/A","N/A",(AT70/AT71-1)),1000%) -> N/A | AU72: =IFERROR(IF(AU70="N/A","N/A",(AU70/AU71-1)),1000%) -> N/A
AR73: Costing & QTY | AS73: =IFERROR(IF(AS72="N/A","N/A",AS70-AS71),1000%) -> N/A | AT73: =IFERROR(IF(AT72="N/A","N/A",AT70-AT71),1000%) -> N/A | AU73: =IF(AU72="N/A","N/A",AU70-AU71) -> N/A
AR75: Supports | AS75: QTY | AT75: Cost
AR76: NEMA | AS76: =E23 -> 119 | AT76: =IF(ProjectData!$E$13="Single Strut (12G)",Tables!I32,IF(ProjectData!$E$13="Double Strut (12G)",Tables!I32,Tables!I23)) -> 7093.32
AR77: TSS | AS77: =F23 -> 71 | AT77: =IF(ProjectData!$E$13="Single Strut (12G)",Tables!J32,IF(ProjectData!$E$13="Double Strut (12G)",Tables!J32,Tables!J23)) -> 447.3
AR78: % Saved | AS78: =IFERROR(AS76/AS77-1,1000%) -> 0.676056338 | AT78: =IFERROR(AT76/AT77-1,1000%) -> 14.85808182
AR79: Savings | AS79: =AS76-AS77 -> 48 | AT79: =AT76-AT77 -> 6646.02
AR81: Expansion Cartridge | AS81: Additional Splices (PR) | AT81: Supports | AU81: Guides (PR) | AV81: Hardware | AW81: Cost | AX81: Hours
AR82: NEMA | AS82: ='VE2'!Z171+'VE2'!Z182 -> 15 | AT82: =AS82*2 -> 30 | AU82: ='VE2'!AD171+'VE2'!AD182 -> 30 | AV82: ='VE2'!AA182+'VE2'!AA171+'VE2'!AE171+'VE2'!AE182 -> 360 | AW82: ='VE2'!O171+'VE2'!O182+'VE2'!AI171+'VE2'!AI182+'VE2'!AO171+'VE2'!AO182 -> 3472.75 | AX82: ='VE2'!W171+'VE2'!W182+'VE2'!X171+'VE2'!AK171+'VE2'!AK182+'VE2'!AM171+'VE2'!AM182 -> 17.5
AR83: TSS | AS83: 0 | AT83: =AS83*2 -> 0 | AU83: =TSS!AD171+TSS!AD182 -> 0 | AV83: =TSS!AA182+TSS!AA171+TSS!AE171+TSS!AE182 -> 60 | AW83: =TSS!O171+TSS!O182+TSS!AI171+TSS!AI182+TSS!AO171+TSS!AO182 -> 470 | AX83: =TSS!W171+TSS!W182+TSS!X171+TSS!AK171+TSS!AK182+TSS!AM171+TSS!AM182 -> 0.2666666667
AR84: % Saved | AS84: =IFERROR(AS82/AS83-1,1000%) -> 10 | AT84: =IFERROR(AT82/AT83-1,1000%) -> 10 | AU84: =IFERROR(AU82/AU83-1,1000%) -> 10 | AV84: =IFERROR(AV82/AV83-1,1000%) -> 5 | AW84: =IFERROR(AW82/AW83-1,1000%) -> 6.388829787 | AX84: 64.625
AR85: Savings | AS85: =AS82-AS83 -> 15 | AT85: =AT82-AT83 -> 30 | AU85: 30 | AV85: 300 | AW85: 3002.75 | AX85: 17.23333333
AR90: TSS Overview Vs NEMA | AS90: Design Hours | AT90: Structure Installation Hours | AU90: Tray Installation Hours | AV90: Support QTY | AW90: Clamps QTY | AX90: Guides QTY | AY90: Splice QTY | AZ90: Hardware QTY | BA90: Cover Hardware QTY | BB90: Cover Clamp QTY | BC90: Clamp Cost | BD90: Design Cost | BE90: Structure Costs | BF90: Tray Costs
AR91: NEMA | AS91: =AS49 -> 25.0625 | AT91: 29.75 | AU91: 13.952775 | AV91: =AS76 -> 119 | AW91: =AS59 -> 59.9985 | AX91: 64.9965 | AY91: 98 | AZ91: 2071.994 | BA91: =AS70 -> N/A | BB91: N/A | BC91: N/A | BD91: =AS54 -> 1879.6875 | BE91: 9324.57 | BF91: 3477.425625
AR92: TSS | AS92: 14.0625 | AT92: 17.75 | AU92: 2.366666667 | AV92: =AS77 -> 71 | AW92: 0 | AX92: 0 | AY92: 15 | AZ92: 240 | BA92: N/A | BB92: N/A | BC92: N/A | BD92: 1054.6875 | BE92: 1778.55 | BF92: 807.5
AR93: % Saved | AS93: =IFERROR(AS91/AS92-1,1000%) -> 0.7822222222 | AT93: =IFERROR(AT91/AT92-1,1000%) -> 0.676056338 | AU93: 4.895538732 | AV93: =IFERROR(AV91/AV92-1,1000%) -> 0.676056338 | AW93: 10 | AX93: 10 | AY93: 5.533333333 | AZ93: 7.633308333 | BA93: 10 | BB93: 10 | BC93: 10 | BD93: 0.7822222222 | BE93: 4.242793287 | BF93: 3.306409443

Sheet CTI Input Sheet (hidden)
D1: CTI INPUTS : TOUGH Support Savings Calculator
B3: Support Structure Section Costs* | G3: Skilled Labor Rates* | J3: Installation Times* | M3: NEMA VE-2 Cover Clamp Costs & Installation Times & Weights
B4: Type | C4: Section Weight LB/FT | D4: Support Instal Time MIN/PC | E4: Section Cost USD/FT | G4: Skilled Worker Discipline | H4: Worker Rates (USD/HR) | J4: Cable Tray Accessory Item | K4: Instal Time (MIN/ITEM) | M4: Cover Clamp Width | N4: 4" Height Cost (Ea/USD) | O4: 6" Height Cost (Ea/USD) | P4: Installation Time (MIN) | Q4: 4" High Clamp Weight (LBS) | R4: 6" High Clamp Weight (LBS)
B5: Single Strut (12G) | C5: 1.9 | D5: 15 | E5: 2.85 | G5: Cable Tray Installer | H5: =ProjectData!C14 -> 75 | J5: Splice Plate (PR) | K5: 5 | M5: 6" Width | N5: =O5*0.95 -> 12.825 | O5: 13.5 | P5: 1 | Q5: 0.61 | R5: 0.69
B6: Double Strut (12G) | C6: 3.8 | D6: 15 | E6: 5.7 | G6: Structural Steel Erector | H6: =ProjectData!C15 -> 75 | J6: TOUGHLink (PR) | K6: 1 | M6: 9" Width | N6: 14.725 | O6: 15.5 | P6: 1 | Q6: 0.74 | R6: 0.82
B7: C-Channel (C6x13) | C7: 13 | D7: 45 | E7: 19.5 | G7: Structural Design Engineer | H7: =ProjectData!C16 -> 75 | J7: Hold Down Clamps (PR) | K7: 2 | M7: 12" Width | N7: 17.1 | O7: 18 | P7: 1 | Q7: 0.87 | R7: 0.95
B8: I-Beam (S8x23) | C8: 23 | D8: 60 | E8: =1.5*C8 -> 34.5 | J8: Expansion Guides (PR) | K8: 2 | M8: 18" Width | N8: 19.95 | O8: 21 | P8: 1.25 | Q8: 1.12 | R8: 1.2
B9: I-Beam (S12x50) | C9: 50 | D9: 60 | E9: =1.5*C9 -> 75 | J9: Expansion Splice Plate (PR) | K9: 6 | M9: 24" Width | N9: 23.75 | O9: 25 | P9: 1.25 | Q9: 1.34 | R9: 1.46
B10: ATR (1/2"x12") | C10: 0.21 | D10: 5 | E10: 2.52 | G10: Logistic Rates* | J10: 4" Expansion Cartridge (PR) | K10: 1 | M10: 30" Width | N10: 25.65 | O10: 27 | P10: 1.5 | Q10: 1.63 | R10: 1.72
G11: Logistic Type | H11: Allocated Cost | J11: 6" Expansion Cartridge (PR) | K11: 1 | M11: 36" Width | N11: =O11*0.95 -> 26.6 | O11: 28 | P11: 1.5 | Q11: 1.89 | R11: 1.97
B12: Tray Accessory Costs* | G12: 30ft Hot Shot | H12: 5500 | J12: VE2 Strut Support (EA) | K12: 7
B13: Cable Tray Accessory | C13: STANDARD Tray Costs | D13: TOUGHTray Costs | G13: 40ft Flat Bed Truck | H13: 8000 | J13: TSS Strut ATR Support (EA) | K13: 2
B14: Hold Down Clamps (PRS) | C14: 5 | D14: 6 | G14: 40ft Ocean Container | H14: 10000 | J14: Structural Steel Support (EA) | K14: 60 | M14: TOUGHTray Cover Clamp Costs & Installation Times & Weights
B15: Clamp Hardware (PCS) | C15: 1.25 | D15: 1.25 | G15: LTL is not available for tems over 10ft length | M15: Cover Clamp Width | N15: Fitting Cover Kit Cost (USD) | O15: Fitting Cover Kit Instal (MIN) | P15: TOUGHTorx Cost (Ea/USD) | Q15: Installation Time (MIN) | R15: Fitting Cover Kit Weight (LBS) | S15: TOUGHTorx Weight (LBS)
B16: Expansion Guides (PRS) | C16: 5 | D16: 6 | M16: 6" Width | N16: 1 | O16: 0.2 | P16: 1 | Q16: 0.08 | R16: 0.1 | S16: 0.02
B17: Guide Hardware (PCS) | C17: 1.25 | D17: 1.25 | M17: 9" Width | N17: 1 | O17: 0.2 | P17: 1 | Q17: 0.08 | R17: 0.1 | S17: 0.02
B18: 4" Expansion Splice Plate (PRS) | C18: 15 | J18: Supports Design Time* | M18: 12" Width | N18: 1 | O18: 0.2 | P18: 1 | Q18: 0.08 | R18: 0.1 | S18: 0.02
B19: 6" Expansion Splice Plate (PRS) | C19: 20 | G19: Finish Costs Multipliler* | J19: Cable Tray Item | K19: Design Time (HR/ITEM) | M19: 18" Width | N19: 1 | O19: 0.2 | P19: 1 | Q19: 0.08 | R19: 0.1 | S19: 0.02
B20: 4" Expansion Cartridge (PRS) | D20: 25 | G20: Logistic Type | H20: Cost Multiplier Factor | J20: Straight Section | K20: 0.25 | M20: 24" Width | N20: 1 | O20: 0.2 | P20: 1 | Q20: 0.08 | R20: 0.1 | S20: 0.02
B21: 6" Expansion Cartridge (PRS) | D21: 30 | G21: Pre-Galv | H21: 1 | J21: Horizontal Bend | K21: 1.5 | M21: 30" Width | N21: 1 | O21: 0.2 | P21: 1 | Q21: 0.08 | R21: 0.1 | S21: 0.02
B22: Splice Plate Hardware (PCS) | C22: 0.75 | G22: HotDip Galv | H22: 1.25 | J22: Horizontal Tee | K22: 2.5 | M22: 36" Width | N22: 1 | O22: 0.2 | P22: 1 | Q22: 0.08 | R22: 0.1 | S22: 0.02
B23: TOUGHLink Hardware (PCS) | D23: 1.5 | G23: Stainless | H23: 4 | J23: Horizontal Cross | K23: 3
G24: Painted | H24: 1.25 | J24: Vertical Elbows | K24: 1.5
J25: Expansion Joint | K25: 0.5
B26: Support Structure Fabrication & Erection Costs* | J26: Reducer | K26: 1
B27: Fabrication Cost USD/LB | C27: Handling Cost USD/LB | D27: Erection Cost USD/LB | J27: HADJ Adjustable Joint | K27: 1.5
B28: 1.5 | C28: 0.25 | D28: 0 | J28: VADJ Adjustable Joint | K28: 1

Sheet VE2 (hidden)
B1: NEMA VE 2 Structural Support Calculator
O3: Expansion Joint Calculation (based on 50% of straight section qty) | Z3: Logistic Rates | AG3: Tray Accessory Costs | AK3: Customer Skilled Labor Rates | AN3: Tray Installation Times | AR3: Cover Clamp Costs & Installation Times & Weights
O4: 4in Expansion Joint Quantities | Q4: 6in Expansion Joint Quantities | Z4: Logistic Costs (USD) | AG4: Cable Tray Accessory Costs (USD) | AK4: Project Labor Cost (USD/HOUR) | AN4: Tray Accessory Installation Time (Minutes) | AR4: Cover Clamp Costs (USD) & Installation Times (MIN) & Weights (LBS)
O5: Cable Tray Width (in) | P5: Expansion Splice Qty (PR) | Q5: Cable Tray Width (in) | R5: Expansion Splice Qty (PR) | Z5: Logistic Type | AA5: Allocated Cost | AG5: Cable Tray Accessory | AH5: STANDARD Tray Costs | AK5: Skilled Worker Discipline | AL5: Labor Hourly Work Rate | AN5: Cable Tray Accessory | AO5: Allocated Installation Time | AR5: Cover Clamp Width | AS5: 4" Height Cost (Ea/USD) | AT5: 6" Height Cost (Ea/USD) | AU5: Installation Time (MIN) | AV5: 4" High Clamp Weight (LBS) | AW5: 6" High Clamp Weight (LBS)
O6: 6 | P6: =ROUNDDOWN(((B17*12)/72),0) -> 0 | Q6: 6 | R6: =ROUNDDOWN(((B28*20)/60),0) -> 0 | Z6: 30ft HOT SHOT | AA6: ='CTI Input Sheet'!H12 -> 5500 | AG6: 4" Expansion Splice Plates (PR) | AH6: ='CTI Input Sheet'!C18 -> 15 | AK6: Cable Tray Installer | AL6: ='CTI Input Sheet'!H5 -> 75 | AN6: Splice Plates (PR) | AO6: ='CTI Input Sheet'!K5 -> 5 | AR6: 6" Width | AS6: ='CTI Input Sheet'!N5 -> 12.825 | AT6: ='CTI Input Sheet'!O5 -> 13.5 | AU6: ='CTI Input Sheet'!P5 -> 1 | AV6: ='CTI Input Sheet'!Q5 -> 0.61 | AW6: ='CTI Input Sheet'!R5 -> 0.69
O7: 9 | P7: 0 | Q7: 9 | R7: 0 | Z7: 40ft FLAT BED TRUCK | AA7: ='CTI Input Sheet'!H13 -> 8000 | AG7: 6" Expansion Splice Plates (PR) | AH7: ='CTI Input Sheet'!C19 -> 20 | AK7: Structural Steel Erector | AL7: ='CTI Input Sheet'!H6 -> 75 | AN7: Expansion Splice Plates (PR) | AO7: ='CTI Input Sheet'!K9 -> 6 | AR7: 9" Width | AS7: ='CTI Input Sheet'!N6 -> 14.725 | AT7: ='CTI Input Sheet'!O6 -> 15.5 | AU7: ='CTI Input Sheet'!P6 -> 1 | AV7: ='CTI Input Sheet'!Q6 -> 0.74 | AW7: ='CTI Input Sheet'!R6 -> 0.82
D8: Support Structural Sections | O8: 12 | P8: 0 | Q8: 12 | R8: 10 | Z8: 40ft CONTAINER | AA8: ='CTI Input Sheet'!H14 -> 10000 | AG8: Hold Down Clamps (PR) | AH8: ='CTI Input Sheet'!C14 -> 5 | AK8: Structural Design Engineer | AL8: ='CTI Input Sheet'!H7 -> 75 | AN8: Hold Down Clamps (PR) | AO8: ='CTI Input Sheet'!K7 -> 2 | AR8: 12" Width | AS8: ='CTI Input Sheet'!N7 -> 17.1 | AT8: ='CTI Input Sheet'!O7 -> 18 | AU8: ='CTI Input Sheet'!P7 -> 1 | AV8: ='CTI Input Sheet'!Q7 -> 0.87 | AW8: ='CTI Input Sheet'!R7 -> 0.95
D9: Cable Tray Support Structural Section | O9: 18 | P9: 0 | Q9: 18 | R9: 0 | AG9: Clamp Hardware (PC) | AH9: ='CTI Input Sheet'!C15 -> 1.25 | AN9: Expansion Guides (PR) | AO9: ='CTI Input Sheet'!K8 -> 2 | AR9: 18" Width | AS9: ='CTI Input Sheet'!N8 -> 19.95 | AT9: ='CTI Input Sheet'!O8 -> 21 | AU9: ='CTI Input Sheet'!P8 -> 1.25 | AV9: ='CTI Input Sheet'!Q8 -> 1.12 | AW9: ='CTI Input Sheet'!R8 -> 1.2
D10: Type | E10: Type # | F10: Dimension | G10: Section Weight LB/FT | H10: Support Instal Time MIN/PC | I10: Section Cost USD/FT | O10: 24 | P10: 0 | Q10: 24 | R10: 0 | AG10: Expansion Guides (PR) | AH10: ='CTI Input Sheet'!C16 -> 5 | AN10: Structural Support (PC) | AO10: ='CTI Input Sheet'!K14 -> 60 | AR10: 24" Width | AS10: ='CTI Input Sheet'!N9 -> 23.75 | AT10: ='CTI Input Sheet'!O9 -> 25 | AU10: ='CTI Input Sheet'!P9 -> 1.25 | AV10: ='CTI Input Sheet'!Q9 -> 1.34 | AW10: ='CTI Input Sheet'!R9 -> 1.46
D11: Straight Section Support | E11: =ProjectData!E13 -> Double Strut (12G) | G11: =INDEX('CTI Input Sheet'!C5:C10,MATCH('VE2'!E11,'CTI Input Sheet'!B5:B10,0)) -> 3.8 | H11: =INDEX('CTI Input Sheet'!D5:D10,MATCH('VE2'!E11,'CTI Input Sheet'!B5:B10,0)) -> 15 | I11: =INDEX('CTI Input Sheet'!E5:E10,MATCH('VE2'!E11,'CTI Input Sheet'!B5:B10,0)) -> 5.7 | O11: 30 | P11: 0 | Q11: 30 | R11: 0 | AG11: Guide Hardware (PC) | AH11: ='CTI Input Sheet'!C17 -> 1.25 | AN11: Strut Channel Support (PC) | AO11: ='CTI Input Sheet'!K12 -> 7 | AR11: 30" Width | AS11: ='CTI Input Sheet'!N10 -> 25.65 | AT11: ='CTI Input Sheet'!O10 -> 27 | AU11: ='CTI Input Sheet'!P10 -> 1.5 | AV11: ='CTI Input Sheet'!Q10 -> 1.63 | AW11: ='CTI Input Sheet'!R10 -> 1.72
D12: Support Finish | E12: =ProjectData!E17 -> Stainless | G12: =INDEX('CTI Input Sheet'!H21:H24,MATCH('VE2'!E12,'CTI Input Sheet'!G21:G24,0)) -> 4 | O12: 36 | P12: 0 | Q12: 36 | R12: 5 | AG12: Splice Plate Hardware (PC) | AH12: ='CTI Input Sheet'!C22 -> 0.75 | AR12: 36" Width | AS12: ='CTI Input Sheet'!N11 -> 26.6 | AT12: ='CTI Input Sheet'!O11 -> 28 | AU12: ='CTI Input Sheet'!P11 -> 1.5 | AV12: ='CTI Input Sheet'!Q11 -> 1.89 | AW12: ='CTI Input Sheet'!R11 -> 1.97
G13: =G12*I11 -> 22.8
B15: 4in Straight Sections | D15: NEMA VE 2 : 4in Height Straight Section : Support Structure Quantity - Support Weight - Support Steel Fabrication, Logistics, Erection Costs | T15: 4" Straight Section : Support Structure Summary | Z15: 4" Straight Section : Tray Accessory Quantities | AG15: 4" Straight Section : Tray Accessory Costs | AK15: Straight Section : Tray Accessory Installation Time & Installation Cost | AQ15: 4" Straight Section Covers
B16: Quantities/Piece | D16: Tray Width (in) | E16: Support Quantity | F16: Section Length (FT) | G16: Total Str. Section Length (FT) | H16: Total Str. Section Weight (lb) | I16: Total Str. Section Cost (USD) | J16: Total Fabrication Cost (USD) | K16: Total Handling Cost (USD) | L16: Total Erection Cost (USD | M16: SUM TOTAL COST/SECTION | T16: Total Quantity of Supports | U16: Total Weight of Supports (LB) | V16: Total Cost of Supports (USD) | W16: Total Design Time (HRS) | X16: Total Support Instal Time (HRS) | Z16: Splice Plates Quantity (PRS) | AA16: Splice Plate Hardware Quantity (PCS) | AB16: Hold Down Clamp Quantity (PRS) | AC16: Clamp Hardware Quantity (PCS) | AD16: Expansion Guides Quantity (PRS) | AE16: Guides Hardware Quantity (PCS) | AG16: Hold Down Clamps (PR) | AH16: Expansion Guides (PR) | AI16: Total Accessory Cost | AK16: Splice Plates Time/Pair (HRS) | AL16: Hold Down Clamp Time/Pair (HRS) | AM16: Exp. Guide Time/Pair (HRS) | AN16: Total Time (HOURS) | AO16: Total Time Cost (USD) | AQ16: Cover Quantity (PCS) | AR16: Clamp Quantity (PCS) | AS16: Hardware Quantity (PCS) | AT16: Cover Weight (LBS) | AU16: Clamp Weight (LBS) | AV16: Clamps Cost (USD) | AW16: Installation Time (HRS)
B17: =ProjectData!C24 -> 0 | D17: 6 | E17: 1 | F17: 1 | G17: =(E17*F17)*B17 -> 0 | H17: =G17*G11 -> 0 | I17: =G17*G13 -> 0 | J17: =H17*'CTI Input Sheet'!B28 -> 0 | K17: =H17*'CTI Input Sheet'!C28 -> 0 | L17: =H17*'CTI Input Sheet'!D28 -> 0 | M17: =SUM(I17:L17) -> 0 | T17: =B17*E17 -> 0 | U17: =H17 -> 0 | V17: =M17 -> 0 | W17: =T17*'CTI Input Sheet'!K20 -> 0 | X17: =SUM(T17*H11)/60 -> 0 | Z17: =B17*1 -> 0 | AA17: =Z17*16 -> 0 | AB17: =SUM(E17)*(B17*0.3333) -> 0 | AC17: =AB17*4 -> 0 | AD17: =SUM(E17)*(B17*0.7777) -> 0 | AE17: =EVEN(AD17)*4 -> 0 | AG17: =SUM(AB17*AH8)+(AC17*AH9) -> 0 | AH17: =SUM(AD17*AH10)+(AE17*AH11) -> 0 | AI17: =SUM(AG17:AH17) -> 0 | AK17: =(Z17*AO6)/60 -> 0 | AL17: =AB17*AO8/60 -> 0 | AM17: =AD17*AO9/60 -> 0 | AN17: =SUM(AK17:AM17) -> 0 | AO17: =AN17*AL6 -> 0 | AQ17: =IF(ProjectData!H$17="Not Required",0,B17*2) -> 0 | AR17: =AQ17*3 -> 0 | AS17: =AR17*4 -> 0 | AT17: =AQ17*2.5 -> 0 | AU17: =+AR17*AV6 -> 0 | AV17: =AR17*AS6 -> 0 | AW17: =AR17*AU6/60 -> 0
B18: =ProjectData!C25 -> 0 | D18: 9 | E18: 1 | F18: 1.25 | G18: 0 | H18: =G18*G11 -> 0 | I18: =G18*G13 -> 0 | J18: =H18*'CTI Input Sheet'!B28 -> 0 | K18: =H18*'CTI Input Sheet'!C28 -> 0 | L18: =H18*'CTI Input Sheet'!D28 -> 0 | M18: =SUM(I18:L18) -> 0 | T18: =B18*E18 -> 0 | U18: =H18 -> 0 | V18: 0 | W18: =T18*'CTI Input Sheet'!K20 -> 0 | X18: =SUM(T18*H11)/60 -> 0 | Z18: =B18*1 -> 0 | AA18: =Z18*16 -> 0 | AB18: =SUM(E18)*(B18*0.3333) -> 0 | AC18: =AB18*4 -> 0 | AD18: =SUM(E18)*(B18*0.7777) -> 0 | AE18: 0 | AG18: =SUM(AB18*AH8)+(AC18*AH9) -> 0 | AH18: =SUM(AD18*AH10)+(AE18*AH11) -> 0 | AI18: =SUM(AG18:AH18) -> 0 | AK18: =Z18*AO6/60 -> 0 | AL18: =AB18*AO8/60 -> 0 | AM18: =AD18*AO9/60 -> 0 | AN18: 0 | AO18: =AN18*AL6 -> 0 | AQ18: =IF(ProjectData!H$17="Not Required",0,B18*2) -> 0 | AR18: =AQ18*3 -> 0 | AS18: =AR18*4 -> 0 | AT18: =AQ18*3.37 -> 0 | AU18: =+AR18*AV7 -> 0 | AV18: 0 | AW18: 0
B19: =ProjectData!C26 -> 0 | D19: 12 | E19: 1 | F19: 1.5 | G19: 0 | H19: =G19*G11 -> 0 | I19: =G19*G13 -> 0 | J19: =H19*'CTI Input Sheet'!B28 -> 0 | K19: =H19*'CTI Input Sheet'!C28 -> 0 | L19: =H19*'CTI Input Sheet'!D28 -> 0 | M19: 0 | T19: 0 | U19: 0 | V19: 0 | W19: =T19*'CTI Input Sheet'!K20 -> 0 | X19: =SUM(T19*H11)/60 -> 0 | Z19: 0 | AA19: 0 | AB19: 0 | AC19: 0 | AD19: 0 | AE19: 0 | AG19: =SUM(AB19*AH8)+(AC19*AH9) -> 0 | AH19: =SUM(AD19*AH10)+(AE19*AH11) -> 0 | AI19: 0 | AK19: =Z19*AO6/60 -> 0 | AL19: =AB19*AO8/60 -> 0 | AM19: =AD19*AO9/60 -> 0 | AN19: 0 | AO19: =AN19*AL6 -> 0 | AQ19: =IF(ProjectData!H$17="Not Required",0,B19*2) -> 0 | AR19: 0 | AS19: 0 | AT19: =AQ19*4.24 -> 0 | AU19: 0 | AV19: 0 | AW19: 0
B20: =ProjectData!C27 -> 0 | D20: 18 | E20: 1 | F20: 2 | G20: 0 | H20: =G20*G11 -> 0 | I20: =G20*G13 -> 0 | J20: =H20*'CTI Input Sheet'!B28 -> 0 | K20: =H20*'CTI Input Sheet'!C28 -> 0 | L20: =H20*'CTI Input Sheet'!D28 -> 0 | M20: 0 | T20: 0 | U20: 0 | V20: 0 | W20: =T20*'CTI Input Sheet'!K20 -> 0 | X20: =SUM(T20*H11)/60 -> 0 | Z20: 0 | AA20: 0 | AB20: 0 | AC20: 0 | AD20: 0 | AE20: 0 | AG20: =SUM(AB20*AH8)+(AC20*AH9) -> 0 | AH20: =SUM(AD20*AH10)+(AE20*AH11) -> 0 | AI20: 0 | AK20: =Z20*AO6/60 -> 0 | AL20: =AB20*AO8/60 -> 0 | AM20: =AD20*AO9/60 -> 0 | AN20: 0 | AO20: =AN20*AL6 -> 0 | AQ20: =IF(ProjectData!H$17="Not Required",0,B20*2) -> 0 | AR20: 0 | AS20: 0 | AT20: =AQ20*5.98 -> 0 | AU20: 0 | AV20: 0 | AW20: 0
B21: =ProjectData!C28 -> 0 | D21: 24 | E21: 1 | F21: 2.5 | G21: 0 | H21: =G21*G11 -> 0 | I21: =G21*G13 -> 0 | J21: =H21*'CTI Input Sheet'!B28 -> 0 | K21: =H21*'CTI Input Sheet'!C28 -> 0 | L21: =H21*'CTI Input Sheet'!D28 -> 0 | M21: 0 | T21: 0 | U21: 0 | V21: 0 | W21: =T21*'CTI Input Sheet'!K20 -> 0 | X21: =SUM(T21*H11)/60 -> 0 | Z21: 0 | AA21: 0 | AB21: 0 | AC21: 0 | AD21: 0 | AE21: 0 | AG21: =SUM(AB21*AH8)+(AC21*AH9) -> 0 | AH21: =SUM(AD21*AH10)+(AE21*AH11) -> 0 | AI21: 0 | AK21: =Z21*AO6/60 -> 0 | AL21: =AB21*AO8/60 -> 0 | AM21: =AD21*AO9/60 -> 0 | AN21: 0 | AO21: =AN21*AL6 -> 0 | AQ21: =IF(ProjectData!H$17="Not Required",0,B21*2) -> 0 | AR21: 0 | AS21: 0 | AT21: =AQ21*7.73 -> 0 | AU21: 0 | AV21: 0 | AW21: 0
B22: =ProjectData!C29 -> 0 | D22: 30 | E22: 1 | F22: 3 | G22: 0 | H22: =G22*G11 -> 0 | I22: =G22*G13 -> 0 | J22: =H22*'CTI Input Sheet'!B28 -> 0 | K22: =H22*'CTI Input Sheet'!C28 -> 0 | L22: =H22*'CTI Input Sheet'!D28 -> 0 | M22: 0 | T22: 0 | U22: 0 | V22: 0 | W22: =T22*'CTI Input Sheet'!K20 -> 0 | X22: =SUM(T22*H11)/60 -> 0 | Z22: 0 | AA22: 0 | AB22: 0 | AC22: 0 | AD22: 0 | AE22: 0 | AG22: =SUM(AB22*AH8)+(AC22*AH9) -> 0 | AH22: =SUM(AD22*AH10)+(AE22*AH11) -> 0 | AI22: 0 | AK22: =Z22*AO6/60 -> 0 | AL22: =AB22*AO8/60 -> 0 | AM22: =AD22*AO9/60 -> 0 | AN22: 0 | AO22: =AN22*AL6 -> 0 | AQ22: =IF(ProjectData!H$17="Not Required",0,B22*2) -> 0 | AR22: 0 | AS22: 0 | AT22: =AQ22*9.48 -> 0 | AU22: 0 | AV22: 0 | AW22: 0
B23: =ProjectData!C30 -> 0 | D23: 36 | E23: 1 | F23: 3.5 | G23: 0 | H23: =G23*G11 -> 0 | I23: =G23*G13 -> 0 | J23: =H23*'CTI Input Sheet'!B28 -> 0 | K23: =H23*'CTI Input Sheet'!C28 -> 0 | L23: =H23*'CTI Input Sheet'!D28 -> 0 | M23: 0 | T23: 0 | U23: 0 | V23: 0 | W23: =T23*'CTI Input Sheet'!K20 -> 0 | X23: =SUM(T23*H11)/60 -> 0 | Z23: 0 | AA23: 0 | AB23: 0 | AC23: 0 | AD23: 0 | AE23: 0 | AG23: =SUM(AB23*AH8)+(AC23*AH9) -> 0 | AH23: =SUM(AD23*AH10)+(AE23*AH11) -> 0 | AI23: 0 | AK23: =Z23*AO6/60 -> 0 | AL23: =AB23*AO8/60 -> 0 | AM23: =AD23*AO9/60 -> 0 | AN23: 0 | AO23: =AN23*AL6 -> 0 | AQ23: =IF(ProjectData!H$17="Not Required",0,B23*2) -> 0 | AR23: 0 | AS23: 0 | AT23: =AQ23*11.23 -> 0 | AU23: 0 | AV23: 0 | AW23: 0
B24: =SUM(B17:B23) -> 0 | G24: =SUM(G17:G23) -> 0 | H24: 0 | I24: 0 | J24: 0 | K24: 0 | L24: 0 | M24: 0 | T24: =SUM(T17:T23) -> 0 | U24: =SUM(U17:U23) -> 0 | V24: =SUM(V17:V23) -> 0 | W24: =SUM(W17:W23) -> 0 | X24: =SUM(X17:X23) -> 0 | Z24: =SUM(Z17:Z23) -> 0 | AA24: 0 | AB24: 0 | AC24: =EVEN(SUM(AC17:AC23)) -> 0 | AD24: 0 | AE24: 0 | AG24: =SUM(AG17:AG23) -> 0 | AH24: =SUM(AH17:AH23) -> 0 | AI24: =SUM(AI17:AI23) -> 0 | AK24: =SUM(AK17:AK23) -> 0 | AL24: =SUM(AL17:AL23) -> 0 | AM24: =SUM(AM17:AM23) -> 0 | AN24: =SUM(AN17:AN23) -> 0 | AO24: =SUM(AO17:AO23) -> 0 | AQ24: =SUM(AQ17:AQ23) -> 0 | AR24: 0 | AS24: 0 | AT24: 0 | AU24: 0 | AV24: 0 | AW24: 0
W25: =W24*'CTI Input Sheet'!H7 -> 0 | X25: =X24*'CTI Input Sheet'!H6 -> 0 | AA25: =AA24*AH12 -> 0 | AB25: =AB24*AH8 -> 0 | AC25: =AC24*AH9 -> 0 | AD25: =AD24*AH10 -> 0 | AE25: =AE24*AH11 -> 0 | AK25: =AK24*AL6 -> 0 | AL25: =AL24*AL6 -> 0 | AM25: =AM24*AL6 -> 0
B26: 6in Straight Sections | D26: NEMA VE 2 : 6in Height Straight Section : Support Structure Quantity - Support Weight - Support Steel Fabrication, Logistics, Erection Costs | T26: 6" Straight Section : Support Structure Summary | Z26: 6" Straight Section : Tray Accessory Quantities | AG26: 6" Straight Section : Tray Accessory Costs | AK26: Straight Section : Tray Accessory Installation Time & Installation Cost | AQ26: 6" Straight Section Covers
B27: Quantities/Piece | D27: Tray Width (in) | E27: Support Quantity | F27: Section Length (FT) | G27: Total Str. Section Length (FT) | H27: Total Str. Section Weight (lb) | I27: Total Str. Section Cost (USD) | J27: Total Fabrication Cost (USD) | K27: Total Logistic Cost (USD) | L27: Total Erection Cost (USD | M27: SUM TOTAL COST/SECTION | T27: Total Quantity of Supports | U27: Total Weight of Supports (LB) | V27: Total Cost of Supports (USD) | W27: Total Design Time (HOURS) | X27: Total Support Instal Time (HOURS) | Z27: Splice Plates Quantity (PRS) | AA27: Splice Plate Hardware Quantity (PCS) | AB27: Hold Down Clamp Quantity (PRS) | AC27: Clamp Hardware Quantity (PCS) | AD27: Expansion Guides Quantity (PRS) | AE27: Guides Hardware Quantity (PCS) | AG27: Hold Down Clamps (PR) | AH27: Expansion Guides (PR) | AI27: Total Accessory Cost | AK27: Splice Plates Time/Pair (HRS) | AL27: Hold Down Clamp Time/Pair (HRS) | AM27: Exp. Guide Time/Pair (HRS) | AN27: Total Time (HOURS) | AO27: Total Time Cost (USD) | AQ27: Cover Quantity (PCS) | AR27: Clamp Quantity (PCS) | AS27: Hardware Quantity (PCS) | AT27: Cover Weight (LBS) | AU27: Clamp Weight (LBS) | AV27: Clamps Cost (USD) | AW27: Installation Time (HRS)
B28: =ProjectData!F24 -> 0 | D28: 6 | E28: 1 | F28: 1 | G28: =(E28*F28)*B28 -> 0 | H28: =G28*G11 -> 0 | I28: =G28*G13 -> 0 | J28: =H28*'CTI Input Sheet'!B28 -> 0 | K28: =H28*'CTI Input Sheet'!C28 -> 0 | L28: =H28*'CTI Input Sheet'!D28 -> 0 | M28: =SUM(I28:L28) -> 0 | T28: =B28*E28 -> 0 | U28: =H28 -> 0 | V28: =M28 -> 0 | W28: =T28*'CTI Input Sheet'!K20 -> 0 | X28: =SUM(T28*H11)/60 -> 0 | Z28: =B28*1 -> 0 | AA28: =Z28*16 -> 0 | AB28: =SUM(E28)*(B28*0.3333) -> 0 | AC28: =AB28*4 -> 0 | AD28: =SUM(E28)*(B28*0.7777) -> 0 | AE28: =EVEN(AD28)*4 -> 0 | AG28: =SUM(AB28*AH8)+(AC28*AH9) -> 0 | AH28: =SUM(AD28*AH10)+(AE28*AH11) -> 0 | AI28: =SUM(AG28:AH28) -> 0 | AK28: =Z28*AO6/60 -> 0 | AL28: =AB28*AO8/60 -> 0 | AM28: =AD28*AO9/60 -> 0 | AN28: =SUM(AK28:AM28) -> 0 | AO28: =AN28*AL6 -> 0 | AQ28: =IF(ProjectData!H$17="Not Required",0,B28*2) -> 0 | AR28: =AQ28*3 -> 0 | AS28: =AR28*4 -> 0 | AT28: =AQ28*2.5 -> 0 | AU28: =+AR28*AW6 -> 0 | AV28: =AR28*AT6 -> 0 | AW28: =AR28*AU6/60 -> 0
B29: =ProjectData!F25 -> 0 | D29: 9 | E29: 1 | F29: 1.25 | G29: 0 | H29: =G29*G11 -> 0 | I29: =G29*G13 -> 0 | J29: =H29*'CTI Input Sheet'!B28 -> 0 | K29: =H29*'CTI Input Sheet'!C28 -> 0 | L29: =H29*'CTI Input Sheet'!D28 -> 0 | M29: 0 | T29: =B29*E29 -> 0 | U29: =H29 -> 0 | V29: =M29 -> 0 | W29: =T29*'CTI Input Sheet'!K20 -> 0 | X29: =SUM(T29*H11)/60 -> 0 | Z29: =B29*1 -> 0 | AA29: =Z29*16 -> 0 | AB29: =SUM(E29)*(B29*0.3333) -> 0 | AC29: =AB29*4 -> 0 | AD29: =SUM(E29)*(B29*0.7777) -> 0 | AE29: 0 | AG29: =SUM(AB29*AH8)+(AC29*AH9) -> 0 | AH29: =SUM(AD29*AH10)+(AE29*AH11) -> 0 | AI29: 0 | AK29: =Z29*AO6/60 -> 0 | AL29: =AB29*AO8/60 -> 0 | AM29: =AD29*AO9/60 -> 0 | AN29: 0 | AO29: =AN29*AL6 -> 0 | AQ29: =IF(ProjectData!H$17="Not Required",0,B29*2) -> 0 | AR29: 0 | AS29: 0 | AT29: =AQ29*3.37 -> 0 | AU29: =+AR29*AW7 -> 0 | AV29: 0 | AW29: 0
B30: =ProjectData!F26 -> 30 | D30: 12 | E30: 1 | F30: 1.5 | G30: 45 | H30: =G30*G11 -> 171 | I30: =G30*G13 -> 1026 | J30: =H30*'CTI Input Sheet'!B28 -> 256.5 | K30: =H30*'CTI Input Sheet'!C28 -> 42.75 | L30: =H30*'CTI Input Sheet'!D28 -> 0 | M30: 1325.25 | T30: 30 | U30: 171 | V30: 1325.25 | W30: =T30*'CTI Input Sheet'!K20 -> 7.5 | X30: =SUM(T30*H11)/60 -> 7.5 | Z30: 30 | AA30: 480 | AB30: 9.999 | AC30: 39.996 | AD30: 23.331 | AE30: 96 | AG30: =SUM(AB30*AH8)+(AC30*AH9) -> 99.99 | AH30: =SUM(AD30*AH10)+(AE30*AH11) -> 236.655 | AI30: 336.645 | AK30: =Z30*AO6/60 -> 2.5 | AL30: =AB30*AO8/60 -> 0.3333 | AM30: =AD30*AO9/60 -> 0.7777 | AN30: 3.611 | AO30: =AN30*AL6 -> 270.825 | AQ30: =IF(ProjectData!H$17="Not Required",0,B30*2) -> 0 | AR30: 0 | AS30: 0 | AT30: =AQ30*4.24 -> 0 | AU30: 0 | AV30: 0 | AW30: 0
B31: =ProjectData!F27 -> 0 | D31: 18 | E31: 1 | F31: 2 | G31: 0 | H31: =G31*G11 -> 0 | I31: =G31*G13 -> 0 | J31: =H31*'CTI Input Sheet'!B28 -> 0 | K31: =H31*'CTI Input Sheet'!C28 -> 0 | L31: =H31*'CTI Input Sheet'!D28 -> 0 | M31: 0 | T31: 0 | U31: 0 | V31: 0 | W31: =T31*'CTI Input Sheet'!K20 -> 0 | X31: =SUM(T31*H11)/60 -> 0 | Z31: 0 | AA31: 0 | AB31: 0 | AC31: 0 | AD31: 0 | AE31: 0 | AG31: =SUM(AB31*AH8)+(AC31*AH9) -> 0 | AH31: =SUM(AD31*AH10)+(AE31*AH11) -> 0 | AI31: 0 | AK31: =Z31*AO6/60 -> 0 | AL31: =AB31*AO8/60 -> 0 | AM31: =AD31*AO9/60 -> 0 | AN31: 0 | AO31: =AN31*AL6 -> 0 | AQ31: =IF(ProjectData!H$17="Not Required",0,B31*2) -> 0 | AR31: 0 | AS31: 0 | AT31: =AQ31*5.98 -> 0 | AU31: 0 | AV31: 0 | AW31: 0
B32: =ProjectData!F28 -> 0 | D32: 24 | E32: 1 | F32: 2.5 | G32: 0 | H32: =G32*G11 -> 0 | I32: =G32*G13 -> 0 | J32: =H32*'CTI Input Sheet'!B28 -> 0 | K32: =H32*'CTI Input Sheet'!C28 -> 0 | L32: =H32*'CTI Input Sheet'!D28 -> 0 | M32: 0 | T32: 0 | U32: 0 | V32: 0 | W32: =T32*'CTI Input Sheet'!K20 -> 0 | X32: =SUM(T32*H11)/60 -> 0 | Z32: 0 | AA32: 0 | AB32: 0 | AC32: 0 | AD32: 0 | AE32: 0 | AG32: =SUM(AB32*AH8)+(AC32*AH9) -> 0 | AH32: =SUM(AD32*AH10)+(AE32*AH11) -> 0 | AI32: 0 | AK32: =Z32*AO6/60 -> 0 | AL32: =AB32*AO8/60 -> 0 | AM32: =AD32*AO9/60 -> 0 | AN32: 0 | AO32: =AN32*AL6 -> 0 | AQ32: =IF(ProjectData!H$17="Not Required",0,B32*2) -> 0 | AR32: 0 | AS32: 0 | AT32: =AQ32*7.73 -> 0 | AU32: 0 | AV32: 0 | AW32: 0
B33: =ProjectData!F29 -> 0 | D33: 30 | E33: 1 | F33: 3 | G33: 0 | H33: =G33*G11 -> 0 | I33: =G33*G13 -> 0 | J33: =H33*'CTI Input Sheet'!B28 -> 0 | K33: =H33*'CTI Input Sheet'!C28 -> 0 | L33: =H33*'CTI Input Sheet'!D28 -> 0 | M33: 0 | T33: 0 | U33: 0 | V33: 0 | W33: =T33*'CTI Input Sheet'!K20 -> 0 | X33: =SUM(T33*H11)/60 -> 0 | Z33: 0 | AA33: 0 | AB33: 0 | AC33: 0 | AD33: 0 | AE33: 0 | AG33: =SUM(AB33*AH8)+(AC33*AH9) -> 0 | AH33: =SUM(AD33*AH10)+(AE33*AH11) -> 0 | AI33: 0 | AK33: =Z33*AO6/60 -> 0 | AL33: =AB33*AO8/60 -> 0 | AM33: =AD33*AO9/60 -> 0 | AN33: 0 | AO33: =AN33*AL6 -> 0 | AQ33: =IF(ProjectData!H$17="Not Required",0,B33*2) -> 0 | AR33: 0 | AS33: 0 | AT33: =AQ33*9.48 -> 0 | AU33: 0 | AV33: 0 | AW33: 0
B34: =ProjectData!F30 -> 15 | D34: 36 | E34: 1 | F34: 3.5 | G34: 52.5 | H34: =G34*G11 -> 199.5 | I34: =G34*G13 -> 1197 | J34: =H34*'CTI Input Sheet'!B28 -> 299.25 | K34: =H34*'CTI Input Sheet'!C28 -> 49.875 | L34: =H34*'CTI Input Sheet'!D28 -> 0 | M34: 1546.125 | T34: 15 | U34: 199.5 | V34: 1546.125 | W34: =T34*'CTI Input Sheet'!K20 -> 3.75 | X34: =SUM(T34*H11)/60 -> 3.75 | Z34: 15 | AA34: 240 | AB34: 4.9995 | AC34: 19.998 | AD34: 11.6655 | AE34: 48 | AG34: =SUM(AB34*AH8)+(AC34*AH9) -> 49.995 | AH34: =SUM(AD34*AH10)+(AE34*AH11) -> 118.3275 | AI34: 168.3225 | AK34: =Z34*AO6/60 -> 1.25 | AL34: =AB34*AO8/60 -> 0.16665 | AM34: =AD34*AO9/60 -> 0.38885 | AN34: 1.8055 | AO34: =AN34*AL6 -> 135.4125 | AQ34: =IF(ProjectData!H$17="Not Required",0,B34*2) -> 0 | AR34: 0 | AS34: 0 | AT34: =AQ34*11.23 -> 0 | AU34: 0 | AV34: 0 | AW34: 0
B35: =SUM(B28:B34) -> 45 | G35: =SUM(G28:G34) -> 97.5 | H35: 370.5 | I35: 2223 | J35: 555.75 | K35: 92.625 | L35: 0 | M35: 2871.375 | T35: =SUM(T28:T34) -> 45 | U35: =SUM(U28:U34) -> 370.5 | V35: =SUM(V28:V34) -> 2871.375 | W35: =SUM(W28:W34) -> 11.25 | X35: =SUM(X28:X34) -> 11.25 | Z35: =SUM(Z28:Z34) -> 45 | AA35: 720 | AB35: 14.9985 | AC35: 59.994 | AD35: 34.9965 | AE35: 144 | AG35: =SUM(AG28:AG34) -> 149.985 | AH35: =SUM(AH28:AH34) -> 354.9825 | AI35: =SUM(AI28:AI34) -> 504.9675 | AK35: =SUM(AK28:AK34) -> 3.75 | AL35: =SUM(AL28:AL34) -> 0.49995 | AM35: =SUM(AM28:AM34) -> 1.16655 | AN35: =SUM(AN28:AN34) -> 5.4165 | AO35: =SUM(AO28:AO34) -> 406.2375 | AQ35: =SUM(AQ28:AQ34) -> 0 | AR35: 0 | AS35: 0 | AT35: 0 | AU35: 0 | AV35: 0 | AW35: 0
W36: =W35*'CTI Input Sheet'!H7 -> 843.75 | X36: =X35*'CTI Input Sheet'!H6 -> 843.75 | AA36: =AA35*AH12 -> 540 | AB36: =AB35*AH8 -> 74.9925 | AC36: =AC35*AH9 -> 74.9925 | AD36: =AD35*AH10 -> 174.9825 | AE36: =AE35*AH11 -> 180 | AK36: =AK35*AL6 -> 281.25 | AL36: =AL35*AL6 -> 37.49625 | AM36: =AM35*AL6 -> 87.49125
B37: HB Fittings | D37: HB Fittings | F37: NEMA VE 2 : HB Support Quantity - Support Weight - Support Steel Fabrication, Logistics, Erection Costs | T37: HB : Support Structure Summary | Z37: HB : Tray Accessory Quantities | AG37: HB : Tray Accessory Costs | AK37: HB : Tray Accessory Installation Time & Installation Cost | AQ37: HB Covers
B38: Quantities/Piece | D38: HB Width (in) | E38: HB Radius (in) | F38: Support Quantity | G38: OS1 Str. Section Length (FT) | H38: OS2 Str. Section Length (FT) | I38: CTR Str. Section Length (FT) | J38: Total Str. Section Length (FT) | K38: Total Str. Section Weight (lb) | L38: Total Str. Section Cost (USD) | M38: Total Fabrication Cost (USD) | N38: Total Logistic Cost (USD) | O38: Total Erection Cost (USD | P38: SUM TOTAL COST/FITTING | T38: Total Quantity of Supports | U38: Total Weight of Supports (LB) | V38: Total Cost of Supports (USD) | W38: Total Design Time (HOURS) | X38: Total Support Instal Time (HOURS) | Z38: Splice Plates Quantity (PRS) | AA38: Splice Plate Hardware Quantity (PCS) | AB38: Hold Down Clamp Quantity (PRS) | AC38: Clamp Hardware Quantity (PCS) | AD38: Expansion Guides Quantity (PRS) | AE38: Guides Hardware Quantity (PCS) | AG38: Hold Down Clamps (PR) | AH38: Expansion Guides (PR) | AI38: Total Accessory Cost | AK38: Splice Plates Time/Pair (HRS) | AL38: Hold Down Clamp Time/Pair (HRS) | AM38: Exp. Guide Time/Pair (HRS) | AN38: Total Time (HOURS) | AO38: Total Time Cost (USD) | AQ38: Cover Quantity (PCS) | AR38: Clamp Quantity (PCS) | AS38: Hardware Quantity (PCS) | AT38: Cover Weight (LBS) | AU38: Clamp Weight (LBS) | AV38: Clamps Cost (USD) | AW38: Installation Time (HRS)
B39: =ProjectData!D37 -> 0 | D39: 6 | E39: 12 | F39: 3 | G39: 1 | H39: 2 | I39: 2.5 | J39: =SUM(G39+H39+I39)*B39 -> 0 | K39: =J39*G11 -> 0 | L39: =J39*G13 -> 0 | M39: =K39*'CTI Input Sheet'!B28 -> 0 | N39: =K39*'CTI Input Sheet'!C28 -> 0 | O39: =K39*'CTI Input Sheet'!D28 -> 0 | P39: =SUM(L39:O39) -> 0 | T39: =B39*F39 -> 0 | U39: =K39 -> 0 | V39: =P39 -> 0 | W39: =T39*'CTI Input Sheet'!K21 -> 0 | X39: =SUM(T39*H11)/60 -> 0 | Z39: =B39*2 -> 0 | AA39: =Z39*16 -> 0 | AB39: =(F39)*B39 -> 0 | AC39: =AB39*4 -> 0 | AD39: 0 | AE39: 0 | AG39: =SUM(AB39*AH8)+(AC39*AH9) -> 0 | AH39: =SUM(AD39*AH10)+(AD39*AH11) -> 0 | AI39: =SUM(AG39:AH39) -> 0 | AK39: =Z39*AO6/60 -> 0 | AL39: =AB39*AO8/60 -> 0 | AM39: =AD39*AO9/60 -> 0 | AN39: =SUM(AK39:AM39) -> 0 | AO39: =AN39*AL6 -> 0 | AQ39: =IF(ProjectData!H$17="Not Required",0,B39*2) -> 0 | AR39: =AQ39*2 -> 0 | AS39: =AR39*4 -> 0 | AT39: =AQ39*0.49 -> 0 | AU39: =+AR39*AW6 -> 0 | AV39: =AR39*AT6 -> 0 | AW39: =AR39*AU6/60 -> 0
B40: =ProjectData!D38 -> 0 | D40: 6 | E40: 24 | F40: 3 | G40: 1 | H40: 3 | I40: 3.5 | J40: 0 | K40: =J40*G11 -> 0 | L40: =J40*G13 -> 0 | M40: =K40*'CTI Input Sheet'!B28 -> 0 | N40: =K40*'CTI Input Sheet'!C28 -> 0 | O40: =K40*'CTI Input Sheet'!D28 -> 0 | P40: 0 | T40: =B40*F40 -> 0 | U40: 0 | V40: 0 | W40: =T40*'CTI Input Sheet'!K21 -> 0 | X40: =SUM(T40*H11)/60 -> 0 | Z40: 0 | AA40: 0 | AB40: 0 | AC40: 0 | AD40: 0 | AE40: 0 | AG40: =SUM(AB40*AH8)+(AC40*AH9) -> 0 | AH40: =SUM(AD40*AH10)+(AD40*AH11) -> 0 | AI40: 0 | AK40: =Z40*AO6/60 -> 0 | AL40: =AB40*AO8/60 -> 0 | AM40: =AD40*AO9/60 -> 0 | AN40: 0 | AO40: =AN40*AL6 -> 0 | AQ40: =IF(ProjectData!H$17="Not Required",0,B40*2) -> 0 | AR40: 0 | AS40: 0 | AT40: =AQ40*0.88 -> 0 | AU40: =+AR40*AW6 -> 0 | AV40: =AR40*AT6 -> 0 | AW40: =AR40*AU7/60 -> 0
B41: =ProjectData!D39 -> 0 | D41: 6 | E41: 36 | F41: 3 | G41: 1 | H41: 4 | I41: 4.5 | J41: 0 | K41: =J41*G11 -> 0 | L41: =J41*G13 -> 0 | M41: =K41*'CTI Input Sheet'!B28 -> 0 | N41: =K41*'CTI Input Sheet'!C28 -> 0 | O41: =K41*'CTI Input Sheet'!D28 -> 0 | P41: 0 | T41: 0 | U41: 0 | V41: 0 | W41: =T41*'CTI Input Sheet'!K21 -> 0 | X41: =SUM(T41*H11)/60 -> 0 | Z41: 0 | AA41: 0 | AB41: 0 | AC41: 0 | AD41: 0 | AE41: 0 | AG41: =SUM(AB41*AH8)+(AC41*AH9) -> 0 | AH41: =SUM(AD41*AH10)+(AD41*AH11) -> 0 | AI41: 0 | AK41: =Z41*AO6/60 -> 0 | AL41: =AB41*AO8/60 -> 0 | AM41: =AD41*AO9/60 -> 0 | AN41: 0 | AO41: =AN41*AL6 -> 0 | AQ41: =IF(ProjectData!H$17="Not Required",0,B41*2) -> 0 | AR41: 0 | AS41: 0 | AT41: =AQ41*1.28 -> 0 | AU41: =+AR41*AW6 -> 0 | AV41: =AR41*AT6 -> 0 | AW41: =A636*AU8/60 -> 0
B42: =ProjectData!D40 -> 0 | D42: 9 | E42: 12 | F42: 3 | G42: 1.25 | H42: 2.25 | I42: 2.75 | J42: 0 | K42: =J42*G11 -> 0 | L42: =J42*G13 -> 0 | M42: =K42*'CTI Input Sheet'!B28 -> 0 | N42: =K42*'CTI Input Sheet'!C28 -> 0 | O42: =K42*'CTI Input Sheet'!D28 -> 0 | P42: 0 | T42: 0 | U42: 0 | V42: 0 | W42: =T42*'CTI Input Sheet'!K21 -> 0 | X42: =SUM(T42*H11)/60 -> 0 | Z42: 0 | AA42: 0 | AB42: 0 | AC42: 0 | AD42: 0 | AE42: 0 | AG42: =SUM(AB42*AH8)+(AC42*AH9) -> 0 | AH42: =SUM(AD42*AH10)+(AD42*AH11) -> 0 | AI42: 0 | AK42: =Z42*AO6/60 -> 0 | AL42: =AB42*AO8/60 -> 0 | AM42: =AD42*AO9/60 -> 0 | AN42: 0 | AO42: =AN42*AL6 -> 0 | AQ42: =IF(ProjectData!H$17="Not Required",0,B42*2) -> 0 | AR42: 0 | AS42: 0 | AT42: =AQ42*0.73 -> 0 | AU42: =+AR42*AW7 -> 0 | AV42: =AR42*AT7 -> 0 | AW42: =AR42*AU7/60 -> 0
B43: =ProjectData!D41 -> 0 | D43: 9 | E43: 24 | F43: 3 | G43: 1.25 | H43: 3.25 | I43: 3.75 | J43: 0 | K43: =J43*G11 -> 0 | L43: =J43*G13 -> 0 | M43: =K43*'CTI Input Sheet'!B28 -> 0 | N43: =K43*'CTI Input Sheet'!C28 -> 0 | O43: =K43*'CTI Input Sheet'!D28 -> 0 | P43: 0 | T43: 0 | U43: 0 | V43: 0 | W43: =T43*'CTI Input Sheet'!K21 -> 0 | X43: =SUM(T43*H11)/60 -> 0 | Z43: 0 | AA43: 0 | AB43: 0 | AC43: 0 | AD43: 0 | AE43: 0 | AG43: =SUM(AB43*AH8)+(AC43*AH9) -> 0 | AH43: =SUM(AD43*AH10)+(AD43*AH11) -> 0 | AI43: 0 | AK43: =Z43*AO6/60 -> 0 | AL43: =AB43*AO8/60 -> 0 | AM43: =AD43*AO9/60 -> 0 | AN43: 0 | AO43: =AN43*AL6 -> 0 | AQ43: =IF(ProjectData!H$17="Not Required",0,B43*2) -> 0 | AR43: 0 | AS43: 0 | AT43: =AQ43*1.26 -> 0 | AU43: =+AR43*AW7 -> 0 | AV43: =AR43*AT7 -> 0 | AW43: =AR43*AU7/60 -> 0
B44: =ProjectData!D42 -> 0 | D44: 9 | E44: 36 | F44: 3 | G44: 1.25 | H44: 4.25 | I44: 4.75 | J44: 0 | K44: =J44*G11 -> 0 | L44: =J44*G13 -> 0 | M44: =K44*'CTI Input Sheet'!B28 -> 0 | N44: =K44*'CTI Input Sheet'!C28 -> 0 | O44: =K44*'CTI Input Sheet'!D28 -> 0 | P44: 0 | T44: 0 | U44: 0 | V44: 0 | W44: =T44*'CTI Input Sheet'!K21 -> 0 | X44: =SUM(T44*H11)/60 -> 0 | Z44: 0 | AA44: 0 | AB44: 0 | AC44: 0 | AD44: 0 | AE44: 0 | AG44: =SUM(AB44*AH8)+(AC44*AH9) -> 0 | AH44: =SUM(AD44*AH10)+(AD44*AH11) -> 0 | AI44: 0 | AK44: =Z44*AO6/60 -> 0 | AL44: =AB44*AO8/60 -> 0 | AM44: =AD44*AO9/60 -> 0 | AN44: 0 | AO44: =AN44*AL6 -> 0 | AQ44: =IF(ProjectData!H$17="Not Required",0,B44*2) -> 0 | AR44: 0 | AS44: 0 | AT44: =AQ44*1.79 -> 0 | AU44: =+AR44*AW7 -> 0 | AV44: =AR44*AT7 -> 0 | AW44: =AR44*AU7/60 -> 0
B45: =ProjectData!D43 -> 3 | D45: 12 | E45: 12 | F45: 3 | G45: 1.5 | H45: 2.5 | I45: 3 | J45: 21 | K45: =J45*G11 -> 79.8 | L45: =J45*G13 -> 478.8 | M45: =K45*'CTI Input Sheet'!B28 -> 119.7 | N45: =K45*'CTI Input Sheet'!C28 -> 19.95 | O45: =K45*'CTI Input Sheet'!D28 -> 0 | P45: 618.45 | T45: 9 | U45: 79.8 | V45: 618.45 | W45: =T45*'CTI Input Sheet'!K21 -> 13.5 | X45: =SUM(T45*H11)/60 -> 2.25 | Z45: 6 | AA45: 96 | AB45: 9 | AC45: 36 | AD45: 0 | AE45: 0 | AG45: =SUM(AB45*AH8)+(AC45*AH9) -> 90 | AH45: =SUM(AD45*AH10)+(AD45*AH11) -> 0 | AI45: 90 | AK45: =Z45*AO6/60 -> 0.5 | AL45: =AB45*AO8/60 -> 0.3 | AM45: =AD45*AO9/60 -> 0 | AN45: 0.8 | AO45: =AN45*AL6 -> 60 | AQ45: =IF(ProjectData!H$17="Not Required",0,B45*2) -> 0 | AR45: 0 | AS45: 0 | AT45: =AQ45*1 -> 0 | AU45: =+AR45*AW8 -> 0 | AV45: =AR45*AT8 -> 0 | AW45: =AR45*AU8/60 -> 0
B46: =ProjectData!D44 -> 0 | D46: 12 | E46: 24 | F46: 3 | G46: 1.5 | H46: 3.5 | I46: 4 | J46: 0 | K46: =J46*G11 -> 0 | L46: =J46*G13 -> 0 | M46: =K46*'CTI Input Sheet'!B28 -> 0 | N46: =K46*'CTI Input Sheet'!C28 -> 0 | O46: =K46*'CTI Input Sheet'!D28 -> 0 | P46: 0 | T46: 0 | U46: 0 | V46: 0 | W46: =T46*'CTI Input Sheet'!K21 -> 0 | X46: =SUM(T46*H11)/60 -> 0 | Z46: 0 | AA46: 0 | AB46: 0 | AC46: 0 | AD46: 0 | AE46: 0 | AG46: =SUM(AB46*AH8)+(AC46*AH9) -> 0 | AH46: =SUM(AD46*AH10)+(AD46*AH11) -> 0 | AI46: 0 | AK46: =Z46*AO6/60 -> 0 | AL46: =AB46*AO8/60 -> 0 | AM46: =AD46*AO9/60 -> 0 | AN46: 0 | AO46: =AN46*AL6 -> 0 | AQ46: =IF(ProjectData!H$17="Not Required",0,B46*2) -> 0 | AR46: 0 | AS46: 0 | AT46: =AQ46*1.66 -> 0 | AU46: =+AR46*AW8 -> 0 | AV46: =AR46*AT8 -> 0 | AW46: =AR46*AU8/60 -> 0
B47: =ProjectData!D45 -> 0 | D47: 12 | E47: 36 | F47: 3 | G47: 1.5 | H47: 4.5 | I47: 5 | J47: 0 | K47: =J47*G11 -> 0 | L47: =J47*G13 -> 0 | M47: =K47*'CTI Input Sheet'!B28 -> 0 | N47: =K47*'CTI Input Sheet'!C28 -> 0 | O47: =K47*'CTI Input Sheet'!D28 -> 0 | P47: 0 | T47: 0 | U47: 0 | V47: 0 | W47: =T47*'CTI Input Sheet'!K21 -> 0 | X47: =SUM(T47*H11)/60 -> 0 | Z47: 0 | AA47: 0 | AB47: 0 | AC47: 0 | AD47: 0 | AE47: 0 | AG47: =SUM(AB47*AH8)+(AC47*AH9) -> 0 | AH47: =SUM(AD47*AH10)+(AD47*AH11) -> 0 | AI47: 0 | AK47: =Z47*AO6/60 -> 0 | AL47: =AB47*AO8/60 -> 0 | AM47: =AD47*AO9/60 -> 0 | AN47: 0 | AO47: =AN47*AL6 -> 0 | AQ47: =IF(ProjectData!H$17="Not Required",0,B47*2) -> 0 | AR47: 0 | AS47: 0 | AT47: =AQ47*2.33 -> 0 | AU47: =+AR47*AW8 -> 0 | AV47: =AR47*AT8 -> 0 | AW47: =AR47*AU8/60 -> 0
B48: =ProjectData!D46 -> 0 | D48: 18 | E48: 12 | F48: 3 | G48: 2 | H48: 3 | I48: 3.5 | J48: 0 | K48: =J48*G11 -> 0 | L48: =J48*G13 -> 0 | M48: =K48*'CTI Input Sheet'!B28 -> 0 | N48: =K48*'CTI Input Sheet'!C28 -> 0 | O48: =K48*'CTI Input Sheet'!D28 -> 0 | P48: 0 | T48: 0 | U48: 0 | V48: 0 | W48: =T48*'CTI Input Sheet'!K21 -> 0 | X48: =SUM(T48*H11)/60 -> 0 | Z48: 0 | AA48: 0 | AB48: 0 | AC48: 0 | AD48: 0 | AE48: 0 | AG48: =SUM(AB48*AH8)+(AC48*AH9) -> 0 | AH48: =SUM(AD48*AH10)+(AD48*AH11) -> 0 | AI48: 0 | AK48: =Z48*AO6/60 -> 0 | AL48: =AB48*AO8/60 -> 0 | AM48: =AD48*AO9/60 -> 0 | AN48: 0 | AO48: =AN48*AL6 -> 0 | AQ48: =IF(ProjectData!H$17="Not Required",0,B48*2) -> 0 | AR48: 0 | AS48: 0 | AT48: =AQ48*1.64 -> 0 | AU48: =+AR48*AW9 -> 0 | AV48: =AR48*AT9 -> 0 | AW48: =AR48*AU9/60 -> 0
B49: =ProjectData!D47 -> 0 | D49: 18 | E49: 24 | F49: 3 | G49: 2 | H49: 4 | I49: 4.5 | J49: 0 | K49: =J49*G11 -> 0 | L49: =J49*G13 -> 0 | M49: =K49*'CTI Input Sheet'!B28 -> 0 | N49: =K49*'CTI Input Sheet'!C28 -> 0 | O49: =K49*'CTI Input Sheet'!D28 -> 0 | P49: 0 | T49: 0 | U49: 0 | V49: 0 | W49: =T49*'CTI Input Sheet'!K21 -> 0 | X49: =SUM(T49*H11)/60 -> 0 | Z49: 0 | AA49: 0 | AB49: 0 | AC49: 0 | AD49: 0 | AE49: 0 | AG49: =SUM(AB49*AH8)+(AC49*AH9) -> 0 | AH49: =SUM(AD49*AH10)+(AD49*AH11) -> 0 | AI49: 0 | AK49: =Z49*AO6/60 -> 0 | AL49: =AB49*AO8/60 -> 0 | AM49: =AD49*AO9/60 -> 0 | AN49: 0 | AO49: =AN49*AL6 -> 0 | AQ49: =IF(ProjectData!H$17="Not Required",0,B49*2) -> 0 | AR49: 0 | AS49: 0 | AT49: =AQ49*2.58 -> 0 | AU49: =+AR49*AW9 -> 0 | AV49: =AR49*AT9 -> 0 | AW49: =AR49*AU9/60 -> 0
B50: =ProjectData!D48 -> 0 | D50: 18 | E50: 36 | F50: 3 | G50: 2 | H50: 5 | I50: 5.5 | J50: 0 | K50: =J50*G11 -> 0 | L50: =J50*G13 -> 0 | M50: =K50*'CTI Input Sheet'!B28 -> 0 | N50: =K50*'CTI Input Sheet'!C28 -> 0 | O50: =K50*'CTI Input Sheet'!D28 -> 0 | P50: 0 | T50: 0 | U50: 0 | V50: 0 | W50: =T50*'CTI Input Sheet'!K21 -> 0 | X50: =SUM(T50*H11)/60 -> 0 | Z50: 0 | AA50: 0 | AB50: 0 | AC50: 0 | AD50: 0 | AE50: 0 | AG50: =SUM(AB50*AH8)+(AC50*AH9) -> 0 | AH50: =SUM(AD50*AH10)+(AD50*AH11) -> 0 | AI50: 0 | AK50: =Z50*AO6/60 -> 0 | AL50: =AB50*AO8/60 -> 0 | AM50: =AD50*AO9/60 -> 0 | AN50: 0 | AO50: =AN50*AL6 -> 0 | AQ50: =IF(ProjectData!H$17="Not Required",0,B50*2) -> 0 | AR50: 0 | AS50: 0 | AT50: =AQ50*3.52 -> 0 | AU50: =+AR50*AW9 -> 0 | AV50: =AR50*AT9 -> 0 | AW50: =AR50*AU9/60 -> 0
B51: =ProjectData!D49 -> 0 | D51: 24 | E51: 12 | F51: 3 | G51: 2.5 | H51: 3.5 | I51: 4 | J51: 0 | K51: =J51*G11 -> 0 | L51: =J51*G13 -> 0 | M51: =K51*'CTI Input Sheet'!B28 -> 0 | N51: =K51*'CTI Input Sheet'!C28 -> 0 | O51: =K51*'CTI Input Sheet'!D28 -> 0 | P51: 0 | T51: 0 | U51: 0 | V51: =P51 -> 0 | W51: =T51*'CTI Input Sheet'!K21 -> 0 | X51: =SUM(T51*H11)/60 -> 0 | Z51: 0 | AA51: 0 | AB51: 0 | AC51: 0 | AD51: 0 | AE51: 0 | AG51: =SUM(AB51*AH8)+(AC51*AH9) -> 0 | AH51: =SUM(AD51*AH10)+(AD51*AH11) -> 0 | AI51: 0 | AK51: =Z51*AO6/60 -> 0 | AL51: =AB51*AO8/60 -> 0 | AM51: =AD51*AO9/60 -> 0 | AN51: 0 | AO51: =AN51*AL6 -> 0 | AQ51: =IF(ProjectData!H$17="Not Required",0,B51*2) -> 0 | AR51: 0 | AS51: 0 | AT51: =AQ51*2.43 -> 0 | AU51: =+AR51*AW10 -> 0 | AV51: =AR51*AT10 -> 0 | AW51: =AR51*AU10/60 -> 0
B52: =ProjectData!D50 -> 0 | D52: 24 | E52: 24 | F52: 3 | G52: 2.5 | H52: 4.5 | I52: 5 | J52: 0 | K52: =J52*G11 -> 0 | L52: =J52*G13 -> 0 | M52: =K52*'CTI Input Sheet'!B28 -> 0 | N52: =K52*'CTI Input Sheet'!C28 -> 0 | O52: =K52*'CTI Input Sheet'!D28 -> 0 | P52: 0 | T52: 0 | U52: 0 | V52: =P52 -> 0 | W52: =T52*'CTI Input Sheet'!K21 -> 0 | X52: =SUM(T52*H11)/60 -> 0 | Z52: 0 | AA52: 0 | AB52: 0 | AC52: 0 | AD52: 0 | AE52: 0 | AG52: =SUM(AB52*AH8)+(AC52*AH9) -> 0 | AH52: =SUM(AD52*AH10)+(AD52*AH11) -> 0 | AI52: 0 | AK52: =Z52*AO6/60 -> 0 | AL52: =AB52*AO8/60 -> 0 | AM52: =AD52*AO9/60 -> 0 | AN52: 0 | AO52: =AN52*AL6 -> 0 | AQ52: =IF(ProjectData!H$17="Not Required",0,B52*2) -> 0 | AR52: 0 | AS52: 0 | AT52: =AQ52*3.64 -> 0 | AU52: =+AR52*AW10 -> 0 | AV52: =AR52*AT10 -> 0 | AW52: =AR52*AU10/60 -> 0
B53: =ProjectData!D51 -> 0 | D53: 24 | E53: 36 | F53: 3 | G53: 2.5 | H53: 5.5 | I53: 6 | J53: 0 | K53: =J53*G11 -> 0 | L53: =J53*G13 -> 0 | M53: =K53*'CTI Input Sheet'!B28 -> 0 | N53: =K53*'CTI Input Sheet'!C28 -> 0 | O53: =K53*'CTI Input Sheet'!D28 -> 0 | P53: 0 | T53: 0 | U53: 0 | V53: 0 | W53: =T53*'CTI Input Sheet'!K21 -> 0 | X53: =SUM(T53*H11)/60 -> 0 | Z53: 0 | AA53: 0 | AB53: 0 | AC53: 0 | AD53: 0 | AE53: 0 | AG53: =SUM(AB53*AH8)+(AC53*AH9) -> 0 | AH53: =SUM(AD53*AH10)+(AD53*AH11) -> 0 | AI53: 0 | AK53: =Z53*AO6/60 -> 0 | AL53: =AB53*AO8/60 -> 0 | AM53: =AD53*AO9/60 -> 0 | AN53: 0 | AO53: =AN53*AL6 -> 0 | AQ53: =IF(ProjectData!H$17="Not Required",0,B53*2) -> 0 | AR53: 0 | AS53: 0 | AT53: =AQ53*4.86 -> 0 | AU53: =+AR53*AW10 -> 0 | AV53: =AR53*AT10 -> 0 | AW53: =AR53*AU10/60 -> 0
B54: =ProjectData!D52 -> 0 | D54: 30 | E54: 12 | F54: 3 | G54: 3 | H54: 4 | I54: 4.5 | J54: 0 | K54: =J54*G11 -> 0 | L54: =J54*G13 -> 0 | M54: =K54*'CTI Input Sheet'!B28 -> 0 | N54: =K54*'CTI Input Sheet'!C28 -> 0 | O54: =K54*'CTI Input Sheet'!D28 -> 0 | P54: 0 | T54: 0 | U54: 0 | V54: 0 | W54: =T54*'CTI Input Sheet'!K21 -> 0 | X54: =SUM(T54*H11)/60 -> 0 | Z54: 0 | AA54: 0 | AB54: 0 | AC54: 0 | AD54: 0 | AE54: 0 | AG54: =SUM(AB54*AH8)+(AC54*AH9) -> 0 | AH54: =SUM(AD54*AH10)+(AD54*AH11) -> 0 | AI54: 0 | AK54: =Z54*AO6/60 -> 0 | AL54: =AB54*AO8/60 -> 0 | AM54: =AD54*AO9/60 -> 0 | AN54: 0 | AO54: =AN54*AL6 -> 0 | AQ54: =IF(ProjectData!H$17="Not Required",0,B54*2) -> 0 | AR54: 0 | AS54: 0 | AT54: =AQ54*3.35 -> 0 | AU54: =+AR54*AW11 -> 0 | AV54: =AR54*AT11 -> 0 | AW54: =AR54*AU11/60 -> 0
B55: =ProjectData!D53 -> 0 | D55: 30 | E55: 24 | F55: 3 | G55: 3 | H55: 5 | I55: 5.5 | J55: 0 | K55: =J55*G11 -> 0 | L55: =J55*G13 -> 0 | M55: =K55*'CTI Input Sheet'!B28 -> 0 | N55: =K55*'CTI Input Sheet'!C28 -> 0 | O55: =K55*'CTI Input Sheet'!D28 -> 0 | P55: 0 | T55: 0 | U55: 0 | V55: 0 | W55: =T55*'CTI Input Sheet'!K21 -> 0 | X55: =SUM(T55*H11)/60 -> 0 | Z55: 0 | AA55: 0 | AB55: 0 | AC55: 0 | AD55: 0 | AE55: 0 | AG55: =SUM(AB55*AH8)+(AC55*AH9) -> 0 | AH55: =SUM(AD55*AH10)+(AD55*AH11) -> 0 | AI55: 0 | AK55: =Z55*AO6/60 -> 0 | AL55: =AB55*AO8/60 -> 0 | AM55: =AD55*AO9/60 -> 0 | AN55: 0 | AO55: =AN55*AL6 -> 0 | AQ55: =IF(ProjectData!H$17="Not Required",0,B55*2) -> 0 | AR55: 0 | AS55: 0 | AT55: =AQ55*4.84 -> 0 | AU55: =+AR55*AW11 -> 0 | AV55: =AR55*AT11 -> 0 | AW55: =AR55*AU11/60 -> 0
B56: =ProjectData!D54 -> 0 | D56: 30 | E56: 36 | F56: 3 | G56: 3 | H56: 6 | I56: 6.5 | J56: 0 | K56: =J56*G11 -> 0 | L56: =J56*G13 -> 0 | M56: =K56*'CTI Input Sheet'!B28 -> 0 | N56: =K56*'CTI Input Sheet'!C28 -> 0 | O56: =K56*'CTI Input Sheet'!D28 -> 0 | P56: 0 | T56: 0 | U56: 0 | V56: 0 | W56: =T56*'CTI Input Sheet'!K21 -> 0 | X56: =SUM(T56*H11)/60 -> 0 | Z56: 0 | AA56: 0 | AB56: 0 | AC56: 0 | AD56: 0 | AE56: 0 | AG56: =SUM(AB56*AH8)+(AC56*AH9) -> 0 | AH56: =SUM(AD56*AH10)+(AD56*AH11) -> 0 | AI56: 0 | AK56: =Z56*AO6/60 -> 0 | AL56: =AB56*AO8/60 -> 0 | AM56: =AD56*AO9/60 -> 0 | AN56: 0 | AO56: =AN56*AL6 -> 0 | AQ56: =IF(ProjectData!H$17="Not Required",0,B56*2) -> 0 | AR56: 0 | AS56: 0 | AT56: =AQ56*6.33 -> 0 | AU56: =+AR56*AW11 -> 0 | AV56: =AR56*AT11 -> 0 | AW56: =AR56*AU11/60 -> 0
B57: =ProjectData!D55 -> 1 | D57: 36 | E57: 12 | F57: 3 | G57: 3.5 | H57: 4.5 | I57: 5 | J57: 13 | K57: =J57*G11 -> 49.4 | L57: =J57*G13 -> 296.4 | M57: =K57*'CTI Input Sheet'!B28 -> 74.1 | N57: =K57*'CTI Input Sheet'!C28 -> 12.35 | O57: =K57*'CTI Input Sheet'!D28 -> 0 | P57: 382.85 | T57: 3 | U57: 49.4 | V57: 382.85 | W57: =T57*'CTI Input Sheet'!K21 -> 4.5 | X57: =SUM(T57*H11)/60 -> 0.75 | Z57: 2 | AA57: 32 | AB57: 3 | AC57: 12 | AD57: 0 | AE57: 0 | AG57: =SUM(AB57*AH8)+(AC57*AH9) -> 30 | AH57: =SUM(AD57*AH10)+(AD57*AH11) -> 0 | AI57: 30 | AK57: =Z57*AO6/60 -> 0.1666666667 | AL57: =AB57*AO8/60 -> 0.1 | AM57: =AD57*AO9/60 -> 0 | AN57: 0.2666666667 | AO57: =AN57*AL6 -> 20 | AQ57: =IF(ProjectData!H$17="Not Required",0,B57*2) -> 0 | AR57: 0 | AS57: 0 | AT57: =AQ57*4.41 -> 0 | AU57: =+AR57*AW12 -> 0 | AV57: =AR57*AT12 -> 0 | AW57: =AR57*AU12/60 -> 0
B58: =ProjectData!D56 -> 0 | D58: 36 | E58: 24 | F58: 3 | G58: 3.5 | H58: 5.5 | I58: 6 | J58: 0 | K58: =J58*G11 -> 0 | L58: =J58*G13 -> 0 | M58: =K58*'CTI Input Sheet'!B28 -> 0 | N58: =K58*'CTI Input Sheet'!C28 -> 0 | O58: =K58*'CTI Input Sheet'!D28 -> 0 | P58: 0 | T58: 0 | U58: 0 | V58: 0 | W58: =T58*'CTI Input Sheet'!K21 -> 0 | X58: =SUM(T58*H11)/60 -> 0 | Z58: 0 | AA58: 0 | AB58: 0 | AC58: 0 | AD58: 0 | AE58: 0 | AG58: =SUM(AB58*AH8)+(AC58*AH9) -> 0 | AH58: =SUM(AD58*AH10)+(AD58*AH11) -> 0 | AI58: 0 | AK58: =Z58*AO6/60 -> 0 | AL58: =AB58*AO8/60 -> 0 | AM58: =AD58*AO9/60 -> 0 | AN58: 0 | AO58: =AN58*AL6 -> 0 | AQ58: =IF(ProjectData!H$17="Not Required",0,B58*2) -> 0 | AR58: 0 | AS58: 0 | AT58: =AQ58*6.17 -> 0 | AU58: =+AR58*AW12 -> 0 | AV58: =AR58*AT12 -> 0 | AW58: =AR58*AU12/60 -> 0
B59: =ProjectData!D57 -> 0 | D59: 36 | E59: 36 | F59: 3 | G59: 3.5 | H59: 6.5 | I59: 7 | J59: 0 | K59: =J59*G11 -> 0 | L59: =J59*G13 -> 0 | M59: =K59*'CTI Input Sheet'!B28 -> 0 | N59: =K59*'CTI Input Sheet'!C28 -> 0 | O59: =K59*'CTI Input Sheet'!D28 -> 0 | P59: =SUM(L59:O59) -> 0 | T59: 0 | U59: 0 | V59: 0 | W59: =T59*'CTI Input Sheet'!K21 -> 0 | X59: =SUM(T59*H11)/60 -> 0 | Z59: 0 | AA59: 0 | AB59: 0 | AC59: 0 | AD59: 0 | AE59: 0 | AG59: =SUM(AB59*AH8)+(AC59*AH9) -> 0 | AH59: =SUM(AD59*AH10)+(AD59*AH11) -> 0 | AI59: 0 | AK59: =Z59*AO6/60 -> 0 | AL59: =AB59*AO8/60 -> 0 | AM59: =AD59*AO9/60 -> 0 | AN59: 0 | AO59: =AN59*AL6 -> 0 | AQ59: =IF(ProjectData!H$17="Not Required",0,B59*2) -> 0 | AR59: 0 | AS59: 0 | AT59: =AQ59*7.94 -> 0 | AU59: =+AR59*AW12 -> 0 | AV59: =AR59*AT12 -> 0 | AW59: =AR59*AU12/60 -> 0
B60: =SUM(B39:B59) -> 4 | J60: =SUM(J39:J59) -> 34 | K60: 129.2 | L60: 775.2 | M60: 193.8 | N60: 32.3 | O60: 0 | P60: 1001.3 | T60: =SUM(T39:T59) -> 12 | U60: =SUM(U39:U59) -> 129.2 | V60: =SUM(V39:V59) -> 1001.3 | W60: =SUM(W39:W59) -> 18 | X60: =SUM(X39:X59) -> 3 | Z60: =SUM(Z39:Z59) -> 8 | AA60: 128 | AB60: 12 | AC60: 48 | AD60: 0 | AE60: 0 | AG60: =SUM(AG39:AG59) -> 120 | AH60: =SUM(AH39:AH59) -> 0 | AI60: =SUM(AI39:AI59) -> 120 | AK60: =SUM(AK39:AK59) -> 0.6666666667 | AL60: =SUM(AL39:AL59) -> 0.4 | AM60: =SUM(AM39:AM59) -> 0 | AN60: =SUM(AN39:AN59) -> 1.066666667 | AO60: =SUM(AO39:AO59) -> 80 | AQ60: =SUM(AQ39:AQ59) -> 0 | AR60: 0 | AS60: 0 | AT60: 0 | AU60: 0 | AV60: 0 | AW60: 0
W61: =W60*'CTI Input Sheet'!H7 -> 1350 | X61: =X60*'CTI Input Sheet'!H6 -> 225 | AA61: =AA60*AH12 -> 96 | AB61: =AB60*AH8 -> 60 | AC61: =AC60*AH9 -> 60 | AD61: =AD60*AH10 -> 0 | AE61: =AE60*AH11 -> 0 | AK61: =AK60*AL6 -> 50 | AL61: =AL60*AL6 -> 30 | AM61: =AM60*AL6 -> 0
B62: HT Fittings | D62: HT Fittings | F62: NEMA VE 2 : HT Support Quantity - Support Weight - Support Steel, Fabrication, Logistics, Erection Costs | T62: HT : Support Structure Summary | Z62: HT : Accessory Quantities | AG62: HT : Tray Accessory Costs | AK62: HT : Tray Accessory Installation Time & Installation Cost | AQ62: HT Covers
B63: Quantities | D63: HB Width (in) | E63: HB Radius (in) | F63: Support Quantity | G63: OS1 Str. Section Length (FT) | H63: OS2 Str. Section Length (FT) | I63: OS3 Str. Section Length (FT) | J63: CTR Str. Section Length (FT) | K63: Total Str. Section Length (FT) | L63: Total Str. Section Weight (lb) | M63: Total Str. Section Cost (USD) | N63: Total Fabrication Cost (USD) | O63: Total Logistic Cost (USD) | P63: Total Erection Cost (USD) | Q63: SUM TOTAL COST/FITTING | T63: Total Quantity of Supports | U63: Total Weight of Supports (LB) | V63: Total Cost of Supports (USD) | W63: Total Design Time (HOURS) | X63: Total Support Instal Time (HOURS) | Z63: Splice Plates Quantity (PRS) | AA63: Splice Plate Hardware Quantity (PCS) | AB63: Hold Down Clamp Quantity (PRS) | AC63: Clamp Hardware Quantity (PCS) | AD63: Expansion Guides Quantity (PRS) | AE63: Guides Hardware Quantity (PCS) | AG63: Hold Down Clamps (PR) | AH63: Expansion Guides (PR) | AI63: Total Accessory Cost | AK63: Splice Plates Time/Pair (HRS) | AL63: Hold Down Clamp Time/Pair (HRS) | AM63: Exp. Guide Time/Pair (HRS) | AN63: Total Time (HOURS) | AO63: Total Time Cost (USD) | AQ63: Cover Quantity (PCS) | AR63: Clamp Quantity (PCS) | AS63: Hardware Quantity (PCS) | AT63: Cover Weight (LBS) | AU63: Clamp Weight (LBS) | AV63: Clamps Cost (USD) | AW63: Installation Time (HRS)
B64: =ProjectData!D61 -> 0 | D64: 6 | E64: 12 | F64: 4 | G64: 1 | H64: 1 | I64: 2.5 | J64: 4 | K64: =SUM(G64+H64+I64+J64)*B64 -> 0 | L64: =K64*G11 -> 0 | M64: =K64*G13 -> 0 | N64: =L64*'CTI Input Sheet'!B28 -> 0 | O64: =L64*'CTI Input Sheet'!C28 -> 0 | P64: =L64*'CTI Input Sheet'!D28 -> 0 | Q64: =SUM(M64:P64) -> 0 | T64: =B64*F64 -> 0 | U64: =L64 -> 0 | V64: =Q64 -> 0 | W64: =T64*'CTI Input Sheet'!K22 -> 0 | X64: =SUM(T64*H11)/60 -> 0 | Z64: =B64*3 -> 0 | AA64: =Z64*16 -> 0 | AB64: =(F64+0.5)*B64 -> 0 | AC64: =AB64*4 -> 0 | AD64: 0 | AE64: 0 | AG64: =SUM(AB64*AH8)+(AC64*AH9) -> 0 | AH64: 0 | AI64: =SUM(AG64:AH64) -> 0 | AK64: =Z64*AO6/60 -> 0 | AL64: =AB64*AO8/60 -> 0 | AM64: 0 | AN64: =SUM(AK64:AM64) -> 0 | AO64: =AN64*AL6 -> 0 | AQ64: =IF(ProjectData!H$17="Not Required",0,B64*2) -> 0 | AR64: =AQ64*3 -> 0 | AS64: =AR64*4 -> 0 | AT64: =AQ64*1.02 -> 0 | AU64: =+AR64*AW6 -> 0 | AV64: =AR64*AT6 -> 0 | AW64: =AR64*AU6/60 -> 0
B65: =ProjectData!D62 -> 0 | D65: 6 | E65: 24 | F65: 4 | G65: 1 | H65: 1 | I65: 3.5 | J65: 5 | K65: =SUM(G65+H65+I65+J65)*B65 -> 0 | L65: =K65*G11 -> 0 | M65: =K65*G13 -> 0 | N65: =L65*'CTI Input Sheet'!B28 -> 0 | O65: =L65*'CTI Input Sheet'!C28 -> 0 | P65: =L65*'CTI Input Sheet'!D28 -> 0 | Q65: =SUM(M65:P65) -> 0 | T65: =B65*F65 -> 0 | U65: 0 | V65: 0 | W65: =T65*'CTI Input Sheet'!K22 -> 0 | X65: =SUM(T65*H11)/60 -> 0 | Z65: 0 | AA65: 0 | AB65: 0 | AC65: 0 | AD65: 0 | AE65: 0 | AG65: =SUM(AB65*AH8)+(AC65*AH9) -> 0 | AH65: 0 | AI65: 0 | AK65: =Z65*AO6/60 -> 0 | AL65: =AB65*AO8/60 -> 0 | AM65: 0 | AN65: 0 | AO65: =AN65*AL6 -> 0 | AQ65: =IF(ProjectData!H$17="Not Required",0,B65*2) -> 0 | AR65: 0 | AS65: 0 | AT65: =AQ65*2.27 -> 0 | AU65: =+AR65*AW6 -> 0 | AV65: =AR65*AT6 -> 0 | AW65: =AR65*AU6/60 -> 0
B66: =ProjectData!D63 -> 0 | D66: 6 | E66: 36 | F66: 4 | G66: 1 | H66: 1 | I66: 4.5 | J66: 6 | K66: 0 | L66: =K66*G11 -> 0 | M66: =K66*G13 -> 0 | N66: =L66*'CTI Input Sheet'!B28 -> 0 | O66: =L66*'CTI Input Sheet'!C28 -> 0 | P66: =L66*'CTI Input Sheet'!D28 -> 0 | Q66: 0 | T66: 0 | U66: 0 | V66: 0 | W66: =T66*'CTI Input Sheet'!K22 -> 0 | X66: =SUM(T66*H11)/60 -> 0 | Z66: 0 | AA66: 0 | AB66: 0 | AC66: 0 | AD66: 0 | AE66: 0 | AG66: =SUM(AB66*AH8)+(AC66*AH9) -> 0 | AH66: 0 | AI66: 0 | AK66: =Z66*AO6/60 -> 0 | AL66: =AB66*AO8/60 -> 0 | AM66: 0 | AN66: 0 | AO66: =AN66*AL6 -> 0 | AQ66: =IF(ProjectData!H$17="Not Required",0,B66*2) -> 0 | AR66: 0 | AS66: 0 | AT66: =AQ66*3.88 -> 0 | AU66: =+AR66*AW6 -> 0 | AV66: =AR66*AT6 -> 0 | AW66: =AR66*AU6/60 -> 0
B67: =ProjectData!D64 -> 0 | D67: 9 | E67: 12 | F67: 4 | G67: 1.25 | H67: 1.25 | I67: 2.75 | J67: 4.25 | K67: 0 | L67: =K67*G11 -> 0 | M67: =K67*G13 -> 0 | N67: =L67*'CTI Input Sheet'!B28 -> 0 | O67: =L67*'CTI Input Sheet'!C28 -> 0 | P67: =L67*'CTI Input Sheet'!D28 -> 0 | Q67: 0 | T67: 0 | U67: 0 | V67: 0 | W67: =T67*'CTI Input Sheet'!K22 -> 0 | X67: =SUM(T67*H11)/60 -> 0 | Z67: 0 | AA67: 0 | AB67: 0 | AC67: 0 | AD67: 0 | AE67: 0 | AG67: =SUM(AB67*AH8)+(AC67*AH9) -> 0 | AH67: 0 | AI67: 0 | AK67: =Z67*AO6/60 -> 0 | AL67: =AB67*AO8/60 -> 0 | AM67: 0 | AN67: 0 | AO67: =AN67*AL6 -> 0 | AQ67: =IF(ProjectData!H$17="Not Required",0,B67*2) -> 0 | AR67: 0 | AS67: 0 | AT67: =AQ67*1.39 -> 0 | AU67: =+AR67*AW7 -> 0 | AV67: =AR67*AT7 -> 0 | AW67: =AR67*AU7/60 -> 0
B68: =ProjectData!D65 -> 0 | D68: 9 | E68: 24 | F68: 4 | G68: 1.25 | H68: 1.25 | I68: 3.75 | J68: 5.25 | K68: 0 | L68: =K68*G11 -> 0 | M68: =K68*G13 -> 0 | N68: =L68*'CTI Input Sheet'!B28 -> 0 | O68: =L68*'CTI Input Sheet'!C28 -> 0 | P68: =L68*'CTI Input Sheet'!D28 -> 0 | Q68: 0 | T68: 0 | U68: 0 | V68: 0 | W68: =T68*'CTI Input Sheet'!K22 -> 0 | X68: =SUM(T68*H11)/60 -> 0 | Z68: 0 | AA68: 0 | AB68: 0 | AC68: 0 | AD68: 0 | AE68: 0 | AG68: =SUM(AB68*AH8)+(AC68*AH9) -> 0 | AH68: 0 | AI68: 0 | AK68: =Z68*AO6/60 -> 0 | AL68: =AB68*AO8/60 -> 0 | AM68: 0 | AN68: 0 | AO68: =AN68*AL6 -> 0 | AQ68: =IF(ProjectData!H$17="Not Required",0,B68*2) -> 0 | AR68: 0 | AS68: 0 | AT68: =AQ68*2.89 -> 0 | AU68: =+AR68*AW7 -> 0 | AV68: =AR68*AT7 -> 0 | AW68: =AR68*AU7/60 -> 0
B69: =ProjectData!D66 -> 0 | D69: 9 | E69: 36 | F69: 4 | G69: 1.25 | H69: 1.25 | I69: 4.75 | J69: 6.25 | K69: 0 | L69: =K69*G11 -> 0 | M69: =K69*G13 -> 0 | N69: =L69*'CTI Input Sheet'!B28 -> 0 | O69: =L69*'CTI Input Sheet'!C28 -> 0 | P69: =L69*'CTI Input Sheet'!D28 -> 0 | Q69: 0 | T69: 0 | U69: 0 | V69: 0 | W69: =T69*'CTI Input Sheet'!K22 -> 0 | X69: =SUM(T69*H11)/60 -> 0 | Z69: 0 | AA69: 0 | AB69: 0 | AC69: 0 | AD69: 0 | AE69: 0 | AG69: =SUM(AB69*AH8)+(AC69*AH9) -> 0 | AH69: 0 | AI69: 0 | AK69: =Z69*AO6/60 -> 0 | AL69: =AB69*AO8/60 -> 0 | AM69: 0 | AN69: 0 | AO69: =AN69*AL6 -> 0 | AQ69: =IF(ProjectData!H$17="Not Required",0,B69*2) -> 0 | AR69: 0 | AS69: 0 | AT69: =AQ69*4.72 -> 0 | AU69: =+AR69*AW7 -> 0 | AV69: =AR69*AT7 -> 0 | AW69: =AR69*AU7/60 -> 0
B70: =ProjectData!D67 -> 1 | D70: 12 | E70: 12 | F70: 4 | G70: 1.5 | H70: 1.5 | I70: 3 | J70: 4.5 | K70: 10.5 | L70: =K70*G11 -> 39.9 | M70: =K70*G13 -> 239.4 | N70: =L70*'CTI Input Sheet'!B28 -> 59.85 | O70: =L70*'CTI Input Sheet'!C28 -> 9.975 | P70: =L70*'CTI Input Sheet'!D28 -> 0 | Q70: 309.225 | T70: 4 | U70: 39.9 | V70: =Q70 -> 309.225 | W70: =T70*'CTI Input Sheet'!K22 -> 10 | X70: =SUM(T70*H11)/60 -> 1 | Z70: 3 | AA70: 48 | AB70: 4.5 | AC70: 18 | AD70: 0 | AE70: 0 | AG70: =SUM(AB70*AH8)+(AC70*AH9) -> 45 | AH70: 0 | AI70: 45 | AK70: =Z70*AO6/60 -> 0.25 | AL70: =AB70*AO8/60 -> 0.15 | AM70: 0 | AN70: 0.4 | AO70: =AN70*AL6 -> 30 | AQ70: =IF(ProjectData!H$17="Not Required",0,B70*2) -> 0 | AR70: 0 | AS70: 0 | AT70: =AQ70*1.82 -> 0 | AU70: =+AR70*AW8 -> 0 | AV70: =AR70*AT8 -> 0 | AW70: =AR70*AU8/60 -> 0
B71: =ProjectData!D68 -> 0 | D71: 12 | E71: 24 | F71: 4 | G71: 1.5 | H71: 1.5 | I71: 4 | J71: 5.5 | K71: 0 | L71: =K71*G11 -> 0 | M71: =K71*G13 -> 0 | N71: =L71*'CTI Input Sheet'!B28 -> 0 | O71: =L71*'CTI Input Sheet'!C28 -> 0 | P71: =L71*'CTI Input Sheet'!D28 -> 0 | Q71: 0 | T71: 0 | U71: 0 | V71: 0 | W71: =T71*'CTI Input Sheet'!K22 -> 0 | X71: =SUM(T71*H11)/60 -> 0 | Z71: 0 | AA71: 0 | AB71: 0 | AC71: 0 | AD71: 0 | AE71: 0 | AG71: =SUM(AB71*AH8)+(AC71*AH9) -> 0 | AH71: 0 | AI71: 0 | AK71: =Z71*AO6/60 -> 0 | AL71: =AB71*AO8/60 -> 0 | AM71: 0 | AN71: 0 | AO71: =AN71*AL6 -> 0 | AQ71: =IF(ProjectData!H$17="Not Required",0,B71*2) -> 0 | AR71: 0 | AS71: 0 | AT71: =AQ71*3.56 -> 0 | AU71: =+AR71*AW8 -> 0 | AV71: =AR71*AT8 -> 0 | AW71: =AR71*AU8/60 -> 0
B72: =ProjectData!D69 -> 0 | D72: 12 | E72: 36 | F72: 4 | G72: 1.5 | H72: 1.5 | I72: 5 | J72: 6.5 | K72: 0 | L72: =K72*G11 -> 0 | M72: =K72*G13 -> 0 | N72: =L72*'CTI Input Sheet'!B28 -> 0 | O72: =L72*'CTI Input Sheet'!C28 -> 0 | P72: =L72*'CTI Input Sheet'!D28 -> 0 | Q72: 0 | T72: 0 | U72: 0 | V72: 0 | W72: =T72*'CTI Input Sheet'!K22 -> 0 | X72: =SUM(T72*H11)/60 -> 0 | Z72: 0 | AA72: 0 | AB72: 0 | AC72: 0 | AD72: 0 | AE72: 0 | AG72: =SUM(AB72*AH8)+(AC72*AH9) -> 0 | AH72: 0 | AI72: 0 | AK72: =Z72*AO6/60 -> 0 | AL72: =AB72*AO8/60 -> 0 | AM72: 0 | AN72: 0 | AO72: =AN72*AL6 -> 0 | AQ72: =IF(ProjectData!H$17="Not Required",0,B72*2) -> 0 | AR72: 0 | AS72: 0 | AT72: =AQ72*5.63 -> 0 | AU72: =+AR72*AW8 -> 0 | AV72: =AR72*AT8 -> 0 | AW72: =AR72*AU8/60 -> 0
B73: =ProjectData!D70 -> 0 | D73: 18 | E73: 12 | F73: 4 | G73: 2 | H73: 2 | I73: 3.5 | J73: 5 | K73: 0 | L73: =K73*G11 -> 0 | M73: =K73*G13 -> 0 | N73: =L73*'CTI Input Sheet'!B28 -> 0 | O73: =L73*'CTI Input Sheet'!C28 -> 0 | P73: =L73*'CTI Input Sheet'!D28 -> 0 | Q73: 0 | T73: 0 | U73: 0 | V73: 0 | W73: =T73*'CTI Input Sheet'!K22 -> 0 | X73: =SUM(T73*H11)/60 -> 0 | Z73: 0 | AA73: 0 | AB73: 0 | AC73: 0 | AD73: 0 | AE73: 0 | AG73: =SUM(AB73*AH8)+(AC73*AH9) -> 0 | AH73: 0 | AI73: 0 | AK73: =Z73*AO6/60 -> 0 | AL73: =AB73*AO8/60 -> 0 | AM73: 0 | AN73: 0 | AO73: =AN73*AL6 -> 0 | AQ73: =IF(ProjectData!H$17="Not Required",0,B73*2) -> 0 | AR73: 0 | AS73: 0 | AT73: =AQ73*2.8 -> 0 | AU73: =+AR73*AW9 -> 0 | AV73: =AR73*AT9 -> 0 | AW73: =AR73*AU9/60 -> 0
B74: =ProjectData!D71 -> 0 | D74: 18 | E74: 24 | F74: 4 | G74: 2 | H74: 2 | I74: 4.5 | J74: 6 | K74: 0 | L74: =K74*G11 -> 0 | M74: =K74*G13 -> 0 | N74: =L74*'CTI Input Sheet'!B28 -> 0 | O74: =L74*'CTI Input Sheet'!C28 -> 0 | P74: =L74*'CTI Input Sheet'!D28 -> 0 | Q74: 0 | T74: 0 | U74: 0 | V74: 0 | W74: =T74*'CTI Input Sheet'!K22 -> 0 | X74: =SUM(T74*H11)/60 -> 0 | Z74: 0 | AA74: 0 | AB74: 0 | AC74: 0 | AD74: 0 | AE74: 0 | AG74: =SUM(AB74*AH8)+(AC74*AH9) -> 0 | AH74: 0 | AI74: 0 | AK74: =Z74*AO6/60 -> 0 | AL74: =AB74*AO8/60 -> 0 | AM74: 0 | AN74: 0 | AO74: =AN74*AL6 -> 0 | AQ74: =IF(ProjectData!H$17="Not Required",0,B74*2) -> 0 | AR74: 0 | AS74: 0 | AT74: =AQ74*5.05 -> 0 | AU74: =+AR74*AW9 -> 0 | AV74: =AR74*AT9 -> 0 | AW74: =AR74*AU9/60 -> 0
B75: =ProjectData!D72 -> 0 | D75: 18 | E75: 36 | F75: 4 | G75: 2 | H75: 2 | I75: 5.5 | J75: 7 | K75: 0 | L75: =K75*G11 -> 0 | M75: =K75*G13 -> 0 | N75: =L75*'CTI Input Sheet'!B28 -> 0 | O75: =L75*'CTI Input Sheet'!C28 -> 0 | P75: =L75*'CTI Input Sheet'!D28 -> 0 | Q75: 0 | T75: 0 | U75: 0 | V75: 0 | W75: =T75*'CTI Input Sheet'!K22 -> 0 | X75: =SUM(T75*H11)/60 -> 0 | Z75: 0 | AA75: 0 | AB75: 0 | AC75: 0 | AD75: 0 | AE75: 0 | AG75: =SUM(AB75*AH8)+(AC75*AH9) -> 0 | AH75: 0 | AI75: 0 | AK75: =Z75*AO6/60 -> 0 | AL75: =AB75*AO8/60 -> 0 | AM75: 0 | AN75: 0 | AO75: =AN75*AL6 -> 0 | AQ75: =IF(ProjectData!H$17="Not Required",0,B75*2) -> 0 | AR75: 0 | AS75: 0 | AT75: =AQ75*7.62 -> 0 | AU75: =+AR75*AW9 -> 0 | AV75: =AR75*AT9 -> 0 | AW75: =AR75*AU9/60 -> 0
B76: =ProjectData!D73 -> 0 | D76: 24 | E76: 12 | F76: 4 | G76: 2.5 | H76: 2.5 | I76: 4 | J76: 5.5 | K76: 0 | L76: =K76*G11 -> 0 | M76: =K76*G13 -> 0 | N76: =L76*'CTI Input Sheet'!B28 -> 0 | O76: =L76*'CTI Input Sheet'!C28 -> 0 | P76: =L76*'CTI Input Sheet'!D28 -> 0 | Q76: 0 | T76: 0 | U76: 0 | V76: 0 | W76: =T76*'CTI Input Sheet'!K22 -> 0 | X76: =SUM(T76*H11)/60 -> 0 | Z76: 0 | AA76: 0 | AB76: 0 | AC76: 0 | AD76: 0 | AE76: 0 | AG76: =SUM(AB76*AH8)+(AC76*AH9) -> 0 | AH76: 0 | AI76: 0 | AK76: =Z76*AO6/60 -> 0 | AL76: =AB76*AO8/60 -> 0 | AM76: 0 | AN76: 0 | AO76: =AN76*AL6 -> 0 | AQ76: =IF(ProjectData!H$17="Not Required",0,B76*2) -> 0 | AR76: 0 | AS76: 0 | AT76: =AQ76*3.96 -> 0 | AU76: =+AR76*AW10 -> 0 | AV76: =AR76*AT10 -> 0 | AW76: =AR76*AU10/60 -> 0
B77: =ProjectData!D74 -> 0 | D77: 24 | E77: 24 | F77: 4 | G77: 2.5 | H77: 2.5 | I77: 5 | J77: 6.5 | K77: 0 | L77: =K77*G11 -> 0 | M77: =K77*G13 -> 0 | N77: =L77*'CTI Input Sheet'!B28 -> 0 | O77: =L77*'CTI Input Sheet'!C28 -> 0 | P77: =L77*'CTI Input Sheet'!D28 -> 0 | Q77: 0 | T77: 0 | U77: 0 | V77: 0 | W77: =T77*'CTI Input Sheet'!K22 -> 0 | X77: =SUM(T77*H11)/60 -> 0 | Z77: 0 | AA77: 0 | AB77: 0 | AC77: 0 | AD77: 0 | AE77: 0 | AG77: =SUM(AB77*AH8)+(AC77*AH9) -> 0 | AH77: 0 | AI77: 0 | AK77: =Z77*AO6/60 -> 0 | AL77: =AB77*AO8/60 -> 0 | AM77: 0 | AN77: 0 | AO77: =AN77*AL6 -> 0 | AQ77: =IF(ProjectData!H$17="Not Required",0,B77*2) -> 0 | AR77: 0 | AS77: 0 | AT77: =AQ77*6.73 -> 0 | AU77: =+AR77*AW10 -> 0 | AV77: =AR77*AT10 -> 0 | AW77: =AR77*AU10/60 -> 0
B78: =ProjectData!D75 -> 0 | D78: 24 | E78: 36 | F78: 4 | G78: 2.5 | H78: 2.5 | I78: 6 | J78: 7.5 | K78: 0 | L78: =K78*G11 -> 0 | M78: =K78*G13 -> 0 | N78: =L78*'CTI Input Sheet'!B28 -> 0 | O78: =L78*'CTI Input Sheet'!C28 -> 0 | P78: =L78*'CTI Input Sheet'!D28 -> 0 | Q78: 0 | T78: 0 | U78: 0 | V78: 0 | W78: =T78*'CTI Input Sheet'!K22 -> 0 | X78: =SUM(T78*H11)/60 -> 0 | Z78: 0 | AA78: 0 | AB78: 0 | AC78: 0 | AD78: 0 | AE78: 0 | AG78: =SUM(AB78*AH8)+(AC78*AH9) -> 0 | AH78: 0 | AI78: 0 | AK78: =Z78*AO6/60 -> 0 | AL78: =AB78*AO8/60 -> 0 | AM78: 0 | AN78: 0 | AO78: =AN78*AL6 -> 0 | AQ78: =IF(ProjectData!H$17="Not Required",0,B78*2) -> 0 | AR78: 0 | AS78: 0 | AT78: =AQ78*9.82 -> 0 | AU78: =+AR78*AW10 -> 0 | AV78: =AR78*AT10 -> 0 | AW78: =AR78*AU10/60 -> 0
B79: =ProjectData!D76 -> 0 | D79: 30 | E79: 12 | F79: 4 | G79: 3 | H79: 3 | I79: 4.5 | J79: 6 | K79: 0 | L79: =K79*G11 -> 0 | M79: =K79*G13 -> 0 | N79: =L79*'CTI Input Sheet'!B28 -> 0 | O79: =L79*'CTI Input Sheet'!C28 -> 0 | P79: =L79*'CTI Input Sheet'!D28 -> 0 | Q79: 0 | T79: 0 | U79: 0 | V79: 0 | W79: =T79*'CTI Input Sheet'!K22 -> 0 | X79: =SUM(T79*H11)/60 -> 0 | Z79: 0 | AA79: 0 | AB79: 0 | AC79: 0 | AD79: 0 | AE79: 0 | AG79: =SUM(AB79*AH8)+(AC79*AH9) -> 0 | AH79: 0 | AI79: 0 | AK79: =Z79*AO6/60 -> 0 | AL79: =AB79*AO8/60 -> 0 | AM79: 0 | AN79: 0 | AO79: =AN79*AL6 -> 0 | AQ79: =IF(ProjectData!H$17="Not Required",0,B79*2) -> 0 | AR79: 0 | AS79: 0 | AT79: =AQ79*5.3 -> 0 | AU79: =+AR79*AW11 -> 0 | AV79: =AR79*AT11 -> 0 | AW79: =AR79*AU11/60 -> 0
B80: =ProjectData!D77 -> 0 | D80: 30 | E80: 24 | F80: 4 | G80: 3 | H80: 3 | I80: 5.5 | J80: 7 | K80: 0 | L80: =K80*G11 -> 0 | M80: =K80*G13 -> 0 | N80: =L80*'CTI Input Sheet'!B28 -> 0 | O80: =L80*'CTI Input Sheet'!C28 -> 0 | P80: =L80*'CTI Input Sheet'!D28 -> 0 | Q80: 0 | T80: 0 | U80: 0 | V80: 0 | W80: =T80*'CTI Input Sheet'!K22 -> 0 | X80: =SUM(T80*H11)/60 -> 0 | Z80: 0 | AA80: 0 | AB80: 0 | AC80: 0 | AD80: 0 | AE80: 0 | AG80: =SUM(AB80*AH8)+(AC80*AH9) -> 0 | AH80: 0 | AI80: 0 | AK80: =Z80*AO6/60 -> 0 | AL80: =AB80*AO8/60 -> 0 | AM80: 0 | AN80: 0 | AO80: =AN80*AL6 -> 0 | AQ80: =IF(ProjectData!H$17="Not Required",0,B80*2) -> 0 | AR80: 0 | AS80: 0 | AT80: =AQ80*8.59 -> 0 | AU80: =+AR80*AW11 -> 0 | AV80: =AR80*AT11 -> 0 | AW80: =AR80*AU11/60 -> 0
B81: =ProjectData!D78 -> 0 | D81: 30 | E81: 36 | F81: 4 | G81: 3 | H81: 3 | I81: 6.5 | J81: 8 | K81: 0 | L81: =K81*G11 -> 0 | M81: =K81*G13 -> 0 | N81: =L81*'CTI Input Sheet'!B28 -> 0 | O81: =L81*'CTI Input Sheet'!C28 -> 0 | P81: =L81*'CTI Input Sheet'!D28 -> 0 | Q81: 0 | T81: 0 | U81: 0 | V81: 0 | W81: =T81*'CTI Input Sheet'!K22 -> 0 | X81: =SUM(T81*H11)/60 -> 0 | Z81: 0 | AA81: 0 | AB81: 0 | AC81: 0 | AD81: 0 | AE81: 0 | AG81: =SUM(AB81*AH8)+(AC81*AH9) -> 0 | AH81: 0 | AI81: 0 | AK81: =Z81*AO6/60 -> 0 | AL81: =AB81*AO8/60 -> 0 | AM81: 0 | AN81: 0 | AO81: =AN81*AL6 -> 0 | AQ81: =IF(ProjectData!H$17="Not Required",0,B81*2) -> 0 | AR81: 0 | AS81: 0 | AT81: =AQ81*12.2 -> 0 | AU81: =+AR81*AW11 -> 0 | AV81: =AR81*AT11 -> 0 | AW81: =AR81*AU11/60 -> 0
B82: =ProjectData!D79 -> 1 | D82: 36 | E82: 12 | F82: 4 | G82: 3.5 | H82: 3.5 | I82: 5 | J82: 6.5 | K82: 18.5 | L82: =K82*G11 -> 70.3 | M82: =K82*G13 -> 421.8 | N82: =L82*'CTI Input Sheet'!B28 -> 105.45 | O82: =L82*'CTI Input Sheet'!C28 -> 17.575 | P82: =L82*'CTI Input Sheet'!D28 -> 0 | Q82: 544.825 | T82: 4 | U82: 70.3 | V82: 544.825 | W82: =T82*'CTI Input Sheet'!K22 -> 10 | X82: =SUM(T82*H11)/60 -> 1 | Z82: 3 | AA82: 48 | AB82: 4.5 | AC82: 18 | AD82: 0 | AE82: 0 | AG82: =SUM(AB82*AH8)+(AC82*AH9) -> 45 | AH82: 0 | AI82: 45 | AK82: =Z82*AO6/60 -> 0.25 | AL82: =AB82*AO8/60 -> 0.15 | AM82: 0 | AN82: 0.4 | AO82: =AN82*AL6 -> 30 | AQ82: =IF(ProjectData!H$17="Not Required",0,B82*2) -> 0 | AR82: 0 | AS82: 0 | AT82: =AQ82*6.81 -> 0 | AU82: =+AR82*AW12 -> 0 | AV82: =AR82*AT12 -> 0 | AW82: =AR82*AU12/60 -> 0
B83: =ProjectData!D80 -> 0 | D83: 36 | E83: 24 | F83: 4 | G83: 3.5 | H83: 3.5 | I83: 6 | J83: 7.5 | K83: 0 | L83: =K83*G11 -> 0 | M83: =K83*G13 -> 0 | N83: =L83*'CTI Input Sheet'!B28 -> 0 | O83: =L83*'CTI Input Sheet'!C28 -> 0 | P83: =L83*'CTI Input Sheet'!D28 -> 0 | Q83: 0 | T83: 0 | U83: 0 | V83: 0 | W83: =T83*'CTI Input Sheet'!K22 -> 0 | X83: =SUM(T83*H11)/60 -> 0 | Z83: 0 | AA83: 0 | AB83: 0 | AC83: 0 | AD83: 0 | AE83: 0 | AG83: =SUM(AB83*AH8)+(AC83*AH9) -> 0 | AH83: 0 | AI83: 0 | AK83: =Z83*AO6/60 -> 0 | AL83: =AB83*AO8/60 -> 0 | AM83: 0 | AN83: 0 | AO83: =AN83*AL6 -> 0 | AQ83: =IF(ProjectData!H$17="Not Required",0,B83*2) -> 0 | AR83: 0 | AS83: 0 | AT83: =AQ83*10.63 -> 0 | AU83: =+AR83*AW12 -> 0 | AV83: =AR83*AT12 -> 0 | AW83: =AR83*AU12/60 -> 0
B84: =ProjectData!D81 -> 0 | D84: 36 | E84: 36 | F84: 4 | G84: 3.5 | H84: 3.5 | I84: 7 | J84: 8.5 | K84: 0 | L84: =K84*G11 -> 0 | M84: =K84*G13 -> 0 | N84: =L84*'CTI Input Sheet'!B28 -> 0 | O84: =L84*'CTI Input Sheet'!C28 -> 0 | P84: =L84*'CTI Input Sheet'!D28 -> 0 | Q84: =SUM(M84:P84) -> 0 | T84: 0 | U84: 0 | V84: 0 | W84: =T84*'CTI Input Sheet'!K22 -> 0 | X84: =SUM(T84*H11)/60 -> 0 | Z84: 0 | AA84: 0 | AB84: 0 | AC84: 0 | AD84: 0 | AE84: 0 | AG84: =SUM(AB84*AH8)+(AC84*AH9) -> 0 | AH84: 0 | AI84: 0 | AK84: =Z84*AO6/60 -> 0 | AL84: =AB84*AO8/60 -> 0 | AM84: 0 | AN84: 0 | AO84: =AN84*AL6 -> 0 | AQ84: =IF(ProjectData!H$17="Not Required",0,B84*2) -> 0 | AR84: 0 | AS84: 0 | AT84: =AQ84*14.75 -> 0 | AU84: =+AR84*AW12 -> 0 | AV84: =AR84*AT12 -> 0 | AW84: =AR84*AU12/60 -> 0
B85: =SUM(B64:B84) -> 2 | K85: =SUM(K64:K84) -> 29 | L85: 110.2 | M85: 661.2 | N85: 165.3 | O85: 27.55 | P85: 0 | Q85: 854.05 | T85: =SUM(T64:T84) -> 8 | U85: =SUM(U64:U84) -> 110.2 | V85: =SUM(V64:V84) -> 854.05 | W85: =SUM(W64:W84) -> 20 | X85: =SUM(X64:X84) -> 2 | Z85: =SUM(Z64:Z84) -> 6 | AA85: 96 | AB85: 9 | AC85: 36 | AD85: 0 | AE85: 0 | AG85: =SUM(AG64:AG84) -> 90 | AH85: =SUM(AH64:AH84) -> 0 | AI85: =SUM(AI64:AI84) -> 90 | AK85: =SUM(AK64:AK84) -> 0.5 | AL85: =SUM(AL64:AL84) -> 0.3 | AM85: =SUM(AM64:AM84) -> 0 | AN85: =SUM(AN64:AN84) -> 0.8 | AO85: =SUM(AO64:AO84) -> 60 | AQ85: =SUM(AQ64:AQ84) -> 0 | AR85: 0 | AS85: 0 | AT85: 0 | AU85: 0 | AV85: 0 | AW85: 0
W86: =W85*'CTI Input Sheet'!H7 -> 1500 | X86: =X85*'CTI Input Sheet'!H6 -> 150 | AA86: =AA85*AH12 -> 72 | AB86: =AB85*AH8 -> 45 | AC86: =AC85*AH9 -> 45 | AD86: =AD85*AH10 -> 0 | AE86: =AE85*AH11 -> 0 | AK86: =AK85*AL6 -> 37.5 | AL86: =AL85*AL6 -> 22.5 | AM86: =AM85*AL6 -> 0
B87: HX Fittings | D87: HX Fittings | F87: NEMA VE 2 : HX Support Quantity - Support Weight - Support Steel, Fabrication, Logistics, Erection Costs | T87: HX : Support Structure Summary | Z87: HX : Accessory Quantities | AG87: HX : Tray Accessory Costs | AK87: HX : Tray Accessory Installation Time & Installation Cost | AQ87: HX Covers
B88: Quantities | D88: HB Width (in) | E88: HB Radius (in) | F88: Support Quantity | G88: OS1 Str. Section Length (FT) | H88: OS2 Str. Section Length (FT) | I88: OS3 Str. Section Length (FT) | J88: OS4 Str. Section Length (FT) | K88: CTR Str. Section Length (FT) | L88: Total Str. Section Length (FT) | M88: Total Str. Section Weight (lb) | N88: Total Str. Section Cost (USD) | O88: Total Fabrication Cost (USD) | P88: Total Logistic Cost (USD) | Q88: Total Erection Cost (USD | R88: SUM TOTAL COST/FITTING | T88: Total Quantity of Supports | U88: Total Weight of Supports (LB) | V88: Total Cost of Supports (USD) | W88: Total Design Time (HOURS) | X88: Total Support Instal Time (HOURS) | Z88: Splice Plates Quantity (PRS) | AA88: Splice Plate Hardware Quantity (PCS) | AB88: Hold Down Clamp Quantity (PRS) | AC88: Clamp Hardware Quantity (PCS) | AD88: Expansion Guides Quantity (PRS) | AE88: Guides Hardware Quantity (PCS) | AG88: Hold Down Clamps (PR) | AH88: Expansion Guides (PR) | AI88: Total Accessory Cost | AK88: Splice Plates Time/Pair (HRS) | AL88: Hold Down Clamp Time/Pair (HRS) | AM88: Exp. Guide Time/Pair (HRS) | AN88: Total Time (HOURS) | AO88: Total Time Cost (USD) | AQ88: Cover Quantity (PCS) | AR88: Clamp Quantity (PCS) | AS88: Hardware Quantity (PCS) | AT88: Cover Weight (LBS) | AU88: Clamp Weight (LBS) | AV88: Clamps Cost (USD) | AW88: Installation Time (HRS)
B89: =ProjectData!G61 -> 0 | D89: 6 | E89: 12 | F89: 5 | G89: 1 | H89: 1 | I89: 2.5 | J89: 2.5 | K89: 5 | L89: =SUM(G89+H89+I89+J89+K89)*B89 -> 0 | M89: =L89*G11 -> 0 | N89: =L89*G13 -> 0 | O89: =M89*'CTI Input Sheet'!B28 -> 0 | P89: =M89*'CTI Input Sheet'!C28 -> 0 | Q89: =M89*'CTI Input Sheet'!D28 -> 0 | R89: =SUM(N89:Q89) -> 0 | T89: =B89*F89 -> 0 | U89: =M89 -> 0 | V89: =R89 -> 0 | W89: =T89*'CTI Input Sheet'!K23 -> 0 | X89: =SUM(T89*H11)/60 -> 0 | Z89: =B89*4 -> 0 | AA89: =Z89*16 -> 0 | AB89: =(F89+1)*B89 -> 0 | AC89: =AB89*4 -> 0 | AD89: 0 | AE89: 0 | AG89: =SUM(AB89*AH8)+(AC89*AH9) -> 0 | AH89: 0 | AI89: =SUM(AG89:AH89) -> 0 | AK89: =Z89*AO6/60 -> 0 | AL89: =AB89*AO8/60 -> 0 | AM89: 0 | AN89: =SUM(AK89:AM89) -> 0 | AO89: =AN89*AL6 -> 0 | AQ89: =IF(ProjectData!H$17="Not Required",0,B89*2) -> 0 | AR89: =AQ89*4 -> 0 | AS89: 0 | AT89: =AQ89*1.41 -> 0 | AU89: =+AR89*AW6 -> 0 | AV89: =AR89*AT6 -> 0 | AW89: =AR89*AU6/60 -> 0
B90: =ProjectData!G62 -> 0 | D90: 6 | E90: 24 | F90: 5 | G90: 1 | H90: 1 | I90: 3.5 | J90: 3.5 | K90: 7 | L90: =SUM(G90+H90+I90+J90+K90)*B90 -> 0 | M90: =L90*G11 -> 0 | N90: =L90*G13 -> 0 | O90: =M90*'CTI Input Sheet'!B28 -> 0 | P90: =M90*'CTI Input Sheet'!C28 -> 0 | Q90: =M90*'CTI Input Sheet'!D28 -> 0 | R90: 0 | T90: =B90*F90 -> 0 | U90: 0 | V90: 0 | W90: =T90*'CTI Input Sheet'!K23 -> 0 | X90: =SUM(T90*H11)/60 -> 0 | Z90: 0 | AA90: 0 | AB90: 0 | AC90: 0 | AD90: 0 | AE90: 0 | AG90: =SUM(AB90*AH8)+(AC90*AH9) -> 0 | AH90: 0 | AI90: 0 | AK90: =Z90*AO6/60 -> 0 | AL90: =AB90*AO8/60 -> 0 | AM90: 0 | AN90: 0 | AO90: =AN90*AL6 -> 0 | AQ90: =IF(ProjectData!H$17="Not Required",0,B90*2) -> 0 | AR90: 0 | AS90: 0 | AT90: =AQ90*3.42 -> 0 | AU90: =+AR90*AW6 -> 0 | AV90: =AR90*AT6 -> 0 | AW90: =AR90*AU6/60 -> 0
B91: =ProjectData!G63 -> 0 | D91: 6 | E91: 36 | F91: 5 | G91: 1 | H91: 1 | I91: 4.5 | J91: 4.5 | K91: 9 | L91: 0 | M91: =L91*G11 -> 0 | N91: =L91*G13 -> 0 | O91: =M91*'CTI Input Sheet'!B28 -> 0 | P91: =M91*'CTI Input Sheet'!C28 -> 0 | Q91: =M91*'CTI Input Sheet'!D28 -> 0 | R91: 0 | T91: 0 | U91: 0 | V91: 0 | W91: =T91*'CTI Input Sheet'!K23 -> 0 | X91: =SUM(T91*H11)/60 -> 0 | Z91: 0 | AA91: 0 | AB91: 0 | AC91: 0 | AD91: 0 | AE91: 0 | AG91: =SUM(AB91*AH8)+(AC91*AH9) -> 0 | AH91: 0 | AI91: 0 | AK91: =Z91*AO6/60 -> 0 | AL91: =AB91*AO8/60 -> 0 | AM91: 0 | AN91: 0 | AO91: =AN91*AL6 -> 0 | AQ91: =IF(ProjectData!H$17="Not Required",0,B91*2) -> 0 | AR91: 0 | AS91: 0 | AT91: =AQ91*6.13 -> 0 | AU91: =+AR91*AW6 -> 0 | AV91: =AR91*AT6 -> 0 | AW91: =AR91*AU6/60 -> 0
B92: =ProjectData!G64 -> 0 | D92: 9 | E92: 12 | F92: 5 | G92: 1.25 | H92: 1.25 | I92: 2.75 | J92: 2.75 | K92: 5.25 | L92: 0 | M92: =L92*G11 -> 0 | N92: =L92*G13 -> 0 | O92: =M92*'CTI Input Sheet'!B28 -> 0 | P92: =M92*'CTI Input Sheet'!C28 -> 0 | Q92: =M92*'CTI Input Sheet'!D28 -> 0 | R92: 0 | T92: 0 | U92: 0 | V92: 0 | W92: =T92*'CTI Input Sheet'!K23 -> 0 | X92: =SUM(T92*H11)/60 -> 0 | Z92: 0 | AA92: 0 | AB92: 0 | AC92: 0 | AD92: 0 | AE92: 0 | AG92: =SUM(AB92*AH8)+(AC92*AH9) -> 0 | AH92: 0 | AI92: 0 | AK92: =Z92*AO6/60 -> 0 | AL92: =AB92*AO8/60 -> 0 | AM92: 0 | AN92: 0 | AO92: =AN92*AL6 -> 0 | AQ92: =IF(ProjectData!H$17="Not Required",0,B92*2) -> 0 | AR92: =AQ92*4 -> 0 | AS92: 0 | AT92: =AQ92*1.86 -> 0 | AU92: =+AR92*AW7 -> 0 | AV92: =AR92*AT7 -> 0 | AW92: =AR92*AU7/60 -> 0
B93: =ProjectData!G65 -> 0 | D93: 9 | E93: 24 | F93: 5 | G93: 1.25 | H93: 1.25 | I93: 3.75 | J93: 3.75 | K93: 7.25 | L93: 0 | M93: =L93*G11 -> 0 | N93: =L93*G13 -> 0 | O93: =M93*'CTI Input Sheet'!B28 -> 0 | P93: =M93*'CTI Input Sheet'!C28 -> 0 | Q93: =M93*'CTI Input Sheet'!D28 -> 0 | R93: 0 | T93: 0 | U93: 0 | V93: 0 | W93: =T93*'CTI Input Sheet'!K23 -> 0 | X93: =SUM(T93*H11)/60 -> 0 | Z93: 0 | AA93: 0 | AB93: 0 | AC93: 0 | AD93: 0 | AE93: 0 | AG93: =SUM(AB93*AH8)+(AC93*AH9) -> 0 | AH93: 0 | AI93: 0 | AK93: =Z93*AO6/60 -> 0 | AL93: =AB93*AO8/60 -> 0 | AM93: 0 | AN93: 0 | AO93: =AN93*AL6 -> 0 | AQ93: =IF(ProjectData!H$17="Not Required",0,B93*2) -> 0 | AR93: 0 | AS93: 0 | AT93: =AQ93*4.17 -> 0 | AU93: =+AR93*AW7 -> 0 | AV93: =AR93*AT7 -> 0 | AW93: =AR93*AU7/60 -> 0
B94: =ProjectData!G66 -> 0 | D94: 9 | E94: 36 | F94: 5 | G94: 1.25 | H94: 1.25 | I94: 4.75 | J94: 4.75 | K94: 9.25 | L94: 0 | M94: =L94*G11 -> 0 | N94: =L94*G13 -> 0 | O94: =M94*'CTI Input Sheet'!B28 -> 0 | P94: =M94*'CTI Input Sheet'!C28 -> 0 | Q94: =M94*'CTI Input Sheet'!D28 -> 0 | R94: 0 | T94: 0 | U94: 0 | V94: 0 | W94: =T94*'CTI Input Sheet'!K23 -> 0 | X94: =SUM(T94*H11)/60 -> 0 | Z94: 0 | AA94: 0 | AB94: 0 | AC94: 0 | AD94: 0 | AE94: 0 | AG94: =SUM(AB94*AH8)+(AC94*AH9) -> 0 | AH94: 0 | AI94: 0 | AK94: =Z94*AO6/60 -> 0 | AL94: =AB94*AO8/60 -> 0 | AM94: 0 | AN94: 0 | AO94: =AN94*AL6 -> 0 | AQ94: =IF(ProjectData!H$17="Not Required",0,B94*2) -> 0 | AR94: 0 | AS94: 0 | AT94: =AQ94*7.16 -> 0 | AU94: =+AR94*AW7 -> 0 | AV94: =AR94*AT7 -> 0 | AW94: =AR94*AU7/60 -> 0
B95: =ProjectData!G67 -> 0 | D95: 12 | E95: 12 | F95: 5 | G95: 1.5 | H95: 1.5 | I95: 3 | J95: 3 | K95: 5.5 | L95: 0 | M95: =L95*G11 -> 0 | N95: =L95*G13 -> 0 | O95: =M95*'CTI Input Sheet'!B28 -> 0 | P95: =M95*'CTI Input Sheet'!C28 -> 0 | Q95: =M95*'CTI Input Sheet'!D28 -> 0 | R95: 0 | T95: 0 | U95: 0 | V95: 0 | W95: =T95*'CTI Input Sheet'!K23 -> 0 | X95: =SUM(T95*H11)/60 -> 0 | Z95: 0 | AA95: 0 | AB95: 0 | AC95: 0 | AD95: 0 | AE95: 0 | AG95: =SUM(AB95*AH8)+(AC95*AH9) -> 0 | AH95: 0 | AI95: 0 | AK95: =Z95*AO6/60 -> 0 | AL95: =AB95*AO8/60 -> 0 | AM95: 0 | AN95: 0 | AO95: =AN95*AL6 -> 0 | AQ95: =IF(ProjectData!H$17="Not Required",0,B95*2) -> 0 | AR95: =AQ95*4 -> 0 | AS95: 0 | AT95: =AQ95*2.36 -> 0 | AU95: =+AR95*AW8 -> 0 | AV95: =AR95*AT8 -> 0 | AW95: =AR95*AU8/60 -> 0
B96: =ProjectData!G68 -> 0 | D96: 12 | E96: 24 | F96: 5 | G96: 1.5 | H96: 1.5 | I96: 4 | J96: 4 | K96: 7.5 | L96: 0 | M96: =L96*G11 -> 0 | N96: =L96*G13 -> 0 | O96: =M96*'CTI Input Sheet'!B28 -> 0 | P96: =M96*'CTI Input Sheet'!C28 -> 0 | Q96: =M96*'CTI Input Sheet'!D28 -> 0 | R96: 0 | T96: 0 | U96: 0 | V96: 0 | W96: =T96*'CTI Input Sheet'!K23 -> 0 | X96: =SUM(T96*H11)/60 -> 0 | Z96: 0 | AA96: 0 | AB96: 0 | AC96: 0 | AD96: 0 | AE96: 0 | AG96: =SUM(AB96*AH8)+(AC96*AH9) -> 0 | AH96: 0 | AI96: 0 | AK96: =Z96*AO6/60 -> 0 | AL96: =AB96*AO8/60 -> 0 | AM96: 0 | AN96: 0 | AO96: =AN96*AL6 -> 0 | AQ96: =IF(ProjectData!H$17="Not Required",0,B96*2) -> 0 | AR96: 0 | AS96: 0 | AT96: =AQ96*5 -> 0 | AU96: =+AR96*AW8 -> 0 | AV96: =AR96*AT8 -> 0 | AW96: =AR96*AU8/60 -> 0
B97: =ProjectData!G69 -> 0 | D97: 12 | E97: 36 | F97: 5 | G97: 1.5 | H97: 1.5 | I97: 5 | J97: 5 | K97: 9.5 | L97: 0 | M97: =L97*G11 -> 0 | N97: =L97*G13 -> 0 | O97: =M97*'CTI Input Sheet'!B28 -> 0 | P97: =M97*'CTI Input Sheet'!C28 -> 0 | Q97: =M97*'CTI Input Sheet'!D28 -> 0 | R97: 0 | T97: 0 | U97: 0 | V97: 0 | W97: =T97*'CTI Input Sheet'!K23 -> 0 | X97: =SUM(T97*H11)/60 -> 0 | Z97: 0 | AA97: 0 | AB97: 0 | AC97: 0 | AD97: 0 | AE97: 0 | AG97: =SUM(AB97*AH8)+(AC97*AH9) -> 0 | AH97: 0 | AI97: 0 | AK97: =Z97*AO6/60 -> 0 | AL97: =AB97*AO8/60 -> 0 | AM97: 0 | AN97: 0 | AO97: =AN97*AL6 -> 0 | AQ97: =IF(ProjectData!H$17="Not Required",0,B97*2) -> 0 | AR97: 0 | AS97: 0 | AT97: =AQ97*8.29 -> 0 | AU97: =+AR97*AW8 -> 0 | AV97: =AR97*AT8 -> 0 | AW97: =AR97*AU8/60 -> 0
B98: =ProjectData!G70 -> 0 | D98: 18 | E98: 12 | F98: 5 | G98: 2 | H98: 2 | I98: 3.5 | J98: 3.5 | K98: 6 | L98: 0 | M98: =L98*G11 -> 0 | N98: =L98*G13 -> 0 | O98: =M98*'CTI Input Sheet'!B28 -> 0 | P98: =M98*'CTI Input Sheet'!C28 -> 0 | Q98: =M98*'CTI Input Sheet'!D28 -> 0 | R98: 0 | T98: 0 | U98: 0 | V98: 0 | W98: =T98*'CTI Input Sheet'!K23 -> 0 | X98: =SUM(T98*H11)/60 -> 0 | Z98: 0 | AA98: 0 | AB98: 0 | AC98: 0 | AD98: 0 | AE98: 0 | AG98: =SUM(AB98*AH8)+(AC98*AH9) -> 0 | AH98: 0 | AI98: 0 | AK98: =Z98*AO6/60 -> 0 | AL98: =AB98*AO8/60 -> 0 | AM98: 0 | AN98: 0 | AO98: =AN98*AL6 -> 0 | AQ98: =IF(ProjectData!H$17="Not Required",0,B98*2) -> 0 | AR98: =AQ98*4 -> 0 | AS98: 0 | AT98: =AQ98*3.5 -> 0 | AU98: =+AR98*AW9 -> 0 | AV98: =AR98*AT9 -> 0 | AW98: =AR98*AU9/60 -> 0
B99: =ProjectData!G71 -> 0 | D99: 18 | E99: 24 | F99: 5 | G99: 2 | H99: 2 | I99: 4.5 | J99: 4.5 | K99: 8 | L99: 0 | M99: =L99*G11 -> 0 | N99: =L99*G13 -> 0 | O99: =M99*'CTI Input Sheet'!B28 -> 0 | P99: =M99*'CTI Input Sheet'!C28 -> 0 | Q99: =M99*'CTI Input Sheet'!D28 -> 0 | R99: 0 | T99: 0 | U99: 0 | V99: 0 | W99: =T99*'CTI Input Sheet'!K23 -> 0 | X99: =SUM(T99*H11)/60 -> 0 | Z99: 0 | AA99: 0 | AB99: 0 | AC99: 0 | AD99: 0 | AE99: 0 | AG99: =SUM(AB99*AH8)+(AC99*AH9) -> 0 | AH99: 0 | AI99: 0 | AK99: =Z99*AO6/60 -> 0 | AL99: =AB99*AO8/60 -> 0 | AM99: 0 | AN99: 0 | AO99: =AN99*AL6 -> 0 | AQ99: =IF(ProjectData!H$17="Not Required",0,B99*2) -> 0 | AR99: 0 | AS99: 0 | AT99: =AQ99*6.81 -> 0 | AU99: =+AR99*AW9 -> 0 | AV99: =AR99*AT9 -> 0 | AW99: =AR99*AU9/60 -> 0
B100: =ProjectData!G72 -> 0 | D100: 18 | E100: 36 | F100: 5 | G100: 2 | H100: 2 | I100: 5.5 | J100: 5.5 | K100: 10 | L100: 0 | M100: =L100*G11 -> 0 | N100: =L100*G13 -> 0 | O100: =M100*'CTI Input Sheet'!B28 -> 0 | P100: =M100*'CTI Input Sheet'!C28 -> 0 | Q100: =M100*'CTI Input Sheet'!D28 -> 0 | R100: 0 | T100: 0 | U100: 0 | V100: 0 | W100: =T100*'CTI Input Sheet'!K23 -> 0 | X100: =SUM(T100*H11)/60 -> 0 | Z100: 0 | AA100: 0 | AB100: 0 | AC100: 0 | AD100: 0 | AE100: 0 | AG100: =SUM(AB100*AH8)+(AC100*AH9) -> 0 | AH100: 0 | AI100: 0 | AK100: =Z100*AO6/60 -> 0 | AL100: =AB100*AO8/60 -> 0 | AM100: 0 | AN100: 0 | AO100: =AN100*AL6 -> 0 | AQ100: =IF(ProjectData!H$17="Not Required",0,B100*2) -> 0 | AR100: 0 | AS100: 0 | AT100: =AQ100*10.76 -> 0 | AU100: =+AR100*AW9 -> 0 | AV100: =AR100*AT9 -> 0 | AW100: =AR100*AU9/60 -> 0
B101: =ProjectData!G73 -> 0 | D101: 24 | E101: 12 | F101: 5 | G101: 2.5 | H101: 2.5 | I101: 4 | J101: 4 | K101: 7 | L101: 0 | M101: =L101*G11 -> 0 | N101: =L101*G13 -> 0 | O101: =M101*'CTI Input Sheet'!B28 -> 0 | P101: =M101*'CTI Input Sheet'!C28 -> 0 | Q101: =M101*'CTI Input Sheet'!D28 -> 0 | R101: 0 | T101: 0 | U101: 0 | V101: 0 | W101: =T101*'CTI Input Sheet'!K23 -> 0 | X101: =SUM(T101*H11)/60 -> 0 | Z101: 0 | AA101: 0 | AB101: 0 | AC101: 0 | AD101: 0 | AE101: 0 | AG101: =SUM(AB101*AH8)+(AC101*AH9) -> 0 | AH101: 0 | AI101: 0 | AK101: =Z101*AO6/60 -> 0 | AL101: =AB101*AO8/60 -> 0 | AM101: 0 | AN101: 0 | AO101: =AN101*AL6 -> 0 | AQ101: =IF(ProjectData!H$17="Not Required",0,B101*2) -> 0 | AR101: =AQ101*4 -> 0 | AS101: 0 | AT101: =AQ101*4.83 -> 0 | AU101: =+AR101*AW10 -> 0 | AV101: =AR101*AT10 -> 0 | AW101: =AR101*AU10/60 -> 0
B102: =ProjectData!G74 -> 0 | D102: 24 | E102: 24 | F102: 5 | G102: 2.5 | H102: 2.5 | I102: 5 | J102: 5 | K102: 9 | L102: 0 | M102: =L102*G11 -> 0 | N102: =L102*G13 -> 0 | O102: =M102*'CTI Input Sheet'!B28 -> 0 | P102: =M102*'CTI Input Sheet'!C28 -> 0 | Q102: =M102*'CTI Input Sheet'!D28 -> 0 | R102: 0 | T102: 0 | U102: 0 | V102: 0 | W102: =T102*'CTI Input Sheet'!K23 -> 0 | X102: =SUM(T102*H11)/60 -> 0 | Z102: 0 | AA102: 0 | AB102: 0 | AC102: 0 | AD102: 0 | AE102: 0 | AG102: =SUM(AB102*AH8)+(AC102*AH9) -> 0 | AH102: 0 | AI102: 0 | AK102: =Z102*AO6/60 -> 0 | AL102: =AB102*AO8/60 -> 0 | AM102: 0 | AN102: 0 | AO102: =AN102*AL6 -> 0 | AQ102: =IF(ProjectData!H$17="Not Required",0,B102*2) -> 0 | AR102: 0 | AS102: 0 | AT102: =AQ102*8.83 -> 0 | AU102: =+AR102*AW10 -> 0 | AV102: =AR102*AT10 -> 0 | AW102: =AR102*AU10/60 -> 0
B103: =ProjectData!G75 -> 0 | D103: 24 | E103: 36 | F103: 5 | G103: 2.5 | H103: 2.5 | I103: 6 | J103: 6 | K103: 11 | L103: 0 | M103: =L103*G11 -> 0 | N103: =L103*G13 -> 0 | O103: =M103*'CTI Input Sheet'!B28 -> 0 | P103: =M103*'CTI Input Sheet'!C28 -> 0 | Q103: =M103*'CTI Input Sheet'!D28 -> 0 | R103: 0 | T103: 0 | U103: 0 | V103: 0 | W103: =T103*'CTI Input Sheet'!K23 -> 0 | X103: =SUM(T103*H11)/60 -> 0 | Z103: 0 | AA103: 0 | AB103: 0 | AC103: 0 | AD103: 0 | AE103: 0 | AG103: =SUM(AB103*AH8)+(AC103*AH9) -> 0 | AH103: 0 | AI103: 0 | AK103: =Z103*AO6/60 -> 0 | AL103: =AB103*AO8/60 -> 0 | AM103: 0 | AN103: 0 | AO103: =AN103*AL6 -> 0 | AQ103: =IF(ProjectData!H$17="Not Required",0,B103*2) -> 0 | AR103: 0 | AS103: 0 | AT103: =AQ103*13.45 -> 0 | AU103: =+AR103*AW10 -> 0 | AV103: =AR103*AT10 -> 0 | AW103: =AR103*AU10/60 -> 0
B104: =ProjectData!G76 -> 0 | D104: 30 | E104: 12 | F104: 5 | G104: 3 | H104: 3 | I104: 4.5 | J104: 4.5 | K104: 8 | L104: 0 | M104: =L104*G11 -> 0 | N104: =L104*G13 -> 0 | O104: =M104*'CTI Input Sheet'!B28 -> 0 | P104: =M104*'CTI Input Sheet'!C28 -> 0 | Q104: =M104*'CTI Input Sheet'!D28 -> 0 | R104: 0 | T104: 0 | U104: 0 | V104: 0 | W104: =T104*'CTI Input Sheet'!K23 -> 0 | X104: =SUM(T104*H11)/60 -> 0 | Z104: 0 | AA104: 0 | AB104: 0 | AC104: 0 | AD104: 0 | AE104: 0 | AG104: =SUM(AB104*AH8)+(AC104*AH9) -> 0 | AH104: 0 | AI104: 0 | AK104: =Z104*AO6/60 -> 0 | AL104: =AB104*AO8/60 -> 0 | AM104: 0 | AN104: 0 | AO104: =AN104*AL6 -> 0 | AQ104: =IF(ProjectData!H$17="Not Required",0,B104*2) -> 0 | AR104: =AQ104*4 -> 0 | AS104: 0 | AT104: =AQ104*6.33 -> 0 | AU104: =+AR104*AW11 -> 0 | AV104: =AR104*AT11 -> 0 | AW104: =AR104*AU11/60 -> 0
B105: =ProjectData!G77 -> 0 | D105: 30 | E105: 24 | F105: 5 | G105: 3 | H105: 3 | I105: 5.5 | J105: 5.5 | K105: 10 | L105: 0 | M105: =L105*G11 -> 0 | N105: =L105*G13 -> 0 | O105: =M105*'CTI Input Sheet'!B28 -> 0 | P105: =M105*'CTI Input Sheet'!C28 -> 0 | Q105: =M105*'CTI Input Sheet'!D28 -> 0 | R105: 0 | T105: 0 | U105: 0 | V105: 0 | W105: =T105*'CTI Input Sheet'!K23 -> 0 | X105: =SUM(T105*H11)/60 -> 0 | Z105: 0 | AA105: 0 | AB105: 0 | AC105: 0 | AD105: 0 | AE105: 0 | AG105: =SUM(AB105*AH8)+(AC105*AH9) -> 0 | AH105: 0 | AI105: 0 | AK105: =Z105*AO6/60 -> 0 | AL105: =AB105*AO8/60 -> 0 | AM105: 0 | AN105: 0 | AO105: =AN105*AL6 -> 0 | AQ105: =IF(ProjectData!H$17="Not Required",0,B105*2) -> 0 | AR105: 0 | AS105: 0 | AT105: =AQ105*11.03 -> 0 | AU105: =+AR105*AW11 -> 0 | AV105: =AR105*AT11 -> 0 | AW105: =AR105*AU11/60 -> 0
B106: =ProjectData!G78 -> 0 | D106: 30 | E106: 36 | F106: 5 | G106: 3 | H106: 3 | I106: 6.5 | J106: 6.5 | K106: 12 | L106: 0 | M106: =L106*G11 -> 0 | N106: =L106*G13 -> 0 | O106: =M106*'CTI Input Sheet'!B28 -> 0 | P106: =M106*'CTI Input Sheet'!C28 -> 0 | Q106: =M106*'CTI Input Sheet'!D28 -> 0 | R106: 0 | T106: 0 | U106: 0 | V106: 0 | W106: =T106*'CTI Input Sheet'!K23 -> 0 | X106: =SUM(T106*H11)/60 -> 0 | Z106: 0 | AA106: 0 | AB106: 0 | AC106: 0 | AD106: 0 | AE106: 0 | AG106: =SUM(AB106*AH8)+(AC106*AH9) -> 0 | AH106: 0 | AI106: 0 | AK106: =Z106*AO6/60 -> 0 | AL106: =AB106*AO8/60 -> 0 | AM106: 0 | AN106: 0 | AO106: =AN106*AL6 -> 0 | AQ106: =IF(ProjectData!H$17="Not Required",0,B106*2) -> 0 | AR106: 0 | AS106: 0 | AT106: =AQ106*16.34 -> 0 | AU106: =+AR106*AW11 -> 0 | AV106: =AR106*AT11 -> 0 | AW106: =AR106*AU11/60 -> 0
B107: =ProjectData!G79 -> 0 | D107: 36 | E107: 12 | F107: 5 | G107: 3.5 | H107: 3.5 | I107: 5 | J107: 5 | K107: 9 | L107: 0 | M107: =L107*G11 -> 0 | N107: =L107*G13 -> 0 | O107: =M107*'CTI Input Sheet'!B28 -> 0 | P107: =M107*'CTI Input Sheet'!C28 -> 0 | Q107: =M107*'CTI Input Sheet'!D28 -> 0 | R107: 0 | T107: 0 | U107: 0 | V107: 0 | W107: =T107*'CTI Input Sheet'!K23 -> 0 | X107: =SUM(T107*H11)/60 -> 0 | Z107: 0 | AA107: 0 | AB107: 0 | AC107: 0 | AD107: 0 | AE107: 0 | AG107: =SUM(AB107*AH8)+(AC107*AH9) -> 0 | AH107: 0 | AI107: 0 | AK107: =Z107*AO6/60 -> 0 | AL107: =AB107*AO8/60 -> 0 | AM107: 0 | AN107: 0 | AO107: =AN107*AL6 -> 0 | AQ107: =IF(ProjectData!H$17="Not Required",0,B107*2) -> 0 | AR107: =AQ107*4 -> 0 | AS107: 0 | AT107: =AQ107*8.01 -> 0 | AU107: =+AR107*AW12 -> 0 | AV107: =AR107*AT12 -> 0 | AW107: =AR107*AU12/60 -> 0
B108: =ProjectData!G80 -> 0 | D108: 36 | E108: 24 | F108: 5 | G108: 3.5 | H108: 3.5 | I108: 6 | J108: 6 | K108: 11 | L108: 0 | M108: =L108*G11 -> 0 | N108: =L108*G13 -> 0 | O108: =M108*'CTI Input Sheet'!B28 -> 0 | P108: =M108*'CTI Input Sheet'!C28 -> 0 | Q108: =M108*'CTI Input Sheet'!D28 -> 0 | R108: 0 | T108: 0 | U108: 0 | V108: 0 | W108: =T108*'CTI Input Sheet'!K23 -> 0 | X108: =SUM(T108*H11)/60 -> 0 | Z108: 0 | AA108: 0 | AB108: 0 | AC108: 0 | AD108: 0 | AE108: 0 | AG108: =SUM(AB108*AH8)+(AC108*AH9) -> 0 | AH108: 0 | AI108: 0 | AK108: =Z108*AO6/60 -> 0 | AL108: =AB108*AO8/60 -> 0 | AM108: 0 | AN108: 0 | AO108: =AN108*AL6 -> 0 | AQ108: =IF(ProjectData!H$17="Not Required",0,B108*2) -> 0 | AR108: =AQ108*4 -> 0 | AS108: =AR108*4 -> 0 | AT108: =AQ108*13.4 -> 0 | AU108: =+AR108*AW12 -> 0 | AV108: =AR108*AT12 -> 0 | AW108: =AR108*AU12/60 -> 0
B109: =ProjectData!G81 -> 0 | D109: 36 | E109: 36 | F109: 5 | G109: 3.5 | H109: 3.5 | I109: 7 | J109: 7 | K109: 13 | L109: =SUM(G109+H109+I109+J109+K109)*B109 -> 0 | M109: =L109*G11 -> 0 | N109: =L109*G13 -> 0 | O109: =M109*'CTI Input Sheet'!B28 -> 0 | P109: =M109*'CTI Input Sheet'!C28 -> 0 | Q109: =M109*'CTI Input Sheet'!D28 -> 0 | R109: 0 | T109: 0 | U109: 0 | V109: 0 | W109: =T109*'CTI Input Sheet'!K23 -> 0 | X109: =SUM(T109*H11)/60 -> 0 | Z109: 0 | AA109: 0 | AB109: 0 | AC109: 0 | AD109: 0 | AE109: 0 | AG109: =SUM(AB109*AH8)+(AC109*AH9) -> 0 | AH109: 0 | AI109: 0 | AK109: =Z109*AO6/60 -> 0 | AL109: =AB109*AO8/60 -> 0 | AM109: 0 | AN109: 0 | AO109: =AN109*AL6 -> 0 | AQ109: =IF(ProjectData!H$17="Not Required",0,B109*2) -> 0 | AR109: 0 | AS109: 0 | AT109: =AQ109*19.4 -> 0 | AU109: =+AR109*AW12 -> 0 | AV109: =AR109*AT12 -> 0 | AW109: =AR109*AU12/60 -> 0
B110: =SUM(B89:B109) -> 0 | L110: =SUM(L89:L109) -> 0 | M110: 0 | N110: 0 | O110: 0 | P110: 0 | Q110: 0 | R110: 0 | T110: =SUM(T89:T109) -> 0 | U110: =SUM(U89:U109) -> 0 | V110: =SUM(V89:V109) -> 0 | W110: =SUM(W89:W109) -> 0 | X110: =SUM(X89:X109) -> 0 | Z110: =SUM(Z89:Z109) -> 0 | AA110: 0 | AB110: 0 | AC110: 0 | AD110: 0 | AE110: 0 | AG110: =SUM(AG89:AG109) -> 0 | AH110: =SUM(AH89:AH109) -> 0 | AI110: =SUM(AI89:AI109) -> 0 | AK110: =SUM(AK89:AK109) -> 0 | AL110: =SUM(AL89:AL109) -> 0 | AM110: =SUM(AM89:AM109) -> 0 | AN110: =SUM(AN89:AN109) -> 0 | AO110: =SUM(AO89:AO109) -> 0 | AQ110: =SUM(AQ89:AQ109) -> 0 | AR110: 0 | AS110: 0 | AT110: 0 | AU110: 0 | AV110: 0 | AW110: 0
W111: =W110*'CTI Input Sheet'!H7 -> 0 | X111: =X110*'CTI Input Sheet'!H6 -> 0 | AA111: =AA110*AH12 -> 0 | AB111: =AB110*AH8 -> 0 | AC111: =AC110*AH9 -> 0 | AD111: =AD110*AH10 -> 0 | AE111: =AE110*AH11 -> 0 | AK111: =AK110*AL6 -> 0 | AL111: =AL110*AL6 -> 0 | AM111: =AM110*AL6 -> 0
B112: Vertical VI Fittings | D112: Vertical VI Fittings | F112: NEMA VE 2 : Vertical VI Support Quantity - Support Weight - Support Steel, Fabrication, Logistics, Erection Costs | T112: VI : Support Structure Summary | Z112: VI : Accessory Quantities | AG112: Vertical VI : Tray Accessory Costs | AK112: Vertical VI : Tray Accessory Installation Time & Installation Cost | AQ112: VI Covers
B113: Quantities | D113: HB Width (in) | E113: HB Radius (in) | F113: Support Quantity | G113: OS1 Str. Section Length (FT) | H113: OS2 Str. Section Length (FT) | I113: Total Str. Section Length (FT) | J113: Total Str. Section Weight (lb) | K113: Total Str. Section Cost (USD) | L113: Total Fabrication Cost (USD) | M113: Total Logistic Cost (USD) | N113: Total Erection Cost (USD | O113: SUM TOTAL COST/FITTING | T113: Total Quantity of Supports | U113: Total Weight of Supports (LB) | V113: Total Cost of Supports (USD) | W113: Total Design Time (HOURS) | X113: Total Support Instal Time (HOURS) | Z113: Splice Plates Quantity (PRS) | AA113: Splice Plate Hardware Quantity (PCS) | AB113: Hold Down Clamp Quantity (PRS) | AC113: Clamp Hardware Quantity (PCS) | AD113: Expansion Guides Quantity (PRS) | AE113: Guides Hardware Quantity (PCS) | AG113: Hold Down Clamps (PR) | AH113: Expansion Guides (PR) | AI113: Total Accessory Cost | AK113: Splice Plates Time/Pair (HRS) | AL113: Hold Down Clamp Time/Pair (HRS) | AM113: Exp. Guide Time/Pair (HRS) | AN113: Total Time (HOURS) | AO113: Total Time Cost (USD) | AQ113: Cover Quantity (PCS) | AR113: Clamp Quantity (PCS) | AS113: Hardware Quantity (PCS) | AT113: Cover Weight (LBS) | AU113: Clamp Weight (LBS) | AV113: Clamps Cost (USD) | AW113: Installation Time (HRS)
B114: =ProjectData!G37 -> 0 | D114: 6 | E114: 12 | F114: 2 | G114: 1 | H114: 3 | I114: =SUM(G114+H114)*B114 -> 0 | J114: =I114*G11 -> 0 | K114: =I114*G13 -> 0 | L114: =J114*'CTI Input Sheet'!B28 -> 0 | M114: =J114*'CTI Input Sheet'!C28 -> 0 | N114: =J114*'CTI Input Sheet'!D28 -> 0 | O114: =SUM(L114:N114) -> 0 | T114: =B114*F114 -> 0 | U114: =J114 -> 0 | V114: =O114 -> 0 | W114: =T114*'CTI Input Sheet'!K24 -> 0 | X114: =SUM(T114*H11)/60 -> 0 | Z114: =B114*2 -> 0 | AA114: =Z114*16 -> 0 | AB114: =(F114)*B114 -> 0 | AC114: =AB114*4 -> 0 | AD114: 0 | AE114: 0 | AG114: =SUM(AB114*AH8)+(AC114*AH9) -> 0 | AH114: 0 | AI114: =SUM(AG114:AH114) -> 0 | AK114: =Z114*AO6/60 -> 0 | AL114: =AB114*AO8/60 -> 0 | AM114: 0 | AN114: =SUM(AK114:AM114) -> 0 | AO114: =AN114*AL6 -> 0 | AQ114: =IF(ProjectData!H$17="Not Required",0,B114*2) -> 0 | AR114: =AQ114*2 -> 0 | AS114: =AR114*4 -> 0 | AT114: =AQ114*0.45 -> 0 | AU114: =+AR114*AW6 -> 0 | AV114: =AR114*AT6 -> 0 | AW114: =AR114*AU6/60 -> 0
B115: =ProjectData!G38 -> 0 | D115: 6 | E115: 24 | F115: 2 | G115: 1 | H115: 5 | I115: =SUM(G115+H115)*B115 -> 0 | J115: =I115*G11 -> 0 | K115: =I115*G13 -> 0 | L115: =J115*'CTI Input Sheet'!B28 -> 0 | M115: =J115*'CTI Input Sheet'!C28 -> 0 | N115: =J115*'CTI Input Sheet'!D28 -> 0 | O115: 0 | T115: =B115*F115 -> 0 | U115: 0 | V115: 0 | W115: =T115*'CTI Input Sheet'!K24 -> 0 | X115: =SUM(T115*H11)/60 -> 0 | Z115: 0 | AA115: 0 | AB115: 0 | AC115: 0 | AD115: 0 | AE115: 0 | AG115: =SUM(AB115*AH8)+(AC115*AH9) -> 0 | AH115: 0 | AI115: 0 | AK115: =Z115*AO6/60 -> 0 | AL115: =AB115*AO8/60 -> 0 | AM115: 0 | AN115: 0 | AO115: =AN115*AL6 -> 0 | AQ115: =IF(ProjectData!H$17="Not Required",0,B115*2) -> 0 | AR115: 0 | AS115: 0 | AT115: =AQ115*0.73 -> 0 | AU115: =+AR115*AW6 -> 0 | AV115: =AR115*AT6 -> 0 | AW115: =AR115*AU6/60 -> 0
B116: =ProjectData!G39 -> 0 | D116: 6 | E116: 36 | F116: 2 | G116: 1 | H116: 7 | I116: 0 | J116: =I116*G11 -> 0 | K116: =I116*G13 -> 0 | L116: =J116*'CTI Input Sheet'!B28 -> 0 | M116: =J116*'CTI Input Sheet'!C28 -> 0 | N116: =J116*'CTI Input Sheet'!D28 -> 0 | O116: 0 | T116: 0 | U116: 0 | V116: 0 | W116: =T116*'CTI Input Sheet'!K24 -> 0 | X116: =SUM(T116*H11)/60 -> 0 | Z116: 0 | AA116: 0 | AB116: 0 | AC116: 0 | AD116: 0 | AE116: 0 | AG116: =SUM(AB116*AH8)+(AC116*AH9) -> 0 | AH116: 0 | AI116: 0 | AK116: =Z116*AO6/60 -> 0 | AL116: =AB116*AO8/60 -> 0 | AM116: 0 | AN116: 0 | AO116: =AN116*AL6 -> 0 | AQ116: =IF(ProjectData!H$17="Not Required",0,B116*2) -> 0 | AR116: 0 | AS116: 0 | AT116: =AQ116*1.12 -> 0 | AU116: =+AR116*AW6 -> 0 | AV116: =AR116*AT6 -> 0 | AW116: =AR116*AU6/60 -> 0
B117: =ProjectData!G40 -> 0 | D117: 9 | E117: 12 | F117: 2 | G117: 1.25 | H117: 3.25 | I117: 0 | J117: =I117*G11 -> 0 | K117: =I117*G13 -> 0 | L117: =J117*'CTI Input Sheet'!B28 -> 0 | M117: =J117*'CTI Input Sheet'!C28 -> 0 | N117: =J117*'CTI Input Sheet'!D28 -> 0 | O117: 0 | T117: 0 | U117: 0 | V117: 0 | W117: =T117*'CTI Input Sheet'!K24 -> 0 | X117: =SUM(T117*H11)/60 -> 0 | Z117: 0 | AA117: 0 | AB117: 0 | AC117: 0 | AD117: 0 | AE117: 0 | AG117: =SUM(AB117*AH8)+(AC117*AH9) -> 0 | AH117: 0 | AI117: 0 | AK117: =Z117*AO6/60 -> 0 | AL117: =AB117*AO8/60 -> 0 | AM117: 0 | AN117: 0 | AO117: =AN117*AL6 -> 0 | AQ117: =IF(ProjectData!H$17="Not Required",0,B117*2) -> 0 | AR117: 0 | AS117: 0 | AT117: =AQ117*0.45 -> 0 | AU117: =+AR117*AW7 -> 0 | AV117: =AR117*AT7 -> 0 | AW117: =AR117*AU7/60 -> 0
B118: =ProjectData!G41 -> 0 | D118: 9 | E118: 24 | F118: 2 | G118: 1.25 | H118: 5.25 | I118: 0 | J118: =I118*G11 -> 0 | K118: =I118*G13 -> 0 | L118: =J118*'CTI Input Sheet'!B28 -> 0 | M118: =J118*'CTI Input Sheet'!C28 -> 0 | N118: =J118*'CTI Input Sheet'!D28 -> 0 | O118: 0 | T118: 0 | U118: 0 | V118: 0 | W118: =T118*'CTI Input Sheet'!K24 -> 0 | X118: =SUM(T118*H11)/60 -> 0 | Z118: 0 | AA118: 0 | AB118: 0 | AC118: 0 | AD118: 0 | AE118: 0 | AG118: =SUM(AB118*AH8)+(AC118*AH9) -> 0 | AH118: 0 | AI118: 0 | AK118: =Z118*AO6/60 -> 0 | AL118: =AB118*AO8/60 -> 0 | AM118: 0 | AN118: 0 | AO118: =AN118*AL6 -> 0 | AQ118: =IF(ProjectData!H$17="Not Required",0,B118*2) -> 0 | AR118: 0 | AS118: 0 | AT118: =AQ118*0.98 -> 0 | AU118: =+AR118*AW7 -> 0 | AV118: =AR118*AT7 -> 0 | AW118: =AR118*AU7/60 -> 0
B119: =ProjectData!G42 -> 0 | D119: 9 | E119: 36 | F119: 2 | G119: 1.25 | H119: 7.25 | I119: 0 | J119: =I119*G11 -> 0 | K119: =I119*G13 -> 0 | L119: =J119*'CTI Input Sheet'!B28 -> 0 | M119: =J119*'CTI Input Sheet'!C28 -> 0 | N119: =J119*'CTI Input Sheet'!D28 -> 0 | O119: 0 | T119: 0 | U119: 0 | V119: 0 | W119: =T119*'CTI Input Sheet'!K24 -> 0 | X119: =SUM(T119*H11)/60 -> 0 | Z119: 0 | AA119: 0 | AB119: 0 | AC119: 0 | AD119: 0 | AE119: 0 | AG119: =SUM(AB119*AH8)+(AC119*AH9) -> 0 | AH119: 0 | AI119: 0 | AK119: =Z119*AO6/60 -> 0 | AL119: =AB119*AO8/60 -> 0 | AM119: 0 | AN119: 0 | AO119: =AN119*AL6 -> 0 | AQ119: =IF(ProjectData!H$17="Not Required",0,B119*2) -> 0 | AR119: 0 | AS119: 0 | AT119: =AQ119*1.51 -> 0 | AU119: =+AR119*AW7 -> 0 | AV119: =AR119*AT7 -> 0 | AW119: =AR119*AU7/60 -> 0
B120: =ProjectData!G43 -> 4 | D120: 12 | E120: 12 | F120: 2 | G120: 1.5 | H120: 3.5 | I120: 20 | J120: =I120*G11 -> 76 | K120: =I120*G13 -> 456 | L120: =J120*'CTI Input Sheet'!B28 -> 114 | M120: =J120*'CTI Input Sheet'!C28 -> 19 | N120: =J120*'CTI Input Sheet'!D28 -> 0 | O120: 133 | T120: 8 | U120: 76 | V120: 133 | W120: =T120*'CTI Input Sheet'!K24 -> 12 | X120: =SUM(T120*H11)/60 -> 2 | Z120: 8 | AA120: 128 | AB120: 8 | AC120: 32 | AD120: 0 | AE120: 0 | AG120: =SUM(AB120*AH8)+(AC120*AH9) -> 80 | AH120: 0 | AI120: 80 | AK120: =Z120*AO6/60 -> 0.6666666667 | AL120: =AB120*AO8/60 -> 0.2666666667 | AM120: 0 | AN120: 0.9333333333 | AO120: =AN120*AL6 -> 70 | AQ120: =IF(ProjectData!H$17="Not Required",0,B120*2) -> 0 | AR120: 0 | AS120: 0 | AT120: =AQ120*0.57 -> 0 | AU120: =+AR120*AW8 -> 0 | AV120: =AR120*AT8 -> 0 | AW120: =AR120*AU8/60 -> 0
B121: =ProjectData!G44 -> 0 | D121: 12 | E121: 24 | F121: 2 | G121: 1.5 | H121: 5.5 | I121: 0 | J121: =I121*G11 -> 0 | K121: =I121*G13 -> 0 | L121: =J121*'CTI Input Sheet'!B28 -> 0 | M121: =J121*'CTI Input Sheet'!C28 -> 0 | N121: =J121*'CTI Input Sheet'!D28 -> 0 | O121: 0 | T121: 0 | U121: 0 | V121: 0 | W121: =T121*'CTI Input Sheet'!K24 -> 0 | X121: =SUM(T121*H11)/60 -> 0 | Z121: 0 | AA121: 0 | AB121: 0 | AC121: 0 | AD121: 0 | AE121: 0 | AG121: =SUM(AB121*AH8)+(AC121*AH9) -> 0 | AH121: 0 | AI121: 0 | AK121: =Z121*AO6/60 -> 0 | AL121: =AB121*AO8/60 -> 0 | AM121: 0 | AN121: 0 | AO121: =AN121*AL6 -> 0 | AQ121: =IF(ProjectData!H$17="Not Required",0,B121*2) -> 0 | AR121: 0 | AS121: 0 | AT121: =AQ121*1.23 -> 0 | AU121: =+AR121*AW8 -> 0 | AV121: =AR121*AT8 -> 0 | AW121: =AR121*AU8/60 -> 0
B122: =ProjectData!G45 -> 0 | D122: 12 | E122: 36 | F122: 2 | G122: 1.5 | H122: 7.5 | I122: 0 | J122: =I122*G11 -> 0 | K122: =I122*G13 -> 0 | L122: =J122*'CTI Input Sheet'!B28 -> 0 | M122: =J122*'CTI Input Sheet'!C28 -> 0 | N122: =J122*'CTI Input Sheet'!D28 -> 0 | O122: 0 | T122: 0 | U122: 0 | V122: 0 | W122: =T122*'CTI Input Sheet'!K24 -> 0 | X122: =SUM(T122*H11)/60 -> 0 | Z122: 0 | AA122: 0 | AB122: 0 | AC122: 0 | AD122: 0 | AE122: 0 | AG122: =SUM(AB122*AH8)+(AC122*AH9) -> 0 | AH122: 0 | AI122: 0 | AK122: =Z122*AO6/60 -> 0 | AL122: =AB122*AO8/60 -> 0 | AM122: 0 | AN122: 0 | AO122: =AN122*AL6 -> 0 | AQ122: =IF(ProjectData!H$17="Not Required",0,B122*2) -> 0 | AR122: 0 | AS122: 0 | AT122: =AQ122*1.9 -> 0 | AU122: =+AR122*AW8 -> 0 | AV122: =AR122*AT8 -> 0 | AW122: =AR122*AU8/60 -> 0
B123: =ProjectData!G46 -> 0 | D123: 18 | E123: 12 | F123: 2 | G123: 2 | H123: 4 | I123: 0 | J123: =I123*G11 -> 0 | K123: =I123*G13 -> 0 | L123: =J123*'CTI Input Sheet'!B28 -> 0 | M123: =J123*'CTI Input Sheet'!C28 -> 0 | N123: =J123*'CTI Input Sheet'!D28 -> 0 | O123: 0 | T123: 0 | U123: 0 | V123: 0 | W123: =T123*'CTI Input Sheet'!K24 -> 0 | X123: =SUM(T123*H11)/60 -> 0 | Z123: 0 | AA123: 0 | AB123: 0 | AC123: 0 | AD123: 0 | AE123: 0 | AG123: =SUM(AB123*AH8)+(AC123*AH9) -> 0 | AH123: 0 | AI123: 0 | AK123: =Z123*AO6/60 -> 0 | AL123: =AB123*AO8/60 -> 0 | AM123: 0 | AN123: 0 | AO123: =AN123*AL6 -> 0 | AQ123: =IF(ProjectData!H$17="Not Required",0,B123*2) -> 0 | AR123: 0 | AS123: 0 | AT123: =AQ123*0.8 -> 0 | AU123: =+AR123*AW9 -> 0 | AV123: =AR123*AT9 -> 0 | AW123: =AR123*AU9/60 -> 0
B124: =ProjectData!G47 -> 0 | D124: 18 | E124: 24 | F124: 2 | G124: 2 | H124: 6 | I124: 0 | J124: =I124*G11 -> 0 | K124: =I124*G13 -> 0 | L124: =J124*'CTI Input Sheet'!B28 -> 0 | M124: =J124*'CTI Input Sheet'!C28 -> 0 | N124: =J124*'CTI Input Sheet'!D28 -> 0 | O124: 0 | T124: 0 | U124: 0 | V124: 0 | W124: =T124*'CTI Input Sheet'!K24 -> 0 | X124: =SUM(T124*H11)/60 -> 0 | Z124: 0 | AA124: 0 | AB124: 0 | AC124: 0 | AD124: 0 | AE124: 0 | AG124: =SUM(AB124*AH8)+(AC124*AH9) -> 0 | AH124: 0 | AI124: 0 | AK124: =Z124*AO6/60 -> 0 | AL124: =AB124*AO8/60 -> 0 | AM124: 0 | AN124: 0 | AO124: =AN124*AL6 -> 0 | AQ124: =IF(ProjectData!H$17="Not Required",0,B124*2) -> 0 | AR124: 0 | AS124: 0 | AT124: =AQ124*1.74 -> 0 | AU124: =+AR124*AW9 -> 0 | AV124: =AR124*AT9 -> 0 | AW124: =AR124*AU9/60 -> 0
B125: =ProjectData!G48 -> 0 | D125: 18 | E125: 36 | F125: 2 | G125: 2 | H125: 8 | I125: 0 | J125: =I125*G11 -> 0 | K125: =I125*G13 -> 0 | L125: =J125*'CTI Input Sheet'!B28 -> 0 | M125: =J125*'CTI Input Sheet'!C28 -> 0 | N125: =J125*'CTI Input Sheet'!D28 -> 0 | O125: 0 | T125: 0 | U125: 0 | V125: 0 | W125: =T125*'CTI Input Sheet'!K24 -> 0 | X125: =SUM(T125*H11)/60 -> 0 | Z125: 0 | AA125: 0 | AB125: 0 | AC125: 0 | AD125: 0 | AE125: 0 | AG125: =SUM(AB125*AH8)+(AC125*AH9) -> 0 | AH125: 0 | AI125: 0 | AK125: =Z125*AO6/60 -> 0 | AL125: =AB125*AO8/60 -> 0 | AM125: 0 | AN125: 0 | AO125: =AN125*AL6 -> 0 | AQ125: =IF(ProjectData!H$17="Not Required",0,B125*2) -> 0 | AR125: 0 | AS125: 0 | AT125: =AQ125*2.68 -> 0 | AU125: =+AR125*AW9 -> 0 | AV125: =AR125*AT9 -> 0 | AW125: =AR125*AU9/60 -> 0
B126: =ProjectData!G49 -> 0 | D126: 24 | E126: 12 | F126: 2 | G126: 2.5 | H126: 4.5 | I126: 0 | J126: =I126*G11 -> 0 | K126: =I126*G13 -> 0 | L126: =J126*'CTI Input Sheet'!B28 -> 0 | M126: =J126*'CTI Input Sheet'!C28 -> 0 | N126: =J126*'CTI Input Sheet'!D28 -> 0 | O126: 0 | T126: 0 | U126: 0 | V126: 0 | W126: =T126*'CTI Input Sheet'!K24 -> 0 | X126: =SUM(T126*H11)/60 -> 0 | Z126: 0 | AA126: 0 | AB126: 0 | AC126: 0 | AD126: 0 | AE126: 0 | AG126: =SUM(AB126*AH8)+(AC126*AH9) -> 0 | AH126: 0 | AI126: 0 | AK126: =Z126*AO6/60 -> 0 | AL126: =AB126*AO8/60 -> 0 | AM126: 0 | AN126: 0 | AO126: =AN126*AL6 -> 0 | AQ126: =IF(ProjectData!H$17="Not Required",0,B126*2) -> 0 | AR126: =AQ126*3 -> 0 | AS126: 0 | AT126: =AQ126*1.04 -> 0 | AU126: =+AR126*AW10 -> 0 | AV126: =AR126*AT10 -> 0 | AW126: =AR126*AU10/60 -> 0
B127: =ProjectData!G50 -> 0 | D127: 24 | E127: 24 | F127: 2 | G127: 2.5 | H127: 6.5 | I127: 0 | J127: =I127*G11 -> 0 | K127: =I127*G13 -> 0 | L127: =J127*'CTI Input Sheet'!B28 -> 0 | M127: =J127*'CTI Input Sheet'!C28 -> 0 | N127: =J127*'CTI Input Sheet'!D28 -> 0 | O127: 0 | T127: 0 | U127: 0 | V127: 0 | W127: =T127*'CTI Input Sheet'!K24 -> 0 | X127: =SUM(T127*H11)/60 -> 0 | Z127: 0 | AA127: 0 | AB127: 0 | AC127: 0 | AD127: 0 | AE127: 0 | AG127: =SUM(AB127*AH8)+(AC127*AH9) -> 0 | AH127: 0 | AI127: 0 | AK127: =Z127*AO6/60 -> 0 | AL127: =AB127*AO8/60 -> 0 | AM127: 0 | AN127: 0 | AO127: =AN127*AL6 -> 0 | AQ127: =IF(ProjectData!H$17="Not Required",0,B127*2) -> 0 | AR127: 0 | AS127: 0 | AT127: =AQ127*2.25 -> 0 | AU127: =+AR127*AW10 -> 0 | AV127: =AR127*AT10 -> 0 | AW127: =AR127*AU10/60 -> 0
B128: =ProjectData!G51 -> 0 | D128: 24 | E128: 36 | F128: 2 | G128: 2.5 | H128: 8.5 | I128: 0 | J128: =I128*G11 -> 0 | K128: =I128*G13 -> 0 | L128: =J128*'CTI Input Sheet'!B28 -> 0 | M128: =J128*'CTI Input Sheet'!C28 -> 0 | N128: =J128*'CTI Input Sheet'!D28 -> 0 | O128: 0 | T128: 0 | U128: 0 | V128: 0 | W128: =T128*'CTI Input Sheet'!K24 -> 0 | X128: =SUM(T128*H11)/60 -> 0 | Z128: 0 | AA128: 0 | AB128: 0 | AC128: 0 | AD128: 0 | AE128: 0 | AG128: =SUM(AB128*AH8)+(AC128*AH9) -> 0 | AH128: 0 | AI128: 0 | AK128: =Z128*AO6/60 -> 0 | AL128: =AB128*AO8/60 -> 0 | AM128: 0 | AN128: 0 | AO128: =AN128*AL6 -> 0 | AQ128: =IF(ProjectData!H$17="Not Required",0,B128*2) -> 0 | AR128: 0 | AS128: 0 | AT128: =AQ128*3.46 -> 0 | AU128: =+AR128*AW10 -> 0 | AV128: =AR128*AT10 -> 0 | AW128: =AR128*AU10/60 -> 0
B129: =ProjectData!G52 -> 0 | D129: 30 | E129: 12 | F129: 2 | G129: 3 | H129: 5 | I129: 0 | J129: =I129*G11 -> 0 | K129: =I129*G13 -> 0 | L129: =J129*'CTI Input Sheet'!B28 -> 0 | M129: =J129*'CTI Input Sheet'!C28 -> 0 | N129: =J129*'CTI Input Sheet'!D28 -> 0 | O129: 0 | T129: 0 | U129: 0 | V129: 0 | W129: =T129*'CTI Input Sheet'!K24 -> 0 | X129: =SUM(T129*H11)/60 -> 0 | Z129: 0 | AA129: 0 | AB129: 0 | AC129: 0 | AD129: 0 | AE129: 0 | AG129: =SUM(AB129*AH8)+(AC129*AH9) -> 0 | AH129: 0 | AI129: 0 | AK129: =Z129*AO6/60 -> 0 | AL129: =AB129*AO8/60 -> 0 | AM129: 0 | AN129: 0 | AO129: =AN129*AL6 -> 0 | AQ129: =IF(ProjectData!H$17="Not Required",0,B129*2) -> 0 | AR129: 0 | AS129: 0 | AT129: =AQ129*1.27 -> 0 | AU129: =+AR129*AW11 -> 0 | AV129: =AR129*AT11 -> 0 | AW129: =AR129*AU11/60 -> 0
B130: =ProjectData!G53 -> 0 | D130: 30 | E130: 24 | F130: 2 | G130: 3 | H130: 7 | I130: 0 | J130: =I130*G11 -> 0 | K130: =I130*G13 -> 0 | L130: =J130*'CTI Input Sheet'!B28 -> 0 | M130: =J130*'CTI Input Sheet'!C28 -> 0 | N130: =J130*'CTI Input Sheet'!D28 -> 0 | O130: 0 | T130: 0 | U130: 0 | V130: 0 | W130: =T130*'CTI Input Sheet'!K24 -> 0 | X130: =SUM(T130*H11)/60 -> 0 | Z130: 0 | AA130: 0 | AB130: 0 | AC130: 0 | AD130: 0 | AE130: 0 | AG130: =SUM(AB130*AH8)+(AC130*AH9) -> 0 | AH130: 0 | AI130: 0 | AK130: =Z130*AO6/60 -> 0 | AL130: =AB130*AO8/60 -> 0 | AM130: 0 | AN130: 0 | AO130: =AN130*AL6 -> 0 | AQ130: =IF(ProjectData!H$17="Not Required",0,B130*2) -> 0 | AR130: 0 | AS130: 0 | AT130: =AQ130*2.76 -> 0 | AU130: =+AR130*AW11 -> 0 | AV130: =AR130*AT11 -> 0 | AW130: =AR130*AU11/60 -> 0
B131: =ProjectData!G54 -> 0 | D131: 30 | E131: 36 | F131: 2 | G131: 3 | H131: 9 | I131: 0 | J131: =I131*G11 -> 0 | K131: =I131*G13 -> 0 | L131: =J131*'CTI Input Sheet'!B28 -> 0 | M131: =J131*'CTI Input Sheet'!C28 -> 0 | N131: =J131*'CTI Input Sheet'!D28 -> 0 | O131: 0 | T131: 0 | U131: 0 | V131: 0 | W131: =T131*'CTI Input Sheet'!K24 -> 0 | X131: =SUM(T131*H11)/60 -> 0 | Z131: 0 | AA131: 0 | AB131: 0 | AC131: 0 | AD131: 0 | AE131: 0 | AG131: =SUM(AB131*AH8)+(AC131*AH9) -> 0 | AH131: 0 | AI131: 0 | AK131: =Z131*AO6/60 -> 0 | AL131: =AB131*AO8/60 -> 0 | AM131: 0 | AN131: 0 | AO131: =AN131*AL6 -> 0 | AQ131: =IF(ProjectData!H$17="Not Required",0,B131*2) -> 0 | AR131: 0 | AS131: 0 | AT131: =AQ131*4.25 -> 0 | AU131: =+AR131*AW11 -> 0 | AV131: =AR131*AT11 -> 0 | AW131: =AR131*AU11/60 -> 0
B132: =ProjectData!G55 -> 2 | D132: 36 | E132: 12 | F132: 2 | G132: 3.5 | H132: 5.5 | I132: 18 | J132: =I132*G11 -> 68.4 | K132: =I132*G13 -> 410.4 | L132: =J132*'CTI Input Sheet'!B28 -> 102.6 | M132: =J132*'CTI Input Sheet'!C28 -> 17.1 | N132: =J132*'CTI Input Sheet'!D28 -> 0 | O132: 119.7 | T132: 4 | U132: 68.4 | V132: 119.7 | W132: =T132*'CTI Input Sheet'!K24 -> 6 | X132: =SUM(T132*H11)/60 -> 1 | Z132: 4 | AA132: 64 | AB132: 4 | AC132: 16 | AD132: 0 | AE132: 0 | AG132: =SUM(AB132*AH8)+(AC132*AH9) -> 40 | AH132: 0 | AI132: 40 | AK132: =Z132*AO6/60 -> 0.3333333333 | AL132: =AB132*AO8/60 -> 0.1333333333 | AM132: 0 | AN132: 0.4666666667 | AO132: =AN132*AL6 -> 35 | AQ132: =IF(ProjectData!H$17="Not Required",0,B132*2) -> 0 | AR132: 0 | AS132: 0 | AT132: =AQ132*1.51 -> 0 | AU132: =+AR132*AW12 -> 0 | AV132: =AR132*AT12 -> 0 | AW132: =AR132*AU12/60 -> 0
B133: =ProjectData!G56 -> 0 | D133: 36 | E133: 24 | F133: 2 | G133: 3.5 | H133: 7.5 | I133: 0 | J133: =I133*G11 -> 0 | K133: =I133*G13 -> 0 | L133: =J133*'CTI Input Sheet'!B28 -> 0 | M133: =J133*'CTI Input Sheet'!C28 -> 0 | N133: =J133*'CTI Input Sheet'!D28 -> 0 | O133: 0 | T133: 0 | U133: 0 | V133: 0 | W133: =T133*'CTI Input Sheet'!K24 -> 0 | X133: =SUM(T133*H11)/60 -> 0 | Z133: 0 | AA133: 0 | AB133: 0 | AC133: 0 | AD133: 0 | AE133: 0 | AG133: =SUM(AB133*AH8)+(AC133*AH9) -> 0 | AH133: 0 | AI133: 0 | AK133: =Z133*AO6/60 -> 0 | AL133: =AB133*AO8/60 -> 0 | AM133: 0 | AN133: 0 | AO133: =AN133*AL6 -> 0 | AQ133: =IF(ProjectData!H$17="Not Required",0,B133*2) -> 0 | AR133: 0 | AS133: 0 | AT133: =AQ133*3.27 -> 0 | AU133: =+AR133*AW12 -> 0 | AV133: =AR133*AT12 -> 0 | AW133: =AR133*AU12/60 -> 0
B134: =ProjectData!G57 -> 0 | D134: 36 | E134: 36 | F134: 2 | G134: 3.5 | H134: 9.3 | I134: 0 | J134: =I134*G11 -> 0 | K134: =I134*G13 -> 0 | L134: =J134*'CTI Input Sheet'!B28 -> 0 | M134: =J134*'CTI Input Sheet'!C28 -> 0 | N134: =J134*'CTI Input Sheet'!D28 -> 0 | O134: =SUM(L134:N134) -> 0 | T134: 0 | U134: 0 | V134: 0 | W134: =T134*'CTI Input Sheet'!K24 -> 0 | X134: =SUM(T134*H11)/60 -> 0 | Z134: 0 | AA134: 0 | AB134: 0 | AC134: 0 | AD134: 0 | AE134: 0 | AG134: =SUM(AB134*AH8)+(AC134*AH9) -> 0 | AH134: 0 | AI134: 0 | AK134: =Z134*AO6/60 -> 0 | AL134: =AB134*AO8/60 -> 0 | AM134: 0 | AN134: 0 | AO134: =AN134*AL6 -> 0 | AQ134: =IF(ProjectData!H$17="Not Required",0,B134*2) -> 0 | AR134: 0 | AS134: 0 | AT134: =AQ134*5.03 -> 0 | AU134: =+AR134*AW12 -> 0 | AV134: =AR134*AT12 -> 0 | AW134: =AR134*AU12/60 -> 0
B135: =SUM(B114:B134) -> 6 | I135: =SUM(I114:I134) -> 38 | J135: 144.4 | K135: 866.4 | L135: 216.6 | M135: 36.1 | N135: 0 | O135: 252.7 | T135: =SUM(T114:T134) -> 12 | U135: =SUM(U114:U134) -> 144.4 | V135: =SUM(V114:V134) -> 252.7 | W135: =SUM(W114:W134) -> 18 | X135: =SUM(X114:X134) -> 3 | Z135: =SUM(Z114:Z134) -> 12 | AA135: 192 | AB135: 12 | AC135: 48 | AD135: 0 | AE135: 0 | AG135: =SUM(AG114:AG134) -> 120 | AH135: =SUM(AH114:AH134) -> 0 | AI135: =SUM(AI114:AI134) -> 120 | AK135: =SUM(AK114:AK134) -> 1 | AL135: =SUM(AL114:AL134) -> 0.4 | AM135: =SUM(AM114:AM134) -> 0 | AN135: =SUM(AN114:AN134) -> 1.4 | AO135: =SUM(AO114:AO134) -> 105 | AQ135: =SUM(AQ114:AQ134) -> 0 | AR135: 0 | AS135: 0 | AT135: 0 | AU135: 0 | AV135: 0 | AW135: 0
W136: =W135*'CTI Input Sheet'!H7 -> 1350 | X136: =X135*'CTI Input Sheet'!H6 -> 225 | AA136: =AA135*AH12 -> 144 | AB136: =AB135*AH8 -> 60 | AC136: =AC135*AH9 -> 60 | AD136: =AD135*AH10 -> 0 | AE136: =AE135*AH11 -> 0 | AK136: =AK135*AL6 -> 75 | AL136: =AL135*AL6 -> 30 | AM136: =AM135*AL6 -> 0
B137: Vertical VO Fittings | D137: Vertical VO Fittings | F137: NEMA VE 2 : Vertical VO Support Quantity - Support Weight - Support Steel, Fabrication, Logistics, Erection Costs | T137: VO : Support Structure Summary | Z137: VO : Accessory Quantities | AG137: Vertical VO : Tray Accessory Costs | AK137: Vertical VO : Tray Accessory Installation Time & Installation Cost | AQ137: VO Covers
B138: Quantities | D138: HB Width (in) | E138: HB Radius (in) | F138: Support Quantity | G138: OS1 Str. Section Length (FT) | H138: OS2 Str. Section Length (FT) | I138: Total Str. Section Length (FT) | J138: Total Str. Section Weight (lb) | K138: Total Str. Section Cost (USD) | L138: Total Fabrication Cost (USD) | M138: Total Logistic Cost (USD) | N138: Total Erection Cost (USD | O138: SUM TOTAL COST/FITTING | T138: Total Quantity of Supports | U138: Total Weight of Supports (LB) | V138: Total Cost of Supports (USD) | W138: Total Design Time (HOURS) | X138: Total Support Instal Time (HOURS) | Z138: Splice Plates Quantity (PRS) | AA138: Splice Plate Hardware Quantity (PCS) | AB138: Hold Down Clamp Quantity (PRS) | AC138: Clamp Hardware Quantity (PCS) | AD138: Expansion Guides Quantity (PRS) | AE138: Guides Hardware Quantity (PCS) | AG138: Hold Down Clamps (PR) | AH138: Expansion Guides (PR) | AI138: Total Accessory Cost | AK138: Splice Plates Time/Pair (HRS) | AL138: Hold Down Clamp Time/Pair (HRS) | AM138: Exp. Guide Time/Pair (HRS) | AN138: Total Time (HOURS) | AO138: Total Time Cost (USD) | AQ138: Cover Quantity (PCS) | AR138: Clamp Quantity (PCS) | AS138: Hardware Quantity (PCS) | AT138: Cover Weight (LBS) | AU138: Clamp Weight (LBS) | AV138: Clamps Cost (USD) | AW138: Installation Time (HRS)
B139: =ProjectData!J37 -> 0 | D139: 6 | E139: 12 | F139: 2 | G139: 1 | H139: 3 | I139: =SUM(G139+H139)*B139 -> 0 | J139: =I139*G11 -> 0 | K139: =I139*G13 -> 0 | L139: =J139*'CTI Input Sheet'!B28 -> 0 | M139: =J139*'CTI Input Sheet'!C28 -> 0 | N139: =J139*'CTI Input Sheet'!D28 -> 0 | O139: =SUM(L139:N139) -> 0 | T139: =B139*F139 -> 0 | U139: =J139 -> 0 | V139: =O139 -> 0 | W139: =T139*'CTI Input Sheet'!K24 -> 0 | X139: =SUM(T139*H11)/60 -> 0 | Z139: =B139*2 -> 0 | AA139: =Z139*16 -> 0 | AB139: =(F139)*B139 -> 0 | AC139: =AB139*4 -> 0 | AD139: 0 | AE139: 0 | AG139: =SUM(AB139*AH8)+(AC139*AH9) -> 0 | AH139: 0 | AI139: =SUM(AG139:AH139) -> 0 | AK139: =Z139*AO6/60 -> 0 | AL139: =AB139*AO8/60 -> 0 | AM139: 0 | AN139: =SUM(AK139:AM139) -> 0 | AO139: =AN139*AL6 -> 0 | AQ139: =IF(ProjectData!H$17="Not Required",0,B139*2) -> 0 | AR139: =AQ139*2 -> 0 | AS139: =AR139*4 -> 0 | AT139: =AQ139*0.64 -> 0 | AU139: =+AR139*AW6 -> 0 | AV139: =AR139*AT6 -> 0 | AW139: =AR139*AU6/60 -> 0
B140: =ProjectData!J38 -> 0 | D140: 6 | E140: 24 | F140: 2 | G140: 1 | H140: 5 | I140: 0 | J140: =I140*G11 -> 0 | K140: =I140*G13 -> 0 | L140: =J140*'CTI Input Sheet'!B28 -> 0 | M140: =J140*'CTI Input Sheet'!C28 -> 0 | N140: =J140*'CTI Input Sheet'!D28 -> 0 | O140: 0 | T140: 0 | U140: 0 | V140: 0 | W140: =T140*'CTI Input Sheet'!K24 -> 0 | X140: =SUM(T140*H11)/60 -> 0 | Z140: 0 | AA140: 0 | AB140: 0 | AC140: 0 | AD140: 0 | AE140: 0 | AG140: =SUM(AB140*AH8)+(AC140*AH9) -> 0 | AH140: 0 | AI140: 0 | AK140: =Z140*AO6/60 -> 0 | AL140: =AB140*AO8/60 -> 0 | AM140: 0 | AN140: 0 | AO140: =AN140*AL6 -> 0 | AQ140: =IF(ProjectData!H$17="Not Required",0,B140*2) -> 0 | AR140: 0 | AS140: 0 | AT140: =AQ140*1.03 -> 0 | AU140: =+AR140*AW6 -> 0 | AV140: =AR140*AT6 -> 0 | AW140: =AR140*AU6/60 -> 0
B141: =ProjectData!J39 -> 0 | D141: 6 | E141: 36 | F141: 2 | G141: 1 | H141: 7 | I141: 0 | J141: =I141*G11 -> 0 | K141: =I141*G13 -> 0 | L141: =J141*'CTI Input Sheet'!B28 -> 0 | M141: =J141*'CTI Input Sheet'!C28 -> 0 | N141: =J141*'CTI Input Sheet'!D28 -> 0 | O141: 0 | T141: 0 | U141: 0 | V141: 0 | W141: =T141*'CTI Input Sheet'!K24 -> 0 | X141: =SUM(T141*H11)/60 -> 0 | Z141: 0 | AA141: 0 | AB141: 0 | AC141: 0 | AD141: 0 | AE141: 0 | AG141: =SUM(AB141*AH8)+(AC141*AH9) -> 0 | AH141: 0 | AI141: 0 | AK141: =Z141*AO6/60 -> 0 | AL141: =AB141*AO8/60 -> 0 | AM141: 0 | AN141: 0 | AO141: =AN141*AL6 -> 0 | AQ141: =IF(ProjectData!H$17="Not Required",0,B141*2) -> 0 | AR141: 0 | AS141: 0 | AT141: =AQ141*1.42 -> 0 | AU141: =+AR141*AW6 -> 0 | AV141: =AR141*AT6 -> 0 | AW141: =AR141*AU6/60 -> 0
B142: =ProjectData!J40 -> 0 | D142: 9 | E142: 12 | F142: 2 | G142: 1.25 | H142: 3.25 | I142: 0 | J142: =I142*G11 -> 0 | K142: =I142*G13 -> 0 | L142: =J142*'CTI Input Sheet'!B28 -> 0 | M142: =J142*'CTI Input Sheet'!C28 -> 0 | N142: =J142*'CTI Input Sheet'!D28 -> 0 | O142: 0 | T142: 0 | U142: 0 | V142: 0 | W142: =T142*'CTI Input Sheet'!K24 -> 0 | X142: =SUM(T142*H11)/60 -> 0 | Z142: 0 | AA142: 0 | AB142: 0 | AC142: 0 | AD142: 0 | AE142: 0 | AG142: =SUM(AB142*AH8)+(AC142*AH9) -> 0 | AH142: 0 | AI142: 0 | AK142: =Z142*AO6/60 -> 0 | AL142: =AB142*AO8/60 -> 0 | AM142: 0 | AN142: 0 | AO142: =AN142*AL6 -> 0 | AQ142: =IF(ProjectData!H$17="Not Required",0,B142*2) -> 0 | AR142: 0 | AS142: 0 | AT142: =AQ142*0.86 -> 0 | AU142: =+AR142*AW7 -> 0 | AV142: =AR142*AT7 -> 0 | AW142: =AR142*AU7/60 -> 0
B143: =ProjectData!J41 -> 0 | D143: 9 | E143: 24 | F143: 2 | G143: 1.25 | H143: 5.25 | I143: 0 | J143: =I143*G11 -> 0 | K143: =I143*G13 -> 0 | L143: =J143*'CTI Input Sheet'!B28 -> 0 | M143: =J143*'CTI Input Sheet'!C28 -> 0 | N143: =J143*'CTI Input Sheet'!D28 -> 0 | O143: 0 | T143: 0 | U143: 0 | V143: 0 | W143: =T143*'CTI Input Sheet'!K24 -> 0 | X143: =SUM(T143*H11)/60 -> 0 | Z143: 0 | AA143: 0 | AB143: 0 | AC143: 0 | AD143: 0 | AE143: 0 | AG143: =SUM(AB143*AH8)+(AC143*AH9) -> 0 | AH143: 0 | AI143: 0 | AK143: =Z143*AO6/60 -> 0 | AL143: =AB143*AO8/60 -> 0 | AM143: 0 | AN143: 0 | AO143: =AN143*AL6 -> 0 | AQ143: =IF(ProjectData!H$17="Not Required",0,B143*2) -> 0 | AR143: 0 | AS143: 0 | AT143: =AQ143*1.38 -> 0 | AU143: =+AR143*AW7 -> 0 | AV143: =AR143*AT7 -> 0 | AW143: =AR143*AU7/60 -> 0
B144: =ProjectData!J42 -> 0 | D144: 9 | E144: 36 | F144: 2 | G144: 1.25 | H144: 7.25 | I144: 0 | J144: =I144*G11 -> 0 | K144: =I144*G13 -> 0 | L144: =J144*'CTI Input Sheet'!B28 -> 0 | M144: =J144*'CTI Input Sheet'!C28 -> 0 | N144: =J144*'CTI Input Sheet'!D28 -> 0 | O144: 0 | T144: 0 | U144: 0 | V144: 0 | W144: =T144*'CTI Input Sheet'!K24 -> 0 | X144: =SUM(T144*H11)/60 -> 0 | Z144: 0 | AA144: 0 | AB144: 0 | AC144: 0 | AD144: 0 | AE144: 0 | AG144: =SUM(AB144*AH8)+(AC144*AH9) -> 0 | AH144: 0 | AI144: 0 | AK144: =Z144*AO6/60 -> 0 | AL144: =AB144*AO8/60 -> 0 | AM144: 0 | AN144: 0 | AO144: =AN144*AL6 -> 0 | AQ144: =IF(ProjectData!H$17="Not Required",0,B144*2) -> 0 | AR144: 0 | AS144: 0 | AT144: =AQ144*1.91 -> 0 | AU144: =+AR144*AW7 -> 0 | AV144: =AR144*AT7 -> 0 | AW144: =AR144*AU7/60 -> 0
B145: =ProjectData!J43 -> 4 | D145: 12 | E145: 12 | F145: 2 | G145: 1.5 | H145: 3.5 | I145: 20 | J145: =I145*G11 -> 76 | K145: =I145*G13 -> 456 | L145: =J145*'CTI Input Sheet'!B28 -> 114 | M145: =J145*'CTI Input Sheet'!C28 -> 19 | N145: =J145*'CTI Input Sheet'!D28 -> 0 | O145: 133 | T145: 8 | U145: 76 | V145: 133 | W145: =T145*'CTI Input Sheet'!K24 -> 12 | X145: =SUM(T145*H11)/60 -> 2 | Z145: 8 | AA145: 128 | AB145: 8 | AC145: 32 | AD145: 0 | AE145: 0 | AG145: =SUM(AB145*AH8)+(AC145*AH9) -> 80 | AH145: 0 | AI145: 80 | AK145: =Z145*AO6/60 -> 0.6666666667 | AL145: =AB145*AO8/60 -> 0.2666666667 | AM145: 0 | AN145: 0.9333333333 | AO145: =AN145*AL6 -> 70 | AQ145: =IF(ProjectData!H$17="Not Required",0,B145*2) -> 0 | AR145: 0 | AS145: 0 | AT145: =AQ145*1.08 -> 0 | AU145: =+AR145*AW8 -> 0 | AV145: =AR145*AT8 -> 0 | AW145: =AR145*AU8/60 -> 0
B146: =ProjectData!J44 -> 0 | D146: 12 | E146: 24 | F146: 2 | G146: 1.5 | H146: 5.5 | I146: 0 | J146: =I146*G11 -> 0 | K146: =I146*G13 -> 0 | L146: =J146*'CTI Input Sheet'!B28 -> 0 | M146: =J146*'CTI Input Sheet'!C28 -> 0 | N146: =J146*'CTI Input Sheet'!D28 -> 0 | O146: 0 | T146: 0 | U146: 0 | V146: 0 | W146: =T146*'CTI Input Sheet'!K24 -> 0 | X146: =SUM(T146*H11)/60 -> 0 | Z146: 0 | AA146: 0 | AB146: 0 | AC146: 0 | AD146: 0 | AE146: 0 | AG146: =SUM(AB146*AH8)+(AC146*AH9) -> 0 | AH146: 0 | AI146: 0 | AK146: =Z146*AO6/60 -> 0 | AL146: =AB146*AO8/60 -> 0 | AM146: 0 | AN146: 0 | AO146: =AN146*AL6 -> 0 | AQ146: =IF(ProjectData!H$17="Not Required",0,B146*2) -> 0 | AR146: 0 | AS146: 0 | AT146: =AQ146*1.74 -> 0 | AU146: =+AR146*AW8 -> 0 | AV146: =AR146*AT8 -> 0 | AW146: =AR146*AU8/60 -> 0
B147: =ProjectData!J45 -> 0 | D147: 12 | E147: 36 | F147: 2 | G147: 1.5 | H147: 7.5 | I147: 0 | J147: =I147*G11 -> 0 | K147: =I147*G13 -> 0 | L147: =J147*'CTI Input Sheet'!B28 -> 0 | M147: =J147*'CTI Input Sheet'!C28 -> 0 | N147: =J147*'CTI Input Sheet'!D28 -> 0 | O147: 0 | T147: 0 | U147: 0 | V147: 0 | W147: =T147*'CTI Input Sheet'!K24 -> 0 | X147: =SUM(T147*H11)/60 -> 0 | Z147: 0 | AA147: 0 | AB147: 0 | AC147: 0 | AD147: 0 | AE147: 0 | AG147: =SUM(AB147*AH8)+(AC147*AH9) -> 0 | AH147: 0 | AI147: 0 | AK147: =Z147*AO6/60 -> 0 | AL147: =AB147*AO8/60 -> 0 | AM147: 0 | AN147: 0 | AO147: =AN147*AL6 -> 0 | AQ147: =IF(ProjectData!H$17="Not Required",0,B147*2) -> 0 | AR147: 0 | AS147: 0 | AT147: =AQ147*2.41 -> 0 | AU147: =+AR147*AW8 -> 0 | AV147: =AR147*AT8 -> 0 | AW147: =AR147*AU8/60 -> 0
B148: =ProjectData!J46 -> 0 | D148: 18 | E148: 12 | F148: 2 | G148: 2 | H148: 4 | I148: 0 | J148: =I148*G11 -> 0 | K148: =I148*G13 -> 0 | L148: =J148*'CTI Input Sheet'!B28 -> 0 | M148: =J148*'CTI Input Sheet'!C28 -> 0 | N148: =J148*'CTI Input Sheet'!D28 -> 0 | O148: 0 | T148: 0 | U148: 0 | V148: 0 | W148: =T148*'CTI Input Sheet'!K24 -> 0 | X148: =SUM(T148*H11)/60 -> 0 | Z148: 0 | AA148: 0 | AB148: 0 | AC148: 0 | AD148: 0 | AE148: 0 | AG148: =SUM(AB148*AH8)+(AC148*AH9) -> 0 | AH148: 0 | AI148: 0 | AK148: =Z148*AO6/60 -> 0 | AL148: =AB148*AO8/60 -> 0 | AM148: 0 | AN148: 0 | AO148: =AN148*AL6 -> 0 | AQ148: =IF(ProjectData!H$17="Not Required",0,B148*2) -> 0 | AR148: 0 | AS148: 0 | AT148: =AQ148*1.52 -> 0 | AU148: =+AR148*AW9 -> 0 | AV148: =AR148*AT9 -> 0 | AW148: =AR148*AU9/60 -> 0
B149: =ProjectData!J47 -> 0 | D149: 18 | E149: 24 | F149: 2 | G149: 2 | H149: 6 | I149: 0 | J149: =I149*G11 -> 0 | K149: =I149*G13 -> 0 | L149: =J149*'CTI Input Sheet'!B28 -> 0 | M149: =J149*'CTI Input Sheet'!C28 -> 0 | N149: =J149*'CTI Input Sheet'!D28 -> 0 | O149: 0 | T149: 0 | U149: 0 | V149: 0 | W149: =T149*'CTI Input Sheet'!K24 -> 0 | X149: =SUM(T149*H11)/60 -> 0 | Z149: 0 | AA149: 0 | AB149: 0 | AC149: 0 | AD149: 0 | AE149: 0 | AG149: =SUM(AB149*AH8)+(AC149*AH9) -> 0 | AH149: 0 | AI149: 0 | AK149: =Z149*AO6/60 -> 0 | AL149: =AB149*AO8/60 -> 0 | AM149: 0 | AN149: 0 | AO149: =AN149*AL6 -> 0 | AQ149: =IF(ProjectData!H$17="Not Required",0,B149*2) -> 0 | AR149: 0 | AS149: 0 | AT149: =AQ149*2.46 -> 0 | AU149: =+AR149*AW9 -> 0 | AV149: =AR149*AT9 -> 0 | AW149: =AR149*AU9/60 -> 0
B150: =ProjectData!J48 -> 0 | D150: 18 | E150: 36 | F150: 2 | G150: 2 | H150: 8 | I150: 0 | J150: =I150*G11 -> 0 | K150: =I150*G13 -> 0 | L150: =J150*'CTI Input Sheet'!B28 -> 0 | M150: =J150*'CTI Input Sheet'!C28 -> 0 | N150: =J150*'CTI Input Sheet'!D28 -> 0 | O150: 0 | T150: 0 | U150: 0 | V150: 0 | W150: =T150*'CTI Input Sheet'!K24 -> 0 | X150: =SUM(T150*H11)/60 -> 0 | Z150: 0 | AA150: 0 | AB150: 0 | AC150: 0 | AD150: 0 | AE150: 0 | AG150: =SUM(AB150*AH8)+(AC150*AH9) -> 0 | AH150: 0 | AI150: 0 | AK150: =Z150*AO6/60 -> 0 | AL150: =AB150*AO8/60 -> 0 | AM150: 0 | AN150: 0 | AO150: =AN150*AL6 -> 0 | AQ150: =IF(ProjectData!H$17="Not Required",0,B150*2) -> 0 | AR150: 0 | AS150: 0 | AT150: =AQ150*3.4 -> 0 | AU150: =+AR150*AW9 -> 0 | AV150: =AR150*AT9 -> 0 | AW150: =AR150*AU9/60 -> 0
B151: =ProjectData!J49 -> 0 | D151: 24 | E151: 12 | F151: 2 | G151: 2.5 | H151: 4.5 | I151: 0 | J151: =I151*G11 -> 0 | K151: =I151*G13 -> 0 | L151: =J151*'CTI Input Sheet'!B28 -> 0 | M151: =J151*'CTI Input Sheet'!C28 -> 0 | N151: =J151*'CTI Input Sheet'!D28 -> 0 | O151: 0 | T151: 0 | U151: 0 | V151: 0 | W151: =T151*'CTI Input Sheet'!K24 -> 0 | X151: =SUM(T151*H11)/60 -> 0 | Z151: 0 | AA151: 0 | AB151: 0 | AC151: 0 | AD151: 0 | AE151: 0 | AG151: =SUM(AB151*AH8)+(AC151*AH9) -> 0 | AH151: 0 | AI151: 0 | AK151: =Z151*AO6/60 -> 0 | AL151: =AB151*AO8/60 -> 0 | AM151: 0 | AN151: 0 | AO151: =AN151*AL6 -> 0 | AQ151: =IF(ProjectData!H$17="Not Required",0,B151*2) -> 0 | AR151: =AQ151*3 -> 0 | AS151: 0 | AT151: =AQ151*1.96 -> 0 | AU151: =+AR151*AW10 -> 0 | AV151: =AR151*AT10 -> 0 | AW151: =AR151*AU10/60 -> 0
B152: =ProjectData!J50 -> 0 | D152: 24 | E152: 24 | F152: 2 | G152: 2.5 | H152: 6.5 | I152: 0 | J152: =I152*G11 -> 0 | K152: =I152*G13 -> 0 | L152: =J152*'CTI Input Sheet'!B28 -> 0 | M152: =J152*'CTI Input Sheet'!C28 -> 0 | N152: =J152*'CTI Input Sheet'!D28 -> 0 | O152: 0 | T152: 0 | U152: 0 | V152: 0 | W152: =T152*'CTI Input Sheet'!K24 -> 0 | X152: =SUM(T152*H11)/60 -> 0 | Z152: 0 | AA152: 0 | AB152: 0 | AC152: 0 | AD152: 0 | AE152: 0 | AG152: =SUM(AB152*AH8)+(AC152*AH9) -> 0 | AH152: 0 | AI152: 0 | AK152: =Z152*AO6/60 -> 0 | AL152: =AB152*AO8/60 -> 0 | AM152: 0 | AN152: 0 | AO152: =AN152*AL6 -> 0 | AQ152: =IF(ProjectData!H$17="Not Required",0,B152*2) -> 0 | AR152: 0 | AS152: 0 | AT152: =AQ152*3.18 -> 0 | AU152: =+AR152*AW10 -> 0 | AV152: =AR152*AT10 -> 0 | AW152: =AR152*AU10/60 -> 0
B153: =ProjectData!J51 -> 0 | D153: 24 | E153: 36 | F153: 2 | G153: 2.5 | H153: 8.5 | I153: 0 | J153: =I153*G11 -> 0 | K153: =I153*G13 -> 0 | L153: =J153*'CTI Input Sheet'!B28 -> 0 | M153: =J153*'CTI Input Sheet'!C28 -> 0 | N153: =J153*'CTI Input Sheet'!D28 -> 0 | O153: 0 | T153: 0 | U153: 0 | V153: 0 | W153: =T153*'CTI Input Sheet'!K24 -> 0 | X153: =SUM(T153*H11)/60 -> 0 | Z153: 0 | AA153: 0 | AB153: 0 | AC153: 0 | AD153: 0 | AE153: 0 | AG153: =SUM(AB153*AH8)+(AC153*AH9) -> 0 | AH153: 0 | AI153: 0 | AK153: =Z153*AO6/60 -> 0 | AL153: =AB153*AO8/60 -> 0 | AM153: 0 | AN153: 0 | AO153: =AN153*AL6 -> 0 | AQ153: =IF(ProjectData!H$17="Not Required",0,B153*2) -> 0 | AR153: 0 | AS153: 0 | AT153: =AQ153*4.39 -> 0 | AU153: =+AR153*AW10 -> 0 | AV153: =AR153*AT10 -> 0 | AW153: =AR153*AU10/60 -> 0
B154: =ProjectData!J52 -> 0 | D154: 30 | E154: 12 | F154: 2 | G154: 3 | H154: 5 | I154: 0 | J154: =I154*G11 -> 0 | K154: =I154*G13 -> 0 | L154: =J154*'CTI Input Sheet'!B28 -> 0 | M154: =J154*'CTI Input Sheet'!C28 -> 0 | N154: =J154*'CTI Input Sheet'!D28 -> 0 | O154: 0 | T154: 0 | U154: 0 | V154: 0 | W154: =T154*'CTI Input Sheet'!K24 -> 0 | X154: =SUM(T154*H11)/60 -> 0 | Z154: 0 | AA154: 0 | AB154: 0 | AC154: 0 | AD154: 0 | AE154: 0 | AG154: =SUM(AB154*AH8)+(AC154*AH9) -> 0 | AH154: 0 | AI154: 0 | AK154: =Z154*AO6/60 -> 0 | AL154: =AB154*AO8/60 -> 0 | AM154: 0 | AN154: 0 | AO154: =AN154*AL6 -> 0 | AQ154: =IF(ProjectData!H$17="Not Required",0,B154*2) -> 0 | AR154: 0 | AS154: 0 | AT154: =AQ154*2.41 -> 0 | AU154: =+AR154*AW11 -> 0 | AV154: =AR154*AT11 -> 0 | AW154: =AR154*AU11/60 -> 0
B155: =ProjectData!J53 -> 0 | D155: 30 | E155: 24 | F155: 2 | G155: 3 | H155: 7 | I155: 0 | J155: =I155*G11 -> 0 | K155: =I155*G13 -> 0 | L155: =J155*'CTI Input Sheet'!B28 -> 0 | M155: =J155*'CTI Input Sheet'!C28 -> 0 | N155: =J155*'CTI Input Sheet'!D28 -> 0 | O155: 0 | T155: 0 | U155: 0 | V155: 0 | W155: =T155*'CTI Input Sheet'!K24 -> 0 | X155: =SUM(T155*H11)/60 -> 0 | Z155: 0 | AA155: 0 | AB155: 0 | AC155: 0 | AD155: 0 | AE155: 0 | AG155: =SUM(AB155*AH8)+(AC155*AH9) -> 0 | AH155: 0 | AI155: 0 | AK155: =Z155*AO6/60 -> 0 | AL155: =AB155*AO8/60 -> 0 | AM155: 0 | AN155: 0 | AO155: =AN155*AL6 -> 0 | AQ155: =IF(ProjectData!H$17="Not Required",0,B155*2) -> 0 | AR155: 0 | AS155: 0 | AT155: =AQ155*3.9 -> 0 | AU155: =+AR155*AW11 -> 0 | AV155: =AR155*AT11 -> 0 | AW155: =AR155*AU11/60 -> 0
B156: =ProjectData!J54 -> 0 | D156: 30 | E156: 36 | F156: 2 | G156: 3 | H156: 9 | I156: 0 | J156: =I156*G11 -> 0 | K156: =I156*G13 -> 0 | L156: =J156*'CTI Input Sheet'!B28 -> 0 | M156: =J156*'CTI Input Sheet'!C28 -> 0 | N156: =J156*'CTI Input Sheet'!D28 -> 0 | O156: 0 | T156: 0 | U156: 0 | V156: 0 | W156: =T156*'CTI Input Sheet'!K24 -> 0 | X156: =SUM(T156*H11)/60 -> 0 | Z156: 0 | AA156: 0 | AB156: 0 | AC156: 0 | AD156: 0 | AE156: 0 | AG156: =SUM(AB156*AH8)+(AC156*AH9) -> 0 | AH156: 0 | AI156: 0 | AK156: =Z156*AO6/60 -> 0 | AL156: =AB156*AO8/60 -> 0 | AM156: 0 | AN156: 0 | AO156: =AN156*AL6 -> 0 | AQ156: =IF(ProjectData!H$17="Not Required",0,B156*2) -> 0 | AR156: 0 | AS156: 0 | AT156: =AQ156*5.39 -> 0 | AU156: =+AR156*AW11 -> 0 | AV156: =AR156*AT11 -> 0 | AW156: =AR156*AU11/60 -> 0
B157: =ProjectData!J55 -> 0 | D157: 36 | E157: 12 | F157: 2 | G157: 3.5 | H157: 5.5 | I157: 0 | J157: =I157*G11 -> 0 | K157: =I157*G13 -> 0 | L157: =J157*'CTI Input Sheet'!B28 -> 0 | M157: =J157*'CTI Input Sheet'!C28 -> 0 | N157: =J157*'CTI Input Sheet'!D28 -> 0 | O157: 0 | T157: 0 | U157: 0 | V157: 0 | W157: =T157*'CTI Input Sheet'!K24 -> 0 | X157: =SUM(T157*H11)/60 -> 0 | Z157: 0 | AA157: 0 | AB157: 0 | AC157: 0 | AD157: 0 | AE157: 0 | AG157: =SUM(AB157*AH8)+(AC157*AH9) -> 0 | AH157: 0 | AI157: 0 | AK157: =Z157*AO6/60 -> 0 | AL157: =AB157*AO8/60 -> 0 | AM157: 0 | AN157: 0 | AO157: =AN157*AL6 -> 0 | AQ157: =IF(ProjectData!H$17="Not Required",0,B157*2) -> 0 | AR157: 0 | AS157: 0 | AT157: =AQ157*2.85 -> 0 | AU157: =+AR157*AW12 -> 0 | AV157: =AR157*AT12 -> 0 | AW157: =AR157*AU12/60 -> 0
B158: =ProjectData!J56 -> 0 | D158: 36 | E158: 24 | F158: 2 | G158: 3.5 | H158: 7.5 | I158: 0 | J158: =I158*G11 -> 0 | K158: =I158*G13 -> 0 | L158: =J158*'CTI Input Sheet'!B28 -> 0 | M158: =J158*'CTI Input Sheet'!C28 -> 0 | N158: =J158*'CTI Input Sheet'!D28 -> 0 | O158: 0 | T158: 0 | U158: 0 | V158: 0 | W158: =T158*'CTI Input Sheet'!K24 -> 0 | X158: =SUM(T158*H11)/60 -> 0 | Z158: 0 | AA158: 0 | AB158: 0 | AC158: 0 | AD158: 0 | AE158: 0 | AG158: =SUM(AB158*AH8)+(AC158*AH9) -> 0 | AH158: 0 | AI158: 0 | AK158: =Z158*AO6/60 -> 0 | AL158: =AB158*AO8/60 -> 0 | AM158: 0 | AN158: 0 | AO158: =AN158*AL6 -> 0 | AQ158: =IF(ProjectData!H$17="Not Required",0,B158*2) -> 0 | AR158: 0 | AS158: 0 | AT158: =AQ158*4.62 -> 0 | AU158: =+AR158*AW12 -> 0 | AV158: =AR158*AT12 -> 0 | AW158: =AR158*AU12/60 -> 0
B159: =ProjectData!J57 -> 2 | D159: 36 | E159: 36 | F159: 2 | G159: 3.5 | H159: 9.3 | I159: 25.6 | J159: =I159*G11 -> 97.28 | K159: =I159*G13 -> 583.68 | L159: =J159*'CTI Input Sheet'!B28 -> 145.92 | M159: =J159*'CTI Input Sheet'!C28 -> 24.32 | N159: =J159*'CTI Input Sheet'!D28 -> 0 | O159: =SUM(L159:N159) -> 170.24 | T159: =B159*F159 -> 4 | U159: 97.28 | V159: 170.24 | W159: =T159*'CTI Input Sheet'!K24 -> 6 | X159: =SUM(T159*H11)/60 -> 1 | Z159: 4 | AA159: 64 | AB159: 4 | AC159: 16 | AD159: 0 | AE159: 0 | AG159: =SUM(AB159*AH8)+(AC159*AH9) -> 40 | AH159: 0 | AI159: 40 | AK159: =Z159*AO6/60 -> 0.3333333333 | AL159: =AB159*AO8/60 -> 0.1333333333 | AM159: 0 | AN159: 0.4666666667 | AO159: =AN159*AL6 -> 35 | AQ159: =IF(ProjectData!H$17="Not Required",0,B159*2) -> 0 | AR159: 0 | AS159: 0 | AT159: =AQ159*6.38 -> 0 | AU159: =+AR159*AW12 -> 0 | AV159: =AR159*AT12 -> 0 | AW159: =AR159*AU12/60 -> 0
B160: =SUM(B139:B159) -> 6 | I160: =SUM(I139:I159) -> 45.6 | J160: 173.28 | K160: 1039.68 | L160: 259.92 | M160: 43.32 | N160: 0 | O160: 303.24 | T160: =SUM(T139:T159) -> 12 | U160: =SUM(U139:U159) -> 173.28 | V160: =SUM(V139:V159) -> 303.24 | W160: =SUM(W139:W159) -> 18 | X160: =SUM(X139:X159) -> 3 | Z160: =SUM(Z139:Z159) -> 12 | AA160: 192 | AB160: 12 | AC160: 48 | AD160: 0 | AE160: 0 | AG160: =SUM(AG139:AG159) -> 120 | AH160: =SUM(AH139:AH159) -> 0 | AI160: =SUM(AI139:AI159) -> 120 | AK160: =SUM(AK139:AK159) -> 1 | AL160: =SUM(AL139:AL159) -> 0.4 | AM160: =SUM(AM139:AM159) -> 0 | AN160: =SUM(AN139:AN159) -> 1.4 | AO160: =SUM(AO139:AO159) -> 105 | AQ160: =SUM(AQ139:AQ159) -> 0 | AR160: 0 | AS160: 0 | AT160: 0 | AU160: 0 | AV160: 0 | AW160: 0
W161: =W160*'CTI Input Sheet'!H7 -> 1350 | X161: =X160*'CTI Input Sheet'!H6 -> 225 | AA161: =AA160*AH12 -> 144 | AB161: =AB160*AH8 -> 60 | AC161: =AC160*AH9 -> 60 | AD161: =AD160*AH10 -> 0 | AE161: =AE160*AH11 -> 0 | AK161: =AK160*AL6 -> 75 | AL161: =AL160*AL6 -> 30 | AM161: =AM160*AL6 -> 0
B162: 4" Expansion Joints | D162: Expansion Joints | F162: NEMA VE 2 : Expansion Joint Support Quantity - Support Weight - Support Steel, Fabrication, Logistics, Erection Costs | T162: 4" Expansion Joint : Support Structure Summary | Z162: 4" Expansion Joint : Tray Accessory Quantities | AG162: 4" Expansion Joint : Tray Accessory Costs | AK162: 4" Expansion Joint : Tray Accessory Installation Time & Installation Cost
B163: Quantities | D163: Width (in) | E163: Hieght (in) | F163: Support Quantity | G163: OS1 Str. Section Length (FT) | H163: OS2 Str. Section Length (FT) | I163: Total Str. Section Length (FT) | J163: Total Str. Section Weight (lb) | K163: Total Str. Section Cost (USD) | L163: Total Fabrication Cost (USD) | M163: Total Logistic Cost (USD) | N163: Total Erection Cost (USD | O163: SUM TOTAL COST/FITTING | T163: Total Quantity of Supports | U163: Total Weight of Supports (LB) | V163: Total Cost of Supports (USD) | W163: Total Design Time (HOURS) | X163: Total Support Instal Time (HOURS) | Z163: Splice Plates Quantity (PRS) | AA163: Splice Plate Hardware Quantity (PCS) | AB163: Hold Down Clamp Quantity (PRS) | AC163: Clamp Hardware Quantity (PCS) | AD163: Expansion Guides Quantity (PRS) | AE163: Guides Hardware Quantity (PCS) | AG163: Hold Down Clamps (PR) | AH163: Expansion Guides (PR) | AI163: Total Accessory Cost | AK163: Splice Plates Time/Pair (HRS) | AL163: Hold Down Clamp Time/Pair (HRS) | AM163: Exp. Guide Time/Pair (HRS) | AN163: Total Time (HOURS) | AO163: Total Time Cost (USD)
B164: =P6 -> 0 | D164: 6 | E164: 4 | F164: 2 | G164: 1 | H164: 3 | I164: =SUM(G164+H164)*B164 -> 0 | J164: =I164*G11 -> 0 | K164: =I164*G13 -> 0 | L164: =J164*'CTI Input Sheet'!B28 -> 0 | M164: =J164*'CTI Input Sheet'!C28 -> 0 | N164: =J164*'CTI Input Sheet'!D28 -> 0 | O164: =SUM(K164:N164) -> 0 | T164: =EVEN(B164*F164) -> 0 | U164: =J164 -> 0 | V164: =O164 -> 0 | W164: =T164*'CTI Input Sheet'!K25 -> 0 | X164: =SUM(T164*H11)/60 -> 0 | Z164: =B164*1 -> 0 | AA164: =Z164*16 -> 0 | AB164: 0 | AC164: 0 | AD164: =EVEN(B164*F164)*1 -> 0 | AE164: =AD164*4 -> 0 | AG164: =SUM(AB164*AH8)+(AC164*AH9) -> 0 | AH164: =SUM(AD164*AH10)+(AD164*AH11) -> 0 | AI164: =SUM(AG164+AH164)+(Z164*AH6) -> 0 | AK164: =Z164*AO7/60 -> 0 | AL164: =AB164*AO8/60 -> 0 | AM164: =AD164*AO9/60 -> 0 | AN164: =SUM(AK164:AM164) -> 0 | AO164: =AN164*AL6 -> 0
B165: 0 | D165: 9 | E165: 4 | F165: 2 | G165: 1.25 | H165: 3.25 | I165: 0 | J165: =I165*G11 -> 0 | K165: =I165*G13 -> 0 | L165: =J165*'CTI Input Sheet'!B28 -> 0 | M165: =J165*'CTI Input Sheet'!C28 -> 0 | N165: =J165*'CTI Input Sheet'!D28 -> 0 | O165: 0 | T165: 0 | U165: =J165 -> 0 | V165: =O165 -> 0 | W165: =T165*'CTI Input Sheet'!K25 -> 0 | X165: =SUM(T165*H11)/60 -> 0 | Z165: =B165*1 -> 0 | AA165: =Z165*16 -> 0 | AB165: 0 | AC165: 0 | AD165: 0 | AE165: 0 | AG165: =SUM(AB165*AH8)+(AC165*AH9) -> 0 | AH165: =SUM(AD165*AH10)+(AD165*AH11) -> 0 | AI165: =SUM(AG165:AH165)+(Z165*AH6) -> 0 | AK165: =Z165*AO7/60 -> 0 | AL165: =AB165*AO8/60 -> 0 | AM165: =AD165*AO9/60 -> 0 | AN165: 0 | AO165: =AN165*AL6 -> 0
B166: 0 | D166: 12 | E166: 4 | F166: 2 | G166: 1.5 | H166: 3.5 | I166: 0 | J166: =I166*G11 -> 0 | K166: =I166*G13 -> 0 | L166: =J166*'CTI Input Sheet'!B28 -> 0 | M166: =J166*'CTI Input Sheet'!C28 -> 0 | N166: =J166*'CTI Input Sheet'!D28 -> 0 | O166: 0 | T166: 0 | U166: 0 | V166: 0 | W166: =T166*'CTI Input Sheet'!K25 -> 0 | X166: =SUM(T166*H11)/60 -> 0 | Z166: 0 | AA166: 0 | AB166: 0 | AC166: 0 | AD166: 0 | AE166: 0 | AG166: =SUM(AB166*AH8)+(AC166*AH9) -> 0 | AH166: =SUM(AD166*AH10)+(AD166*AH11) -> 0 | AI166: =SUM(AG166:AH166)+(Z166*AH6) -> 0 | AK166: =Z166*AO7/60 -> 0 | AL166: =AB166*AO8/60 -> 0 | AM166: =AD166*AO9/60 -> 0 | AN166: 0 | AO166: =AN166*AL6 -> 0
B167: 0 | D167: 18 | E167: 4 | F167: 2 | G167: 2 | H167: 4 | I167: 0 | J167: =I167*G11 -> 0 | K167: =I167*G13 -> 0 | L167: =J167*'CTI Input Sheet'!B28 -> 0 | M167: =J167*'CTI Input Sheet'!C28 -> 0 | N167: =J167*'CTI Input Sheet'!D28 -> 0 | O167: 0 | T167: 0 | U167: 0 | V167: 0 | W167: =T167*'CTI Input Sheet'!K25 -> 0 | X167: =SUM(T167*H11)/60 -> 0 | Z167: 0 | AA167: 0 | AB167: 0 | AC167: 0 | AD167: 0 | AE167: 0 | AG167: =SUM(AB167*AH8)+(AC167*AH9) -> 0 | AH167: =SUM(AD167*AH10)+(AD167*AH11) -> 0 | AI167: =SUM(AG167:AH167)+(Z167*AH6) -> 0 | AK167: =Z167*AO7/60 -> 0 | AL167: =AB167*AO8/60 -> 0 | AM167: =AD167*AO9/60 -> 0 | AN167: 0 | AO167: =AN167*AL6 -> 0
B168: 0 | D168: 24 | E168: 4 | F168: 2 | G168: 2.5 | H168: 4.5 | I168: 0 | J168: =I168*G11 -> 0 | K168: =I168*G13 -> 0 | L168: =J168*'CTI Input Sheet'!B28 -> 0 | M168: =J168*'CTI Input Sheet'!C28 -> 0 | N168: =J168*'CTI Input Sheet'!D28 -> 0 | O168: 0 | T168: 0 | U168: 0 | V168: 0 | W168: =T168*'CTI Input Sheet'!K25 -> 0 | X168: =SUM(T168*H11)/60 -> 0 | Z168: 0 | AA168: 0 | AB168: 0 | AC168: 0 | AD168: 0 | AE168: 0 | AG168: =SUM(AB168*AH8)+(AC168*AH9) -> 0 | AH168: =SUM(AD168*AH10)+(AD168*AH11) -> 0 | AI168: =SUM(AG168:AH168)+(Z168*AH6) -> 0 | AK168: =Z168*AO7/60 -> 0 | AL168: =AB168*AO8/60 -> 0 | AM168: =AD168*AO9/60 -> 0 | AN168: 0 | AO168: =AN168*AL6 -> 0
B169: 0 | D169: 30 | E169: 4 | F169: 2 | G169: 3 | H169: 5 | I169: 0 | J169: =I169*G11 -> 0 | K169: =I169*G13 -> 0 | L169: =J169*'CTI Input Sheet'!B28 -> 0 | M169: =J169*'CTI Input Sheet'!C28 -> 0 | N169: =J169*'CTI Input Sheet'!D28 -> 0 | O169: 0 | T169: 0 | U169: 0 | V169: 0 | W169: =T169*'CTI Input Sheet'!K25 -> 0 | X169: =SUM(T169*H11)/60 -> 0 | Z169: 0 | AA169: 0 | AB169: 0 | AC169: 0 | AD169: 0 | AE169: 0 | AG169: =SUM(AB169*AH8)+(AC169*AH9) -> 0 | AH169: =SUM(AD169*AH10)+(AD169*AH11) -> 0 | AI169: =SUM(AG169:AH169)+(Z169*AH6) -> 0 | AK169: =Z169*AO7/60 -> 0 | AL169: =AB169*AO8/60 -> 0 | AM169: =AD169*AO9/60 -> 0 | AN169: 0 | AO169: =AN169*AL6 -> 0
B170: 0 | D170: 36 | E170: 4 | F170: 2 | G170: 3.5 | H170: 5.5 | I170: 0 | J170: =I170*G11 -> 0 | K170: =I170*G13 -> 0 | L170: =J170*'CTI Input Sheet'!B28 -> 0 | M170: =J170*'CTI Input Sheet'!C28 -> 0 | N170: =J170*'CTI Input Sheet'!D28 -> 0 | O170: 0 | T170: 0 | U170: 0 | V170: 0 | W170: =T170*'CTI Input Sheet'!K25 -> 0 | X170: =SUM(T170*H11)/60 -> 0 | Z170: 0 | AA170: 0 | AB170: 0 | AC170: 0 | AD170: 0 | AE170: 0 | AG170: =SUM(AB170*AH8)+(AC170*AH9) -> 0 | AH170: =SUM(AD170*AH10)+(AD170*AH11) -> 0 | AI170: =SUM(AG170:AH170)+(Z170*AH6) -> 0 | AK170: =Z170*AO7/60 -> 0 | AL170: =AB170*AO8/60 -> 0 | AM170: =AD170*AO9/60 -> 0 | AN170: 0 | AO170: =AN170*AL6 -> 0
B171: =SUM(B164:B170) -> 0 | I171: =SUM(I164:I170) -> 0 | J171: =SUM(J164:J170) -> 0 | K171: 0 | L171: 0 | M171: 0 | N171: 0 | O171: 0 | T171: =SUM(T164:T170) -> 0 | U171: =SUM(U164:U170) -> 0 | V171: =SUM(V164:V170) -> 0 | W171: =SUM(W164:W170) -> 0 | X171: =SUM(X164:X170) -> 0 | Z171: =SUM(Z164:Z170) -> 0 | AA171: 0 | AB171: 0 | AC171: 0 | AD171: 0 | AE171: 0 | AG171: =SUM(AG164:AG170) -> 0 | AH171: =SUM(AH164:AH170) -> 0 | AI171: =SUM(AI164:AI170) -> 0 | AK171: =SUM(AK164:AK170) -> 0 | AL171: =SUM(AL164:AL170) -> 0 | AM171: =SUM(AM164:AM170) -> 0 | AN171: =SUM(AN164:AN170) -> 0 | AO171: =SUM(AO164:AO170) -> 0
W172: =W171*'CTI Input Sheet'!H7 -> 0 | X172: =X171*'CTI Input Sheet'!H6 -> 0 | AA172: =AA171*AH12 -> 0 | AB172: =AB171*AH8 -> 0 | AC172: =AC171*AH9 -> 0 | AD172: =AD171*AH10 -> 0 | AE172: =AE171*AH11 -> 0 | AK172: =AK171*AL6 -> 0 | AL172: =AL171*AL6 -> 0 | AM172: =AM171*AL6 -> 0
B173: 6" Expansion Joints | D173: Expansion Joints | F173: NEMA VE 2 : Expansion Joint Support Quantity - Support Weight - Support Steel, Fabrication, Logistics, Erection Costs | T173: 6" Expansion Joint : Support Structure Summary | Z173: 6" Expansion Joint : Tray Accessory Quantities | AG173: 6" Expansion Joint : Tray Accessory Costs | AK173: 6" Expansion Joint : Tray Accessory Installation Time & Installation Cost
B174: Quantities | D174: Width (in) | E174: Hieght (in) | F174: Support Quantity | G174: OS1 Str. Section Length (FT) | H174: OS2 Str. Section Length (FT) | I174: Total Str. Section Length (FT) | J174: Total Str. Section Weight (lb) | K174: Total Str. Section Cost (USD) | L174: Total Fabrication Cost (USD) | M174: Total Logistic Cost (USD) | N174: Total Erection Cost (USD | O174: SUM TOTAL COST/FITTING | T174: Total Quantity of Supports | U174: Total Weight of Supports (LB) | V174: Total Cost of Supports (USD) | W174: Total Design Time (HOURS) | X174: Total Support Instal Time (HOURS) | Z174: Splice Plates Quantity (PRS) | AA174: Splice Plate Hardware Quantity (PCS) | AB174: Hold Down Clamp Quantity (PRS) | AC174: Clamp Hardware Quantity (PCS) | AD174: Expansion Guides Quantity (PRS) | AE174: Guides Hardware Quantity (PCS) | AG174: Hold Down Clamps (PR) | AH174: Expansion Guides (PR) | AI174: Total Accessory Cost | AK174: Splice Plates Time/Pair (HRS) | AL174: Hold Down Clamp Time/Pair (HRS) | AM174: Exp. Guide Time/Pair (HRS) | AN174: Total Time (HOURS) | AO174: Total Time Cost (USD)
B175: =R6 -> 0 | D175: 6 | E175: 6 | F175: 2 | G175: 1 | H175: 3 | I175: =SUM(G175+H175)*B175 -> 0 | J175: =I175*G11 -> 0 | K175: =I175*G13 -> 0 | L175: =J175*'CTI Input Sheet'!B28 -> 0 | M175: =J175*'CTI Input Sheet'!C28 -> 0 | N175: =J175*'CTI Input Sheet'!D28 -> 0 | O175: =SUM(K175:N175) -> 0 | T175: =EVEN(B175*F175) -> 0 | U175: =J175 -> 0 | V175: =O175 -> 0 | W175: =T175*'CTI Input Sheet'!K25 -> 0 | X175: =SUM(T175*H11)/60 -> 0 | Z175: =B175*1 -> 0 | AA175: =Z175*16 -> 0 | AB175: 0 | AC175: 0 | AD175: =EVEN(B175*F175)*1 -> 0 | AE175: =AD175*4 -> 0 | AG175: =SUM(AB175*AH8)+(AC175*AH9) -> 0 | AH175: =SUM(AD175*AH10)+(AD175*AH11) -> 0 | AI175: =SUM(AG175+AH175)+(Z175*AH7) -> 0 | AK175: =Z175*AO7/60 -> 0 | AL175: =AB175*AO8/60 -> 0 | AM175: =AD175*AO9/60 -> 0 | AN175: =SUM(AK175:AM175) -> 0 | AO175: =AN175*AL6 -> 0
B176: 0 | D176: 9 | E176: 6 | F176: 2 | G176: 1.25 | H176: 3.25 | I176: =SUM(G176+H176)*B176 -> 0 | J176: =I176*G11 -> 0 | K176: =I176*G13 -> 0 | L176: =J176*'CTI Input Sheet'!B28 -> 0 | M176: =J176*'CTI Input Sheet'!C28 -> 0 | N176: =J176*'CTI Input Sheet'!D28 -> 0 | O176: 0 | T176: 0 | U176: 0 | V176: 0 | W176: =T176*'CTI Input Sheet'!K25 -> 0 | X176: =SUM(T176*H11)/60 -> 0 | Z176: 0 | AA176: 0 | AB176: 0 | AC176: 0 | AD176: 0 | AE176: 0 | AG176: =SUM(AB176*AH8)+(AC176*AH9) -> 0 | AH176: =SUM(AD176*AH10)+(AD176*AH11) -> 0 | AI176: =SUM(AG176:AH176)+(Z176*AH7) -> 0 | AK176: =Z176*AO7/60 -> 0 | AL176: =AB176*AO8/60 -> 0 | AM176: =AD176*AO9/60 -> 0 | AN176: 0 | AO176: =AN176*AL6 -> 0
B177: 10 | D177: 12 | E177: 6 | F177: 2 | G177: 1.5 | H177: 3.5 | I177: 50 | J177: =I177*G11 -> 190 | K177: =I177*G13 -> 1140 | L177: =J177*'CTI Input Sheet'!B28 -> 285 | M177: =J177*'CTI Input Sheet'!C28 -> 47.5 | N177: =J177*'CTI Input Sheet'!D28 -> 0 | O177: 1472.5 | T177: 20 | U177: 190 | V177: 1472.5 | W177: =T177*'CTI Input Sheet'!K25 -> 10 | X177: =SUM(T177*H11)/60 -> 5 | Z177: 10 | AA177: 160 | AB177: 0 | AC177: 0 | AD177: 20 | AE177: 80 | AG177: =SUM(AB177*AH8)+(AC177*AH9) -> 0 | AH177: =SUM(AD177*AH10)+(AD177*AH11) -> 125 | AI177: =SUM(AG177:AH177)+(Z177*AH7) -> 325 | AK177: =Z177*AO7/60 -> 1 | AL177: =AB177*AO8/60 -> 0 | AM177: =AD177*AO9/60 -> 0.6666666667 | AN177: 1.666666667 | AO177: =AN177*AL6 -> 125
B178: 0 | D178: 18 | E178: 6 | F178: 2 | G178: 2 | H178: 4 | I178: 0 | J178: =I178*G11 -> 0 | K178: =I178*G13 -> 0 | L178: =J178*'CTI Input Sheet'!B28 -> 0 | M178: =J178*'CTI Input Sheet'!C28 -> 0 | N178: =J178*'CTI Input Sheet'!D28 -> 0 | O178: 0 | T178: 0 | U178: 0 | V178: 0 | W178: =T178*'CTI Input Sheet'!K25 -> 0 | X178: =SUM(T178*H11)/60 -> 0 | Z178: 0 | AA178: 0 | AB178: 0 | AC178: 0 | AD178: 0 | AE178: 0 | AG178: =SUM(AB178*AH8)+(AC178*AH9) -> 0 | AH178: =SUM(AD178*AH10)+(AD178*AH11) -> 0 | AI178: =SUM(AG178:AH178)+(Z178*AH7) -> 0 | AK178: =Z178*AO7/60 -> 0 | AL178: =AB178*AO8/60 -> 0 | AM178: =AD178*AO9/60 -> 0 | AN178: 0 | AO178: =AN178*AL6 -> 0
B179: 0 | D179: 24 | E179: 6 | F179: 2 | G179: 2.5 | H179: 4.5 | I179: 0 | J179: =I179*G11 -> 0 | K179: =I179*G13 -> 0 | L179: =J179*'CTI Input Sheet'!B28 -> 0 | M179: =J179*'CTI Input Sheet'!C28 -> 0 | N179: =J179*'CTI Input Sheet'!D28 -> 0 | O179: 0 | T179: 0 | U179: 0 | V179: 0 | W179: =T179*'CTI Input Sheet'!K25 -> 0 | X179: =SUM(T179*H11)/60 -> 0 | Z179: 0 | AA179: 0 | AB179: 0 | AC179: 0 | AD179: 0 | AE179: 0 | AG179: =SUM(AB179*AH8)+(AC179*AH9) -> 0 | AH179: =SUM(AD179*AH10)+(AD179*AH11) -> 0 | AI179: =SUM(AG179:AH179)+(Z179*AH7) -> 0 | AK179: =Z179*AO7/60 -> 0 | AL179: =AB179*AO8/60 -> 0 | AM179: =AD179*AO9/60 -> 0 | AN179: 0 | AO179: =AN179*AL6 -> 0
B180: 0 | D180: 30 | E180: 6 | F180: 2 | G180: 3 | H180: 5 | I180: 0 | J180: =I180*G11 -> 0 | K180: =I180*G13 -> 0 | L180: =J180*'CTI Input Sheet'!B28 -> 0 | M180: =J180*'CTI Input Sheet'!C28 -> 0 | N180: =J180*'CTI Input Sheet'!D28 -> 0 | O180: 0 | T180: 0 | U180: 0 | V180: 0 | W180: =T180*'CTI Input Sheet'!K25 -> 0 | X180: =SUM(T180*H11)/60 -> 0 | Z180: 0 | AA180: 0 | AB180: 0 | AC180: 0 | AD180: =EVEN(B180*F180)*1 -> 0 | AE180: 0 | AG180: =SUM(AB180*AH8)+(AC180*AH9) -> 0 | AH180: =SUM(AD180*A10)+(AD180*AH11) -> 0 | AI180: =SUM(AG180:AH180)+(Z180*AH7) -> 0 | AK180: =Z180*AO7/60 -> 0 | AL180: =AB180*AO8/60 -> 0 | AM180: =AD180*AO9/60 -> 0 | AN180: 0 | AO180: =AN180*AL6 -> 0
B181: 5 | D181: 36 | E181: 6 | F181: 2 | G181: 3.5 | H181: 5.5 | I181: 45 | J181: =I181*G11 -> 171 | K181: =I181*G13 -> 1026 | L181: =J181*'CTI Input Sheet'!B28 -> 256.5 | M181: =J181*'CTI Input Sheet'!C28 -> 42.75 | N181: =J181*'CTI Input Sheet'!D28 -> 0 | O181: =SUM(K181:N181) -> 1325.25 | T181: 10 | U181: 171 | V181: 1325.25 | W181: =T181*'CTI Input Sheet'!K25 -> 5 | X181: =SUM(T181*H11)/60 -> 2.5 | Z181: 5 | AA181: 80 | AB181: 0 | AC181: 0 | AD181: 10 | AE181: 40 | AG181: =SUM(AB181*AH8)+(AC181*AH9) -> 0 | AH181: =SUM(AD181*AH10)+(AD181*AH11) -> 62.5 | AI181: =SUM(AG181:AH181)+(Z181*AH7) -> 162.5 | AK181: =Z181*AO7/60 -> 0.5 | AL181: =AB181*AO8/60 -> 0 | AM181: =AD181*AO9/60 -> 0.3333333333 | AN181: 0.8333333333 | AO181: =AN181*AL6 -> 62.5
B182: =SUM(B175:B181) -> 15 | I182: =SUM(I175:I181) -> 95 | J182: 361 | K182: 2166 | L182: 541.5 | M182: 90.25 | N182: 0 | O182: =SUM(O175:O181) -> 2797.75 | T182: =SUM(T175:T181) -> 30 | U182: =SUM(U175:U181) -> 361 | V182: =SUM(V175:V181) -> 2797.75 | W182: =SUM(W175:W181) -> 15 | X182: =SUM(X175:X181) -> 7.5 | Z182: =SUM(Z175:Z181) -> 15 | AA182: 240 | AB182: 0 | AC182: 0 | AD182: 30 | AE182: 120 | AG182: =SUM(AG175:AG181) -> 0 | AH182: =SUM(AH175:AH181) -> 187.5 | AI182: =SUM(AI175:AI181) -> 487.5 | AK182: =SUM(AK175:AK181) -> 1.5 | AL182: =SUM(AL175:AL181) -> 0 | AM182: =SUM(AM175:AM181) -> 1 | AN182: =SUM(AN175:AN181) -> 2.5 | AO182: =SUM(AO175:AO181) -> 187.5
W183: =W182*'CTI Input Sheet'!H7 -> 1125 | X183: =X182*'CTI Input Sheet'!H6 -> 562.5 | AA183: =AA182*AH12 -> 180 | AB183: =AB182*AH8 -> 0 | AC183: =AC182*AH9 -> 0 | AD183: =AD182*AH10 -> 150 | AE183: =AE182*AH11 -> 150 | AK183: =AK182*AL6 -> 112.5 | AL183: =AL182*AL6 -> 0 | AM183: =AM182*AL6 -> 75
B184: HADJ Splice Plates | D184: HADJ Splice Plates | F184: NEMA VE 2 : HADJ Support Quantity - Support Weight - Support Steel, Fabrication, Logistics, Erection Costs | T184: HADJ : Support Structure Summary | Z184: HADJ : Tray Accessory Quantities | AG184: HADJ : Tray Accessory Costs | AK184: HADJ : Tray Accessory Installation Time & Installation Cost
B185: Quantities | D185: Hieght (in) | F185: Support Quantity | G185: OS1 Str. Section Length (FT) | H185: OS2 Str. Section Length (FT) | I185: OS3 Str. Section Length (FT) | J185: Total Str. Section Length (FT) | K185: Total Str. Section Weight (lb) | L185: Total Str. Section Cost (USD) | M185: Total Fabrication Cost (USD) | N185: Total Logistic Cost (USD) | O185: Total Erection Cost (USD | P185: SUM TOTAL COST/FITTING | T185: Total Quantity of Supports | U185: Total Weight of Supports (LB) | V185: Total Cost of Supports (USD) | W185: Total Design Time (HOURS) | X185: Total Support Instal Time (HOURS) | Z185: HADJ Splice Quantity (PRS) | AA185: Splice Plate Hardware Quantity (PCS) | AB185: Hold Down Clamp Quantity (PRS) | AC185: Clamp Hardware Quantity (PCS) | AD185: Expansion Guides Quantity (PRS) | AE185: Guides Hardware Quantity (PCS) | AG185: Hold Down Clamps (PR) | AH185: Expansion Guides (PR) | AI185: Total Accessory Cost | AK185: Splice Plates Time/Pair (HRS) | AL185: Hold Down Clamp Time/Pair (HRS) | AM185: Exp. Guide Time/Pair (HRS) | AN185: Total Time (HOURS) | AO185: Total Time Cost (USD)
B186: =SUM(ProjectData!G88:G89) -> 0 | D186: 0 | F186: 3 | G186: 2.5 | H186: 2.5 | I186: 4.5 | J186: =SUM(G186+H186+I186)*B186 -> 0 | K186: =J186*G11 -> 0 | L186: =J186*G13 -> 0 | M186: =K186*'CTI Input Sheet'!B28 -> 0 | N186: =K186*'CTI Input Sheet'!C28 -> 0 | O186: =K186*'CTI Input Sheet'!D28 -> 0 | P186: =SUM(L186:O186) -> 0 | T186: =SUM(B186*F186) -> 0 | U186: =K186 -> 0 | V186: =P186 -> 0 | W186: =T186*'CTI Input Sheet'!K27 -> 0 | X186: =SUM(T186*H11)/60 -> 0 | Z186: =B186*1 -> 0 | AA186: =Z186*16 -> 0 | AB186: =SUM(B186*F186)*1 -> 0 | AC186: =AB186*4 -> 0 | AD186: 0 | AE186: 0 | AG186: =SUM(AB186*AH8)+(AC186*AH9) -> 0 | AH186: 0 | AI186: =SUM(AG186:AH186) -> 0 | AK186: =Z186*AO6/60 -> 0 | AL186: =AB186*AO8/60 -> 0 | AM186: 0 | AN186: =SUM(AK186:AM186) -> 0 | AO186: =AN186*AL6 -> 0
B187: =SUM(B186:B186) -> 0 | J187: =J186 -> 0 | K187: =K186 -> 0 | L187: 0 | M187: 0 | N187: 0 | O187: 0 | P187: 0 | T187: =T186 -> 0 | U187: =U186 -> 0 | V187: =V186 -> 0 | W187: =W186 -> 0 | X187: =X186 -> 0 | Z187: =Z186 -> 0 | AA187: 0 | AB187: 0 | AC187: 0 | AD187: 0 | AE187: 0 | AG187: =AG186 -> 0 | AH187: =AH186 -> 0 | AI187: =AI186 -> 0 | AK187: =SUM(AK186:AK186) -> 0 | AL187: =SUM(AL186:AL186) -> 0 | AM187: =SUM(AM186:AM186) -> 0 | AN187: =SUM(AN186:AN186) -> 0 | AO187: =SUM(AO186:AO186) -> 0
W188: =W187*'CTI Input Sheet'!H7 -> 0 | X188: =X187*'CTI Input Sheet'!H6 -> 0 | AA188: =AA187*AH12 -> 0 | AB188: =AB187*AH8 -> 0 | AC188: =AC187*AH9 -> 0 | AD188: =AD187*AH10 -> 0 | AE188: =AE187*AH11 -> 0 | AK188: =AK187*AL6 -> 0 | AL188: =AL187*AL6 -> 0 | AM188: =AM187*AL6 -> 0
B189: VADJ Splice Plates | D189: VADJ Splice Plates | F189: NEMA VE 2 : VADJ Support Quantity - Support Weight - Support Steel, Fabrication, Logistics, Erection Costs | T189: VADJ : Support Structure Summary | Z189: VADJ : Tray Accessory Quantities | AG189: VADJ : Tray Accessory Costs | AK189: VADJ : Tray Accessory Installation Time & Installation Cost
B190: Quantities | D190: Hieght (in) | F190: Support Quantity | G190: OS1 Str. Section Length (FT) | H190: OS2 Str. Section Length (FT) | I190: OS3 Str. Section Length (FT) | J190: Total Str. Section Length (FT) | K190: Total Str. Section Weight (lb) | L190: Total Str. Section Cost (USD) | M190: Total Fabrication Cost (USD) | N190: Total Logistic Cost (USD) | O190: Total Erection Cost (USD | P190: SUM TOTAL COST/FITTING | T190: Total Quantity of Supports | U190: Total Weight of Supports (LB) | V190: Total Cost of Supports (USD) | W190: Total Design Time (HOURS) | X190: Total Support Instal Time (HOURS) | Z190: VADJ Splice Quantity (PRS) | AA190: Splice Plate Hardware Quantity (PCS) | AB190: Hold Down Clamp Quantity (PRS) | AC190: Clamp Hardware Quantity (PCS) | AD190: Expansion Guides Quantity (PRS) | AE190: Guides Hardware Quantity (PCS) | AG190: Hold Down Clamps (PR) | AH190: Expansion Guides (PR) | AI190: Total Accessory Cost | AK190: Splice Plates Time/Pair (HRS) | AL190: Hold Down Clamp Time/Pair (HRS) | AM190: Exp. Guide Time/Pair (HRS) | AN190: Total Time (HOURS) | AO190: Total Time Cost (USD)
B191: =SUM(ProjectData!D88:D89) -> 0 | D191: 0 | F191: 2 | G191: 2.5 | H191: 2.5 | I191: 0 | J191: =SUM(G191+H191)*B191 -> 0 | K191: =J191*G11 -> 0 | L191: =J191*G13 -> 0 | M191: =K191*'CTI Input Sheet'!B28 -> 0 | N191: =K191*'CTI Input Sheet'!C28 -> 0 | O191: =K191*'CTI Input Sheet'!D28 -> 0 | P191: =SUM(L191:O191) -> 0 | T191: =SUM(B191*F191) -> 0 | U191: =K191 -> 0 | V191: =P191 -> 0 | W191: =T191*'CTI Input Sheet'!K28 -> 0 | X191: =SUM(T191*H11)/60 -> 0 | Z191: =B191*1 -> 0 | AA191: =Z191*16 -> 0 | AB191: =SUM(B191*F191)*1 -> 0 | AC191: =AB191*4 -> 0 | AD191: 0 | AE191: 0 | AG191: =SUM(AB191*AH8)+(AC191*AH9) -> 0 | AH191: 0 | AI191: =SUM(AG191:AH191) -> 0 | AK191: =Z191*AO6/60 -> 0 | AL191: =AB191*AO8/60 -> 0 | AM191: 0 | AN191: =SUM(AK191:AM191) -> 0 | AO191: =AN191*AL6 -> 0
B192: =SUM(B191:B191) -> 0 | J192: =J191 -> 0 | K192: =K191 -> 0 | L192: 0 | M192: 0 | N192: 0 | O192: 0 | P192: 0 | T192: =T191 -> 0 | U192: =U191 -> 0 | V192: =V191 -> 0 | W192: =W191 -> 0 | X192: =X191 -> 0 | Z192: =Z191 -> 0 | AA192: 0 | AB192: 0 | AC192: 0 | AD192: 0 | AE192: 0 | AG192: =AG191 -> 0 | AH192: =AH191 -> 0 | AI192: =AI191 -> 0 | AK192: =SUM(AK191:AK191) -> 0 | AL192: =SUM(AL191:AL191) -> 0 | AM192: =SUM(AM191:AM191) -> 0 | AN192: =SUM(AN191:AN191) -> 0 | AO192: =SUM(AO191:AO191) -> 0
F193: NEMA VE 2 : Reducer Support Quantity - Support Weight - Support Steel, Fabrication, Logistics, Erection Costs | W193: =W192*'CTI Input Sheet'!H7 -> 0 | X193: =X192*'CTI Input Sheet'!H6 -> 0 | AA193: =AA192*AH12 -> 0 | AB193: =AB192*AH8 -> 0 | AC193: =AC192*AH9 -> 0 | AD193: =AD192*AH10 -> 0 | AE193: =AE192*AH11 -> 0 | AK193: =AK192*AL6 -> 0 | AL193: =AL192*AL6 -> 0 | AM193: =AM192*AL6 -> 0
B194: Reducers | D194: VADJ Splice Plates | T194: REDUCER : Support Structure Summary | Z194: REDUCER : Tray Accessory Quantities | AG194: REDUCER : Tray Accessory Costs | AK194: Reducer : Tray Accessory Installation Time & Installation Cost | AQ194: Reducer Covers
B195: Quantities | D195: VADJ Splice Plates | F195: Support Quantity | G195: OS1 Str. Section Length (FT) | H195: OS2 Str. Section Length (FT) | I195: OS3 Str. Section Length (FT) | J195: Total Str. Section Length (FT) | K195: Total Str. Section Weight (lb) | L195: Total Str. Section Cost (USD) | M195: Total Fabrication Cost (USD) | N195: Total Logistic Cost (USD) | O195: Total Erection Cost (USD | P195: SUM TOTAL COST/FITTING | T195: Total Quantity of Supports | U195: Total Weight of Supports (LB) | V195: Total Cost of Supports (USD) | W195: Total Design Time (HOURS) | X195: Total Support Instal Time (HOURS) | Z195: Splice Plate Quantity (PRS) | AA195: Splice Plate Hardware Quantity (PCS) | AB195: Hold Down Clamp Quantity (PRS) | AC195: Clamp Hardware Quantity (PCS) | AD195: Expansion Guides Quantity (PRS) | AE195: Guides Hardware Quantity (PCS) | AG195: Hold Down Clamps (PR) | AH195: Expansion Guides (PR) | AI195: Total Accessory Cost | AK195: Splice Plates Time/Pair (HRS) | AL195: Hold Down Clamp Time/Pair (HRS) | AM195: Exp. Guide Time/Pair (HRS) | AN195: Total Time (HOURS) | AO195: Total Time Cost (USD) | AQ195: Cover Quantity (PC) | AR195: Clamp Quantity (PC) | AS195: Hardware Quantity (PC) | AT195: Cover Weight (lbs) | AU195: Clamp Weight (lbs) | AV195: Clamps Cost (USD) | AW195: Installation Time (min)
B196: =SUM(ProjectData!J88:J89) -> 0 | D196: VADJ Splice Plates | F196: 2 | G196: 1.5 | H196: 2.5 | I196: 0 | J196: =SUM(G196+H196)*B196 -> 0 | K196: =J196*G11 -> 0 | L196: =J196*G13 -> 0 | M196: =K196*'CTI Input Sheet'!B28 -> 0 | N196: =K196*'CTI Input Sheet'!C28 -> 0 | O196: =K196*'CTI Input Sheet'!D28 -> 0 | P196: =SUM(L196:O196) -> 0 | T196: =SUM(B196*F196) -> 0 | U196: =K196 -> 0 | V196: =P196 -> 0 | W196: =T196*'CTI Input Sheet'!K26 -> 0 | X196: =SUM(T196*H11)/60 -> 0 | Z196: =B196*2 -> 0 | AA196: =Z196*16 -> 0 | AB196: =SUM(B196*F196)*1 -> 0 | AC196: =AB196*4 -> 0 | AD196: 0 | AE196: 0 | AG196: =SUM(AB196*AH8)+(AC196*AH9) -> 0 | AH196: 0 | AI196: =SUM(AG196:AH196) -> 0 | AK196: =Z196*AO6/60 -> 0 | AL196: =AB196*AO8/60 -> 0 | AM196: 0 | AN196: =SUM(AK196:AM196) -> 0 | AO196: =AN196*AL6 -> 0 | AQ196: =B196 -> 0 | AR196: =AQ196*2 -> 0 | AS196: =AR196*4 -> 0 | AT196: =AQ196*0.75 -> 0 | AU196: =AR196*AW9 -> 0 | AV196: =AR196*AT10 -> 0 | AW196: =AR196*AU10 -> 0
B197: =SUM(B196:B196) -> 0 | D197: VADJ Splice Plates | J197: =SUM(J196:J196) -> 0 | K197: 0 | L197: 0 | M197: 0 | N197: 0 | O197: 0 | P197: =SUM(P196:P196) -> 0 | T197: =SUM(T196:T196) -> 0 | U197: =SUM(U196:U196) -> 0 | V197: =SUM(V196:V196) -> 0 | W197: =SUM(W196:W196) -> 0 | X197: =SUM(X196:X196) -> 0 | Z197: =SUM(Z196:Z196) -> 0 | AA197: 0 | AB197: 0 | AC197: 0 | AD197: 0 | AE197: 0 | AG197: =SUM(AG196:AG196) -> 0 | AH197: =SUM(AH196:AH196) -> 0 | AI197: =SUM(AI196:AI196) -> 0 | AK197: =SUM(AK196:AK196) -> 0 | AL197: =SUM(AL196:AL196) -> 0 | AM197: =SUM(AM196:AM196) -> 0 | AN197: =SUM(AN196:AN196) -> 0 | AO197: =SUM(AO196:AO196) -> 0 | AQ197: =AQ196 -> 0 | AR197: 0 | AS197: 0 | AT197: 0 | AU197: 0 | AV197: 0 | AW197: 0
P198: =P196 -> 0 | W198: =W197*'CTI Input Sheet'!H7 -> 0 | X198: =X197*'CTI Input Sheet'!H6 -> 0 | AA198: =AA197*AH12 -> 0 | AB198: =AB197*AH8 -> 0 | AC198: =AC197*AH9 -> 0 | AD198: =AD197*AH10 -> 0 | AE198: =AE197*AH11 -> 0 | AK198: =AK197*AL6 -> 0 | AL198: =AL197*AL6 -> 0 | AM198: =AM197*AL6 -> 0
B201: TOTAL VE-2 COST: | D201: =SUM(E214+E218+E221+E225+E227+E229+E231+E233+E235+E237+E239) -> 21205.12
B203: TOTAL VE-2 HRS: | D203: =SUM(E216+E220+E226+E232+E238) -> 142.5831667
A208: NEMA VE-2 SHEET SUM TOTALS
B210: SUPPORT QUANTITY (EA): | E210: =SUM(T24+T35+T60+T85+T110+T135+T160+T171+T182+T187+T192+T197) -> 119
... 101 more rows

Sheet TSS (hidden)
B1: TSS Structural Support Calculator
O3: MTO Expansion Joint Calculation | Z3: Logistic Rates | AG3: Tray Accessory Costs | AK3: Customer Skilled Labor Rates | AN3: Tray Installation Times | AQ3: Cover Clamp Costs & Installation Times & Weights
O4: 4in Height Expansion Joint Quantities | Q4: 6in Height Expansion Joint Quantities | Z4: Logistic Costs (USD) | AG4: Cable Tray Accessory Costs (USD) | AK4: Project Labor Cost (USD/HOUR) | AN4: Tray Accessory Installation Time (Minutes) | AQ4: Cover Clamp Costs (USD) & Installation Times (MIN) & Weights (LBS)
O5: Cable Tray Width (in) | P5: Expansion Splice Qty (PR) | Q5: Cable Tray Width (in) | R5: Expansion Splice Qty (PR) | Z5: Logistic Type | AA5: Allocated Cost | AG5: Cable Tray Accessory | AH5: TOUGHTray Costs | AK5: Skilled Worker Discipline | AL5: Labor Hourly Work Rate | AN5: Cable Tray Accessory | AO5: Allocated Installation Time | AQ5: Cover Clamp Width | AR5: Fitting Cover Kit Cost (USD) | AS5: Fitting Cover Kit Instal (MIN) | AT5: TOUGHTorx Cost (Ea/USD) | AU5: Installation Time (MIN) | AV5: Fitting Cover Kit Weight (LBS) | AW5: TOUGHTorx Weight (LBS)
O6: 6 | P6: =ROUNDDOWN(((B17*12)/72),0) -> 0 | Q6: 6 | R6: =ROUNDDOWN(((B28*20)/60),0) -> 0 | Z6: 20ft Flat Bed Truck | AA6: ='CTI Input Sheet'!H12 -> 5500 | AG6: 4" Expansion Kit Cartridge (PRS) | AH6: ='CTI Input Sheet'!D20 -> 25 | AK6: Cable Tray Installer | AL6: ='CTI Input Sheet'!H5 -> 75 | AN6: TOUGHLink (PR) | AO6: ='CTI Input Sheet'!K6 -> 1 | AQ6: 6" Width | AR6: ='CTI Input Sheet'!N16 -> 1 | AS6: ='CTI Input Sheet'!O16 -> 0.2 | AT6: ='CTI Input Sheet'!P16 -> 1 | AU6: ='CTI Input Sheet'!Q16 -> 0.08 | AV6: ='CTI Input Sheet'!R16 -> 0.1 | AW6: ='CTI Input Sheet'!S16 -> 0.02
O7: 9 | P7: 0 | Q7: 9 | R7: 0 | Z7: 40ft Flat Bed Truck | AA7: ='CTI Input Sheet'!H13 -> 8000 | AG7: 6" Expansion Kit Cartridge (PRS) | AH7: ='CTI Input Sheet'!D21 -> 30 | AK7: Steel Erector | AL7: ='CTI Input Sheet'!H6 -> 75 | AN7: Expansion Cartridge 4-inch (PR) | AO7: ='CTI Input Sheet'!K10 -> 1 | AQ7: 9" Width | AR7: ='CTI Input Sheet'!N17 -> 1 | AS7: ='CTI Input Sheet'!O17 -> 0.2 | AT7: ='CTI Input Sheet'!P17 -> 1 | AU7: ='CTI Input Sheet'!Q17 -> 0.08 | AV7: ='CTI Input Sheet'!R17 -> 0.1 | AW7: ='CTI Input Sheet'!S17 -> 0.02
D8: Support Structural Sections | O8: 12 | P8: 0 | Q8: 12 | R8: 10 | Z8: 40ft Ocean Container | AA8: ='CTI Input Sheet'!H14 -> 10000 | AG8: Hold Down Clamps (PRS) | AH8: ='CTI Input Sheet'!D14 -> 6 | AK8: Design Engineer | AL8: ='CTI Input Sheet'!H7 -> 75 | AN8: Hold Down Clamps (PR) | AO8: ='CTI Input Sheet'!K7 -> 2 | AQ8: 12" Width | AR8: ='CTI Input Sheet'!N18 -> 1 | AS8: ='CTI Input Sheet'!O18 -> 0.2 | AT8: ='CTI Input Sheet'!P18 -> 1 | AU8: ='CTI Input Sheet'!Q18 -> 0.08 | AV8: ='CTI Input Sheet'!R18 -> 0.1 | AW8: ='CTI Input Sheet'!S18 -> 0.02
D9: Cable Tray Support Structural Section | O9: 18 | P9: 0 | Q9: 18 | R9: 0 | AG9: Clamp Hardware (PCS) | AH9: ='CTI Input Sheet'!D15 -> 1.25 | AN9: Expansion Guides (PR) | AO9: ='CTI Input Sheet'!K8 -> 2 | AQ9: 18" Width | AR9: ='CTI Input Sheet'!N19 -> 1 | AS9: ='CTI Input Sheet'!O19 -> 0.2 | AT9: ='CTI Input Sheet'!P19 -> 1 | AU9: ='CTI Input Sheet'!Q19 -> 0.08 | AV9: ='CTI Input Sheet'!R19 -> 0.1 | AW9: ='CTI Input Sheet'!S19 -> 0.02
D10: Type | E10: Type # | F10: Dimension | G10: Section Weight LB/FT | H10: Support Instal Time MIN/PC | I10: Section Cost USD/FT | O10: 24 | P10: 0 | Q10: 24 | R10: 0 | AG10: Expansion Guides (PR) | AH10: ='CTI Input Sheet'!D16 -> 6 | AN10: Expansion Cartridge 6-inch (PR) | AO10: ='CTI Input Sheet'!K11 -> 1 | AQ10: 24" Width | AR10: ='CTI Input Sheet'!N20 -> 1 | AS10: ='CTI Input Sheet'!O20 -> 0.2 | AT10: ='CTI Input Sheet'!P20 -> 1 | AU10: ='CTI Input Sheet'!Q20 -> 0.08 | AV10: ='CTI Input Sheet'!R20 -> 0.1 | AW10: ='CTI Input Sheet'!S20 -> 0.02
D11: Straight Section Support | E11: =ProjectData!E13 -> Double Strut (12G) | G11: =INDEX('CTI Input Sheet'!C5:C10,MATCH('VE2'!E11,'CTI Input Sheet'!B5:B10,0)) -> 3.8 | H11: =INDEX('CTI Input Sheet'!D5:D10,MATCH('VE2'!E11,'CTI Input Sheet'!B5:B10,0)) -> 15 | I11: =INDEX('CTI Input Sheet'!E5:E10,MATCH('VE2'!E11,'CTI Input Sheet'!B5:B10,0)) -> 5.7 | O11: 30 | P11: 0 | Q11: 30 | R11: 0 | AG11: Guide Hardware (PCS) | AH11: ='CTI Input Sheet'!D17 -> 1.25 | AN11: Structural Support (EA) | AO11: ='CTI Input Sheet'!K14 -> 60 | AQ11: 30" Width | AR11: ='CTI Input Sheet'!N21 -> 1 | AS11: ='CTI Input Sheet'!O21 -> 0.2 | AT11: ='CTI Input Sheet'!P21 -> 1 | AU11: ='CTI Input Sheet'!Q21 -> 0.08 | AV11: ='CTI Input Sheet'!R21 -> 0.1 | AW11: ='CTI Input Sheet'!S21 -> 0.02
D12: Support Finish | E12: =ProjectData!E17 -> Stainless | G12: =INDEX('CTI Input Sheet'!H21:H24,MATCH('VE2'!E12,'CTI Input Sheet'!G21:G24,0)) -> 4 | O12: 36 | P12: 0 | Q12: 36 | R12: 5 | AG12: TOUGHLink Hardware (PCS) | AH12: ='CTI Input Sheet'!D23 -> 1.5 | AN12: TSS Strut ATR Support (EA) | AO12: ='CTI Input Sheet'!K13 -> 2 | AQ12: 36" Width | AR12: ='CTI Input Sheet'!N22 -> 1 | AS12: ='CTI Input Sheet'!O22 -> 0.2 | AT12: ='CTI Input Sheet'!P22 -> 1 | AU12: ='CTI Input Sheet'!Q22 -> 0.08 | AV12: ='CTI Input Sheet'!R22 -> 0.1 | AW12: ='CTI Input Sheet'!S22 -> 0.02
G13: =G12*I11 -> 22.8
B15: 4in Straight Sections | D15: TSS : 4in Height Straight Section Support Quantity - Support Weight - Support Steel Fabrication, Logistics, Erection Costs | T15: 4" Straight Section : Support Structure Summary | Z15: 4" Straight Section : Tray Accessory Quantities | AG15: 4" Straight Section : Tray Accessory Costs | AK15: 4" Straight Section : Tray Accessory Installation Time & Installation Cost | AQ15: 4" Straight Section : Covers
B16: Quantities/Piece | D16: Tray Width (in) | E16: Support Quantity | F16: Section Length (FT) | G16: Total Str. Section Length (FT) | H16: Total Str. Section Weight (LBS) | I16: Total Str. Section Cost (USD) | J16: Total Fabrication Cost (USD) | K16: Total Logistic Cost (USD) | L16: Total Erection Cost (USD) | M16: SUM TOTAL COST/SECTION | T16: Total Quantity of Supports | U16: Total Weight of Supports (LB) | V16: Total Cost of Supports (USD) | W16: Total Design Time (HOURS) | X16: Total Support Instal Time (HOURS) | Z16: TOUGHLink Quantity (PAIRS) | AA16: TOUGHLink Hardware Quantity (PCS) | AB16: Hold Down Clamp Quantity (PR) | AC16: Clamp Hardware Quantity (PCS) | AD16: Expansion Guides Quantity (PR) | AE16: Guides Hardware Quantity (PCS) | AG16: Hold Down Clamps Cost/Pair (USD) | AH16: Exp. Guides Cost/Pair (USD) | AI16: Total Accessory Cost (USD) | AK16: TOUGHLink Time/Pair (HRS) | AL16: Hold Down Clamp Time/Pair (HRS) | AM16: Exp. Guide Time/Pair (HRS) | AN16: Total Time (HOURS) | AO16: Total Time Cost (USD) | AQ16: Cover Quantity (PCS) | AR16: Clamp Quantity (PCS) | AS16: TOUGHTorx Quantity (PCS) | AT16: Cover Weight (LBS) | AU16: TOUGHTorx Weight (LBS) | AV16: Clamps Cost (USD) | AW16: Installation Time (HOURS)
B17: =ProjectData!C24 -> 0 | D17: 6 | E17: 1 | F17: 1 | G17: =(E17*F17)*B17 -> 0 | H17: =G17*G11 -> 0 | I17: =G17*G13 -> 0 | J17: =H17*'CTI Input Sheet'!B28 -> 0 | K17: =H17*'CTI Input Sheet'!C28 -> 0 | L17: =H17*'CTI Input Sheet'!D28 -> 0 | M17: =SUM(I17:L17) -> 0 | T17: =B17*E17 -> 0 | U17: =H17 -> 0 | V17: =M17 -> 0 | W17: =T17*'CTI Input Sheet'!K20 -> 0 | X17: =SUM(T17*H11)/60 -> 0 | Z17: 0 | AA17: =B17*8 -> 0 | AB17: =EVEN(B17*0.3333)*(E17) -> 0 | AC17: =AB17*4 -> 0 | AD17: =EVEN(B17*0.7777)*(E17) -> 0 | AE17: =AD17*4 -> 0 | AG17: =SUM(AB17*AH8)+(AC17*AH9) -> 0 | AH17: =SUM(AD17*AH10)+(AE17*AH11) -> 0 | AI17: =SUM(AG17:AH17) -> 0 | AK17: =B17*AO6/60 -> 0 | AL17: =AB17*AO8/60 -> 0 | AM17: =AD17*AO9/60 -> 0 | AN17: =SUM(AK17:AM17) -> 0 | AO17: =AN17*AL6 -> 0 | AQ17: =IF(ProjectData!H$17="Not Required",0,B17*2) -> 0 | AR17: =AQ17*0 -> 0 | AS17: =AQ17*8 -> 0 | AT17: =AQ17*2.16 -> 0 | AU17: =AS17*AW6 -> 0 | AV17: =AS17*AT6 -> 0 | AW17: =AS17*AU6/60 -> 0
B18: =ProjectData!C25 -> 0 | D18: 9 | E18: 1 | F18: 1.25 | G18: 0 | H18: =G18*G11 -> 0 | I18: =G18*G13 -> 0 | J18: =H18*'CTI Input Sheet'!B28 -> 0 | K18: =H18*'CTI Input Sheet'!C28 -> 0 | L18: =H18*'CTI Input Sheet'!D28 -> 0 | M18: =SUM(I18:L18) -> 0 | T18: =B18*E18 -> 0 | U18: =H18 -> 0 | V18: =M18 -> 0 | W18: =T18*'CTI Input Sheet'!K20 -> 0 | X18: =SUM(T18*H11)/60 -> 0 | Z18: 0 | AA18: =B18*8 -> 0 | AB18: 0 | AC18: =AB18*4 -> 0 | AD18: =EVEN(B18*0.7777)*(E18) -> 0 | AE18: =AD18*4 -> 0 | AG18: =SUM(AB18*AH8)+(AC18*AH9) -> 0 | AH18: =SUM(AD18*AH10)+(AE18*AH11) -> 0 | AI18: 0 | AK18: =B18*AO6/60 -> 0 | AL18: =AB18*AO8/60 -> 0 | AM18: =AD18*AO9/60 -> 0 | AN18: 0 | AO18: =AN18*AL6 -> 0 | AQ18: =IF(ProjectData!H$17="Not Required",0,B18*2) -> 0 | AR18: =AQ18*0 -> 0 | AS18: 0 | AT18: =AQ18*3.03 -> 0 | AU18: 0 | AV18: =AS18*AT7 -> 0 | AW18: 0
B19: =ProjectData!C26 -> 0 | D19: 12 | E19: 1 | F19: 1.5 | G19: 0 | H19: =G19*G11 -> 0 | I19: =G19*G13 -> 0 | J19: =H19*'CTI Input Sheet'!B28 -> 0 | K19: =H19*'CTI Input Sheet'!C28 -> 0 | L19: =H19*'CTI Input Sheet'!D28 -> 0 | M19: 0 | T19: 0 | U19: 0 | V19: 0 | W19: =T19*'CTI Input Sheet'!K20 -> 0 | X19: =SUM(T19*H11)/60 -> 0 | Z19: 0 | AA19: 0 | AB19: 0 | AC19: 0 | AD19: 0 | AE19: 0 | AG19: =SUM(AB19*AH8)+(AC19*AH9) -> 0 | AH19: =SUM(AD19*AH10)+(AE19*AH11) -> 0 | AI19: 0 | AK19: =B19*AO6/60 -> 0 | AL19: =AB19*AO8/60 -> 0 | AM19: =AD19*AO9/60 -> 0 | AN19: 0 | AO19: =AN19*AL6 -> 0 | AQ19: =IF(ProjectData!H$17="Not Required",0,B19*2) -> 0 | AR19: 0 | AS19: 0 | AT19: =AQ19*3.91 -> 0 | AU19: 0 | AV19: 0 | AW19: 0
B20: =ProjectData!C27 -> 0 | D20: 18 | E20: 1 | F20: 2 | G20: 0 | H20: =G20*G11 -> 0 | I20: =G20*G13 -> 0 | J20: =H20*'CTI Input Sheet'!B28 -> 0 | K20: =H20*'CTI Input Sheet'!C28 -> 0 | L20: =H20*'CTI Input Sheet'!D28 -> 0 | M20: 0 | T20: 0 | U20: 0 | V20: 0 | W20: =T20*'CTI Input Sheet'!K20 -> 0 | X20: =SUM(T20*H11)/60 -> 0 | Z20: 0 | AA20: 0 | AB20: 0 | AC20: 0 | AD20: 0 | AE20: 0 | AG20: =SUM(AB20*AH8)+(AC20*AH9) -> 0 | AH20: =SUM(AD20*AH10)+(AE20*AH11) -> 0 | AI20: 0 | AK20: =B20*AO6/60 -> 0 | AL20: =AB20*AO8/60 -> 0 | AM20: =AD20*AO9/60 -> 0 | AN20: 0 | AO20: =AN20*AL6 -> 0 | AQ20: =IF(ProjectData!H$17="Not Required",0,B20*2) -> 0 | AR20: 0 | AS20: 0 | AT20: =AQ20*5.67 -> 0 | AU20: 0 | AV20: 0 | AW20: 0
B21: =ProjectData!C28 -> 0 | D21: 24 | E21: 1 | F21: 2.5 | G21: 0 | H21: =G21*G11 -> 0 | I21: =G21*G13 -> 0 | J21: =H21*'CTI Input Sheet'!B28 -> 0 | K21: =H21*'CTI Input Sheet'!C28 -> 0 | L21: =H21*'CTI Input Sheet'!D28 -> 0 | M21: 0 | T21: 0 | U21: 0 | V21: 0 | W21: =T21*'CTI Input Sheet'!K20 -> 0 | X21: =SUM(T21*H11)/60 -> 0 | Z21: 0 | AA21: 0 | AB21: 0 | AC21: 0 | AD21: 0 | AE21: 0 | AG21: =SUM(AB21*AH8)+(AC21*AH9) -> 0 | AH21: =SUM(AD21*AH10)+(AE21*AH11) -> 0 | AI21: =SUM(AG21:AH21) -> 0 | AK21: =B21*AO6/60 -> 0 | AL21: =AB21*AO8/60 -> 0 | AM21: =AD21*AO9/60 -> 0 | AN21: 0 | AO21: =AN21*AL6 -> 0 | AQ21: =IF(ProjectData!H$17="Not Required",0,B21*2) -> 0 | AR21: 0 | AS21: 0 | AT21: =AQ21*7.42 -> 0 | AU21: 0 | AV21: 0 | AW21: 0
B22: =ProjectData!C29 -> 0 | D22: 30 | E22: 1 | F22: 3 | G22: 0 | H22: =G22*G11 -> 0 | I22: =G22*G13 -> 0 | J22: =H22*'CTI Input Sheet'!B28 -> 0 | K22: =H22*'CTI Input Sheet'!C28 -> 0 | L22: =H22*'CTI Input Sheet'!D28 -> 0 | M22: 0 | T22: 0 | U22: 0 | V22: 0 | W22: =T22*'CTI Input Sheet'!K20 -> 0 | X22: =SUM(T22*H11)/60 -> 0 | Z22: 0 | AA22: 0 | AB22: 0 | AC22: 0 | AD22: 0 | AE22: 0 | AG22: =SUM(AB22*AH8)+(AC22*AH9) -> 0 | AH22: =SUM(AD22*AH10)+(AE22*AH11) -> 0 | AI22: 0 | AK22: =B22*AO6/60 -> 0 | AL22: =AB22*AO8/60 -> 0 | AM22: =AD22*AO9/60 -> 0 | AN22: 0 | AO22: =AN22*AL6 -> 0 | AQ22: =IF(ProjectData!H$17="Not Required",0,B22*2) -> 0 | AR22: 0 | AS22: 0 | AT22: =AQ22*9.18 -> 0 | AU22: 0 | AV22: 0 | AW22: 0
B23: =ProjectData!C30 -> 0 | D23: 36 | E23: 1 | F23: 3.5 | G23: 0 | H23: =G23*G11 -> 0 | I23: =G23*G13 -> 0 | J23: =H23*'CTI Input Sheet'!B28 -> 0 | K23: =H23*'CTI Input Sheet'!C28 -> 0 | L23: =H23*'CTI Input Sheet'!D28 -> 0 | M23: 0 | T23: 0 | U23: 0 | V23: 0 | W23: =T23*'CTI Input Sheet'!K20 -> 0 | X23: =SUM(T23*H11)/60 -> 0 | Z23: 0 | AA23: 0 | AB23: 0 | AC23: 0 | AD23: 0 | AE23: 0 | AG23: =SUM(AB23*AH8)+(AC23*AH9) -> 0 | AH23: =SUM(AD23*AH10)+(AE23*AH11) -> 0 | AI23: 0 | AK23: =B23*AO6/60 -> 0 | AL23: =AB23*AO8/60 -> 0 | AM23: =AD23*AO9/60 -> 0 | AN23: 0 | AO23: =AN23*AL6 -> 0 | AQ23: =IF(ProjectData!H$17="Not Required",0,B23*2) -> 0 | AR23: 0 | AS23: 0 | AT23: =AQ23*10.94 -> 0 | AU23: 0 | AV23: 0 | AW23: 0
B24: =SUM(B17:B23) -> 0 | G24: =SUM(G17:G23) -> 0 | H24: 0 | I24: 0 | J24: 0 | K24: 0 | L24: 0 | M24: 0 | T24: =SUM(T17:T23) -> 0 | U24: =SUM(U17:U23) -> 0 | V24: =SUM(V17:V23) -> 0 | W24: =SUM(W17:W23) -> 0 | X24: =SUM(X17:X23) -> 0 | Z24: =SUM(Z17:Z23) -> 0 | AA24: 0 | AB24: 0 | AC24: 0 | AD24: 0 | AE24: 0 | AG24: =SUM(AG17:AG23) -> 0 | AH24: =SUM(AH17:AH23) -> 0 | AI24: =SUM(AI17:AI23) -> 0 | AK24: =SUM(AK17:AK23) -> 0 | AL24: =SUM(AL17:AL23) -> 0 | AM24: =SUM(AM17:AM23) -> 0 | AN24: =SUM(AN17:AN23) -> 0 | AO24: =SUM(AO17:AO23) -> 0 | AQ24: =SUM(AQ17:AQ23) -> 0 | AR24: 0 | AS24: 0 | AT24: 0 | AU24: 0 | AV24: 0 | AW24: 0
W25: =W24*'CTI Input Sheet'!H7 -> 0 | X25: =X24*'CTI Input Sheet'!H6 -> 0 | AA25: =AA24*AH12 -> 0 | AB25: =AB24*AH8 -> 0 | AC25: =AC24*AH9 -> 0 | AD25: =AD24*AH10 -> 0 | AE25: =AE24*AH11 -> 0 | AK25: =AK24*AL6 -> 0 | AL25: =AL24*AL6 -> 0 | AM25: =AM24*AL6 -> 0
B26: 6in Straight Sections | D26: TSS : 6in Height Straight Section Support Quantity - Support Weight - Support Steel Fabrication, Logistics, Erection Costs | T26: 6" Straight Section : Support Structure Summary | Z26: 6" Straight Section : Tray Accessory Quantities | AG26: 6" Straight Section : Tray Accessory Costs | AK26: 6" Straight Section : Tray Accessory Installation Time & Installation Cost | AQ26: 6" Straight Section : Covers
B27: Quantities/Piece | D27: Tray Width (in) | E27: Support Quantity | F27: Section Length (FT) | G27: Total Str. Section Length (FT) | H27: Total Str. Section Weight (LBS) | I27: Total Str. Section Cost (USD) | J27: Total Fabrication Cost (USD) | K27: Total Logistic Cost (USD) | L27: Total Erection Cost (USD) | M27: SUM TOTAL COST/SECTION | T27: Total Quantity of Supports | U27: Total Weight of Supports (LB) | V27: Total Cost of Supports (USD) | W27: Total Design Time (HOURS) | X27: Total Support Instal Time (HOURS) | Z27: TOUGHLink Quantity (PAIRS) | AA27: TOUGHLink Hardware Quantity (PCS) | AB27: Hold Down Clamp Quantity (PR) | AC27: Clamp Hardware Quantity (PCS) | AD27: Expansion Guides Quantity (PR) | AE27: Guides Hardware Quantity (PCS) | AG27: Hold Down Clamps Cost/Pair (USD) | AH27: Exp. Guides Cost/Pair (USD) | AI27: Total Accessory Cost (USD) | AK27: TOUGHLink Time/Pair (HRS) | AL27: Hold Down Clamp Time/Pair (HRS) | AM27: Exp. Guide Time/Pair (HRS) | AN27: Total Time (HOURS) | AO27: Total Time Cost (USD) | AQ27: Cover Quantity (PCS) | AR27: Clamp Quantity (PCS) | AS27: TOUGHTorx Quantity (PCS) | AT27: Cover Weight (LBS) | AU27: TOUGHTorx Weight (LBS) | AV27: Clamps Cost (USD) | AW27: Installation Time (HOURS)
B28: =ProjectData!F24 -> 0 | D28: 6 | E28: 1 | F28: 1 | G28: =(E28*F28)*B28 -> 0 | H28: =G28*G11 -> 0 | I28: =G28*G13 -> 0 | J28: =H28*'CTI Input Sheet'!B28 -> 0 | K28: =H28*'CTI Input Sheet'!C28 -> 0 | L28: =H28*'CTI Input Sheet'!D28 -> 0 | M28: =SUM(I28:L28) -> 0 | T28: =B28*E28 -> 0 | U28: =H28 -> 0 | V28: =M28 -> 0 | W28: =T28*'CTI Input Sheet'!K20 -> 0 | X28: =SUM(T28*H11)/60 -> 0 | Z28: 0 | AA28: =B28*8 -> 0 | AB28: =EVEN(B28*0.3333)*(E28) -> 0 | AC28: =AB28*4 -> 0 | AD28: =EVEN(B28*0.7777)*(E28) -> 0 | AE28: =AD28*4 -> 0 | AG28: =SUM(AB28*AH8)+(AC28*AH9) -> 0 | AH28: =SUM(AD28*AH10)+(AE28*AH11) -> 0 | AI28: =SUM(AG28:AH28) -> 0 | AK28: =B28*AO6/60 -> 0 | AL28: =AB28*AO8/60 -> 0 | AM28: =AD28*AO9/60 -> 0 | AN28: =SUM(AK28:AM28) -> 0 | AO28: =AN28*AL6 -> 0 | AQ28: =IF(ProjectData!H$17="Not Required",0,B28*2) -> 0 | AR28: =AQ28*0 -> 0 | AS28: =AQ28*8 -> 0 | AT28: =AQ28*2.16 -> 0 | AU28: =AS28*AW6 -> 0 | AV28: =AS28*AT6 -> 0 | AW28: =AS28*AU6/60 -> 0
B29: =ProjectData!F25 -> 0 | D29: 9 | E29: 1 | F29: 1.25 | G29: 0 | H29: =G29*G11 -> 0 | I29: =G29*G13 -> 0 | J29: =H29*'CTI Input Sheet'!B28 -> 0 | K29: =H29*'CTI Input Sheet'!C28 -> 0 | L29: =H29*'CTI Input Sheet'!D28 -> 0 | M29: 0 | T29: =B29*E29 -> 0 | U29: =H29 -> 0 | V29: 0 | W29: =T29*'CTI Input Sheet'!K20 -> 0 | X29: =SUM(T29*H11)/60 -> 0 | Z29: 0 | AA29: 0 | AB29: 0 | AC29: =AB29*4 -> 0 | AD29: 0 | AE29: =AD29*4 -> 0 | AG29: =SUM(AB29*AH8)+(AC29*AH9) -> 0 | AH29: =SUM(AD29*AH10)+(AE29*AH11) -> 0 | AI29: 0 | AK29: =B29*AO6/60 -> 0 | AL29: =AB29*AO8/60 -> 0 | AM29: =AD29*AO9/60 -> 0 | AN29: 0 | AO29: =AN29*AL6 -> 0 | AQ29: =IF(ProjectData!H$17="Not Required",0,B29*2) -> 0 | AR29: 0 | AS29: 0 | AT29: =AQ29*3.03 -> 0 | AU29: =AS29*AW7 -> 0 | AV29: =AS29*AT7 -> 0 | AW29: 0
B30: =ProjectData!F26 -> 30 | D30: 12 | E30: 1 | F30: 1.5 | G30: 45 | H30: =G30*G11 -> 171 | I30: =G30*G13 -> 1026 | J30: =H30*'CTI Input Sheet'!B28 -> 256.5 | K30: =H30*'CTI Input Sheet'!C28 -> 42.75 | L30: =H30*'CTI Input Sheet'!D28 -> 0 | M30: 1325.25 | T30: 30 | U30: 171 | V30: 1325.25 | W30: =T30*'CTI Input Sheet'!K20 -> 7.5 | X30: =SUM(T30*H11)/60 -> 7.5 | Z30: 0 | AA30: 240 | AB30: 10 | AC30: 40 | AD30: 24 | AE30: 96 | AG30: =SUM(AB30*AH8)+(AC30*AH9) -> 110 | AH30: =SUM(AD30*AH10)+(AE30*AH11) -> 264 | AI30: 374 | AK30: =B30*AO6/60 -> 0.5 | AL30: =AB30*AO8/60 -> 0.3333333333 | AM30: =AD30*AO9/60 -> 0.8 | AN30: 1.633333333 | AO30: =AN30*AL6 -> 122.5 | AQ30: =IF(ProjectData!H$17="Not Required",0,B30*2) -> 0 | AR30: 0 | AS30: 0 | AT30: =AQ30*3.91 -> 0 | AU30: 0 | AV30: 0 | AW30: 0
B31: =ProjectData!F27 -> 0 | D31: 18 | E31: 1 | F31: 2 | G31: 0 | H31: =G31*G11 -> 0 | I31: =G31*G13 -> 0 | J31: =H31*'CTI Input Sheet'!B28 -> 0 | K31: =H31*'CTI Input Sheet'!C28 -> 0 | L31: =H31*'CTI Input Sheet'!D28 -> 0 | M31: 0 | T31: 0 | U31: 0 | V31: 0 | W31: =T31*'CTI Input Sheet'!K20 -> 0 | X31: =SUM(T31*H11)/60 -> 0 | Z31: 0 | AA31: 0 | AB31: 0 | AC31: 0 | AD31: 0 | AE31: 0 | AG31: =SUM(AB31*AH8)+(AC31*AH9) -> 0 | AH31: =SUM(AD31*AH10)+(AE31*AH11) -> 0 | AI31: 0 | AK31: =B31*AO6/60 -> 0 | AL31: =AB31*AO8/60 -> 0 | AM31: =AD31*AO9/60 -> 0 | AN31: 0 | AO31: =AN31*AL6 -> 0 | AQ31: =IF(ProjectData!H$17="Not Required",0,B31*2) -> 0 | AR31: 0 | AS31: 0 | AT31: =AQ31*5.67 -> 0 | AU31: 0 | AV31: 0 | AW31: 0
B32: =ProjectData!F28 -> 0 | D32: 24 | E32: 1 | F32: 2.5 | G32: 0 | H32: =G32*G11 -> 0 | I32: =G32*G13 -> 0 | J32: =H32*'CTI Input Sheet'!B28 -> 0 | K32: =H32*'CTI Input Sheet'!C28 -> 0 | L32: =H32*'CTI Input Sheet'!D28 -> 0 | M32: 0 | T32: 0 | U32: 0 | V32: 0 | W32: =T32*'CTI Input Sheet'!K20 -> 0 | X32: =SUM(T32*H11)/60 -> 0 | Z32: 0 | AA32: 0 | AB32: 0 | AC32: 0 | AD32: 0 | AE32: 0 | AG32: =SUM(AB32*AH8)+(AC32*AH9) -> 0 | AH32: =SUM(AD32*AH10)+(AE32*AH11) -> 0 | AI32: 0 | AK32: =B32*AO6/60 -> 0 | AL32: =AB32*AO8/60 -> 0 | AM32: =AD32*AO9/60 -> 0 | AN32: 0 | AO32: =AN32*AL6 -> 0 | AQ32: =IF(ProjectData!H$17="Not Required",0,B32*2) -> 0 | AR32: 0 | AS32: 0 | AT32: =AQ32*7.42 -> 0 | AU32: 0 | AV32: 0 | AW32: 0
B33: =ProjectData!F29 -> 0 | D33: 30 | E33: 1 | F33: 3 | G33: 0 | H33: =G33*G11 -> 0 | I33: =G33*G13 -> 0 | J33: =H33*'CTI Input Sheet'!B28 -> 0 | K33: =H33*'CTI Input Sheet'!C28 -> 0 | L33: =H33*'CTI Input Sheet'!D28 -> 0 | M33: 0 | T33: 0 | U33: 0 | V33: 0 | W33: =T33*'CTI Input Sheet'!K20 -> 0 | X33: =SUM(T33*H11)/60 -> 0 | Z33: 0 | AA33: 0 | AB33: 0 | AC33: 0 | AD33: 0 | AE33: 0 | AG33: =SUM(AB33*AH8)+(AC33*AH9) -> 0 | AH33: =SUM(AD33*AH10)+(AE33*AH11) -> 0 | AI33: 0 | AK33: =B33*AO6/60 -> 0 | AL33: =AB33*AO8/60 -> 0 | AM33: =AD33*AO9/60 -> 0 | AN33: 0 | AO33: =AN33*AL6 -> 0 | AQ33: =IF(ProjectData!H$17="Not Required",0,B33*2) -> 0 | AR33: 0 | AS33: 0 | AT33: =AQ33*9.18 -> 0 | AU33: 0 | AV33: 0 | AW33: 0
B34: =ProjectData!F30 -> 15 | D34: 36 | E34: 1 | F34: 3.5 | G34: 52.5 | H34: =G34*G11 -> 199.5 | I34: =G34*G13 -> 1197 | J34: =H34*'CTI Input Sheet'!B28 -> 299.25 | K34: =H34*'CTI Input Sheet'!C28 -> 49.875 | L34: =H34*'CTI Input Sheet'!D28 -> 0 | M34: 1546.125 | T34: 15 | U34: 199.5 | V34: 1546.125 | W34: =T34*'CTI Input Sheet'!K20 -> 3.75 | X34: =SUM(T34*H11)/60 -> 3.75 | Z34: 0 | AA34: 120 | AB34: 6 | AC34: 24 | AD34: 12 | AE34: 48 | AG34: =SUM(AB34*AH8)+(AC34*AH9) -> 66 | AH34: =SUM(AD34*AH10)+(AE34*AH11) -> 132 | AI34: 198 | AK34: =B34*AO6/60 -> 0.25 | AL34: =AB34*AO8/60 -> 0.2 | AM34: =AD34*AO9/60 -> 0.4 | AN34: 0.85 | AO34: =AN34*AL6 -> 63.75 | AQ34: =IF(ProjectData!H$17="Not Required",0,B34*2) -> 0 | AR34: 0 | AS34: 0 | AT34: =AQ34*10.94 -> 0 | AU34: 0 | AV34: 0 | AW34: 0
B35: =SUM(B28:B34) -> 45 | G35: =SUM(G28:G34) -> 97.5 | H35: =SUM(H28:H34) -> 370.5 | I35: 2223 | J35: 555.75 | K35: 92.625 | L35: 0 | M35: 2871.375 | T35: =SUM(T28:T34) -> 45 | U35: =SUM(U28:U34) -> 370.5 | V35: =SUM(V28:V34) -> 2871.375 | W35: =SUM(W28:W34) -> 11.25 | X35: =SUM(X28:X34) -> 11.25 | Z35: =SUM(Z28:Z34) -> 0 | AA35: 360 | AB35: 16 | AC35: 64 | AD35: =SUM(AD28:AD34) -> 36 | AE35: 144 | AG35: =SUM(AG28:AG34) -> 176 | AH35: =SUM(AH28:AH34) -> 396 | AI35: =SUM(AI28:AI34) -> 572 | AK35: =SUM(AK28:AK34) -> 0.75 | AL35: =SUM(AL28:AL34) -> 0.5333333333 | AM35: =SUM(AM28:AM34) -> 1.2 | AN35: =SUM(AN28:AN34) -> 2.483333333 | AO35: =SUM(AO28:AO34) -> 186.25 | AQ35: =SUM(AQ28:AQ34) -> 0 | AR35: 0 | AS35: 0 | AT35: 0 | AU35: 0 | AV35: 0 | AW35: 0
W36: =W35*'CTI Input Sheet'!H7 -> 843.75 | X36: =X35*'CTI Input Sheet'!H6 -> 843.75 | AA36: =AA35*AH12 -> 540 | AB36: =AB35*AH8 -> 96 | AC36: =AC35*AH9 -> 80 | AD36: =AD35*AH10 -> 216 | AE36: =AE35*AH11 -> 180 | AK36: =AK35*AL6 -> 56.25 | AL36: =AL35*AL6 -> 40 | AM36: =AM35*AL6 -> 90
B37: HB Fittings | D37: HB Fittings | F37: TSS : HB Support Quantity - Support Weight - Support Steel Fabrication, Logistics, Erection Costs | T37: HB : Support Structure Summary | Z37: HB : Tray Accessory Quantities | AG37: HB : Tray Accessory Costs | AK37: HB : Tray Accessory Installation Time & Installation Cost | AQ37: HB Covers
B38: Quantities/Piece | D38: HB Width (in) | E38: HB Radius (in) | F38: Support Quantity | G38: OS1 Str. Section Length (FT) | H38: OS2 Str. Section Length (FT) | I38: CTR Str. Section Length (FT) | J38: Total Str. Section Length (FT) | K38: Total Str. Section Weight (LBS) | L38: Total Str. Section Cost (USD) | M38: Total Fabrication Cost (USD) | N38: Total Logistic Cost (USD) | O38: Total Erection Cost (USD) | P38: SUM TOTAL COST/FITTING | T38: Total Quantity of Supports | U38: Total Weight of Supports (LB) | V38: Total Cost of Supports (USD) | W38: Total Design Time (HOURS) | X38: Total Support Instal Time (HOURS) | Z38: Integral Link Quantity (PAIRS) | AA38: Integral ink Hardware Quantity (PCS) | AB38: Hold Down Clamp Quantity (PR) | AC38: Clamp Hardware Quantity (PCS) | AD38: Expansion Guides Quantity (PR) | AE38: Guides Hardware Quantity (PCS) | AG38: Hold Down Clamps Cost/Pair (USD) | AH38: Exp. Guides Cost/Pair (USD) | AI38: Total Accessory Cost (USD) | AK38: TOUGHLink Time/Pair (HRS) | AL38: Hold Down Clamp Time/Pair (HRS) | AM38: Exp. Guide Time/Pair (HRS) | AN38: Total Time (HOURS) | AO38: Total Time Cost (USD) | AQ38: Cover Quantity (PCS) | AR38: Clamp Quantity (PCS) | AS38: TOUGHTorx Quantity (PCS) | AT38: Cover Weight (LBS) | AU38: TOUGHTorx Weight (LBS) | AV38: Clamps Cost (USD) | AW38: Installation Time (HOURS)
B39: =ProjectData!D37 -> 0 | D39: 6 | E39: 12 | F39: 2 | G39: 1 | H39: 2 | I39: 0 | J39: =SUM(G39+H39+I39)*B39 -> 0 | K39: =J39*G11 -> 0 | L39: =J39*G13 -> 0 | M39: =K39*'CTI Input Sheet'!B28 -> 0 | N39: =K39*'CTI Input Sheet'!C28 -> 0 | O39: =K39*'CTI Input Sheet'!D28 -> 0 | P39: =SUM(L39:O39) -> 0 | T39: =B39*F39 -> 0 | U39: =K39 -> 0 | V39: =P39 -> 0 | W39: =T39*'CTI Input Sheet'!K21 -> 0 | X39: =SUM(T39*H11)/60 -> 0 | Z39: 0 | AA39: =Z39*8 -> 0 | AB39: =(F39)*B39 -> 0 | AC39: =AB39*4 -> 0 | AD39: 0 | AE39: 0 | AG39: =SUM(AB39*AH8)+(AC39*AH9) -> 0 | AH39: =SUM(AD39*AH10)+(AD39*AH11) -> 0 | AI39: =SUM(AG39:AH39) -> 0 | AK39: =(B39*2)*AO6/60 -> 0 | AL39: =AB39*AO8/60 -> 0 | AM39: =AD39*AO9 -> 0 | AN39: =SUM(AK39:AM39) -> 0 | AO39: =AN39*AL6 -> 0 | AQ39: =IF(ProjectData!H$17="Not Required",0,B39*2) -> 0 | AR39: =AQ39*0 -> 0 | AS39: =AQ39*6 -> 0 | AT39: =AQ39*0.42 -> 0 | AU39: =AS39*AV6 -> 0 | AV39: =AS39*AR6 -> 0 | AW39: =AS39*AS6/60 -> 0
B40: =ProjectData!D38 -> 0 | D40: 6 | E40: 24 | F40: 2 | G40: 1 | H40: 3 | I40: 0 | J40: 0 | K40: =J40*G11 -> 0 | L40: =J40*G13 -> 0 | M40: =K40*'CTI Input Sheet'!B28 -> 0 | N40: =K40*'CTI Input Sheet'!C28 -> 0 | O40: =K40*'CTI Input Sheet'!D28 -> 0 | P40: 0 | T40: =B40*F40 -> 0 | U40: 0 | V40: 0 | W40: =T40*'CTI Input Sheet'!K21 -> 0 | X40: =SUM(T40*H11)/60 -> 0 | Z40: 0 | AA40: 0 | AB40: 0 | AC40: 0 | AD40: 0 | AE40: 0 | AG40: =SUM(AB40*AH8)+(AC40*AH9) -> 0 | AH40: =SUM(AD40*AH10)+(AD40*AH11) -> 0 | AI40: 0 | AK40: =(B40*2)*AO6/60 -> 0 | AL40: =AB40*AO8/60 -> 0 | AM40: =AD40*AO9 -> 0 | AN40: 0 | AO40: =AN40*AL6 -> 0 | AQ40: =IF(ProjectData!H$17="Not Required",0,B40*2) -> 0 | AR40: 0 | AS40: 0 | AT40: =AQ40*0.76 -> 0 | AU40: =AS40*AV6 -> 0 | AV40: =AS40*AR6 -> 0 | AW40: =AS40*AS6/60 -> 0
B41: =ProjectData!D39 -> 0 | D41: 6 | E41: 36 | F41: 2 | G41: 1 | H41: 4 | I41: 0 | J41: 0 | K41: =J41*G11 -> 0 | L41: =J41*G13 -> 0 | M41: =K41*'CTI Input Sheet'!B28 -> 0 | N41: =K41*'CTI Input Sheet'!C28 -> 0 | O41: =K41*'CTI Input Sheet'!D28 -> 0 | P41: 0 | T41: 0 | U41: 0 | V41: 0 | W41: =T41*'CTI Input Sheet'!K21 -> 0 | X41: =SUM(T41*H11)/60 -> 0 | Z41: 0 | AA41: 0 | AB41: 0 | AC41: 0 | AD41: 0 | AE41: 0 | AG41: =SUM(AB41*AH8)+(AC41*AH9) -> 0 | AH41: =SUM(AD41*AH10)+(AD41*AH11) -> 0 | AI41: 0 | AK41: =(B41*2)*AO6/60 -> 0 | AL41: =AB41*AO8/60 -> 0 | AM41: =AD41*AO9 -> 0 | AN41: 0 | AO41: =AN41*AL6 -> 0 | AQ41: =IF(ProjectData!H$17="Not Required",0,B41*2) -> 0 | AR41: 0 | AS41: 0 | AT41: =AQ41*1.1 -> 0 | AU41: =AS41*AV6 -> 0 | AV41: =AS41*AR6 -> 0 | AW41: =AS41*AS6/60 -> 0
B42: =ProjectData!D40 -> 0 | D42: 9 | E42: 12 | F42: 2 | G42: 1.25 | H42: 2.25 | I42: 0 | J42: 0 | K42: =J42*G11 -> 0 | L42: =J42*G13 -> 0 | M42: =K42*'CTI Input Sheet'!B28 -> 0 | N42: =K42*'CTI Input Sheet'!C28 -> 0 | O42: =K42*'CTI Input Sheet'!D28 -> 0 | P42: 0 | T42: 0 | U42: 0 | V42: 0 | W42: =T42*'CTI Input Sheet'!K21 -> 0 | X42: =SUM(T42*H11)/60 -> 0 | Z42: 0 | AA42: 0 | AB42: 0 | AC42: 0 | AD42: 0 | AE42: 0 | AG42: =SUM(AB42*AH8)+(AC42*AH9) -> 0 | AH42: =SUM(AD42*AH10)+(AD42*AH11) -> 0 | AI42: 0 | AK42: =(B42*2)*AO6/60 -> 0 | AL42: =AB42*AO8/60 -> 0 | AM42: =AD42*AO9 -> 0 | AN42: 0 | AO42: =AN42*AL6 -> 0 | AQ42: =IF(ProjectData!H$17="Not Required",0,B42*2) -> 0 | AR42: 0 | AS42: 0 | AT42: =AQ42*0.65 -> 0 | AU42: =AS42*AV7 -> 0 | AV42: =AS42*AR7 -> 0 | AW42: =AS42*AS7/60 -> 0
B43: =ProjectData!D41 -> 0 | D43: 9 | E43: 24 | F43: 2 | G43: 1.25 | H43: 3.25 | I43: 0 | J43: 0 | K43: =J43*G11 -> 0 | L43: =J43*G13 -> 0 | M43: =K43*'CTI Input Sheet'!B28 -> 0 | N43: =K43*'CTI Input Sheet'!C28 -> 0 | O43: =K43*'CTI Input Sheet'!D28 -> 0 | P43: 0 | T43: 0 | U43: 0 | V43: 0 | W43: =T43*'CTI Input Sheet'!K21 -> 0 | X43: =SUM(T43*H11)/60 -> 0 | Z43: 0 | AA43: 0 | AB43: 0 | AC43: 0 | AD43: 0 | AE43: 0 | AG43: =SUM(AB43*AH8)+(AC43*AH9) -> 0 | AH43: =SUM(AD43*AH10)+(AD43*AH11) -> 0 | AI43: 0 | AK43: =(B43*2)*AO6/60 -> 0 | AL43: =AB43*AO8/60 -> 0 | AM43: =AD43*AO9 -> 0 | AN43: 0 | AO43: =AN43*AL6 -> 0 | AQ43: =IF(ProjectData!H$17="Not Required",0,B43*2) -> 0 | AR43: 0 | AS43: 0 | AT43: =AQ43*1.13 -> 0 | AU43: =AS43*AV7 -> 0 | AV43: =AS43*AR7 -> 0 | AW43: =AS43*AS7/60 -> 0
B44: =ProjectData!D42 -> 0 | D44: 9 | E44: 36 | F44: 2 | G44: 1.25 | H44: 4.25 | I44: 0 | J44: 0 | K44: =J44*G11 -> 0 | L44: =J44*G13 -> 0 | M44: =K44*'CTI Input Sheet'!B28 -> 0 | N44: =K44*'CTI Input Sheet'!C28 -> 0 | O44: =K44*'CTI Input Sheet'!D28 -> 0 | P44: 0 | T44: 0 | U44: 0 | V44: 0 | W44: =T44*'CTI Input Sheet'!K21 -> 0 | X44: =SUM(T44*H11)/60 -> 0 | Z44: 0 | AA44: 0 | AB44: 0 | AC44: 0 | AD44: 0 | AE44: 0 | AG44: =SUM(AB44*AH8)+(AC44*AH9) -> 0 | AH44: =SUM(AD44*AH10)+(AD44*AH11) -> 0 | AI44: 0 | AK44: =(B44*2)*AO6/60 -> 0 | AL44: =AB44*AO8/60 -> 0 | AM44: =AD44*AO9 -> 0 | AN44: 0 | AO44: =AN44*AL6 -> 0 | AQ44: =IF(ProjectData!H$17="Not Required",0,B44*2) -> 0 | AR44: 0 | AS44: 0 | AT44: =AQ44*1.61 -> 0 | AU44: =AS44*AV7 -> 0 | AV44: =AS44*AR7 -> 0 | AW44: =AS44*AS7/60 -> 0
B45: =ProjectData!D43 -> 3 | D45: 12 | E45: 12 | F45: 2 | G45: 1.5 | H45: 2.5 | I45: 0 | J45: 12 | K45: =J45*G11 -> 45.6 | L45: =J45*G13 -> 273.6 | M45: =K45*'CTI Input Sheet'!B28 -> 68.4 | N45: =K45*'CTI Input Sheet'!C28 -> 11.4 | O45: =K45*'CTI Input Sheet'!D28 -> 0 | P45: 353.4 | T45: 6 | U45: 45.6 | V45: 353.4 | W45: =T45*'CTI Input Sheet'!K21 -> 9 | X45: =SUM(T45*H11)/60 -> 1.5 | Z45: 0 | AA45: 0 | AB45: 6 | AC45: 24 | AD45: 0 | AE45: 0 | AG45: =SUM(AB45*AH8)+(AC45*AH9) -> 66 | AH45: =SUM(AD45*AH10)+(AD45*AH11) -> 0 | AI45: 66 | AK45: =(B45*2)*AO6/60 -> 0.1 | AL45: =AB45*AO8/60 -> 0.2 | AM45: =AD45*AO9 -> 0 | AN45: 0.3 | AO45: =AN45*AL6 -> 22.5 | AQ45: =IF(ProjectData!H$17="Not Required",0,B45*2) -> 0 | AR45: 0 | AS45: 0 | AT45: =AQ45*0.92 -> 0 | AU45: =AS45*AV8 -> 0 | AV45: =AS45*AR8 -> 0 | AW45: =AS45*AS8/60 -> 0
B46: =ProjectData!D44 -> 0 | D46: 12 | E46: 24 | F46: 2 | G46: 1.5 | H46: 3.5 | I46: 0 | J46: 0 | K46: =J46*G11 -> 0 | L46: =J46*G13 -> 0 | M46: =K46*'CTI Input Sheet'!B28 -> 0 | N46: =K46*'CTI Input Sheet'!C28 -> 0 | O46: =K46*'CTI Input Sheet'!D28 -> 0 | P46: 0 | T46: 0 | U46: 0 | V46: 0 | W46: =T46*'CTI Input Sheet'!K21 -> 0 | X46: =SUM(T46*H11)/60 -> 0 | Z46: 0 | AA46: 0 | AB46: 0 | AC46: 0 | AD46: 0 | AE46: 0 | AG46: =SUM(AB46*AH8)+(AC46*AH9) -> 0 | AH46: =SUM(AD46*AH10)+(AD46*AH11) -> 0 | AI46: 0 | AK46: =(B46*2)*AO6/60 -> 0 | AL46: =AB46*AO8/60 -> 0 | AM46: =AD46*AO9 -> 0 | AN46: 0 | AO46: =AN46*AL6 -> 0 | AQ46: =IF(ProjectData!H$17="Not Required",0,B46*2) -> 0 | AR46: 0 | AS46: 0 | AT46: =AQ46*1.53 -> 0 | AU46: =AS46*AV8 -> 0 | AV46: =AS46*AR8 -> 0 | AW46: =AS46*AS8/60 -> 0
B47: =ProjectData!D45 -> 0 | D47: 12 | E47: 36 | F47: 2 | G47: 1.5 | H47: 4.5 | I47: 0 | J47: 0 | K47: =J47*G11 -> 0 | L47: =J47*G13 -> 0 | M47: =K47*'CTI Input Sheet'!B28 -> 0 | N47: =K47*'CTI Input Sheet'!C28 -> 0 | O47: =K47*'CTI Input Sheet'!D28 -> 0 | P47: 0 | T47: 0 | U47: 0 | V47: 0 | W47: =T47*'CTI Input Sheet'!K21 -> 0 | X47: =SUM(T47*H11)/60 -> 0 | Z47: 0 | AA47: 0 | AB47: 0 | AC47: 0 | AD47: 0 | AE47: 0 | AG47: =SUM(AB47*AH8)+(AC47*AH9) -> 0 | AH47: =SUM(AD47*AH10)+(AD47*AH11) -> 0 | AI47: 0 | AK47: =(B47*2)*AO6/60 -> 0 | AL47: =AB47*AO8/60 -> 0 | AM47: =AD47*AO9 -> 0 | AN47: 0 | AO47: =AN47*AL6 -> 0 | AQ47: =IF(ProjectData!H$17="Not Required",0,B47*2) -> 0 | AR47: 0 | AS47: 0 | AT47: =AQ47*2.15 -> 0 | AU47: =AS47*AV8 -> 0 | AV47: =AS47*AR8 -> 0 | AW47: =AS47*AS8/60 -> 0
B48: =ProjectData!D46 -> 0 | D48: 18 | E48: 12 | F48: 2 | G48: 2 | H48: 3 | I48: 0 | J48: 0 | K48: =J48*G11 -> 0 | L48: =J48*G13 -> 0 | M48: =K48*'CTI Input Sheet'!B28 -> 0 | N48: =K48*'CTI Input Sheet'!C28 -> 0 | O48: =K48*'CTI Input Sheet'!D28 -> 0 | P48: 0 | T48: 0 | U48: 0 | V48: 0 | W48: =T48*'CTI Input Sheet'!K21 -> 0 | X48: =SUM(T48*H11)/60 -> 0 | Z48: 0 | AA48: 0 | AB48: 0 | AC48: 0 | AD48: 0 | AE48: 0 | AG48: =SUM(AB48*AH8)+(AC48*AH9) -> 0 | AH48: =SUM(AD48*AH10)+(AD48*AH11) -> 0 | AI48: 0 | AK48: =(B48*2)*AO6/60 -> 0 | AL48: =AB48*AO8/60 -> 0 | AM48: =AD48*AO9 -> 0 | AN48: 0 | AO48: =AN48*AL6 -> 0 | AQ48: =IF(ProjectData!H$17="Not Required",0,B48*2) -> 0 | AR48: 0 | AS48: 0 | AT48: =AQ48*1.56 -> 0 | AU48: =AS48*AV9 -> 0 | AV48: =AS48*AR9 -> 0 | AW48: =AS48*AS9/60 -> 0
B49: =ProjectData!D47 -> 0 | D49: 18 | E49: 24 | F49: 2 | G49: 2 | H49: 4 | I49: 0 | J49: 0 | K49: =J49*G11 -> 0 | L49: =J49*G13 -> 0 | M49: =K49*'CTI Input Sheet'!B28 -> 0 | N49: =K49*'CTI Input Sheet'!C28 -> 0 | O49: =K49*'CTI Input Sheet'!D28 -> 0 | P49: 0 | T49: 0 | U49: 0 | V49: 0 | W49: =T49*'CTI Input Sheet'!K21 -> 0 | X49: =SUM(T49*H11)/60 -> 0 | Z49: 0 | AA49: 0 | AB49: 0 | AC49: 0 | AD49: 0 | AE49: 0 | AG49: =SUM(AB49*AH8)+(AC49*AH9) -> 0 | AH49: =SUM(AD49*AH10)+(AD49*AH11) -> 0 | AI49: 0 | AK49: =(B49*2)*AO6/60 -> 0 | AL49: =AB49*AO8/60 -> 0 | AM49: =AD49*AO9 -> 0 | AN49: 0 | AO49: =AN49*AL6 -> 0 | AQ49: =IF(ProjectData!H$17="Not Required",0,B49*2) -> 0 | AR49: 0 | AS49: 0 | AT49: =AQ49*2.45 -> 0 | AU49: =AS49*AV9 -> 0 | AV49: =AS49*AR9 -> 0 | AW49: =AS49*AS9/60 -> 0
B50: =ProjectData!D48 -> 0 | D50: 18 | E50: 36 | F50: 2 | G50: 2 | H50: 5 | I50: 0 | J50: 0 | K50: =J50*G11 -> 0 | L50: =J50*G13 -> 0 | M50: =K50*'CTI Input Sheet'!B28 -> 0 | N50: =K50*'CTI Input Sheet'!C28 -> 0 | O50: =K50*'CTI Input Sheet'!D28 -> 0 | P50: 0 | T50: 0 | U50: 0 | V50: 0 | W50: =T50*'CTI Input Sheet'!K21 -> 0 | X50: =SUM(T50*H11)/60 -> 0 | Z50: 0 | AA50: 0 | AB50: 0 | AC50: 0 | AD50: 0 | AE50: 0 | AG50: =SUM(AB50*AH8)+(AC50*AH9) -> 0 | AH50: =SUM(AD50*AH10)+(AD50*AH11) -> 0 | AI50: 0 | AK50: =(B50*2)*AO6/60 -> 0 | AL50: =AB50*AO8/60 -> 0 | AM50: =AD50*AO9 -> 0 | AN50: 0 | AO50: =AN50*AL6 -> 0 | AQ50: =IF(ProjectData!H$17="Not Required",0,B50*2) -> 0 | AR50: 0 | AS50: 0 | AT50: =AQ50*3.34 -> 0 | AU50: =AS50*AV9 -> 0 | AV50: =AS50*AR9 -> 0 | AW50: =AS50*AS9/60 -> 0
B51: =ProjectData!D49 -> 0 | D51: 24 | E51: 12 | F51: 2 | G51: 2.5 | H51: 3.5 | I51: 0 | J51: 0 | K51: =J51*G11 -> 0 | L51: =J51*G13 -> 0 | M51: =K51*'CTI Input Sheet'!B28 -> 0 | N51: =K51*'CTI Input Sheet'!C28 -> 0 | O51: =K51*'CTI Input Sheet'!D28 -> 0 | P51: 0 | T51: 0 | U51: 0 | V51: 0 | W51: =T51*'CTI Input Sheet'!K21 -> 0 | X51: =SUM(T51*H11)/60 -> 0 | Z51: 0 | AA51: 0 | AB51: 0 | AC51: 0 | AD51: 0 | AE51: 0 | AG51: =SUM(AB51*AH8)+(AC51*AH9) -> 0 | AH51: =SUM(AD51*AH10)+(AD51*AH11) -> 0 | AI51: 0 | AK51: =(B51*2)*AO6/60 -> 0 | AL51: =AB51*AO8/60 -> 0 | AM51: =AD51*AO9 -> 0 | AN51: 0 | AO51: =AN51*AL6 -> 0 | AQ51: =IF(ProjectData!H$17="Not Required",0,B51*2) -> 0 | AR51: 0 | AS51: 0 | AT51: =AQ51*2.33 -> 0 | AU51: =AS51*AV10 -> 0 | AV51: =AS51*AR10 -> 0 | AW51: =AS51*AS10/60 -> 0
B52: =ProjectData!D50 -> 0 | D52: 24 | E52: 24 | F52: 2 | G52: 2.5 | H52: 4.5 | I52: 0 | J52: 0 | K52: =J52*G11 -> 0 | L52: =J52*G13 -> 0 | M52: =K52*'CTI Input Sheet'!B28 -> 0 | N52: =K52*'CTI Input Sheet'!C28 -> 0 | O52: =K52*'CTI Input Sheet'!D28 -> 0 | P52: 0 | T52: 0 | U52: 0 | V52: 0 | W52: =T52*'CTI Input Sheet'!K21 -> 0 | X52: =SUM(T52*H11)/60 -> 0 | Z52: 0 | AA52: 0 | AB52: 0 | AC52: 0 | AD52: 0 | AE52: 0 | AG52: =SUM(AB52*AH8)+(AC52*AH9) -> 0 | AH52: =SUM(AD52*AH10)+(AD52*AH11) -> 0 | AI52: 0 | AK52: =(B52*2)*AO6/60 -> 0 | AL52: =AB52*AO8/60 -> 0 | AM52: =AD52*AO9 -> 0 | AN52: 0 | AO52: =AN52*AL6 -> 0 | AQ52: =IF(ProjectData!H$17="Not Required",0,B52*2) -> 0 | AR52: 0 | AS52: 0 | AT52: =AQ52*3.5 -> 0 | AU52: =AS52*AV10 -> 0 | AV52: =AS52*AR10 -> 0 | AW52: =AS52*AS10/60 -> 0
B53: =ProjectData!D51 -> 0 | D53: 24 | E53: 36 | F53: 2 | G53: 2.5 | H53: 5.5 | I53: 0 | J53: 0 | K53: =J53*G11 -> 0 | L53: =J53*G13 -> 0 | M53: =K53*'CTI Input Sheet'!B28 -> 0 | N53: =K53*'CTI Input Sheet'!C28 -> 0 | O53: =K53*'CTI Input Sheet'!D28 -> 0 | P53: 0 | T53: 0 | U53: 0 | V53: 0 | W53: =T53*'CTI Input Sheet'!K21 -> 0 | X53: =SUM(T53*H11)/60 -> 0 | Z53: 0 | AA53: 0 | AB53: 0 | AC53: 0 | AD53: 0 | AE53: 0 | AG53: =SUM(AB53*AH8)+(AC53*AH9) -> 0 | AH53: =SUM(AD53*AH10)+(AD53*AH11) -> 0 | AI53: 0 | AK53: =(B53*2)*AO6/60 -> 0 | AL53: =AB53*AO8/60 -> 0 | AM53: =AD53*AO9 -> 0 | AN53: 0 | AO53: =AN53*AL6 -> 0 | AQ53: =IF(ProjectData!H$17="Not Required",0,B53*2) -> 0 | AR53: 0 | AS53: 0 | AT53: =AQ53*4.66 -> 0 | AU53: =AS53*AV10 -> 0 | AV53: =AS53*AR10 -> 0 | AW53: =AS53*AS10/60 -> 0
B54: =ProjectData!D52 -> 0 | D54: 30 | E54: 12 | F54: 2 | G54: 3 | H54: 4 | I54: 0 | J54: 0 | K54: =J54*G11 -> 0 | L54: =J54*G13 -> 0 | M54: =K54*'CTI Input Sheet'!B28 -> 0 | N54: =K54*'CTI Input Sheet'!C28 -> 0 | O54: =K54*'CTI Input Sheet'!D28 -> 0 | P54: 0 | T54: 0 | U54: 0 | V54: 0 | W54: =T54*'CTI Input Sheet'!K21 -> 0 | X54: =SUM(T54*H11)/60 -> 0 | Z54: 0 | AA54: 0 | AB54: 0 | AC54: 0 | AD54: 0 | AE54: 0 | AG54: =SUM(AB54*AH8)+(AC54*AH9) -> 0 | AH54: =SUM(AD54*AH10)+(AD54*AH11) -> 0 | AI54: 0 | AK54: =(B54*2)*AO6/60 -> 0 | AL54: =AB54*AO8/60 -> 0 | AM54: =AD54*AO9 -> 0 | AN54: 0 | AO54: =AN54*AL6 -> 0 | AQ54: =IF(ProjectData!H$17="Not Required",0,B54*2) -> 0 | AR54: 0 | AS54: 0 | AT54: =AQ54*3.24 -> 0 | AU54: =AS54*AV11 -> 0 | AV54: =AS54*AR11 -> 0 | AW54: =AS54*AS11/60 -> 0
B55: =ProjectData!D53 -> 0 | D55: 30 | E55: 24 | F55: 2 | G55: 3 | H55: 5 | I55: 0 | J55: 0 | K55: =J55*G11 -> 0 | L55: =J55*G13 -> 0 | M55: =K55*'CTI Input Sheet'!B28 -> 0 | N55: =K55*'CTI Input Sheet'!C28 -> 0 | O55: =K55*'CTI Input Sheet'!D28 -> 0 | P55: 0 | T55: 0 | U55: 0 | V55: 0 | W55: =T55*'CTI Input Sheet'!K21 -> 0 | X55: =SUM(T55*H11)/60 -> 0 | Z55: 0 | AA55: 0 | AB55: 0 | AC55: 0 | AD55: 0 | AE55: 0 | AG55: =SUM(AB55*AH8)+(AC55*AH9) -> 0 | AH55: =SUM(AD55*AH10)+(AD55*AH11) -> 0 | AI55: 0 | AK55: =(B55*2)*AO6/60 -> 0 | AL55: =AB55*AO8/60 -> 0 | AM55: =AD55*AO9 -> 0 | AN55: 0 | AO55: =AN55*AL6 -> 0 | AQ55: =IF(ProjectData!H$17="Not Required",0,B55*2) -> 0 | AR55: 0 | AS55: 0 | AT55: =AQ55*4.69 -> 0 | AU55: =AS55*AV11 -> 0 | AV55: =AS55*AR11 -> 0 | AW55: =AS55*AS11/60 -> 0
B56: =ProjectData!D54 -> 0 | D56: 30 | E56: 36 | F56: 2 | G56: 3 | H56: 6 | I56: 0 | J56: 0 | K56: =J56*G11 -> 0 | L56: =J56*G13 -> 0 | M56: =K56*'CTI Input Sheet'!B28 -> 0 | N56: =K56*'CTI Input Sheet'!C28 -> 0 | O56: =K56*'CTI Input Sheet'!D28 -> 0 | P56: 0 | T56: 0 | U56: 0 | V56: 0 | W56: =T56*'CTI Input Sheet'!K21 -> 0 | X56: =SUM(T56*H11)/60 -> 0 | Z56: 0 | AA56: 0 | AB56: 0 | AC56: 0 | AD56: 0 | AE56: 0 | AG56: =SUM(AB56*AH8)+(AC56*AH9) -> 0 | AH56: =SUM(AD56*AH10)+(AD56*AH11) -> 0 | AI56: 0 | AK56: =(B56*2)*AO6/60 -> 0 | AL56: =AB56*AO8/60 -> 0 | AM56: =AD56*AO9 -> 0 | AN56: 0 | AO56: =AN56*AL6 -> 0 | AQ56: =IF(ProjectData!H$17="Not Required",0,B56*2) -> 0 | AR56: 0 | AS56: 0 | AT56: =AQ56*6.13 -> 0 | AU56: =AS56*AV11 -> 0 | AV56: =AS56*AR11 -> 0 | AW56: =AS56*AS11/60 -> 0
B57: =ProjectData!D55 -> 1 | D57: 36 | E57: 12 | F57: 2 | G57: 3.5 | H57: 4.5 | I57: 0 | J57: 8 | K57: =J57*G11 -> 30.4 | L57: =J57*G13 -> 182.4 | M57: =K57*'CTI Input Sheet'!B28 -> 45.6 | N57: =K57*'CTI Input Sheet'!C28 -> 7.6 | O57: =K57*'CTI Input Sheet'!D28 -> 0 | P57: 235.6 | T57: 2 | U57: 30.4 | V57: 235.6 | W57: =T57*'CTI Input Sheet'!K21 -> 3 | X57: =SUM(T57*H11)/60 -> 0.5 | Z57: 0 | AA57: 0 | AB57: 2 | AC57: 8 | AD57: 0 | AE57: 0 | AG57: =SUM(AB57*AH8)+(AC57*AH9) -> 22 | AH57: =SUM(AD57*AH10)+(AD57*AH11) -> 0 | AI57: 22 | AK57: =(B57*2)*AO6/60 -> 0.03333333333 | AL57: =AB57*AO8/60 -> 0.06666666667 | AM57: =AD57*AO9 -> 0 | AN57: 0.1 | AO57: =AN57*AL6 -> 7.5 | AQ57: =IF(ProjectData!H$17="Not Required",0,B57*2) -> 0 | AR57: 0 | AS57: 0 | AT57: =AQ57*4.29 -> 0 | AU57: =AS57*AV12 -> 0 | AV57: =AS57*AR12 -> 0 | AW57: =AS57*AS12/60 -> 0
B58: =ProjectData!D56 -> 0 | D58: 36 | E58: 24 | F58: 2 | G58: 3.5 | H58: 5.5 | I58: 0 | J58: 0 | K58: =J58*G11 -> 0 | L58: =J58*G13 -> 0 | M58: =K58*'CTI Input Sheet'!B28 -> 0 | N58: =K58*'CTI Input Sheet'!C28 -> 0 | O58: =K58*'CTI Input Sheet'!D28 -> 0 | P58: 0 | T58: 0 | U58: 0 | V58: 0 | W58: =T58*'CTI Input Sheet'!K21 -> 0 | X58: =SUM(T58*H11)/60 -> 0 | Z58: 0 | AA58: 0 | AB58: 0 | AC58: 0 | AD58: 0 | AE58: 0 | AG58: =SUM(AB58*AH8)+(AC58*AH9) -> 0 | AH58: =SUM(AD58*AH10)+(AD58*AH11) -> 0 | AI58: 0 | AK58: =(B58*2)*AO6/60 -> 0 | AL58: =AB58*AO8/60 -> 0 | AM58: =AD58*AO9 -> 0 | AN58: 0 | AO58: =AN58*AL6 -> 0 | AQ58: =IF(ProjectData!H$17="Not Required",0,B58*2) -> 0 | AR58: 0 | AS58: 0 | AT58: =AQ58*6.01 -> 0 | AU58: =AS58*AV12 -> 0 | AV58: =AS58*AR12 -> 0 | AW58: =AS58*AS12/60 -> 0
B59: =ProjectData!D57 -> 0 | D59: 36 | E59: 36 | F59: 2 | G59: 3.5 | H59: 6.5 | I59: 0 | J59: 0 | K59: =J59*G11 -> 0 | L59: =J59*G13 -> 0 | M59: =K59*'CTI Input Sheet'!B28 -> 0 | N59: =K59*'CTI Input Sheet'!C28 -> 0 | O59: =K59*'CTI Input Sheet'!D28 -> 0 | P59: =SUM(L59:O59) -> 0 | T59: 0 | U59: 0 | V59: 0 | W59: =T59*'CTI Input Sheet'!K21 -> 0 | X59: =SUM(T59*H11)/60 -> 0 | Z59: 0 | AA59: 0 | AB59: 0 | AC59: 0 | AD59: 0 | AE59: 0 | AG59: =SUM(AB59*AH8)+(AC59*AH9) -> 0 | AH59: =SUM(AD59*AH10)+(AD59*AH11) -> 0 | AI59: 0 | AK59: =(B59*2)*AO6/60 -> 0 | AL59: =AB59*AO8/60 -> 0 | AM59: =AD59*AO9 -> 0 | AN59: 0 | AO59: =AN59*AL6 -> 0 | AQ59: =IF(ProjectData!H$17="Not Required",0,B59*2) -> 0 | AR59: 0 | AS59: 0 | AT59: =AQ59*7.73 -> 0 | AU59: =AS59*AV12 -> 0 | AV59: =AS59*AR12 -> 0 | AW59: =AS59*AS12/60 -> 0
B60: =SUM(B39:B59) -> 4 | J60: =SUM(J39:J59) -> 20 | K60: 76 | L60: 456 | M60: 114 | N60: 19 | O60: 0 | P60: 589 | T60: =SUM(T39:T59) -> 8 | U60: =SUM(U39:U59) -> 76 | V60: =SUM(V39:V59) -> 589 | W60: =SUM(W39:W59) -> 12 | X60: =SUM(X39:X59) -> 2 | Z60: =SUM(Z39:Z59) -> 0 | AA60: 0 | AB60: 8 | AC60: 32 | AD60: 0 | AE60: 0 | AG60: =SUM(AG39:AG59) -> 88 | AH60: =SUM(AH39:AH59) -> 0 | AI60: =SUM(AI39:AI59) -> 88 | AK60: =SUM(AK39:AK59) -> 0.1333333333 | AL60: =SUM(AL39:AL59) -> 0.2666666667 | AM60: =SUM(AM39:AM59) -> 0 | AN60: =SUM(AN39:AN59) -> 0.4 | AO60: =SUM(AO39:AO59) -> 30 | AQ60: =SUM(AQ39:AQ59) -> 0 | AR60: 0 | AS60: 0 | AT60: 0 | AU60: 0 | AV60: 0 | AW60: 0
W61: =W60*'CTI Input Sheet'!H7 -> 900 | X61: =X60*'CTI Input Sheet'!H6 -> 150 | AA61: =AA60*AH12 -> 0 | AB61: =AB60*AH8 -> 48 | AC61: =AC60*AH9 -> 40 | AD61: =AD60*AH10 -> 0 | AE61: =AE60*AH11 -> 0 | AK61: =AK60*AL6 -> 10 | AL61: =AL60*AL6 -> 20 | AM61: =AM60*AL6 -> 0
B62: HT Fittings | D62: HT Fittings | F62: TSS : HT Support Quantity - Support Weight - Support Steel, Fabrication, Logistics, Erection Costs | T62: HT : Support Structure Summary | Z62: HT : Tray Accessory Quantities | AG62: HT : Tray Accessory Costs | AK62: HT : Tray Accessory Installation Time & Installation Cost | AQ62: HT Covers
B63: Quantities | D63: HB Width (in) | E63: HB Radius (in) | F63: Support Quantity | G63: OS1 Str. Section Length (FT) | H63: OS2 Str. Section Length (FT) | I63: OS3 Str. Section Length (FT) | J63: CTR Str. Section Length (FT) | K63: Total Str. Section Length (FT) | L63: Total Str. Section Weight (LBS) | M63: Total Str. Section Cost (USD) | N63: Total Fabrication Cost (USD) | O63: Total Logistic Cost (USD) | P63: Total Erection Cost (USD) | Q63: SUM TOTAL COST/FITTING | T63: Total Quantity of Supports | U63: Total Weight of Supports (LB) | V63: Total Cost of Supports (USD) | W63: Total Design Time (HOURS) | X63: Total Support Instal Time (HOURS) | Z63: Integral Link Quantity (PAIRS) | AA63: Integral ink Hardware Quantity (PCS) | AB63: Hold Down Clamp Quantity (PR) | AC63: Clamp Hardware Quantity (PCS) | AD63: Expansion Guides Quantity (PR) | AE63: Guides Hardware Quantity (PCS) | AG63: Hold Down Clamps Cost/Pair (USD) | AH63: Exp. Guides Cost/Pair (USD) | AI63: Total Accessory Cost (USD) | AK63: TOUGHLink Time/Pair (HRS) | AL63: Hold Down Clamp Time/Pair (HRS) | AM63: Exp. Guide Time/Pair (HRS) | AN63: Total Time (HOURS) | AO63: Total Time Cost (USD) | AQ63: Cover Quantity (PCS) | AR63: Clamp Quantity (PCS) | AS63: TOUGHTorx Quantity (PCS) | AT63: Cover Weight (LBS) | AU63: TOUGHTorx Weight (LBS) | AV63: Clamps Cost (USD) | AW63: Installation Time (HOURS)
B64: =ProjectData!D61 -> 0 | D64: 6 | E64: 12 | F64: 3 | G64: 1 | H64: 1 | I64: 2.5 | J64: 0 | K64: =SUM(G64+H64+I64+J64)*B64 -> 0 | L64: =K64*G11 -> 0 | M64: =K64*G13 -> 0 | N64: =L64*'CTI Input Sheet'!B28 -> 0 | O64: =L64*'CTI Input Sheet'!C28 -> 0 | P64: =L64*'CTI Input Sheet'!D28 -> 0 | Q64: =SUM(M64:P64) -> 0 | T64: =B64*F64 -> 0 | U64: =L64 -> 0 | V64: =Q64 -> 0 | W64: =T64*'CTI Input Sheet'!K22 -> 0 | X64: =SUM(T64*H11)/60 -> 0 | Z64: 0 | AA64: =Z64*8 -> 0 | AB64: =(F64)*B64 -> 0 | AC64: =AB64*4 -> 0 | AD64: 0 | AE64: 0 | AG64: =SUM(AB64*AH8)+(AC64*AH9) -> 0 | AH64: 0 | AI64: =SUM(AG64:AH64) -> 0 | AK64: =(B64*3)*AO6/60 -> 0 | AL64: =AB64*AO8/60 -> 0 | AM64: 0 | AN64: =SUM(AK64:AM64) -> 0 | AO64: =AN64*AL6 -> 0 | AQ64: =IF(ProjectData!H$17="Not Required",0,B64*2) -> 0 | AR64: =AQ64*0 -> 0 | AS64: =AQ64*6 -> 0 | AT64: =AQ64*0.88 -> 0 | AU64: =AS64*AV6 -> 0 | AV64: =AS64*AR6 -> 0 | AW64: =AS64*AS6/60 -> 0
B65: =ProjectData!D62 -> 0 | D65: 6 | E65: 24 | F65: 3 | G65: 1 | H65: 1 | I65: 3.5 | J65: 0 | K65: =SUM(G65+H65+I65+J65)*B65 -> 0 | L65: =K65*G11 -> 0 | M65: =K65*G13 -> 0 | N65: =L65*'CTI Input Sheet'!B28 -> 0 | O65: =L65*'CTI Input Sheet'!C28 -> 0 | P65: =L65*'CTI Input Sheet'!D28 -> 0 | Q65: =SUM(M65:P65) -> 0 | T65: =B65*F65 -> 0 | U65: 0 | V65: 0 | W65: =T65*'CTI Input Sheet'!K22 -> 0 | X65: =SUM(T65*H11)/60 -> 0 | Z65: 0 | AA65: 0 | AB65: 0 | AC65: 0 | AD65: 0 | AE65: 0 | AG65: =SUM(AB65*AH8)+(AC65*AH9) -> 0 | AH65: 0 | AI65: 0 | AK65: =(B65*3)*AO6/60 -> 0 | AL65: =AB65*AO8/60 -> 0 | AM65: 0 | AN65: 0 | AO65: =AN65*AL6 -> 0 | AQ65: =IF(ProjectData!H$17="Not Required",0,B65*2) -> 0 | AR65: 0 | AS65: 0 | AT65: =AQ65*1.96 -> 0 | AU65: =AS65*AV6 -> 0 | AV65: =AS65*AR6 -> 0 | AW65: =AS65*AS6/60 -> 0
B66: =ProjectData!D63 -> 0 | D66: 6 | E66: 36 | F66: 3 | G66: 1 | H66: 1 | I66: 4.5 | J66: 0 | K66: 0 | L66: =K66*G11 -> 0 | M66: =K66*G13 -> 0 | N66: =L66*'CTI Input Sheet'!B28 -> 0 | O66: =L66*'CTI Input Sheet'!C28 -> 0 | P66: =L66*'CTI Input Sheet'!D28 -> 0 | Q66: 0 | T66: 0 | U66: 0 | V66: 0 | W66: =T66*'CTI Input Sheet'!K22 -> 0 | X66: =SUM(T66*H11)/60 -> 0 | Z66: 0 | AA66: 0 | AB66: 0 | AC66: 0 | AD66: 0 | AE66: 0 | AG66: =SUM(AB66*AH8)+(AC66*AH9) -> 0 | AH66: 0 | AI66: 0 | AK66: =(B66*3)*AO6/60 -> 0 | AL66: =AB66*AO8/60 -> 0 | AM66: 0 | AN66: 0 | AO66: =AN66*AL6 -> 0 | AQ66: =IF(ProjectData!H$17="Not Required",0,B66*2) -> 0 | AR66: 0 | AS66: 0 | AT66: =AQ66*3.34 -> 0 | AU66: =AS66*AV6 -> 0 | AV66: =AS66*AR6 -> 0 | AW66: =AS66*AS6/60 -> 0
B67: =ProjectData!D64 -> 0 | D67: 9 | E67: 12 | F67: 3 | G67: 1.25 | H67: 1.25 | I67: 2.75 | J67: 0 | K67: 0 | L67: =K67*G11 -> 0 | M67: =K67*G13 -> 0 | N67: =L67*'CTI Input Sheet'!B28 -> 0 | O67: =L67*'CTI Input Sheet'!C28 -> 0 | P67: =L67*'CTI Input Sheet'!D28 -> 0 | Q67: 0 | T67: 0 | U67: 0 | V67: 0 | W67: =T67*'CTI Input Sheet'!K22 -> 0 | X67: =SUM(T67*H11)/60 -> 0 | Z67: 0 | AA67: 0 | AB67: 0 | AC67: 0 | AD67: 0 | AE67: 0 | AG67: =SUM(AB67*AH8)+(AC67*AH9) -> 0 | AH67: 0 | AI67: 0 | AK67: =(B67*3)*AO6/60 -> 0 | AL67: =AB67*AO8/60 -> 0 | AM67: 0 | AN67: 0 | AO67: =AN67*AL6 -> 0 | AQ67: =IF(ProjectData!H$17="Not Required",0,B67*2) -> 0 | AR67: 0 | AS67: 0 | AT67: =AQ67*1.26 -> 0 | AU67: =AS67*AV7 -> 0 | AV67: =AS67*AR7 -> 0 | AW67: =AS67*AS7/60 -> 0
B68: =ProjectData!D65 -> 0 | D68: 9 | E68: 24 | F68: 3 | G68: 1.25 | H68: 1.25 | I68: 3.75 | J68: 0 | K68: 0 | L68: =K68*G11 -> 0 | M68: =K68*G13 -> 0 | N68: =L68*'CTI Input Sheet'!B28 -> 0 | O68: =L68*'CTI Input Sheet'!C28 -> 0 | P68: =L68*'CTI Input Sheet'!D28 -> 0 | Q68: 0 | T68: 0 | U68: 0 | V68: 0 | W68: =T68*'CTI Input Sheet'!K22 -> 0 | X68: =SUM(T68*H11)/60 -> 0 | Z68: 0 | AA68: 0 | AB68: 0 | AC68: 0 | AD68: 0 | AE68: 0 | AG68: =SUM(AB68*AH8)+(AC68*AH9) -> 0 | AH68: 0 | AI68: 0 | AK68: =(B68*3)*AO6/60 -> 0 | AL68: =AB68*AO8/60 -> 0 | AM68: 0 | AN68: 0 | AO68: =AN68*AL6 -> 0 | AQ68: =IF(ProjectData!H$17="Not Required",0,B68*2) -> 0 | AR68: 0 | AS68: 0 | AT68: =AQ68*2.6 -> 0 | AU68: =AS68*AV7 -> 0 | AV68: =AS68*AR7 -> 0 | AW68: =AS68*AS7/60 -> 0
B69: =ProjectData!D66 -> 0 | D69: 9 | E69: 36 | F69: 3 | G69: 1.25 | H69: 1.25 | I69: 4.75 | J69: 0 | K69: 0 | L69: =K69*G11 -> 0 | M69: =K69*G13 -> 0 | N69: =L69*'CTI Input Sheet'!B28 -> 0 | O69: =L69*'CTI Input Sheet'!C28 -> 0 | P69: =L69*'CTI Input Sheet'!D28 -> 0 | Q69: 0 | T69: 0 | U69: 0 | V69: 0 | W69: =T69*'CTI Input Sheet'!K22 -> 0 | X69: =SUM(T69*H11)/60 -> 0 | Z69: 0 | AA69: 0 | AB69: 0 | AC69: 0 | AD69: 0 | AE69: 0 | AG69: =SUM(AB69*AH8)+(AC69*AH9) -> 0 | AH69: 0 | AI69: 0 | AK69: =(B69*3)*AO6/60 -> 0 | AL69: =AB69*AO8/60 -> 0 | AM69: 0 | AN69: 0 | AO69: =AN69*AL6 -> 0 | AQ69: =IF(ProjectData!H$17="Not Required",0,B69*2) -> 0 | AR69: 0 | AS69: 0 | AT69: =AQ69*4.25 -> 0 | AU69: =AS69*AV7 -> 0 | AV69: =AS69*AR7 -> 0 | AW69: =AS69*AS7/60 -> 0
B70: =ProjectData!D67 -> 1 | D70: 12 | E70: 12 | F70: 3 | G70: 1.5 | H70: 1.5 | I70: 3 | J70: 0 | K70: 6 | L70: =K70*G11 -> 22.8 | M70: =K70*G13 -> 136.8 | N70: =L70*'CTI Input Sheet'!B28 -> 34.2 | O70: =L70*'CTI Input Sheet'!C28 -> 5.7 | P70: =L70*'CTI Input Sheet'!D28 -> 0 | Q70: 176.7 | T70: 3 | U70: 22.8 | V70: 176.7 | W70: =T70*'CTI Input Sheet'!K22 -> 7.5 | X70: =SUM(T70*H11)/60 -> 0.75 | Z70: 0 | AA70: 0 | AB70: 3 | AC70: 12 | AD70: 0 | AE70: 0 | AG70: =SUM(AB70*AH8)+(AC70*AH9) -> 33 | AH70: 0 | AI70: 33 | AK70: =(B70*3)*AO6/60 -> 0.05 | AL70: =AB70*AO8/60 -> 0.1 | AM70: 0 | AN70: 0.15 | AO70: =AN70*AL6 -> 11.25 | AQ70: =IF(ProjectData!H$17="Not Required",0,B70*2) -> 0 | AR70: 0 | AS70: 0 | AT70: =AQ70*1.68 -> 0 | AU70: =AS70*AV8 -> 0 | AV70: =AS70*AR8 -> 0 | AW70: =AS70*AS8/60 -> 0
B71: =ProjectData!D68 -> 0 | D71: 12 | E71: 24 | F71: 3 | G71: 1.5 | H71: 1.5 | I71: 4 | J71: 0 | K71: =SUM(G71+H71+I71+J71)*B71 -> 0 | L71: =K71*G11 -> 0 | M71: =K71*G13 -> 0 | N71: =L71*'CTI Input Sheet'!B28 -> 0 | O71: =L71*'CTI Input Sheet'!C28 -> 0 | P71: =L71*'CTI Input Sheet'!D28 -> 0 | Q71: 0 | T71: 0 | U71: 0 | V71: 0 | W71: =T71*'CTI Input Sheet'!K22 -> 0 | X71: =SUM(T71*H11)/60 -> 0 | Z71: 0 | AA71: 0 | AB71: 0 | AC71: 0 | AD71: 0 | AE71: 0 | AG71: =SUM(AB71*AH8)+(AC71*AH9) -> 0 | AH71: 0 | AI71: 0 | AK71: =(B71*3)*AO6/60 -> 0 | AL71: =AB71*AO8/60 -> 0 | AM71: 0 | AN71: 0 | AO71: =AN71*AL6 -> 0 | AQ71: =IF(ProjectData!H$17="Not Required",0,B71*2) -> 0 | AR71: 0 | AS71: 0 | AT71: =AQ71*3.29 -> 0 | AU71: =AS71*AV8 -> 0 | AV71: =AS71*AR8 -> 0 | AW71: =AS71*AS8/60 -> 0
B72: =ProjectData!D69 -> 0 | D72: 12 | E72: 36 | F72: 3 | G72: 1.5 | H72: 1.5 | I72: 5 | J72: 0 | K72: 0 | L72: =K72*G11 -> 0 | M72: =K72*G13 -> 0 | N72: =L72*'CTI Input Sheet'!B28 -> 0 | O72: =L72*'CTI Input Sheet'!C28 -> 0 | P72: =L72*'CTI Input Sheet'!D28 -> 0 | Q72: 0 | T72: 0 | U72: 0 | V72: 0 | W72: =T72*'CTI Input Sheet'!K22 -> 0 | X72: =SUM(T72*H11)/60 -> 0 | Z72: 0 | AA72: 0 | AB72: 0 | AC72: 0 | AD72: 0 | AE72: 0 | AG72: =SUM(AB72*AH8)+(AC72*AH9) -> 0 | AH72: 0 | AI72: 0 | AK72: =(B72*3)*AO6/60 -> 0 | AL72: =AB72*AO8/60 -> 0 | AM72: 0 | AN72: 0 | AO72: =AN72*AL6 -> 0 | AQ72: =IF(ProjectData!H$17="Not Required",0,B72*2) -> 0 | AR72: 0 | AS72: 0 | AT72: =AQ72*5.2 -> 0 | AU72: =AS72*AV8 -> 0 | AV72: =AS72*AR8 -> 0 | AW72: =AS72*AS8/60 -> 0
B73: =ProjectData!D70 -> 0 | D73: 18 | E73: 12 | F73: 3 | G73: 2 | H73: 2 | I73: 3.5 | J73: 0 | K73: 0 | L73: =K73*G11 -> 0 | M73: =K73*G13 -> 0 | N73: =L73*'CTI Input Sheet'!B28 -> 0 | O73: =L73*'CTI Input Sheet'!C28 -> 0 | P73: =L73*'CTI Input Sheet'!D28 -> 0 | Q73: 0 | T73: 0 | U73: 0 | V73: 0 | W73: =T73*'CTI Input Sheet'!K22 -> 0 | X73: =SUM(T73*H11)/60 -> 0 | Z73: 0 | AA73: 0 | AB73: 0 | AC73: 0 | AD73: 0 | AE73: 0 | AG73: =SUM(AB73*AH8)+(AC73*AH9) -> 0 | AH73: 0 | AI73: 0 | AK73: =(B73*3)*AO6/60 -> 0 | AL73: =AB73*AO8/60 -> 0 | AM73: 0 | AN73: 0 | AO73: =AN73*AL6 -> 0 | AQ73: =IF(ProjectData!H$17="Not Required",0,B73*2) -> 0 | AR73: 0 | AS73: 0 | AT73: =AQ73*2.65 -> 0 | AU73: =AS73*AV9 -> 0 | AV73: =AS73*AR9 -> 0 | AW73: =AS73*AS9/60 -> 0
B74: =ProjectData!D71 -> 0 | D74: 18 | E74: 24 | F74: 3 | G74: 2 | H74: 2 | I74: 4.5 | J74: 0 | K74: 0 | L74: =K74*G11 -> 0 | M74: =K74*G13 -> 0 | N74: =L74*'CTI Input Sheet'!B28 -> 0 | O74: =L74*'CTI Input Sheet'!C28 -> 0 | P74: =L74*'CTI Input Sheet'!D28 -> 0 | Q74: 0 | T74: 0 | U74: 0 | V74: 0 | W74: =T74*'CTI Input Sheet'!K22 -> 0 | X74: =SUM(T74*H11)/60 -> 0 | Z74: 0 | AA74: 0 | AB74: 0 | AC74: 0 | AD74: 0 | AE74: 0 | AG74: =SUM(AB74*AH8)+(AC74*AH9) -> 0 | AH74: 0 | AI74: 0 | AK74: =(B74*3)*AO6/60 -> 0 | AL74: =AB74*AO8/60 -> 0 | AM74: 0 | AN74: 0 | AO74: =AN74*AL6 -> 0 | AQ74: =IF(ProjectData!H$17="Not Required",0,B74*2) -> 0 | AR74: 0 | AS74: 0 | AT74: =AQ74*4.79 -> 0 | AU74: =AS74*AV9 -> 0 | AV74: =AS74*AR9 -> 0 | AW74: =AS74*AS9/60 -> 0
B75: =ProjectData!D72 -> 0 | D75: 18 | E75: 36 | F75: 3 | G75: 2 | H75: 2 | I75: 5.5 | J75: 0 | K75: 0 | L75: =K75*G11 -> 0 | M75: =K75*G13 -> 0 | N75: =L75*'CTI Input Sheet'!B28 -> 0 | O75: =L75*'CTI Input Sheet'!C28 -> 0 | P75: =L75*'CTI Input Sheet'!D28 -> 0 | Q75: 0 | T75: 0 | U75: 0 | V75: 0 | W75: =T75*'CTI Input Sheet'!K22 -> 0 | X75: =SUM(T75*H11)/60 -> 0 | Z75: 0 | AA75: 0 | AB75: 0 | AC75: 0 | AD75: 0 | AE75: 0 | AG75: =SUM(AB75*AH8)+(AC75*AH9) -> 0 | AH75: 0 | AI75: 0 | AK75: =(B75*3)*AO6/60 -> 0 | AL75: =AB75*AO8/60 -> 0 | AM75: 0 | AN75: 0 | AO75: =AN75*AL6 -> 0 | AQ75: =IF(ProjectData!H$17="Not Required",0,B75*2) -> 0 | AR75: 0 | AS75: 0 | AT75: =AQ75*7.23 -> 0 | AU75: =AS75*AV9 -> 0 | AV75: =AS75*AR9 -> 0 | AW75: =AS75*AS9/60 -> 0
B76: =ProjectData!D73 -> 0 | D76: 24 | E76: 12 | F76: 3 | G76: 2.5 | H76: 2.5 | I76: 4 | J76: 0 | K76: 0 | L76: =K76*G11 -> 0 | M76: =K76*G13 -> 0 | N76: =L76*'CTI Input Sheet'!B28 -> 0 | O76: =L76*'CTI Input Sheet'!C28 -> 0 | P76: =L76*'CTI Input Sheet'!D28 -> 0 | Q76: 0 | T76: 0 | U76: 0 | V76: 0 | W76: =T76*'CTI Input Sheet'!K22 -> 0 | X76: =SUM(T76*H11)/60 -> 0 | Z76: 0 | AA76: 0 | AB76: 0 | AC76: 0 | AD76: 0 | AE76: 0 | AG76: =SUM(AB76*AH8)+(AC76*AH9) -> 0 | AH76: 0 | AI76: 0 | AK76: =(B76*3)*AO6/60 -> 0 | AL76: =AB76*AO8/60 -> 0 | AM76: 0 | AN76: 0 | AO76: =AN76*AL6 -> 0 | AQ76: =IF(ProjectData!H$17="Not Required",0,B76*2) -> 0 | AR76: 0 | AS76: 0 | AT76: =AQ76*3.8 -> 0 | AU76: =AS76*AV10 -> 0 | AV76: =AS76*AR10 -> 0 | AW76: =AS76*AS10/60 -> 0
B77: =ProjectData!D74 -> 0 | D77: 24 | E77: 24 | F77: 3 | G77: 2.5 | H77: 2.5 | I77: 5 | J77: 0 | K77: 0 | L77: =K77*G11 -> 0 | M77: =K77*G13 -> 0 | N77: =L77*'CTI Input Sheet'!B28 -> 0 | O77: =L77*'CTI Input Sheet'!C28 -> 0 | P77: =L77*'CTI Input Sheet'!D28 -> 0 | Q77: 0 | T77: 0 | U77: 0 | V77: 0 | W77: =T77*'CTI Input Sheet'!K22 -> 0 | X77: =SUM(T77*H11)/60 -> 0 | Z77: 0 | AA77: 0 | AB77: 0 | AC77: 0 | AD77: 0 | AE77: 0 | AG77: =SUM(AB77*AH8)+(AC77*AH9) -> 0 | AH77: 0 | AI77: 0 | AK77: =(B77*3)*AO6/60 -> 0 | AL77: =AB77*AO8/60 -> 0 | AM77: 0 | AN77: 0 | AO77: =AN77*AL6 -> 0 | AQ77: =IF(ProjectData!H$17="Not Required",0,B77*2) -> 0 | AR77: 0 | AS77: 0 | AT77: =AQ77*6.47 -> 0 | AU77: =AS77*AV10 -> 0 | AV77: =AS77*AR10 -> 0 | AW77: =AS77*AS10/60 -> 0
B78: =ProjectData!D75 -> 0 | D78: 24 | E78: 36 | F78: 3 | G78: 2.5 | H78: 2.5 | I78: 6 | J78: 0 | K78: 0 | L78: =K78*G11 -> 0 | M78: =K78*G13 -> 0 | N78: =L78*'CTI Input Sheet'!B28 -> 0 | O78: =L78*'CTI Input Sheet'!C28 -> 0 | P78: =L78*'CTI Input Sheet'!D28 -> 0 | Q78: 0 | T78: 0 | U78: 0 | V78: 0 | W78: =T78*'CTI Input Sheet'!K22 -> 0 | X78: =SUM(T78*H11)/60 -> 0 | Z78: 0 | AA78: 0 | AB78: 0 | AC78: 0 | AD78: 0 | AE78: 0 | AG78: =SUM(AB78*AH8)+(AC78*AH9) -> 0 | AH78: 0 | AI78: 0 | AK78: =(B78*3)*AO6/60 -> 0 | AL78: =AB78*AO8/60 -> 0 | AM78: 0 | AN78: 0 | AO78: =AN78*AL6 -> 0 | AQ78: =IF(ProjectData!H$17="Not Required",0,B78*2) -> 0 | AR78: 0 | AS78: 0 | AT78: =AQ78*9.43 -> 0 | AU78: =AS78*AV10 -> 0 | AV78: =AS78*AR10 -> 0 | AW78: =AS78*AS10/60 -> 0
B79: =ProjectData!D76 -> 0 | D79: 30 | E79: 12 | F79: 3 | G79: 3 | H79: 3 | I79: 4.5 | J79: 0 | K79: 0 | L79: =K79*G11 -> 0 | M79: =K79*G13 -> 0 | N79: =L79*'CTI Input Sheet'!B28 -> 0 | O79: =L79*'CTI Input Sheet'!C28 -> 0 | P79: =L79*'CTI Input Sheet'!D28 -> 0 | Q79: 0 | T79: 0 | U79: 0 | V79: 0 | W79: =T79*'CTI Input Sheet'!K22 -> 0 | X79: =SUM(T79*H11)/60 -> 0 | Z79: 0 | AA79: 0 | AB79: 0 | AC79: 0 | AD79: 0 | AE79: 0 | AG79: =SUM(AB79*AH8)+(AC79*AH9) -> 0 | AH79: 0 | AI79: 0 | AK79: =(B79*3)*AO6/60 -> 0 | AL79: =AB79*AO8/60 -> 0 | AM79: 0 | AN79: 0 | AO79: =AN79*AL6 -> 0 | AQ79: =IF(ProjectData!H$17="Not Required",0,B79*2) -> 0 | AR79: 0 | AS79: 0 | AT79: =AQ79*5.13 -> 0 | AU79: =AS79*AV11 -> 0 | AV79: =AS79*AR11 -> 0 | AW79: =AS79*AS11/60 -> 0
B80: =ProjectData!D77 -> 0 | D80: 30 | E80: 24 | F80: 3 | G80: 3 | H80: 3 | I80: 5.5 | J80: 0 | K80: 0 | L80: =K80*G11 -> 0 | M80: =K80*G13 -> 0 | N80: =L80*'CTI Input Sheet'!B28 -> 0 | O80: =L80*'CTI Input Sheet'!C28 -> 0 | P80: =L80*'CTI Input Sheet'!D28 -> 0 | Q80: 0 | T80: 0 | U80: 0 | V80: 0 | W80: =T80*'CTI Input Sheet'!K22 -> 0 | X80: =SUM(T80*H11)/60 -> 0 | Z80: 0 | AA80: 0 | AB80: 0 | AC80: 0 | AD80: 0 | AE80: 0 | AG80: =SUM(AB80*AH8)+(AC80*AH9) -> 0 | AH80: 0 | AI80: 0 | AK80: =(B80*3)*AO6/60 -> 0 | AL80: =AB80*AO8/60 -> 0 | AM80: 0 | AN80: 0 | AO80: =AN80*AL6 -> 0 | AQ80: =IF(ProjectData!H$17="Not Required",0,B80*2) -> 0 | AR80: 0 | AS80: 0 | AT80: =AQ80*8.32 -> 0 | AU80: =AS80*AV11 -> 0 | AV80: =AS80*AR11 -> 0 | AW80: =AS80*AS11/60 -> 0
B81: =ProjectData!D78 -> 0 | D81: 30 | E81: 36 | F81: 3 | G81: 3 | H81: 3 | I81: 6.5 | J81: 0 | K81: 0 | L81: =K81*G11 -> 0 | M81: =K81*G13 -> 0 | N81: =L81*'CTI Input Sheet'!B28 -> 0 | O81: =L81*'CTI Input Sheet'!C28 -> 0 | P81: =L81*'CTI Input Sheet'!D28 -> 0 | Q81: 0 | T81: 0 | U81: 0 | V81: 0 | W81: =T81*'CTI Input Sheet'!K22 -> 0 | X81: =SUM(T81*H11)/60 -> 0 | Z81: 0 | AA81: 0 | AB81: 0 | AC81: 0 | AD81: 0 | AE81: 0 | AG81: =SUM(AB81*AH8)+(AC81*AH9) -> 0 | AH81: 0 | AI81: 0 | AK81: =(B81*3)*AO6/60 -> 0 | AL81: =AB81*AO8/60 -> 0 | AM81: 0 | AN81: 0 | AO81: =AN81*AL6 -> 0 | AQ81: =IF(ProjectData!H$17="Not Required",0,B81*2) -> 0 | AR81: 0 | AS81: 0 | AT81: =AQ81*11.81 -> 0 | AU81: =AS81*AV11 -> 0 | AV81: =AS81*AR11 -> 0 | AW81: =AS81*AS11/60 -> 0
B82: =ProjectData!D79 -> 1 | D82: 36 | E82: 12 | F82: 3 | G82: 3.5 | H82: 3.5 | I82: 5 | J82: 0 | K82: 12 | L82: =K82*G11 -> 45.6 | M82: =K82*G13 -> 273.6 | N82: =L82*'CTI Input Sheet'!B28 -> 68.4 | O82: =L82*'CTI Input Sheet'!C28 -> 11.4 | P82: =L82*'CTI Input Sheet'!D28 -> 0 | Q82: 353.4 | T82: 3 | U82: 45.6 | V82: 353.4 | W82: =T82*'CTI Input Sheet'!K22 -> 7.5 | X82: =SUM(T82*H11)/60 -> 0.75 | Z82: 0 | AA82: 0 | AB82: 3 | AC82: 12 | AD82: 0 | AE82: 0 | AG82: =SUM(AB82*AH8)+(AC82*AH9) -> 33 | AH82: 0 | AI82: 33 | AK82: =(B82*3)*AO6/60 -> 0.05 | AL82: =AB82*AO8/60 -> 0.1 | AM82: 0 | AN82: 0.15 | AO82: =AN82*AL6 -> 11.25 | AQ82: =IF(ProjectData!H$17="Not Required",0,B82*2) -> 0 | AR82: 0 | AS82: 0 | AT82: =AQ82*6.63 -> 0 | AU82: =AS82*AV12 -> 0 | AV82: =AS82*AR12 -> 0 | AW82: =AS82*AS12/60 -> 0
B83: =ProjectData!D80 -> 0 | D83: 36 | E83: 24 | F83: 3 | G83: 3.5 | H83: 3.5 | I83: 6 | J83: 0 | K83: 0 | L83: =K83*G11 -> 0 | M83: =K83*G13 -> 0 | N83: =L83*'CTI Input Sheet'!B28 -> 0 | O83: =L83*'CTI Input Sheet'!C28 -> 0 | P83: =L83*'CTI Input Sheet'!D28 -> 0 | Q83: 0 | T83: 0 | U83: 0 | V83: 0 | W83: =T83*'CTI Input Sheet'!K22 -> 0 | X83: =SUM(T83*H11)/60 -> 0 | Z83: 0 | AA83: 0 | AB83: 0 | AC83: 0 | AD83: 0 | AE83: 0 | AG83: =SUM(AB83*AH8)+(AC83*AH9) -> 0 | AH83: 0 | AI83: 0 | AK83: =(B83*3)*AO6/60 -> 0 | AL83: =AB83*AO8/60 -> 0 | AM83: 0 | AN83: 0 | AO83: =AN83*AL6 -> 0 | AQ83: =IF(ProjectData!H$17="Not Required",0,B83*2) -> 0 | AR83: 0 | AS83: 0 | AT83: =AQ83*10.35 -> 0 | AU83: =AS83*AV12 -> 0 | AV83: =AS83*AR12 -> 0 | AW83: =AS83*AS12/60 -> 0
B84: =ProjectData!D81 -> 0 | D84: 36 | E84: 36 | F84: 3 | G84: 3.5 | H84: 3.5 | I84: 7 | J84: 0 | K84: 0 | L84: =K84*G11 -> 0 | M84: =K84*G13 -> 0 | N84: =L84*'CTI Input Sheet'!B28 -> 0 | O84: =L84*'CTI Input Sheet'!C28 -> 0 | P84: =L84*'CTI Input Sheet'!D28 -> 0 | Q84: =SUM(M84:P84) -> 0 | T84: 0 | U84: 0 | V84: 0 | W84: =T84*'CTI Input Sheet'!K22 -> 0 | X84: =SUM(T84*H11)/60 -> 0 | Z84: 0 | AA84: 0 | AB84: 0 | AC84: 0 | AD84: 0 | AE84: 0 | AG84: =SUM(AB84*AH8)+(AC84*AH9) -> 0 | AH84: 0 | AI84: 0 | AK84: =(B84*3)*AO6/60 -> 0 | AL84: =AB84*AO8/60 -> 0 | AM84: 0 | AN84: 0 | AO84: =AN84*AL6 -> 0 | AQ84: =IF(ProjectData!H$17="Not Required",0,B84*2) -> 0 | AR84: 0 | AS84: 0 | AT84: =AQ84*14.37 -> 0 | AU84: =AS84*AV12 -> 0 | AV84: =AS84*AR12 -> 0 | AW84: =AS84*AS12/60 -> 0
B85: =SUM(B64:B84) -> 2 | K85: =SUM(K64:K84) -> 18 | L85: 68.4 | M85: 410.4 | N85: 102.6 | O85: 17.1 | P85: 0 | Q85: 530.1 | T85: =SUM(T64:T84) -> 6 | U85: =SUM(U64:U84) -> 68.4 | V85: =SUM(V64:V84) -> 530.1 | W85: =SUM(W64:W84) -> 15 | X85: =SUM(X64:X84) -> 1.5 | Z85: =SUM(Z64:Z84) -> 0 | AA85: 0 | AB85: 6 | AC85: 24 | AD85: 0 | AE85: 0 | AG85: =SUM(AG64:AG84) -> 66 | AH85: =SUM(AH64:AH84) -> 0 | AI85: =SUM(AI64:AI84) -> 66 | AK85: =SUM(AK64:AK84) -> 0.1 | AL85: =SUM(AL64:AL84) -> 0.2 | AM85: =SUM(AM64:AM84) -> 0 | AN85: =SUM(AN64:AN84) -> 0.3 | AO85: =SUM(AO64:AO84) -> 22.5 | AQ85: =SUM(AQ64:AQ84) -> 0 | AR85: 0 | AS85: 0 | AT85: 0 | AU85: 0 | AV85: 0 | AW85: 0
W86: =W85*'CTI Input Sheet'!H7 -> 1125 | X86: =X85*'CTI Input Sheet'!H6 -> 112.5 | AA86: =AA85*AH12 -> 0 | AB86: =AB85*AH8 -> 36 | AC86: =AC85*AH9 -> 30 | AD86: =AD85*AH10 -> 0 | AE86: =AE85*AH11 -> 0 | AK86: =AK85*AL6 -> 7.5 | AL86: =AL85*AL6 -> 15 | AM86: =AM85*AL6 -> 0
B87: HX Fittings | D87: HX Fittings | F87: TSS : HX Support Quantity - Support Weight - Support Steel, Fabrication, Logistics, Erection Costs | T87: HX : Support Structure Summary | Z87: HX : Tray Accessory Quantities | AG87: HX : Tray Accessory Costs | AK87: HX : Tray Accessory Installation Time & Installation Cost | AQ87: HX Covers
B88: Quantities | D88: HB Width (in) | E88: HB Radius (in) | F88: Support Quantity | G88: OS1 Str. Section Length (FT) | H88: OS2 Str. Section Length (FT) | I88: OS3 Str. Section Length (FT) | J88: OS4 Str. Section Length (FT) | K88: CTR Str. Section Length (FT) | L88: Total Str. Section Length (FT) | M88: Total Str. Section Weight (LBS) | N88: Total Str. Section Cost (USD) | O88: Total Fabrication Cost (USD) | P88: Total Logistic Cost (USD) | Q88: Total Erection Cost (USD | R88: SUM TOTAL COST/FITTING | T88: Total Quantity of Supports | U88: Total Weight of Supports (LB) | V88: Total Cost of Supports (USD) | W88: Total Design Time (HOURS) | X88: Total Support Instal Time (HOURS) | Z88: Integral Link Quantity (PAIRS) | AA88: Integral ink Hardware Quantity (PCS) | AB88: Hold Down Clamp Quantity (PR) | AC88: Clamp Hardware Quantity (PCS) | AD88: Expansion Guides Quantity (PR) | AE88: Guides Hardware Quantity (PCS) | AG88: Hold Down Clamps Cost/Pair (USD) | AH88: Exp. Guides Cost/Pair (USD) | AI88: Total Accessory Cost (USD) | AK88: TOUGHLink Time/Pair (HRS) | AL88: Hold Down Clamp Time/Pair (HRS) | AM88: Exp. Guide Time/Pair (HRS) | AN88: Total Time (HOURS) | AO88: Total Time Cost (USD) | AQ88: Cover Quantity (PCS) | AR88: Clamp Quantity (PCS) | AS88: TOUGHTorx Quantity (PCS) | AT88: Cover Weight (LBS) | AU88: TOUGHTorx Weight (LBS) | AV88: Clamps Cost (USD) | AW88: Installation Time (HOURS)
B89: =ProjectData!G61 -> 0 | D89: 6 | E89: 12 | F89: 4 | G89: 1 | H89: 1 | I89: 2.5 | J89: 2.5 | K89: 0 | L89: =SUM(G89+H89+I89+J89+K89)*B89 -> 0 | M89: =L89*G11 -> 0 | N89: =L89*G13 -> 0 | O89: =M89*'CTI Input Sheet'!B28 -> 0 | P89: =M89*'CTI Input Sheet'!C28 -> 0 | Q89: =M89*'CTI Input Sheet'!D28 -> 0 | R89: =SUM(N89:Q89) -> 0 | T89: =B89*F89 -> 0 | U89: =M89 -> 0 | V89: =R89 -> 0 | W89: =T89*'CTI Input Sheet'!K23 -> 0 | X89: =SUM(T89*H11)/60 -> 0 | Z89: 0 | AA89: =Z89*8 -> 0 | AB89: =(F89)*B89 -> 0 | AC89: =AB89*4 -> 0 | AD89: 0 | AE89: 0 | AG89: =SUM(AB89*AH8)+(AC89*AH9) -> 0 | AH89: 0 | AI89: =SUM(AG89:AH89) -> 0 | AK89: =(B89*4)*AO6/60 -> 0 | AL89: =AB89*AO8/60 -> 0 | AM89: 0 | AN89: =SUM(AK89:AM89) -> 0 | AO89: =AN89*AL6 -> 0 | AQ89: =IF(ProjectData!H$17="Not Required",0,B89*2) -> 0 | AR89: =AQ89*0 -> 0 | AS89: =AQ89*8 -> 0 | AT89: =AQ89*1.21 -> 0 | AU89: =AS89*AV6 -> 0 | AV89: =AS89*AR6 -> 0 | AW89: =AS89*AS6/60 -> 0
B90: =ProjectData!G62 -> 0 | D90: 6 | E90: 24 | F90: 4 | G90: 1 | H90: 1 | I90: 3.5 | J90: 3.5 | K90: 0 | L90: =SUM(G90+H90+I90+J90+K90)*B90 -> 0 | M90: =L90*G11 -> 0 | N90: =L90*G13 -> 0 | O90: =M90*'CTI Input Sheet'!B28 -> 0 | P90: =M90*'CTI Input Sheet'!C28 -> 0 | Q90: =M90*'CTI Input Sheet'!D28 -> 0 | R90: 0 | T90: =B90*F90 -> 0 | U90: 0 | V90: 0 | W90: =T90*'CTI Input Sheet'!K23 -> 0 | X90: =SUM(T90*H11)/60 -> 0 | Z90: 0 | AA90: 0 | AB90: 0 | AC90: 0 | AD90: 0 | AE90: 0 | AG90: =SUM(AB90*AH8)+(AC90*AH9) -> 0 | AH90: 0 | AI90: 0 | AK90: =(B90*4)*AO6/60 -> 0 | AL90: =AB90*AO8/60 -> 0 | AM90: 0 | AN90: 0 | AO90: =AN90*AL6 -> 0 | AQ90: =IF(ProjectData!H$17="Not Required",0,B90*2) -> 0 | AR90: 0 | AS90: 0 | AT90: =AQ90*2.95 -> 0 | AU90: =AS90*AV6 -> 0 | AV90: =AS90*AR6 -> 0 | AW90: =AS90*AS6/60 -> 0
B91: =ProjectData!G63 -> 0 | D91: 6 | E91: 36 | F91: 4 | G91: 1 | H91: 1 | I91: 4.5 | J91: 4.5 | K91: 0 | L91: 0 | M91: =L91*G11 -> 0 | N91: =L91*G13 -> 0 | O91: =M91*'CTI Input Sheet'!B28 -> 0 | P91: =M91*'CTI Input Sheet'!C28 -> 0 | Q91: =M91*'CTI Input Sheet'!D28 -> 0 | R91: 0 | T91: 0 | U91: 0 | V91: 0 | W91: =T91*'CTI Input Sheet'!K23 -> 0 | X91: =SUM(T91*H11)/60 -> 0 | Z91: 0 | AA91: 0 | AB91: 0 | AC91: 0 | AD91: 0 | AE91: 0 | AG91: =SUM(AB91*AH8)+(AC91*AH9) -> 0 | AH91: 0 | AI91: 0 | AK91: =(B91*4)*AO6/60 -> 0 | AL91: =AB91*AO8/60 -> 0 | AM91: 0 | AN91: 0 | AO91: =AN91*AL6 -> 0 | AQ91: =IF(ProjectData!H$17="Not Required",0,B91*2) -> 0 | AR91: 0 | AS91: 0 | AT91: =AQ91*5.28 -> 0 | AU91: =AS91*AV6 -> 0 | AV91: =AS91*AR6 -> 0 | AW91: =AS91*AS6/60 -> 0
B92: =ProjectData!G64 -> 0 | D92: 9 | E92: 12 | F92: 4 | G92: 1.25 | H92: 1.25 | I92: 2.75 | J92: 2.75 | K92: 0 | L92: 0 | M92: =L92*G11 -> 0 | N92: =L92*G13 -> 0 | O92: =M92*'CTI Input Sheet'!B28 -> 0 | P92: =M92*'CTI Input Sheet'!C28 -> 0 | Q92: =M92*'CTI Input Sheet'!D28 -> 0 | R92: 0 | T92: 0 | U92: 0 | V92: 0 | W92: =T92*'CTI Input Sheet'!K23 -> 0 | X92: =SUM(T92*H11)/60 -> 0 | Z92: 0 | AA92: 0 | AB92: 0 | AC92: 0 | AD92: 0 | AE92: 0 | AG92: =SUM(AB92*AH8)+(AC92*AH9) -> 0 | AH92: 0 | AI92: 0 | AK92: =(B92*4)*AO6/60 -> 0 | AL92: =AB92*AO8/60 -> 0 | AM92: 0 | AN92: 0 | AO92: =AN92*AL6 -> 0 | AQ92: =IF(ProjectData!H$17="Not Required",0,B92*2) -> 0 | AR92: 0 | AS92: 0 | AT92: =AQ92*1.68 -> 0 | AU92: =AS92*AV7 -> 0 | AV92: =AS92*AR7 -> 0 | AW92: =AS92*AS7/60 -> 0
B93: =ProjectData!G65 -> 0 | D93: 9 | E93: 24 | F93: 4 | G93: 1.25 | H93: 1.25 | I93: 3.75 | J93: 3.75 | K93: 0 | L93: 0 | M93: =L93*G11 -> 0 | N93: =L93*G13 -> 0 | O93: =M93*'CTI Input Sheet'!B28 -> 0 | P93: =M93*'CTI Input Sheet'!C28 -> 0 | Q93: =M93*'CTI Input Sheet'!D28 -> 0 | R93: 0 | T93: 0 | U93: 0 | V93: 0 | W93: =T93*'CTI Input Sheet'!K23 -> 0 | X93: =SUM(T93*H11)/60 -> 0 | Z93: 0 | AA93: 0 | AB93: 0 | AC93: 0 | AD93: 0 | AE93: 0 | AG93: =SUM(AB93*AH8)+(AC93*AH9) -> 0 | AH93: 0 | AI93: 0 | AK93: =(B93*4)*AO6/60 -> 0 | AL93: =AB93*AO8/60 -> 0 | AM93: 0 | AN93: 0 | AO93: =AN93*AL6 -> 0 | AQ93: =IF(ProjectData!H$17="Not Required",0,B93*2) -> 0 | AR93: 0 | AS93: 0 | AT93: =AQ93*3.76 -> 0 | AU93: =AS93*AV7 -> 0 | AV93: =AS93*AR7 -> 0 | AW93: =AS93*AS7/60 -> 0
B94: =ProjectData!G66 -> 0 | D94: 9 | E94: 36 | F94: 4 | G94: 1.25 | H94: 1.25 | I94: 4.75 | J94: 4.75 | K94: 0 | L94: 0 | M94: =L94*G11 -> 0 | N94: =L94*G13 -> 0 | O94: =M94*'CTI Input Sheet'!B28 -> 0 | P94: =M94*'CTI Input Sheet'!C28 -> 0 | Q94: =M94*'CTI Input Sheet'!D28 -> 0 | R94: 0 | T94: 0 | U94: 0 | V94: 0 | W94: =T94*'CTI Input Sheet'!K23 -> 0 | X94: =SUM(T94*H11)/60 -> 0 | Z94: 0 | AA94: 0 | AB94: 0 | AC94: 0 | AD94: 0 | AE94: 0 | AG94: =SUM(AB94*AH8)+(AC94*AH9) -> 0 | AH94: 0 | AI94: 0 | AK94: =(B94*4)*AO6/60 -> 0 | AL94: =AB94*AO8/60 -> 0 | AM94: 0 | AN94: 0 | AO94: =AN94*AL6 -> 0 | AQ94: =IF(ProjectData!H$17="Not Required",0,B94*2) -> 0 | AR94: 0 | AS94: 0 | AT94: =AQ94*6.45 -> 0 | AU94: =AS94*AV7 -> 0 | AV94: =AS94*AR7 -> 0 | AW94: =AS94*AS7/60 -> 0
B95: =ProjectData!G67 -> 0 | D95: 12 | E95: 12 | F95: 4 | G95: 1.5 | H95: 1.5 | I95: 3 | J95: 3 | K95: 0 | L95: 0 | M95: =L95*G11 -> 0 | N95: =L95*G13 -> 0 | O95: =M95*'CTI Input Sheet'!B28 -> 0 | P95: =M95*'CTI Input Sheet'!C28 -> 0 | Q95: =M95*'CTI Input Sheet'!D28 -> 0 | R95: 0 | T95: 0 | U95: 0 | V95: 0 | W95: =T95*'CTI Input Sheet'!K23 -> 0 | X95: =SUM(T95*H11)/60 -> 0 | Z95: 0 | AA95: 0 | AB95: 0 | AC95: 0 | AD95: 0 | AE95: 0 | AG95: =SUM(AB95*AH8)+(AC95*AH9) -> 0 | AH95: 0 | AI95: 0 | AK95: =(B95*4)*AO6/60 -> 0 | AL95: =AB95*AO8/60 -> 0 | AM95: 0 | AN95: 0 | AO95: =AN95*AL6 -> 0 | AQ95: =IF(ProjectData!H$17="Not Required",0,B95*2) -> 0 | AR95: 0 | AS95: 0 | AT95: =AQ95*2.18 -> 0 | AU95: =AS95*AV8 -> 0 | AV95: =AS95*AR8 -> 0 | AW95: =AS95*AS8/60 -> 0
B96: =ProjectData!G68 -> 0 | D96: 12 | E96: 24 | F96: 4 | G96: 1.5 | H96: 1.5 | I96: 4 | J96: 4 | K96: 0 | L96: 0 | M96: =L96*G11 -> 0 | N96: =L96*G13 -> 0 | O96: =M96*'CTI Input Sheet'!B28 -> 0 | P96: =M96*'CTI Input Sheet'!C28 -> 0 | Q96: =M96*'CTI Input Sheet'!D28 -> 0 | R96: 0 | T96: 0 | U96: 0 | V96: 0 | W96: =T96*'CTI Input Sheet'!K23 -> 0 | X96: =SUM(T96*H11)/60 -> 0 | Z96: 0 | AA96: 0 | AB96: 0 | AC96: 0 | AD96: 0 | AE96: 0 | AG96: =SUM(AB96*AH8)+(AC96*AH9) -> 0 | AH96: 0 | AI96: 0 | AK96: =(B96*4)*AO6/60 -> 0 | AL96: =AB96*AO8/60 -> 0 | AM96: 0 | AN96: 0 | AO96: =AN96*AL6 -> 0 | AQ96: =IF(ProjectData!H$17="Not Required",0,B96*2) -> 0 | AR96: 0 | AS96: 0 | AT96: =AQ96*4.62 -> 0 | AU96: =AS96*AV8 -> 0 | AV96: =AS96*AR8 -> 0 | AW96: =AS96*AS8/60 -> 0
B97: =ProjectData!G69 -> 0 | D97: 12 | E97: 36 | F97: 4 | G97: 1.5 | H97: 1.5 | I97: 5 | J97: 5 | K97: 0 | L97: 0 | M97: =L97*G11 -> 0 | N97: =L97*G13 -> 0 | O97: =M97*'CTI Input Sheet'!B28 -> 0 | P97: =M97*'CTI Input Sheet'!C28 -> 0 | Q97: =M97*'CTI Input Sheet'!D28 -> 0 | R97: 0 | T97: 0 | U97: 0 | V97: 0 | W97: =T97*'CTI Input Sheet'!K23 -> 0 | X97: =SUM(T97*H11)/60 -> 0 | Z97: 0 | AA97: 0 | AB97: 0 | AC97: 0 | AD97: 0 | AE97: 0 | AG97: =SUM(AB97*AH8)+(AC97*AH9) -> 0 | AH97: 0 | AI97: 0 | AK97: =(B97*4)*AO6/60 -> 0 | AL97: =AB97*AO8/60 -> 0 | AM97: 0 | AN97: 0 | AO97: =AN97*AL6 -> 0 | AQ97: =IF(ProjectData!H$17="Not Required",0,B97*2) -> 0 | AR97: 0 | AS97: 0 | AT97: =AQ97*7.65 -> 0 | AU97: =AS97*AV8 -> 0 | AV97: =AS97*AR8 -> 0 | AW97: =AS97*AS8/60 -> 0
B98: =ProjectData!G70 -> 0 | D98: 18 | E98: 12 | F98: 4 | G98: 2 | H98: 2 | I98: 3.5 | J98: 3.5 | K98: 0 | L98: 0 | M98: =L98*G11 -> 0 | N98: =L98*G13 -> 0 | O98: =M98*'CTI Input Sheet'!B28 -> 0 | P98: =M98*'CTI Input Sheet'!C28 -> 0 | Q98: =M98*'CTI Input Sheet'!D28 -> 0 | R98: 0 | T98: 0 | U98: 0 | V98: 0 | W98: =T98*'CTI Input Sheet'!K23 -> 0 | X98: =SUM(T98*H11)/60 -> 0 | Z98: 0 | AA98: 0 | AB98: 0 | AC98: 0 | AD98: 0 | AE98: 0 | AG98: =SUM(AB98*AH8)+(AC98*AH9) -> 0 | AH98: 0 | AI98: 0 | AK98: =(B98*4)*AO6/60 -> 0 | AL98: =AB98*AO8/60 -> 0 | AM98: 0 | AN98: 0 | AO98: =AN98*AL6 -> 0 | AQ98: =IF(ProjectData!H$17="Not Required",0,B98*2) -> 0 | AR98: 0 | AS98: 0 | AT98: =AQ98*3.32 -> 0 | AU98: =AS98*AV9 -> 0 | AV98: =AS98*AR9 -> 0 | AW98: =AS98*AS9/60 -> 0
B99: =ProjectData!G71 -> 0 | D99: 18 | E99: 24 | F99: 4 | G99: 2 | H99: 2 | I99: 4.5 | J99: 4.5 | K99: 0 | L99: 0 | M99: =L99*G11 -> 0 | N99: =L99*G13 -> 0 | O99: =M99*'CTI Input Sheet'!B28 -> 0 | P99: =M99*'CTI Input Sheet'!C28 -> 0 | Q99: =M99*'CTI Input Sheet'!D28 -> 0 | R99: 0 | T99: 0 | U99: 0 | V99: 0 | W99: =T99*'CTI Input Sheet'!K23 -> 0 | X99: =SUM(T99*H11)/60 -> 0 | Z99: 0 | AA99: 0 | AB99: 0 | AC99: 0 | AD99: 0 | AE99: 0 | AG99: =SUM(AB99*AH8)+(AC99*AH9) -> 0 | AH99: 0 | AI99: 0 | AK99: =(B99*4)*AO6/60 -> 0 | AL99: =AB99*AO8/60 -> 0 | AM99: 0 | AN99: 0 | AO99: =AN99*AL6 -> 0 | AQ99: =IF(ProjectData!H$17="Not Required",0,B99*2) -> 0 | AR99: 0 | AS99: 0 | AT99: =AQ99*6.46 -> 0 | AU99: =AS99*AV9 -> 0 | AV99: =AS99*AR9 -> 0 | AW99: =AS99*AS9/60 -> 0
B100: =ProjectData!G72 -> 0 | D100: 18 | E100: 36 | F100: 4 | G100: 2 | H100: 2 | I100: 5.5 | J100: 5.5 | K100: 0 | L100: 0 | M100: =L100*G11 -> 0 | N100: =L100*G13 -> 0 | O100: =M100*'CTI Input Sheet'!B28 -> 0 | P100: =M100*'CTI Input Sheet'!C28 -> 0 | Q100: =M100*'CTI Input Sheet'!D28 -> 0 | R100: 0 | T100: 0 | U100: 0 | V100: 0 | W100: =T100*'CTI Input Sheet'!K23 -> 0 | X100: =SUM(T100*H11)/60 -> 0 | Z100: 0 | AA100: 0 | AB100: 0 | AC100: 0 | AD100: 0 | AE100: 0 | AG100: =SUM(AB100*AH8)+(AC100*AH9) -> 0 | AH100: 0 | AI100: 0 | AK100: =(B100*4)*AO6/60 -> 0 | AL100: =AB100*AO8/60 -> 0 | AM100: 0 | AN100: 0 | AO100: =AN100*AL6 -> 0 | AQ100: =IF(ProjectData!H$17="Not Required",0,B100*2) -> 0 | AR100: 0 | AS100: 0 | AT100: =AQ100*10.2 -> 0 | AU100: =AS100*AV9 -> 0 | AV100: =AS100*AR9 -> 0 | AW100: =AS100*AS9/60 -> 0
B101: =ProjectData!G73 -> 0 | D101: 24 | E101: 12 | F101: 4 | G101: 2.5 | H101: 2.5 | I101: 4 | J101: 4 | K101: 0 | L101: 0 | M101: =L101*G11 -> 0 | N101: =L101*G13 -> 0 | O101: =M101*'CTI Input Sheet'!B28 -> 0 | P101: =M101*'CTI Input Sheet'!C28 -> 0 | Q101: =M101*'CTI Input Sheet'!D28 -> 0 | R101: 0 | T101: 0 | U101: 0 | V101: 0 | W101: =T101*'CTI Input Sheet'!K23 -> 0 | X101: =SUM(T101*H11)/60 -> 0 | Z101: 0 | AA101: 0 | AB101: 0 | AC101: 0 | AD101: 0 | AE101: 0 | AG101: =SUM(AB101*AH8)+(AC101*AH9) -> 0 | AH101: 0 | AI101: 0 | AK101: =(B101*4)*AO6/60 -> 0 | AL101: =AB101*AO8/60 -> 0 | AM101: 0 | AN101: 0 | AO101: =AN101*AL6 -> 0 | AQ101: =IF(ProjectData!H$17="Not Required",0,B101*2) -> 0 | AR101: 0 | AS101: 0 | AT101: =AQ101*4.64 -> 0 | AU101: =AS101*AV10 -> 0 | AV101: =AS101*AR10 -> 0 | AW101: =AS101*AS10/60 -> 0
